Workbook

Sheet Information
B2: Scotland's Export Performance Monitor | E2: Contents page
B5: Introduction
B6: This analysis has been produced to support the development of our new export growth plan - Scotland: A Trading Nation:
B7: https://www.gov.scot/publications/scotland-a-trading-nation/
B8: It's based on the existing export data from latest version of Export Statistics Scotland (ESS) but presented with the aim to be more accessible and user friendly. By using new sector definitions and including more detailed sub-sector breakdowns, it can help users to understand current and past export performance in Scotland. As well as detailed information on international and rest of the UK exports for each sector and sub-sector, this tool has been supplemented with data on number of businesses, size of businesses, turnover and employment.
B10: Sectors
B11: The sector and sub-sector definitions used in this analysis, which are based on the Standard Industrial Classification (SIC) of the reporting company, were developed in collaboration with our partner organisations, Scottish Enterprise and Scottish Development International to try and give a more detailed analysis than is currently provided from the published ESS data. The ESS data excludes exports of oil and gas extracted from the UK Continental Shelf. However exports of services provided to the oil and gas sector are included and cross over a number of key sectors, including energy (energy support) and engineering. For some sectors current export data may not capture all export activity and work will continue to improve this data going forward.
B13: Destination Country
B14: This analysis provides the top 10 export destination countries for each sector and sub-sector. However the current ESS methodology means that destination country data should be treated as indicative only, particularly for the smaller sectors and sub-sectors.
B16: Methodology and Sources
B17: All of the export data in this analysis is based on the data produced for ESS 2017. For further information on the methodology and data sources please refer to the ESS publication below.
B18: https://www2.gov.scot/Resource/0054/00545619.pdf
B20: Growth Comparison with Inflation
B21: This analysis includes comparisons with inflation for each sector and sub-sector. This is to help assess whether export growth has outperformed what we might have expected if the nominal value had increased in line with inflation, and to highlight the sectors and sub-sectors that have demonstrated strong performance. The inflation rate used is the Consumer Price Inflation taken from the ONS website.
B22: https://www.ons.gov.uk/economy/inflationandpriceindices/datasets/consumerpriceinflation
B24: Business Statistics
B25: The business statistics are sourced from the Inter-Departmental Business Register (IDBR). The IDBR, maintained by the Office for National Statistics, is a database of all enterprises registered for VAT and/or PAYE, covering 99 per cent of economic activity in the UK. Those excluded are small businesses with no employees and an annual turnover below the VAT threshold (£83,000 as at March 2017). Although the IDBR is not usually the preferred source for sectoral employment or turnover, IDBR employment and turnover data has been used here for consistency with the IDBR business counts and to provide a breakdown by business size. Note that business size here has been defined according to the number of employees that the business employs in Scotland (rather than UK-wide). Further information on business statistics, including methodology, can be found via the link below.
B26: https://www2.gov.scot/Topics/Statistics/Browse/Business
B28: Feedback
B29: This tool has been published as experimental analysis. We plan to develop this analysis and publish further versions. To help with this, we would welcome any feedback you may have and would be particularly interested in knowing how you make use of this data. Please email any comments to:
B30: exports.statistics@gov.scot
B31: Version 2

Sheet Contents
B2: Scotland's Export Performance Monitor
B4: Contents
B6: Sheet Name | C6: Description
B7: Sector Definitions | C7: Lists the Standard Industrial Classification codes for each of the sectors and sub-sectors. | D7: Link
B8: International Exports - Table | C8: For each broad sector, provides value of international exports for 2002 to 2017 and proportion of total international exports. Also includes percentage change over 5, 10 and 14 year periods comparing against inflation. | D8: Link
B9: International Exports-Detailed | C9: For each sub-sector, provides value of international exports for 2002 to 2017 and proportion of total international exports. Also includes percentage change over 5, 10 and 14 year periods comparing against inflation. | D9: Link
B10: International- Top Destinations | C10: Tables for each sector and sub-sector detailing their top ten export destination countries. | D10: Link
B11: International Exports - Chart | C11: A chart which allows comparison of international exports between sectors.
B12: Rest of the UK Exports - Table | C12: For each broad sector, provides value of exports to the rest of the UK for 2002 to 2017 and proportion of total RUK exports. Also includes percentage change over 5, 10 and 15 year periods comparing against inflation. | D12: Link
B13: Rest of the UK Exports -Detail | C13: For each sub-sector, provides value of exports to the rest of the UK for 2002 to 2017 and proportion of total RUK exports. Also includes percentage change over 5, 10 and 15 year periods comparing against inflation. | D13: Link
B14: RUK Exports - Chart | C14: A chart which allows comparison of exports to the rest of the UK between sectors. | D14: Link
B15: Food and Drink - Chart | C15: A chart which breaks down Food and Drink by its sub-sector categories for both international and rest of UK exports.
B16: Engineering and Advanced Manufacturing - Chart | C16: A chart which breaks down Engineering and Advanced Manufacturing by its sub-sector categories for both international and rest of UK exports.
B17: Energy - Chart | C17: A chart which breaks down Energy by its sub-sector categories for both international and rest of UK exports.
B18: Financial and Business Services - Chart | C18: A chart which breaks down Financial and Business Services by its sub-sector categories for both international and rest of UK exports.
B19: Technology, Digital and Media - Chart | C19: A chart which breaks down Technology, Digital and Media by its sub-sector categories for both international and rest of UK exports.
B20: Chemical Sciences - Chart | C20: A chart which breaks down Chemical Sciences for both international and rest of UK exports.
B21: Wholesale and Retail - Chart | C21: A chart which breaks down Wholesale and Retail by its sub-sector categories for both international and rest of UK exports.
B22: Life Sciences - Chart | C22: A chart which breaks down Life Sciences by its sub-sector categories for both international and rest of UK exports.
B23: Transportation and Storage - Chart | C23: A chart which breaks down Transportation and Storage by its sub-sector categories for both international and rest of UK exports.
B24: Education - Chart | C24: A chart which breaks down Education both international and rest of UK exports.
B25: Sustainable Tourism - Chart | C25: A chart which breaks down Sustainable Tourism for both international and rest of UK exports.
B26: Textiles - Chart | C26: A chart which breaks down Textiles for both international and rest of UK exports.
B27: Forest and Timber - Chart | C27: A chart which breaks down Forest and Timber Technologies for both international and rest of UK exports.
B28: Services & Accommodation - Chart | C28: A chart which breaks down Other Services and Accommodation for both international and rest of UK exports.
B29: Construction - Chart | C29: A chart which breaks down Construction for both international and rest of UK exports.
B30: Real Estate - Chart | C30: A chart which breaks down Real Estate for both international and rest of UK exports.
B31: Business Base by Size | C31: Overview of businesses including Number of Enterprises, Employment and Turnover split by employment size. This covers all private sector VAT/PAYE registered companies and SE/HIE account managed companies. | D31: Link
B32: Business Base by Sub-Sector | C32: Overview of businesses including Number of Enterprises, Employment and Turnover split by sub-sector. This covers all private sector VAT/PAYE registered companies and SE/HIE account managed companies. | D32: Link
B33: Enterprises by Size&Sector | C33: A table showing the number of enterprises by size (based on number of employees) for each sector and sub-sector. | D33: Link
B34: Employment by Size&Sector | C34: A table showing total employment by size of enterprise for each sector and sub-sector. | D34: Link
B35: Turnover by Size&Sector | C35: A table showing total turnover by size of enterprise for each sector and sub-sector. | D35: Link
D36: Version 2

Sheet Sector Definitions
A1: Sector Definitions | D1: Contents page
A3: The sector definitions relates are based on the Standard Industrial Classification (SIC) of the reporting company. Further information on SIC can be found using the link below.
A4: https://www.ons.gov.uk/methodology/classificationsandstandards/ukstandardindustrialclassificationofeconomicactivities/uksic2007
A5: Note, each sector and sub-sector name is followed by G, to denote goods, or S to denote services. This is based on the main activity for that particular sector.
A7: Sector | B7: Sub-Sector | C7: Goods (G) / Services (S) | D7: SIC Codes Included
A8: Food and Drink | B8: Food | C8: Goods (G) | D8: 01: Crop and Animal Production, Hunting and Related Service Activities
D9: 03: Fishing and Aquaculture
D10: 10: Manufacture of Food Products
B11: Drink | C11: Goods (G) | D11: 11: Manufacture of Beverages
A13: Engineering and Advanced Manufacturing | B13: Metal Manufacturing | C13: Goods (G) | D13: 24: Manufacture of Basic Metals
D14: 25: Manufacture of Fabricated and Metal Products, except Machinery and Equipment
B15: Advanced Manufacturing | C15: Goods (G) | D15: 22: Manufacture of rubber and plastic products
D16: 23: Manufacture of other non-metallic mineral products
D17: 27: Manufacture of Electrical Equipment
D18: 28: Manufacture of Machinery and Equipment (not elsewhere classified)
B19: Transport Equipment | C19: Goods (G) | D19: 29: Manufacture of Motor Vehicles, Trailers and Semi-Trailers
D20: 30: Manufacture of Other Transport Equipment
B21: Engineering Services | C21: Services (S) | D21: 71: Architectural and engineering activities; technical testing and analysis
D22: 33: Repair and installation of machinery and equipment
B23: Other Manufacturing | C23: Goods (G) | D23: 31: Manufacture of furniture
D24: 32.1: Manufacture of jewellery, bijouterie and related articles
D25: 32.2: Manufacture of musical instruments
D26: 32.3: Manufacture of sports goods
D27: 32.4: Manufacture of games and toys
D28: 32.9: Manufacturing n.e.c
A30: Energy | B30: Energy Support | C30: Services (S) | D30: 09: Mining Support Service Activities
B31: Mining and Utilities | C31: Goods (G) | D31: 05: Mining of coal and lignite
D32: 08: Other mining and quarrying
D33: 35: Electricity, gas, steam and air conditioning supply
D34: 36: Water collection, treatment and supply
D35: 37: Sewerage
D36: 38: Waste collection, treatment and disposal activities; materials recovery
D37: 39: Remediation activities and other waste management services
A39: Financial and Business Services | B39: Financial Service Activities | C39: Services (S) | D39: 64: Financial service activities, except insurance and pension funding
B40: Insurance and Pensions | C40: Services (S) | D40: 65: Insurance, reinsurance and pension funding, except compulsory social security
B41: Financial Support Activities | C41: Services (S) | D41: 66: Activities auxiliary to financial Services and insurance Activities
B42: Legal and Accounting | C42: Services (S) | D42: 69: Legal and accounting activities
B43: Management Consultancy | C43: Services (S) | D43: 70: Activities of head offices; management consultancy activities
D44: 73: Advertising and market research
D45: 74: Other professional, scientific and technical activities
B46: Business Support Activities | C46: Services (S) | D46: 77: Rental and leasing activities
D47: 78: Employment activities
D48: 80: Security and investigation activities
D49: 81: Services to buildings and landscape activities
D50: 82: Office administrative, office support and other business support activities
A52: Technology, Digital and Media | B52: Manufacture of Computer, Electronic and Optical Products | C52: Goods (G) | D52: 26: Manufacture of Computer, Electronic and Optical Products
B53: Digital Industries | C53: Services (S) | D53: 62: Computer Programming, Consultancy and Related Activities
B54: Publishing and Audio Visual | C54: Services (S) | D54: 18: Printing and reproduction of recorded media
D55: 58: Publishing Activities
D56: 59: Motion Picture, Video and Television Programme Production, Sound Recording and Music Publishing Activities
D57: 60: Programming and Broadcasting Activities
B58: IT and Telecommunications | C58: Services (S) | D58: 61: Telecommunications
D59: 63: Information Service Activities
A61: Chemical Sciences | B61: Chemical Sciences | C61: Goods (G) | D61: 19: Manufacture of coke and refined petroleum products
D62: 20: Manufacture of chemicals and chemical products
A64: Wholesale and Retail Trade | B64: Trade and Repair of Vehicles | C64: Services (S) | D64: 45: Wholesale and Retail Trade and repair of motor vehicles and motorcycles *
B65: Wholesale Trade | C65: Services (S) | D65: 46: Wholesale Trade, except of motor vehicles and motorcycles *
B66: Retail Trade | C66: Services (S) | D66: 47: Retail Trade, except of motor vehicles and motorcycles *
A68: Life Sciences | B68: Pharmaceuticals | C68: Goods (G) | D68: 21: Manufacture of basic pharmaceutical products and pharmaceutical preparations
B69: Manufacture of Medical Equipment | C69: Goods (G) | D69: 32.5: Manufacture of medical and dental instruments and supplies
B70: Research | C70: Services (S) | D70: 72: Scientific research and development
A72: Transportation and Storage | B72: Transportation | C72: Services (S) | D72: 49: Land transport and transport via pipelines
D73: 50: Water transport
D74: 51: Air transport
B75: Storage | C75: Services (S) | D75: 52: Warehousing and support activities for transportation
D76: 53: Postal and courier activities
A78: Education | B78: Education | C78: Services (S) | D78: 85: Education
A80: Sustainable Tourism | B80: Sustainable Tourism | C80: Services (S) | D80: 55.1: Hotels and similar Accommodation
D81: 55.2: Holiday and other short-stay Accommodation
D82: 55.3: Camping grounds, recreational vehicle parks and trailer parks
D83: 56.1: Restaurants and mobile food Service Activities
D84: 56.3: Beverage serving Activities
D85: 79.12: Tour operator Activities
D86: 79.9: Other reservation Service and related Activities
D87: 91.02: Museum Activities
D88: 91.03: Operation of historical sites and buildings and similar visitor attractions
D89: 91.04: Botanical and zoological gardens and nature reserve Activities
D90: 93.11: Operation of sports facilities
D91: 93.199: Other sports Activities (not including Activities of racehorse owners) nec
D92: 93.21 Activities of amusement parks and theme parks
D93: 93.29: Other amusement and recreation Activities
A95: Textiles | B95: Textiles | C95: Goods (G) | D95: 13: Manufacture of textiles
D96: 14: Manufacture of wearing apparel
D97: 15: Manufacture of leather and related products
A99: Forest and Timber Technologies | B99: Forest and Timber Technologies | C99: Goods (G) | D99: 02: Forestry and logging
D100: 16: Manufacture of wood and of products of wood and cork, except furniture; manufacture of articles of straw and plaiting materials
D101: 17: Manufacture of paper and paper products
A103: Other Services and Accommodation | B103: Other Services and Accommodation | C103: Services (S) | D103: 55.9: Other Accommodation
D104: 56.2: Event catering and other food service activities
D105: 79.11: Travel agency activities
D106: 87: Residential care activities
D107: 88: Social work activities without Accommodation
D108: 90: Creative, arts and entertainment activities
D109: 91.01: Library and archive activities
D110: 92: Gambling and betting activities
D111: 93.12: Activities of sport clubs
D112: 93.13: Fitness facilities
D113: 93.19/1: Activities of racehorse owners
D114: 95: Repair of computers and personal and household goods
D115: 96: Other personal service activities
A117: Construction | B117: Construction | C117: Services (S) | D117: 41: Construction of buildings
D118: 42: Civil Engineering
D119: 43: Specialised Construction Activities
A121: Real Estate | B121: Real Estate | C121: Services (S) | D121: 68: Real Estate activities

Sheet International Exports - Table
A1: International Exports by Sector, 2002 - 2017 | P1: Contents page | Z1: Growth Comparison (Actual vs Inflation)
A2: (£ million) | S2: Change 2017 - 2016 | V2: Average Compound Growth rate | Z2: 2012 to 2017 | AB2: 2007 to 2017 | AD2: 2002 to 2017
A3: Sector | B3: 2002 | C3: 2003 | D3: 2004 | E3: 2005 | F3: 2006 | G3: 2007 | H3: 2008 | I3: 2009 | J3: 2010 | K3: 2011 | L3: 2012 | M3: 2013 | N3: 2014 | O3: 2015 | P3: 2016 | Q3: 2017 | S3: Num | T3: Per cent | V3: 2012 to 2017 | W3: 2007 to 2017 | X3: 2002 to 2017 | Z3: Actual | AA3: Inflation | AB3: Actual | AC3: Inflation | AD3: Actual | AE3: Inflation
A4: Food and Drink | B4: 3095 | C4: 3205 | D4: 3140 | E4: 3270 | F4: 3305 | G4: 3695 | H4: 3995 | I4: 4230 | J4: 4680 | K4: 5640 | L4: 5805 | M4: 5715 | N4: 5560 | O4: 5550 | P4: 5780 | Q4: 6345 | S4: 570 | T4: 0.09831171197 | V4: 0.01800120767 | W4: 0.05550726796 | X4: 0.0489878072 | Z4: 0.09330533177 | AA4: 0.07699408271 | AB4: 0.7163753984 | AC4: 0.2654170886 | AD4: 1.049069098 | AE4: 0.3888588319
A5: Engineering and Advanced Manufacturing | B5: 3580 | C5: 3405 | D5: 3400 | E5: 3590 | F5: 3780 | G5: 4385 | H5: 4760 | I5: 4750 | J5: 4755 | K5: 4785 | L5: 5525 | M5: 6155 | N5: 6260 | O5: 5985 | P5: 6115 | Q5: 5700 | S5: -415 | T5: -0.06786445788 | V5: 0.006329654863 | W5: 0.02660001111 | X5: 0.03148676326 | Z5: 0.0320514636 | AB5: 0.3002074384 | AD5: 0.5920433453
A6: Energy | B6: 745 | C6: 675 | D6: 810 | E6: 965 | F6: 1090 | G6: 1435 | H6: 1410 | I6: 1820 | J6: 2570 | K6: 3080 | L6: 3080 | M6: 3135 | N6: 3530 | O6: 4130 | P6: 3895 | Q6: 3780 | S6: -115 | T6: -0.02990609524 | V6: 0.04198859486 | W6: 0.1016077921 | X6: 0.1143221002 | Z6: 0.228329344 | AB6: 1.631903683 | AD6: 4.071788777
A7: Financial and Business Services | B7: 1600 | C7: 1355 | D7: 1615 | E7: 1715 | F7: 1915 | G7: 1595 | H7: 1835 | I7: 2465 | J7: 2515 | K7: 2915 | L7: 2880 | M7: 3090 | N7: 3235 | O7: 3135 | P7: 3285 | Q7: 3355 | S7: 70 | T7: 0.02110888483 | V7: 0.03111415462 | W7: 0.07718039292 | X7: 0.0504851739 | Z7: 0.1655576076 | AB7: 1.103218518 | AD7: 1.093384046
A8: Technology, Digital and Media | B8: 5920 | C8: 4690 | D8: 3705 | E8: 2715 | F8: 2460 | G8: 2200 | H8: 2270 | I8: 2190 | J8: 2180 | K8: 2185 | L8: 2170 | M8: 2400 | N8: 2055 | O8: 2530 | P8: 2415 | Q8: 3345 | S8: 930 | T8: 0.3850620924 | V8: 0.09064527386 | W8: 0.04283578529 | X8: -0.03729820219 | Z8: 0.5431836339 | AB8: 0.5211052218 | AD8: -0.4345727399
A9: Chemical Sciences | B9: 1950 | C9: 1985 | D9: 2045 | E9: 2155 | F9: 2310 | G9: 2510 | H9: 2990 | I9: 2320 | J9: 2550 | K9: 3345 | L9: 2825 | M9: 2755 | N9: 2130 | O9: 2580 | P9: 2345 | Q9: 3160 | S9: 815 | T9: 0.348630238 | V9: 0.02290095405 | W9: 0.02342064848 | X9: 0.03268049125 | Z9: 0.1198707937 | AB9: 0.2604968081 | AD9: 0.6199051652
A10: Wholesale and Retail Trade | B10: 995 | C10: 960 | D10: 1095 | E10: 1065 | F10: 1395 | G10: 1560 | H10: 1605 | I10: 1460 | J10: 1365 | K10: 1595 | L10: 1850 | M10: 1855 | N10: 1690 | O10: 1745 | P10: 2015 | Q10: 1890 | S10: -125 | T10: -0.06120030832 | V10: 0.004626008559 | W10: 0.01956169389 | X10: 0.04386642772 | Z10: 0.0233450346 | AB10: 0.2137663737 | AD10: 0.9040307324
A11: Life Sciences | B11: 745 | C11: 875 | D11: 790 | E11: 800 | F11: 805 | G11: 935 | H11: 925 | I11: 835 | J11: 1005 | K11: 900 | L11: 925 | M11: 1015 | N11: 1130 | O11: 1280 | P11: 1330 | Q11: 1570 | S11: 240 | T11: 0.1805897942 | V11: 0.1114982867 | W11: 0.05277370177 | X11: 0.05077512889 | Z11: 0.6964614213 | AB11: 0.6724389658 | AD11: 1.102068053
A12: Transportation and Storage | B12: 570 | C12: 680 | D12: 745 | E12: 580 | F12: 695 | G12: 675 | H12: 900 | I12: 870 | J12: 785 | K12: 915 | L12: 835 | M12: 1055 | N12: 1135 | O12: 1000 | P12: 1245 | Q12: 1175 | S12: -70 | T12: -0.05581796788 | V12: 0.07027292848 | W12: 0.05716598802 | X12: 0.04916904823 | Z12: 0.4043414113 | AB12: 0.743539626 | AD12: 1.054386007
A13: Education | B13: 170 | C13: 255 | D13: 255 | E13: 280 | F13: 305 | G13: 280 | H13: 330 | I13: 400 | J13: 440 | K13: 515 | L13: 560 | M13: 630 | N13: 700 | O13: 745 | P13: 770 | Q13: 775 | S13: 5 | T13: 0.007018885599 | V13: 0.06732988583 | W13: 0.1066482237 | X13: 0.1057415672 | Z13: 0.3851389776 | AB13: 1.754837034 | AD13: 3.516526257
A14: Sustainable Tourism | B14: 175 | C14: 280 | D14: 265 | E14: 285 | F14: 320 | G14: 280 | H14: 280 | I14: 280 | J14: 265 | K14: 305 | L14: 285 | M14: 290 | N14: 390 | O14: 360 | P14: 330 | Q14: 335 | S14: 5 | T14: 0.02152635482 | V14: 0.03260183628 | W14: 0.01844319012 | X14: 0.04423859027 | Z14: 0.1739901824 | AB14: 0.2005163687 | AD14: 0.9142386492
A15: Textiles | B15: 395 | C15: 390 | D15: 395 | E15: 375 | F15: 390 | G15: 340 | H15: 340 | I15: 295 | J15: 290 | K15: 350 | L15: 370 | M15: 360 | N15: 360 | O15: 375 | P15: 340 | Q15: 325 | S15: -15 | T15: -0.04901997459 | V15: -0.02667894061 | W15: -0.00379715212 | X15: -0.0128577929 | Z15: -0.1264644164 | AB15: -0.0373292212 | AD15: -0.1764389084
A16: Forest and Timber Technologies | B16: 305 | C16: 335 | D16: 385 | E16: 375 | F16: 345 | G16: 330 | H16: 340 | I16: 320 | J16: 365 | K16: 350 | L16: 375 | M16: 395 | N16: 335 | O16: 435 | P16: 370 | Q16: 290 | S16: -85 | T16: -0.2239627365 | V16: -0.05012401966 | W16: -0.01264440268 | X16: -0.003295884841 | Z16: -0.2267240046 | AB16: -0.1194866899 | AD16: -0.04831380298
A17: Other Services and Accommodation | B17: 140 | C17: 165 | D17: 195 | E17: 175 | F17: 170 | G17: 175 | H17: 245 | I17: 255 | J17: 175 | K17: 175 | L17: 195 | M17: 220 | N17: 195 | O17: 110 | P17: 125 | Q17: 180 | S17: 55 | T17: 0.4381838984 | V17: -0.01966717585 | W17: 0.001082629251 | X17: 0.01520485646 | Z17: -0.09454322828 | AB17: 0.01087918894 | AD17: 0.2540224155
A18: Construction | B18: 85 | C18: 265 | D18: 180 | E18: 230 | F18: 180 | G18: 155 | H18: 185 | I18: 150 | J18: 115 | K18: 95 | L18: 90 | M18: 105 | N18: 140 | O18: 110 | P18: 140 | Q18: 140 | S18: 0 | T18: 0.0007758309032 | V18: 0.09120996304 | W18: -0.01006691259 | X18: 0.03582560865 | Z18: 0.5471827432 | AB18: -0.09622899712 | AD18: 0.6955072756
A19: Real Estate | B19: 20 | C19: 45 | D19: 20 | E19: 20 | F19: 35 | G19: 35 | H19: 45 | I19: 55 | J19: 50 | K19: 40 | L19: 40 | M19: 45 | N19: 65 | O19: 75 | P19: 50 | Q19: 75 | S19: 25 | T19: 0.4648430053 | V19: 0.1250875999 | W19: 0.08347894209 | X19: 0.09212679751 | Z19: 0.8027341708 | AB19: 1.229486004 | AD19: 2.750558577
A22: Total International Exports | B22: 20495 | C22: 19560 | D22: 19035 | E22: 18595 | F22: 19500 | G22: 20580 | H22: 22460 | I22: 22695 | J22: 24110 | K22: 27195 | L22: 27805 | M22: 29215 | N22: 28905 | O22: 30135 | P22: 30550 | Q22: 32440 | S22: 1890 | T22: 0.06188764549 | V22: 0.03132333732 | W22: 0.04654770534 | X22: 0.0310812727 | Z22: 0.166740374 | AB22: 0.5761236945 | AD22: 0.5826813473
A25: Proportion of Total International Exports by Sector, 2002 - 2017
A26: Sector | B26: 2002 | C26: 2003 | D26: 2004 | E26: 2005 | F26: 2006 | G26: 2007 | H26: 2008 | I26: 2009 | J26: 2010 | K26: 2011 | L26: 2012 | M26: 2013 | N26: 2014 | O26: 2015 | P26: 2016 | Q26: 2017
A27: Food and Drink | B27: 0.1510874503 | C27: 0.1637935015 | D27: 0.1650450985 | E27: 0.175760193 | F27: 0.1695727488 | G27: 0.1796261366 | H27: 0.1777803982 | I27: 0.1864332703 | J27: 0.1941337392 | K27: 0.2073470035 | L27: 0.208748937 | M27: 0.195564183 | N27: 0.1923011976 | O27: 0.1841392003 | P27: 0.189123051 | Q27: 0.1956102067
A28: Engineering and Advanced Manufacturing | B28: 0.1747010008 | C28: 0.1740605989 | D28: 0.1785574827 | E28: 0.193071402 | F28: 0.1937479064 | G28: 0.2130269004 | H28: 0.2118559342 | I28: 0.2092138081 | J28: 0.1971539373 | K28: 0.1760417712 | L28: 0.1986688002 | M28: 0.2106022627 | N28: 0.216618589 | O28: 0.1986481924 | P28: 0.2001964153 | Q28: 0.1757344055
A29: Energy | B29: 0.03636924143 | C29: 0.03441359537 | D29: 0.04249694761 | E29: 0.05188721027 | F29: 0.05589843958 | G29: 0.0697946644 | H29: 0.0628483888 | I29: 0.08017320982 | J29: 0.1066217726 | K29: 0.1133224052 | L29: 0.1107034911 | M29: 0.1072260782 | N29: 0.1220988864 | O29: 0.1369828576 | P29: 0.1275753326 | Q29: 0.1165472196
A30: Financial and Business Services | B30: 0.07817145122 | C30: 0.069178938 | D30: 0.08486005615 | E30: 0.09223942185 | F30: 0.09811648699 | G30: 0.07748354848 | H30: 0.08179369622 | I30: 0.108695853 | J30: 0.1042734608 | K30: 0.1071618632 | L30: 0.1035008899 | M30: 0.1058341441 | N30: 0.1118707828 | O30: 0.1040367797 | P30: 0.107525164 | Q30: 0.1033959673
A31: Technology, Digital and Media | B31: 0.2887806445 | C31: 0.239747983 | D31: 0.1946895485 | E31: 0.1460566728 | F31: 0.1261490825 | G31: 0.1069011509 | H31: 0.1010702948 | I31: 0.09640473216 | J31: 0.0904334407 | K31: 0.08028860923 | L31: 0.07800239862 | M31: 0.0822135122 | N31: 0.07110919689 | O31: 0.08390075103 | P31: 0.07909711891 | Q31: 0.1031695034
A32: Chemical Sciences | B32: 0.09523599545 | C32: 0.101419196 | D32: 0.1074782788 | E32: 0.1159967712 | F32: 0.118495607 | G32: 0.1218837421 | H32: 0.1330697506 | I32: 0.1022735942 | J32: 0.1058450422 | K32: 0.1230544099 | L32: 0.1015555213 | M32: 0.09427576418 | N32: 0.07370337879 | O32: 0.0855978119 | P32: 0.07675079929 | Q32: 0.09747589507
A33: Wholesale and Retail Trade | B33: 0.04848980526 | C33: 0.04908587882 | D33: 0.05747608092 | E33: 0.05719719299 | F33: 0.07141136021 | G33: 0.07575060509 | H33: 0.07156928841 | I33: 0.06434510916 | J33: 0.05656699358 | K33: 0.05866161613 | L33: 0.06650940303 | M33: 0.06347073395 | N33: 0.05842773686 | O33: 0.05788176043 | P33: 0.06598368099 | Q33: 0.05833522938
A34: Life Sciences | B34: 0.03638688444 | C34: 0.04472433764 | D34: 0.04140792865 | E34: 0.04302776884 | F34: 0.04137501935 | G34: 0.04554473504 | H34: 0.04123148569 | I34: 0.03680417123 | J34: 0.04168024182 | K34: 0.03316170829 | L34: 0.03323750365 | M34: 0.0348272683 | N34: 0.03908856103 | O34: 0.0424735837 | P34: 0.04346880517 | Q34: 0.04832792619
A35: Transportation and Storage | B35: 0.0278973771 | C35: 0.034879818 | D35: 0.03909236418 | E35: 0.03114245135 | F35: 0.03571241865 | G35: 0.03273485437 | H35: 0.04011855559 | I35: 0.03825396837 | J35: 0.03257740953 | K35: 0.03367118219 | L35: 0.03008523868 | M35: 0.03606459772 | N35: 0.03922211586 | O35: 0.03311405409 | P35: 0.04072628292 | Q35: 0.03621195211
A36: Education | B36: 0.008366880735 | C36: 0.01299563281 | D36: 0.01335261411 | E36: 0.01515024081 | F36: 0.01569880896 | G36: 0.01366057623 | H36: 0.01474004341 | I36: 0.01769316258 | J36: 0.01831306701 | K36: 0.01890457578 | L36: 0.02011201156 | M36: 0.02148380764 | N36: 0.02415006331 | O36: 0.02471305805 | P36: 0.02517767287 | Q36: 0.0238767182
A37: Sustainable Tourism | B37: 0.008559155904 | C37: 0.0143895589 | D37: 0.01396440965 | E37: 0.01533764787 | F37: 0.01629859211 | G37: 0.01359113561 | H37: 0.01257685686 | I37: 0.01227910038 | J37: 0.01103892683 | K37: 0.01122072454 | L37: 0.01028829231 | M37: 0.01000316043 | N37: 0.0134502347 | O37: 0.01198537118 | P37: 0.01076124517 | Q37: 0.01035222097
A38: Textiles | B38: 0.01925091654 | C38: 0.01984725809 | D38: 0.02068645755 | E38: 0.02016545225 | F38: 0.02007906627 | G38: 0.01640084622 | H38: 0.01522805327 | I38: 0.01291521169 | J38: 0.01209691776 | K38: 0.01294417266 | L38: 0.01337973074 | M38: 0.01238222015 | N38: 0.01246051762 | O38: 0.01237227243 | P38: 0.01118564214 | Q38: 0.01001737075
A39: Forest and Timber Technologies | B39: 0.01478649328 | C39: 0.01711445251 | D39: 0.02020981933 | E39: 0.02003677243 | F39: 0.0177295301 | G39: 0.01591548396 | H39: 0.01508393 | I39: 0.01409295903 | J39: 0.01518453867 | K39: 0.01289618412 | L39: 0.01341544782 | M39: 0.01346941483 | N39: 0.01161283944 | O39: 0.01439807531 | P39: 0.01216638258 | Q39: 0.008891304354
A40: Other Services and Accommodation | B40: 0.006945746719 | C40: 0.008409423923 | D40: 0.01013435814 | E40: 0.009467034776 | F40: 0.008626551083 | G40: 0.00858068186 | H40: 0.01088056935 | I40: 0.01129277162 | J40: 0.007161084031 | K40: 0.00639783073 | L40: 0.007091486222 | M40: 0.00746956917 | N40: 0.006768850826 | O40: 0.003650607559 | P40: 0.004063449847 | Q40: 0.005503395926
A41: Construction | B41: 0.004027255523 | C41: 0.01354712618 | D41: 0.009434812596 | E41: 0.01236470752 | F41: 0.009194163255 | G41: 0.007523973451 | H41: 0.008142094383 | I41: 0.006696737769 | J41: 0.00485194359 | K41: 0.003529842073 | L41: 0.00325347874 | M41: 0.003510467422 | N41: 0.004908041376 | O41: 0.003678105654 | P41: 0.004577803207 | Q41: 0.004314349854
A42: Real Estate | B42: 0.0009437008153 | C42: 0.002392700309 | D42: 0.001113742649 | E42: 0.001099059996 | F42: 0.001894218698 | G42: 0.001580965332 | H42: 0.002010660222 | I42: 0.002432340671 | J42: 0.002067484449 | K42: 0.001396101154 | L42: 0.001447369227 | M42: 0.001602815946 | N42: 0.002209007481 | O42: 0.002427518588 | P42: 0.001621154049 | Q42: 0.002236334682

Sheet International Exports-Detailed
A1: International Exports by Sub-Sector, 2002 - 2017 | P1: Contents page | Z1: Overall Growth Comparison (Actual vs Inflation)
A2: (£ million) | S2: Change 2017 - 2016 | V2: Average Annual Compound Growth rate | Z2: 2012 to 2017 | AB2: 2007 to 2017 | AD2: 2002 to 2017
A3: Sector | B3: 2002 | C3: 2003 | D3: 2004 | E3: 2005 | F3: 2006 | G3: 2007 | H3: 2008 | I3: 2009 | J3: 2010 | K3: 2011 | L3: 2012 | M3: 2013 | N3: 2014 | O3: 2015 | P3: 2016 | Q3: 2017 | S3: Num | T3: Per cent | V3: 2012 to 2017 | W3: 2007 to 2017 | X3: 2002 to 2017 | Z3: Actual | AA3: Inflation | AB3: Actual | AC3: Inflation | AD3: Actual | AE3: Inflation
A4: Food and Drink | B4: 3095 | C4: 3205 | D4: 3140 | E4: 3270 | F4: 3305 | G4: 3695 | H4: 3995 | I4: 4230 | J4: 4680 | K4: 5640 | L4: 5805 | M4: 5715 | N4: 5560 | O4: 5550 | P4: 5780 | Q4: 6345 | S4: 570 | T4: 0.09831171197 | V4: 0.01800120767 | W4: 0.05550726796 | X4: 0.0489878072 | Z4: 0.09330533177 | AA4: 0.07699408271 | AB4: 0.7163753984 | AC4: 0.2654170886 | AD4: 1.049069098 | AE4: 0.3888588319
A5: Drink | B5: 2475 | C5: 2600 | D5: 2475 | E5: 2570 | F5: 2695 | G5: 3035 | H5: 3325 | I5: 3430 | J5: 3815 | K5: 4710 | L5: 4840 | M5: 4730 | N5: 4400 | O5: 4340 | P5: 4530 | Q5: 4910 | S5: 375 | T5: 0.08285235906 | V5: 0.002762017982 | W5: 0.04917830998 | X5: 0.04674470954 | Z5: 0.01388658834 | AB5: 0.6161923134 | AD5: 0.9843195827
A6: Food | B6: 625 | C6: 605 | D6: 665 | E6: 695 | F6: 610 | G6: 660 | H6: 670 | I6: 800 | J6: 865 | K6: 930 | L6: 965 | M6: 985 | N6: 1155 | O6: 1210 | P6: 1245 | Q6: 1440 | S6: 195 | T6: 0.1545661547 | V6: 0.08334491251 | W6: 0.08089604322 | X6: 0.05727707007 | Z6: 0.4922230388 | AB6: 1.176903965 | AD6: 1.305856104
A8: Engineering and Advanced Manufacturing | B8: 3580 | C8: 3405 | D8: 3400 | E8: 3590 | F8: 3780 | G8: 4385 | H8: 4760 | I8: 4750 | J8: 4755 | K8: 4785 | L8: 5525 | M8: 6155 | N8: 6260 | O8: 5985 | P8: 6115 | Q8: 5700 | S8: -415 | T8: -0.06786445788 | V8: 0.006329654863 | W8: 0.02660001111 | X8: 0.03148676326 | Z8: 0.0320514636 | AB8: 0.3002074384 | AD8: 0.5920433453
A9: Advanced Manufacturing | B9: 1720 | C9: 1735 | D9: 1740 | E9: 1720 | F9: 1730 | G9: 1810 | H9: 1940 | I9: 2020 | J9: 1975 | K9: 2160 | L9: 2385 | M9: 2580 | N9: 2680 | O9: 2465 | P9: 2440 | Q9: 2205 | S9: -230 | T9: -0.09469403779 | V9: -0.01555606401 | W9: 0.02002030367 | X9: 0.01677443149 | Z9: -0.07539776119 | AB9: 0.2192370894 | AD9: 0.2834213193
A10: Transport Equipment | B10: 700 | C10: 765 | D10: 800 | E10: 835 | F10: 940 | G10: 1010 | H10: 985 | I10: 950 | J10: 1065 | K10: 930 | L10: 1025 | M10: 1250 | N10: 1190 | O10: 1160 | P10: 1350 | Q10: 1490 | S10: 140 | T10: 0.103936205 | V10: 0.07778411768 | W10: 0.0393666341 | X10: 0.05184285436 | Z10: 0.4543163864 | AB10: 0.4712541784 | AD10: 1.134336611
A11: Engineering Services | B11: 705 | C11: 500 | D11: 450 | E11: 590 | F11: 620 | G11: 1015 | H11: 1225 | I11: 1205 | J11: 1190 | K11: 1215 | L11: 1575 | M11: 1825 | N11: 1850 | O11: 1680 | P11: 1680 | Q11: 1405 | S11: -275 | T11: -0.1633742982 | V11: -0.02286648822 | W11: 0.03303115558 | X11: 0.04701740652 | Z11: -0.109221881 | AB11: 0.3839939693 | AD11: 0.9920880369
A12: Metal Manufacturing | B12: 400 | C12: 360 | D12: 375 | E12: 400 | F12: 450 | G12: 515 | H12: 570 | I12: 540 | J12: 485 | K12: 440 | L12: 450 | M12: 460 | N12: 495 | O12: 625 | P12: 580 | Q12: 530 | S12: -50 | T12: -0.08507892918 | V12: 0.03487184542 | W12: 0.003165462121 | X12: 0.01923592827 | Z12: 0.1869511861 | AB12: 0.03210935535 | AD12: 0.3308247327
A13: Other Manufacturing | B13: 60 | C13: 45 | D13: 35 | E13: 50 | F13: 40 | G13: 30 | H13: 35 | I13: 35 | J13: 35 | K13: 40 | L13: 90 | M13: 45 | N13: 45 | O13: 60 | P13: 70 | Q13: 70 | S13: 0 | T13: -0.0090335371 | V13: -0.04933122206 | W13: 0.07862935747 | X13: 0.01014671027 | Z13: -0.223491606 | AB13: 1.131681738 | AD13: 0.1635011241
A15: Energy | B15: 745 | C15: 675 | D15: 810 | E15: 965 | F15: 1090 | G15: 1435 | H15: 1410 | I15: 1820 | J15: 2570 | K15: 3080 | L15: 3080 | M15: 3135 | N15: 3530 | O15: 4130 | P15: 3895 | Q15: 3780 | S15: -115 | T15: -0.02990609524 | V15: 0.04198859486 | W15: 0.1016077921 | X15: 0.1143221002 | Z15: 0.228329344 | AB15: 1.631903683 | AD15: 4.071788777
A16: Energy Support | B16: 620 | C16: 560 | D16: 695 | E16: 825 | F16: 920 | G16: 1240 | H16: 1200 | I16: 1455 | J16: 2255 | K16: 2705 | L16: 2610 | M16: 2715 | N16: 3105 | O16: 3785 | P16: 3560 | Q16: 3465 | S16: -100 | T16: -0.027539485 | V16: 0.05821244663 | W16: 0.108347169 | X16: 0.1216909926 | Z16: 0.3269798458 | AB16: 1.797423142 | AD16: 4.59884554
A17: Mining and Utilities | B17: 125 | C17: 115 | D17: 115 | E17: 140 | F17: 170 | G17: 200 | H17: 215 | I17: 360 | J17: 315 | K17: 380 | L17: 470 | M17: 420 | N17: 425 | O17: 345 | P17: 335 | Q17: 320 | S17: -20 | T17: -0.05498847301 | V17: -0.07468619624 | W17: 0.04809886668 | X17: 0.06306146778 | Z17: -0.3216634708 | AB17: 0.5996409516 | AD17: 1.502509022
A19: Financial and Business Services | B19: 1600 | C19: 1355 | D19: 1615 | E19: 1715 | F19: 1915 | G19: 1595 | H19: 1835 | I19: 2465 | J19: 2515 | K19: 2915 | L19: 2880 | M19: 3090 | N19: 3235 | O19: 3135 | P19: 3285 | Q19: 3355 | S19: 70 | T19: 0.02110888483 | V19: 0.03111415462 | W19: 0.07718039292 | X19: 0.0504851739 | Z19: 0.1655576076 | AB19: 1.103218518 | AD19: 1.093384046
A20: Financial Support Activities | B20: 370 | C20: 310 | D20: 270 | E20: 275 | F20: 310 | G20: 425 | H20: 535 | I20: 670 | J20: 775 | K20: 860 | L20: 865 | M20: 950 | N20: 970 | O20: 1065 | P20: 1105 | Q20: 1155 | S20: 50 | T20: 0.04482180888 | V20: 0.05898493406 | W20: 0.1055178867 | X20: 0.07914111896 | Z20: 0.3318303508 | AB20: 1.726827947 | AD20: 2.134538542
A21: Business Support Activities | B21: 325 | C21: 285 | D21: 300 | E21: 355 | F21: 475 | G21: 575 | H21: 650 | I21: 645 | J21: 555 | K21: 565 | L21: 880 | M21: 985 | N21: 1155 | O21: 780 | P21: 705 | Q21: 680 | S21: -25 | T21: -0.03875663722 | V21: -0.0509865389 | W21: 0.01640635323 | X21: 0.05004359655 | Z21: -0.2302284372 | AB21: 0.1767215587 | AD21: 1.080223329
A22: Management Consultancy | B22: 375 | C22: 255 | D22: 235 | E22: 240 | F22: 275 | G22: 290 | H22: 340 | I22: 440 | J22: 380 | K22: 565 | L22: 485 | M22: 495 | N22: 560 | O22: 685 | P22: 775 | Q22: 680 | S22: -95 | T22: -0.1197030232 | V22: 0.07101061961 | W22: 0.08965369286 | X22: 0.04031153218 | Z22: 0.4091878353 | AB22: 1.359852997 | AD22: 0.8090525896
A23: Financial Service Activities | B23: 460 | C23: 410 | D23: 710 | E23: 745 | F23: 745 | G23: 190 | H23: 210 | I23: 610 | J23: 685 | K23: 765 | L23: 505 | M23: 505 | N23: 385 | O23: 415 | P23: 500 | Q23: 590 | S23: 90 | T23: 0.177433595 | V23: 0.031647319 | W23: 0.1196858418 | X23: 0.01673650381 | Z23: 0.1685741349 | AB23: 2.097147342 | AD23: 0.2827033949
A24: Legal and Accounting | B24: 65 | C24: 60 | D24: 70 | E24: 75 | F24: 80 | G24: 80 | H24: 95 | I24: 85 | J24: 100 | K24: 140 | L24: 125 | M24: 145 | N24: 150 | O24: 175 | P24: 195 | Q24: 240 | S24: 45 | T24: 0.2456541764 | V24: 0.1393589172 | W24: 0.1141801056 | X24: 0.09054136365 | Z24: 0.9200068518 | AB24: 1.948180001 | AD24: 2.66971335
A25: Insurance and Pensions | B25: 5 | C25: 40 | D25: 30 | E25: 25 | F25: 35 | G25: 35 | H25: 5 | I25: 15 | J25: 20 | K25: 20 | L25: 15 | M25: 15 | N25: 15 | O25: 10 | P25: 10 | Q25: 10 | S25: 5 | T25: 0.4061992705 | V25: -0.08845635361 | W25: -0.1098111083 | X25: 0.03902940295 | Z25: -0.3706570934 | AB25: -0.6875203742 | AD25: 0.7758961432
A27: Technology, Digital and Media | B27: 5920 | C27: 4690 | D27: 3705 | E27: 2715 | F27: 2460 | G27: 2200 | H27: 2270 | I27: 2190 | J27: 2180 | K27: 2185 | L27: 2170 | M27: 2400 | N27: 2055 | O27: 2530 | P27: 2415 | Q27: 3345 | S27: 930 | T27: 0.3850620924 | V27: 0.09064527386 | W27: 0.04283578529 | X27: -0.03729820219 | Z27: 0.5431836339 | AB27: 0.5211052218 | AD27: -0.4345727399
A28: Manufacture of Computer, Electronic and Optical Products | B28: 5570 | C28: 4275 | D28: 3230 | E28: 2110 | F28: 1810 | G28: 1590 | H28: 1495 | I28: 1455 | J28: 1390 | K28: 1385 | L28: 1395 | M28: 1600 | N28: 1120 | O28: 1355 | P28: 1335 | Q28: 1885 | S28: 550 | T28: 0.411368589 | V28: 0.06211458483 | W28: 0.01736458318 | X28: -0.06964755025 | Z28: 0.351627013 | AB28: 0.1878624329 | AD28: -0.6613800175
A29: Digital Industries | B29: 220 | C29: 225 | D29: 235 | E29: 315 | F29: 400 | G29: 345 | H29: 470 | I29: 385 | J29: 450 | K29: 445 | L29: 450 | M29: 485 | N29: 545 | O29: 690 | P29: 605 | Q29: 895 | S29: 290 | T29: 0.4812927997 | V29: 0.1464420554 | W29: 0.09936167711 | X29: 0.0977600174 | Z29: 0.9804347835 | AB29: 1.578730383 | AD29: 3.051456058
A30: IT and Telecommunications | B30: 35 | C30: 65 | D30: 130 | E30: 185 | F30: 135 | G30: 140 | H30: 200 | I30: 210 | J30: 220 | K30: 215 | L30: 195 | M30: 225 | N30: 295 | O30: 375 | P30: 365 | Q30: 435 | S30: 70 | T30: 0.1989722475 | V30: 0.1779587751 | W30: 0.1222003141 | X30: 0.183642711 | Z30: 1.26803869 | AB30: 2.167406904 | AD30: 11.54034315
A31: Publishing and Audio Visual | B31: 95 | C31: 120 | D31: 110 | E31: 110 | F31: 120 | G31: 130 | H31: 110 | I31: 135 | J31: 115 | K31: 135 | L31: 130 | M31: 90 | N31: 100 | O31: 110 | P31: 110 | Q31: 130 | S31: 20 | T31: 0.1580357021 | V31: 0.0007473322242 | W31: 0.001504047002 | X31: 0.02189482562 | Z31: 0.003742250351 | AB31: 0.01514267646 | AD31: 0.3838626931
A33: Chemical Sciences | B33: 1950 | C33: 1985 | D33: 2045 | E33: 2155 | F33: 2310 | G33: 2510 | H33: 2990 | I33: 2320 | J33: 2550 | K33: 3345 | L33: 2825 | M33: 2755 | N33: 2130 | O33: 2580 | P33: 2345 | Q33: 3160 | S33: 815 | T33: 0.348630238 | V33: 0.02290095405 | W33: 0.02342064848 | X33: 0.03268049125 | Z33: 0.1198707937 | AB33: 0.2604968081 | AD33: 0.6199051652
A35: Wholesale and Retail Trade | B35: 995 | C35: 960 | D35: 1095 | E35: 1065 | F35: 1395 | G35: 1560 | H35: 1605 | I35: 1460 | J35: 1365 | K35: 1595 | L35: 1850 | M35: 1855 | N35: 1690 | O35: 1745 | P35: 2015 | Q35: 1890 | S35: -125 | T35: -0.06120030832 | V35: 0.004626008559 | W35: 0.01956169389 | X35: 0.04386642772 | Z35: 0.0233450346 | AB35: 0.2137663737 | AD35: 0.9040307324
A36: Wholesale Trade | B36: 805 | C36: 750 | D36: 930 | E36: 905 | F36: 1140 | G36: 1335 | H36: 1375 | I36: 1215 | J36: 1105 | K36: 1280 | L36: 1470 | M36: 1490 | N36: 1370 | O36: 1415 | P36: 1700 | Q36: 1605 | S36: -95 | T36: -0.05563009365 | V36: 0.01766273542 | W36: 0.01855985943 | X36: 0.04697715203 | Z36: 0.0914889905 | AB36: 0.2018923476 | AD36: 0.9909395042
A37: Retail Trade | B37: 165 | C37: 195 | D37: 150 | E37: 145 | F37: 175 | G37: 180 | H37: 185 | I37: 200 | J37: 205 | K37: 250 | L37: 305 | M37: 320 | N37: 280 | O37: 290 | P37: 270 | Q37: 235 | S37: -35 | T37: -0.1241888415 | V37: -0.05020666962 | W37: 0.02917599795 | X37: 0.0235718395 | Z37: -0.2270603649 | AB37: 0.3332036442 | AD37: 0.4183223157
A38: Trade and Repair of Vehicles | B38: 20 | C38: 15 | D38: 15 | E38: 20 | F38: 75 | G38: 45 | H38: 45 | I38: 45 | J38: 50 | K38: 65 | L38: 75 | M38: 45 | N38: 40 | O38: 45 | P38: 45 | Q38: 50 | S38: 5 | T38: 0.1024710565 | V38: -0.06783514991 | W38: 0.009372889043 | X38: 0.06126184952 | Z38: -0.2961767437 | AB38: 0.09778263693 | AD38: 1.439710447
A40: Life Sciences | B40: 745 | C40: 875 | D40: 790 | E40: 800 | F40: 805 | G40: 935 | H40: 925 | I40: 835 | J40: 1005 | K40: 900 | L40: 925 | M40: 1015 | N40: 1130 | O40: 1280 | P40: 1330 | Q40: 1570 | S40: 240 | T40: 0.1805897942 | V40: 0.1114982867 | W40: 0.05277370177 | X40: 0.05077512889 | Z40: 0.6964614213 | AB40: 0.6724389658 | AD40: 1.102068053
A41: Research | B41: 335 | C41: 405 | D41: 370 | E41: 405 | F41: 420 | G41: 505 | H41: 360 | I41: 380 | J41: 530 | K41: 425 | L41: 490 | M41: 575 | N41: 595 | O41: 690 | P41: 800 | Q41: 1010 | S41: 210 | T41: 0.2648151969 | V41: 0.1561523657 | W41: 0.07220729282 | X41: 0.07611332127 | Z41: 1.065738582 | AB41: 1.008110321 | AD41: 2.005177397
A42: Pharmaceuticals | B42: 305 | C42: 370 | D42: 295 | E42: 275 | F42: 235 | G42: 260 | H42: 400 | I42: 315 | J42: 340 | K42: 325 | L42: 315 | M42: 295 | N42: 395 | O42: 445 | P42: 395 | Q42: 425 | S42: 30 | T42: 0.07914326244 | V42: 0.06232128669 | W42: 0.04984608823 | X42: 0.02270617502 | Z42: 0.3529427495 | AB42: 0.6265085244 | AD42: 0.4004356986
A43: Manufacture of Medical Equipment | B43: 105 | C43: 100 | D43: 120 | E43: 120 | F43: 150 | G43: 170 | H43: 160 | I43: 145 | J43: 135 | K43: 155 | L43: 120 | M43: 145 | N43: 140 | O43: 140 | P43: 135 | Q43: 130 | S43: -5 | T43: -0.02258984779 | V43: 0.01782944118 | W43: -0.02705686339 | X43: 0.01475687073 | Z43: 0.09238328052 | AB43: -0.2398932523 | AD43: 0.245747453
A45: Transportation and Storage | B45: 570 | C45: 680 | D45: 745 | E45: 580 | F45: 695 | G45: 675 | H45: 900 | I45: 870 | J45: 785 | K45: 915 | L45: 835 | M45: 1055 | N45: 1135 | O45: 1000 | P45: 1245 | Q45: 1175 | S45: -70 | T45: -0.05581796788 | V45: 0.07027292848 | W45: 0.05716598802 | X45: 0.04916904823 | Z45: 0.4043414113 | AB45: 0.743539626 | AD45: 1.054386007
A46: Storage | B46: 380 | C46: 480 | D46: 505 | E46: 330 | F46: 375 | G46: 315 | H46: 450 | I46: 385 | J46: 400 | K46: 560 | L46: 430 | M46: 715 | N46: 705 | O46: 735 | P46: 895 | Q46: 890 | S46: -10 | T46: -0.009358329916 | V46: 0.1558260691 | W46: 0.1088118345 | X46: 0.05852102021 | Z46: 1.062825198 | AB46: 1.809173259 | AD46: 1.346887655
A47: Transportation | B47: 195 | C47: 205 | D47: 240 | E47: 250 | F47: 325 | G47: 360 | H47: 450 | I47: 485 | J47: 385 | K47: 355 | L47: 405 | M47: 335 | N47: 430 | O47: 265 | P47: 350 | Q47: 285 | S47: -60 | T47: -0.1755955578 | V47: -0.06723696998 | W47: -0.02187669417 | X47: 0.02657875382 | Z47: -0.2939155899 | AB47: -0.1984399384 | AD47: 0.482122421
A49: Education | B49: 170 | C49: 255 | D49: 255 | E49: 280 | F49: 305 | G49: 280 | H49: 330 | I49: 400 | J49: 440 | K49: 515 | L49: 560 | M49: 630 | N49: 700 | O49: 745 | P49: 770 | Q49: 775 | S49: 5 | T49: 0.007018885599 | V49: 0.06732988583 | W49: 0.1066482237 | X49: 0.1057415672 | Z49: 0.3851389776 | AB49: 1.754837034 | AD49: 3.516526257
A50: Sustainable Tourism | B50: 175 | C50: 280 | D50: 265 | E50: 285 | F50: 320 | G50: 280 | H50: 280 | I50: 280 | J50: 265 | K50: 305 | L50: 285 | M50: 290 | N50: 390 | O50: 360 | P50: 330 | Q50: 335 | S50: 5 | T50: 0.02152635482 | V50: 0.03260183628 | W50: 0.01844319012 | X50: 0.04423859027 | Z50: 0.1739901824 | AB50: 0.2005163687 | AD50: 0.9142386492
A51: Textiles | B51: 395 | C51: 390 | D51: 395 | E51: 375 | F51: 390 | G51: 340 | H51: 340 | I51: 295 | J51: 290 | K51: 350 | L51: 370 | M51: 360 | N51: 360 | O51: 375 | P51: 340 | Q51: 325 | S51: -15 | T51: -0.04901997459 | V51: -0.02667894061 | W51: -0.00379715212 | X51: -0.0128577929 | Z51: -0.1264644164 | AB51: -0.0373292212 | AD51: -0.1764389084
A52: Forest and Timber Technologies | B52: 305 | C52: 335 | D52: 385 | E52: 375 | F52: 345 | G52: 330 | H52: 340 | I52: 320 | J52: 365 | K52: 350 | L52: 375 | M52: 395 | N52: 335 | O52: 435 | P52: 370 | Q52: 290 | S52: -85 | T52: -0.2239627365 | V52: -0.05012401966 | W52: -0.01264440268 | X52: -0.003295884841 | Z52: -0.2267240046 | AB52: -0.1194866899 | AD52: -0.04831380298
A53: Other Services and Accommodation | B53: 140 | C53: 165 | D53: 195 | E53: 175 | F53: 170 | G53: 175 | H53: 245 | I53: 255 | J53: 175 | K53: 175 | L53: 195 | M53: 220 | N53: 195 | O53: 110 | P53: 125 | Q53: 180 | S53: 55 | T53: 0.4381838984 | V53: -0.01966717585 | W53: 0.001082629251 | X53: 0.01520485646 | Z53: -0.09454322828 | AB53: 0.01087918894 | AD53: 0.2540224155
A54: Construction | B54: 85 | C54: 265 | D54: 180 | E54: 230 | F54: 180 | G54: 155 | H54: 185 | I54: 150 | J54: 115 | K54: 95 | L54: 90 | M54: 105 | N54: 140 | O54: 110 | P54: 140 | Q54: 140 | S54: 0 | T54: 0.0007758309032 | V54: 0.09120996304 | W54: -0.01006691259 | X54: 0.03582560865 | Z54: 0.5471827432 | AB54: -0.09622899712 | AD54: 0.6955072756
A55: Real Estate | B55: 20 | C55: 45 | D55: 20 | E55: 20 | F55: 35 | G55: 35 | H55: 45 | I55: 55 | J55: 50 | K55: 40 | L55: 40 | M55: 45 | N55: 65 | O55: 75 | P55: 50 | Q55: 75 | S55: 25 | T55: 0.4648430053 | V55: 0.1250875999 | W55: 0.08347894209 | X55: 0.09212679751 | Z55: 0.8027341708 | AB55: 1.229486004 | AD55: 2.750558577
A58: Total International Exports | B58: 20495 | C58: 19560 | D58: 19035 | E58: 18595 | F58: 19500 | G58: 20580 | H58: 22460 | I58: 22695 | J58: 24110 | K58: 27195 | L58: 27805 | M58: 29215 | N58: 28905 | O58: 30135 | P58: 30550 | Q58: 32440 | S58: 1890 | T58: 0.06188764549 | V58: 0.03132333732 | W58: 0.04654770534 | X58: 0.0310812727 | Z58: 0.166740374 | AB58: 0.5761236945 | AD58: 0.5826813473
A61: Proportion of Total International Exports by Sub-Sector, 2002 - 2017
A62: Sector | B62: 2002 | C62: 2003 | D62: 2004 | E62: 2005 | F62: 2006 | G62: 2007 | H62: 2008 | I62: 2009 | J62: 2010 | K62: 2011 | L62: 2012 | M62: 2013 | N62: 2014 | O62: 2015 | P62: 2016 | Q62: 2017
A63: Food and Drink | B63: 0.1510874503 | C63: 0.1637935015 | D63: 0.1650450985 | E63: 0.175760193 | F63: 0.1695727488 | G63: 0.1796261366 | H63: 0.1777803982 | I63: 0.1864332703 | J63: 0.1941337392 | K63: 0.2073470035 | L63: 0.208748937 | M63: 0.195564183 | N63: 0.1923011976 | O63: 0.1841392003 | P63: 0.189123051 | Q63: 0.1956102067
A64: Drink | B64: 0.1206621689 | C64: 0.1329025391 | D64: 0.1300620766 | E64: 0.1382667924 | F64: 0.1382922246 | G64: 0.1475320996 | H64: 0.1479586284 | I64: 0.1511915046 | J64: 0.158200048 | K64: 0.1731414233 | L64: 0.1740901142 | M64: 0.1618892379 | N64: 0.1522879833 | O64: 0.1439666989 | P64: 0.1483537685 | Q64: 0.1512826983
A65: Food | B65: 0.03042528142 | C65: 0.03089096243 | D65: 0.03498302182 | E65: 0.03749340069 | F65: 0.03128052422 | G65: 0.03209403702 | H65: 0.02982176976 | I65: 0.03524176566 | J65: 0.03593369114 | K65: 0.03420558022 | L65: 0.03465882277 | M65: 0.0336749451 | N65: 0.04001321429 | O65: 0.04017250139 | P65: 0.04076928241 | Q65: 0.0443275085
A67: Engineering and Advanced Manufacturing | B67: 0.1747010008 | C67: 0.1740605989 | D67: 0.1785574827 | E67: 0.193071402 | F67: 0.1937479064 | G67: 0.2130269004 | H67: 0.2118559342 | I67: 0.2092138081 | J67: 0.1971539373 | K67: 0.1760417712 | L67: 0.1986688002 | M67: 0.2106022627 | N67: 0.216618589 | O67: 0.1986481924 | P67: 0.2001964153 | Q67: 0.1757344055
A68: Engineering Services | B68: 0.03439789022 | C68: 0.02546251921 | D68: 0.0235580975 | E68: 0.03180551915 | F68: 0.03168486049 | G68: 0.04930636086 | H68: 0.05453999443 | I68: 0.0531635696 | J68: 0.04931177084 | K68: 0.04473414437 | L68: 0.05670894078 | M68: 0.062391629 | N68: 0.06398970002 | O68: 0.05567355724 | P68: 0.05495335541 | Q68: 0.04329590775
A69: Advanced Manufacturing | B69: 0.08389768327 | C69: 0.0888152111 | D69: 0.09143184592 | E69: 0.09246155769 | F69: 0.08874893707 | G69: 0.08794838445 | H69: 0.08628728334 | I69: 0.08909717788 | J69: 0.08195792965 | K69: 0.0794734826 | L69: 0.08585093304 | M69: 0.08826376294 | N69: 0.09269131907 | O69: 0.08173216144 | P69: 0.07980110796 | Q69: 0.06803395739
A70: Transport Equipment | B70: 0.03403277331 | C70: 0.03907130074 | D70: 0.04200323261 | E70: 0.04480329849 | F70: 0.04808509268 | G70: 0.04916650751 | H70: 0.04391117469 | I70: 0.0417686956 | J70: 0.04424000254 | K70: 0.03417276479 | L70: 0.03681985721 | M70: 0.04276865012 | N70: 0.04125650302 | O70: 0.03842272903 | P70: 0.04414701684 | Q70: 0.04589514761
A71: Metal Manufacturing | B71: 0.01950628884 | C71: 0.01842884781 | D71: 0.01965155535 | E71: 0.02144545838 | F71: 0.02313142737 | G71: 0.02504762852 | H71: 0.02545545961 | I71: 0.02369596185 | J71: 0.02012310568 | K71: 0.01613291236 | L71: 0.01612290882 | M71: 0.0156846643 | N71: 0.01708358525 | O71: 0.02075442412 | P71: 0.01903693244 | Q71: 0.01640219725
A72: Other Manufacturing | B72: 0.002866365116 | C72: 0.002282720091 | D72: 0.00191275135 | E72: 0.00255556826 | F72: 0.002097588757 | G72: 0.00155801906 | H72: 0.001662022148 | I72: 0.00148840313 | J72: 0.001521128569 | K72: 0.001528467081 | L72: 0.003166160342 | M72: 0.00149355634 | N72: 0.001597481667 | O72: 0.002065320615 | P72: 0.002258002634 | Q72: 0.002107195514
A74: Energy | B74: 0.03636924143 | C74: 0.03441359537 | D74: 0.04249694761 | E74: 0.05188721027 | F74: 0.05589843958 | G74: 0.0697946644 | H74: 0.0628483888 | I74: 0.08017320982 | J74: 0.1066217726 | K74: 0.1133224052 | L74: 0.1107034911 | M74: 0.1072260782 | N74: 0.1220988864 | O74: 0.1369828576 | P74: 0.1275753326 | Q74: 0.1165472196
A75: Energy Support | B75: 0.03017848841 | C75: 0.02860118264 | D75: 0.03645813155 | E75: 0.04433545943 | F75: 0.04714736473 | G75: 0.06014985987 | H75: 0.05335506658 | I75: 0.06421605471 | J75: 0.09358021824 | K75: 0.09942531946 | L75: 0.09386688046 | M75: 0.09287011841 | N75: 0.1073963431 | O75: 0.1255760179 | P75: 0.1165759804 | Q75: 0.1067585054
A76: Mining and Utilities | B76: 0.006190753021 | C76: 0.005812412736 | D76: 0.006038816066 | E76: 0.007551750842 | F76: 0.00875107485 | G76: 0.009644804534 | H76: 0.009493322218 | I76: 0.01595715511 | J76: 0.01304155436 | K76: 0.01389708575 | L76: 0.01683661061 | M76: 0.01435595981 | N76: 0.01470254323 | O76: 0.01140683971 | P76: 0.0109993522 | Q76: 0.009788714145
A78: Financial and Business Services | B78: 0.07817145122 | C78: 0.069178938 | D78: 0.08486005615 | E78: 0.09223942185 | F78: 0.09811648699 | G78: 0.07748354848 | H78: 0.08179369622 | I78: 0.108695853 | J78: 0.1042734608 | K78: 0.1071618632 | L78: 0.1035008899 | M78: 0.1058341441 | N78: 0.1118707828 | O78: 0.1040367797 | P78: 0.107525164 | Q78: 0.1033959673
A79: Financial Support Activities | B79: 0.01795395232 | C79: 0.01580391637 | D79: 0.01406098226 | E79: 0.01482878157 | F79: 0.0158810185 | G79: 0.02055288345 | H79: 0.02375187939 | I79: 0.02950434196 | J79: 0.03216733978 | K79: 0.03155530572 | L79: 0.03115053548 | M79: 0.03246454768 | N79: 0.03353517225 | O79: 0.0354027963 | P79: 0.03613903375 | Q79: 0.03555823516
A80: Business Support Activities | B80: 0.0158941925 | C80: 0.01445598568 | D80: 0.01575904451 | E80: 0.01896248842 | F80: 0.02438148024 | G80: 0.02798153498 | H80: 0.0290041135 | I80: 0.02837799521 | J80: 0.02296668807 | K80: 0.02083777391 | L80: 0.03166411181 | M80: 0.03370608254 | N80: 0.03997477353 | O80: 0.02594656174 | P80: 0.02307810585 | Q80: 0.02089079402
A81: Management Consultancy | B81: 0.01834822459 | C81: 0.01293571287 | D81: 0.01247334512 | E81: 0.01281150167 | F81: 0.0140630102 | G81: 0.01400738621 | H81: 0.01520772715 | I81: 0.01940213417 | J81: 0.01567073305 | K81: 0.02069253067 | L81: 0.01736429264 | M81: 0.01695516595 | N81: 0.01938467188 | O81: 0.02270256441 | P81: 0.0252988694 | Q81: 0.02097257497
A82: Financial Service Activities | B82: 0.02247228846 | C82: 0.02089460583 | D82: 0.03727859771 | E82: 0.04011602127 | F82: 0.03813942001 | G82: 0.009268479475 | H82: 0.009387521281 | I82: 0.02694008302 | J82: 0.02844630643 | K82: 0.02821700337 | L82: 0.0181843599 | M82: 0.01724275864 | N82: 0.01334626575 | O82: 0.01374237206 | P82: 0.01642563644 | Q82: 0.01821294018
A83: Legal and Accounting | B83: 0.003201608982 | C83: 0.003113243378 | D83: 0.003661103675 | E83: 0.004082664444 | F83: 0.003976990175 | G83: 0.003968654112 | H83: 0.004207001102 | I83: 0.0037609109 | J83: 0.004188041081 | K83: 0.005203087213 | L83: 0.004511057838 | M83: 0.004988498195 | N83: 0.005115656144 | O83: 0.005880743863 | P83: 0.006328314103 | Q83: 0.007423469823
A84: Insurance and Pensions | B84: 0.0003011843659 | C84: 0.001975473871 | D84: 0.001626982866 | E84: 0.001437964476 | F84: 0.001674567859 | G84: 0.001704610254 | H84: 0.0002354537869 | I84: 0.0007103876898 | J84: 0.0008343523411 | K84: 0.000656162335 | L84: 0.0006265321905 | M84: 0.0004770911217 | N84: 0.0005142432434 | O84: 0.0003617413652 | P84: 0.0002552044273 | Q84: 0.0003379531544
A86: Technology, Digital and Media | B86: 0.2887806445 | C86: 0.239747983 | D86: 0.1946895485 | E86: 0.1460566728 | F86: 0.1261490825 | G86: 0.1069011509 | H86: 0.1010702948 | I86: 0.09640473216 | J86: 0.0904334407 | K86: 0.08028860923 | L86: 0.07800239862 | M86: 0.0822135122 | N86: 0.07110919689 | O86: 0.08390075103 | P86: 0.07909711891 | Q86: 0.1031695034
A87: Manufacture of Computer, Electronic and Optical Products | B87: 0.2717387606 | C87: 0.2186164212 | D87: 0.1697390848 | E87: 0.1133485146 | F87: 0.092698135 | G87: 0.07714270078 | H87: 0.06651789524 | I87: 0.06420358065 | J87: 0.05776089264 | K87: 0.05100968092 | L87: 0.05018663217 | M87: 0.05483791375 | N87: 0.03877590018 | O87: 0.04490139515 | P87: 0.04374302466 | Q87: 0.05813941922
A88: Digital Industries | B88: 0.01076755207 | C88: 0.01158517491 | D88: 0.01223642421 | E88: 0.01705791837 | F88: 0.02046429579 | G88: 0.01684686092 | H88: 0.0208215002 | I88: 0.01701467281 | J88: 0.01876847138 | K88: 0.01637034537 | L88: 0.01623858978 | M88: 0.0166377299 | N88: 0.01877131893 | O88: 0.02294147279 | P88: 0.01975933325 | Q88: 0.02756351691
A89: IT and Telecommunications | B89: 0.001699567933 | C89: 0.003393808338 | D89: 0.006906066267 | E89: 0.009833877272 | F89: 0.006825800201 | G89: 0.006701019839 | H89: 0.008845072894 | I89: 0.009215152526 | J89: 0.009096794111 | K89: 0.007872066291 | L89: 0.006927527084 | M89: 0.007698054805 | N89: 0.01014417028 | O89: 0.01236210139 | P89: 0.01192679905 | Q89: 0.01346649161
A90: Publishing and Audio Visual | B90: 0.004574763901 | C90: 0.006152578542 | D90: 0.005807973213 | E90: 0.005816362631 | F90: 0.006160851523 | G90: 0.006210569343 | H90: 0.004885826426 | I90: 0.005971326168 | J90: 0.004807282574 | K90: 0.005036516657 | L90: 0.004649649588 | M90: 0.003039813745 | N90: 0.003417807484 | O90: 0.003695781715 | P90: 0.003667961953 | Q90: 0.004000075633
A92: Chemical Sciences | B92: 0.09523599545 | C92: 0.101419196 | D92: 0.1074782788 | E92: 0.1159967712 | F92: 0.118495607 | G92: 0.1218837421 | H92: 0.1330697506 | I92: 0.1022735942 | J92: 0.1058450422 | K92: 0.1230544099 | L92: 0.1015555213 | M92: 0.09427576418 | N92: 0.07370337879 | O92: 0.0855978119 | P92: 0.07675079929 | Q92: 0.09747589507
A94: Wholesale and Retail Trade | B94: 0.04848980526 | C94: 0.04908587882 | D94: 0.05747608092 | E94: 0.05719719299 | F94: 0.07141136021 | G94: 0.07575060509 | H94: 0.07156928841 | I94: 0.06434510916 | J94: 0.05656699358 | K94: 0.05866161613 | L94: 0.06650940303 | M94: 0.06347073395 | N94: 0.05842773686 | O94: 0.05788176043 | P94: 0.06598368099 | Q94: 0.05833522938
A95: Wholesale Trade | B95: 0.03930282216 | C95: 0.03832257447 | D95: 0.04878502827 | E95: 0.04854132152 | F95: 0.05846644417 | G95: 0.06483552683 | H95: 0.06128018226 | I95: 0.05355843163 | J95: 0.04590585434 | K95: 0.04714753827 | L95: 0.05284977993 | M95: 0.0510148692 | N95: 0.04740999756 | O95: 0.04690645722 | P95: 0.05559359322 | Q95: 0.0494411218
A96: Retail Trade | B96: 0.008162460709 | C96: 0.01002048781 | D96: 0.007885927556 | E96: 0.00770563954 | F96: 0.009078860746 | G96: 0.00864761531 | H96: 0.008343048494 | I96: 0.008774642491 | J96: 0.008558977862 | K96: 0.009202557341 | L96: 0.01104157952 | M96: 0.01099407487 | N96: 0.009603057805 | O96: 0.009552312095 | P96: 0.008868918208 | Q96: 0.007314801678
A97: Trade and Repair of Vehicles | B97: 0.001024522395 | C97: 0.0007428165368 | D97: 0.0008051250934 | E97: 0.000950231933 | F97: 0.003866055297 | G97: 0.002267462944 | H97: 0.001946057655 | I97: 0.002012035046 | J97: 0.002102161373 | K97: 0.002311520524 | L97: 0.002618043579 | M97: 0.001461789876 | N97: 0.0014146815 | O97: 0.001422991109 | P97: 0.001521169571 | Q97: 0.0015793059
A99: Transportation and Storage | B99: 0.0278973771 | C99: 0.034879818 | D99: 0.03909236418 | E99: 0.03114245135 | F99: 0.03571241865 | G99: 0.03273485437 | H99: 0.04011855559 | I99: 0.03825396837 | J99: 0.03257740953 | K99: 0.03367118219 | L99: 0.03008523868 | M99: 0.03606459772 | N99: 0.03922211586 | O99: 0.03311405409 | P99: 0.04072628292 | Q99: 0.03621195211
A100: Storage | B100: 0.0184612568 | C100: 0.02442502826 | D100: 0.02645940035 | E100: 0.01762555105 | F100: 0.01917031793 | G100: 0.01535931519 | H100: 0.02004815428 | I100: 0.01687099092 | J100: 0.01656254035 | K100: 0.02052923095 | L100: 0.0154835977 | M100: 0.02452337291 | N100: 0.02433438573 | O100: 0.02438237481 | P100: 0.02934418527 | Q100: 0.02737537519
A101: Transportation | B101: 0.009436120301 | C101: 0.01045478974 | D101: 0.01263296382 | E101: 0.01351690029 | F101: 0.01654210072 | G101: 0.01737553919 | H101: 0.02007040132 | I101: 0.02138297745 | J101: 0.01601486919 | K101: 0.01314195124 | L101: 0.01460164098 | M101: 0.01154122481 | N101: 0.01488773013 | O101: 0.00873167929 | P101: 0.01138209764 | Q101: 0.00883657692
A103: Life Sciences | B103: 0.03638688444 | C103: 0.04472433764 | D103: 0.04140792865 | E103: 0.04302776884 | F103: 0.04137501935 | G103: 0.04554473504 | H103: 0.04123148569 | I103: 0.03680417123 | J103: 0.04168024182 | K103: 0.03316170829 | L103: 0.03323750365 | M103: 0.0348272683 | N103: 0.03908856103 | O103: 0.0424735837 | P103: 0.04346880517 | Q103: 0.04832792619
A104: Research | B104: 0.01640252534 | C104: 0.02059589738 | D104: 0.01955868615 | E104: 0.02178143158 | F104: 0.02143921331 | G104: 0.02444500198 | H104: 0.01611671838 | I104: 0.01673566135 | J104: 0.02205965201 | K104: 0.01554272856 | L104: 0.01759082518 | M104: 0.01970253929 | N104: 0.02060042165 | O104: 0.02294693598 | P104: 0.0261480219 | Q104: 0.03114492914
A105: Pharmaceuticals | B105: 0.01486696329 | C105: 0.01897616119 | D105: 0.01554456689 | E105: 0.01471436119 | F105: 0.01214765371 | G105: 0.01274752617 | H105: 0.01789767883 | I105: 0.01378357547 | J105: 0.01406333838 | K105: 0.01198256578 | L105: 0.01134453671 | M105: 0.01015537098 | N105: 0.0135809069 | O105: 0.01482379412 | P105: 0.01294468308 | Q105: 0.01315503348
A106: Manufacture of Medical Equipment | B106: 0.005117395818 | C106: 0.005152279064 | D106: 0.006304675607 | E106: 0.006531976068 | F106: 0.00778815233 | G106: 0.008352206897 | H106: 0.007217088494 | I106: 0.006284934413 | J106: 0.005557251431 | K106: 0.005636413954 | L106: 0.004302141752 | M106: 0.00496935803 | N106: 0.004907232487 | O106: 0.004702853608 | P106: 0.004376100187 | Q106: 0.004027963568
A108: Education | B108: 0.008366880735 | C108: 0.01299563281 | D108: 0.01335261411 | E108: 0.01515024081 | F108: 0.01569880896 | G108: 0.01366057623 | H108: 0.01474004341 | I108: 0.01769316258 | J108: 0.01831306701 | K108: 0.01890457578 | L108: 0.02011201156 | M108: 0.02148380764 | N108: 0.02415006331 | O108: 0.02471305805 | P108: 0.02517767287 | Q108: 0.0238767182
A109: Sustainable Tourism | B109: 0.008559155904 | C109: 0.0143895589 | D109: 0.01396440965 | E109: 0.01533764787 | F109: 0.01629859211 | G109: 0.01359113561 | H109: 0.01257685686 | I109: 0.01227910038 | J109: 0.01103892683 | K109: 0.01122072454 | L109: 0.01028829231 | M109: 0.01000316043 | N109: 0.0134502347 | O109: 0.01198537118 | P109: 0.01076124517 | Q109: 0.01035222097
A110: Textiles | B110: 0.01925091654 | C110: 0.01984725809 | D110: 0.02068645755 | E110: 0.02016545225 | F110: 0.02007906627 | G110: 0.01640084622 | H110: 0.01522805327 | I110: 0.01291521169 | J110: 0.01209691776 | K110: 0.01294417266 | L110: 0.01337973074 | M110: 0.01238222015 | N110: 0.01246051762 | O110: 0.01237227243 | P110: 0.01118564214 | Q110: 0.01001737075
A111: Forest and Timber Technologies | B111: 0.01478649328 | C111: 0.01711445251 | D111: 0.02020981933 | E111: 0.02003677243 | F111: 0.0177295301 | G111: 0.01591548396 | H111: 0.01508393 | I111: 0.01409295903 | J111: 0.01518453867 | K111: 0.01289618412 | L111: 0.01341544782 | M111: 0.01346941483 | N111: 0.01161283944 | O111: 0.01439807531 | P111: 0.01216638258 | Q111: 0.008891304354
A112: Other Services and Accommodation | B112: 0.006945746719 | C112: 0.008409423923 | D112: 0.01013435814 | E112: 0.009467034776 | F112: 0.008626551083 | G112: 0.00858068186 | H112: 0.01088056935 | I112: 0.01129277162 | J112: 0.007161084031 | K112: 0.00639783073 | L112: 0.007091486222 | M112: 0.00746956917 | N112: 0.006768850826 | O112: 0.003650607559 | P112: 0.004063449847 | Q112: 0.005503395926
A113: Construction | B113: 0.004027255523 | C113: 0.01354712618 | D113: 0.009434812596 | E113: 0.01236470752 | F113: 0.009194163255 | G113: 0.007523973451 | H113: 0.008142094383 | I113: 0.006696737769 | J113: 0.00485194359 | K113: 0.003529842073 | L113: 0.00325347874 | M113: 0.003510467422 | N113: 0.004908041376 | O113: 0.003678105654 | P113: 0.004577803207 | Q113: 0.004314349854
A114: Real Estate | B114: 0.0009437008153 | C114: 0.002392700309 | D114: 0.001113742649 | E114: 0.001099059996 | F114: 0.001894218698 | G114: 0.001580965332 | H114: 0.002010660222 | I114: 0.002432340671 | J114: 0.002067484449 | K114: 0.001396101154 | L114: 0.001447369227 | M114: 0.001602815946 | N114: 0.002209007481 | O114: 0.002427518588 | P114: 0.001621154049 | Q114: 0.002236334682

Sheet International- Top Destinations
A1: International Exports by Destination Country - Top 10 Countries (2017) | G1: Contents page
A3: Food and Drink | C3: Food | E3: Drink
A4: Country | C4: Country | E4: Country
A5: USA | C5: France | E5: USA
A6: France | C6: Ireland | E6: France
A7: Singapore | C7: Norway | E7: Singapore
A8: Spain | C8: Germany | E8: Spain
A9: Germany | C9: USA | E9: Germany
A10: Taiwan | C10: Italy | E10: Taiwan
A11: UAE | C11: Canada | E11: UAE
A12: Canada | C12: Netherlands | E12: Latvia
A13: Japan | C13: Japan | E13: South Africa
A14: Ireland | C14: China | E14: Australia
A17: Engineering and Advanced Manufacturing | C17: Engineering Services | E17: Advanced Manufacturing | G17: Transport Equipment | I17: Metal Manufacturing | K17: Other Manufacturing
A18: Country | C18: Country | E18: Country | G18: Country | I18: Country | K18: Country
A19: USA | C19: USA | E19: Germany | G19: USA | I19: Norway | K19: Germany
A20: Germany | C20: Switzerland | E20: France | G20: Poland | I20: USA | K20: USA
A21: France | C21: Ireland | E21: USA | G21: Netherlands | I21: Malaysia | K21: Australia
A22: Netherlands | C22: Norway | E22: Italy | G22: Brazil | I22: France | K22: France
A23: Norway | C23: Germany | E23: Netherlands | G23: Canada | I23: Other South America | K23: Finland
A24: Switzerland | C24: South Korea | E24: UAE | G24: Hong Kong | I24: Netherlands | K24: Netherlands
A25: UAE | C25: Denmark | E25: Switzerland | G25: France | I25: Germany | K25: Romania
A26: Italy | C26: UAE | E26: Belgium | G26: Belgium | I26: Brazil | K26: Japan
A27: Ireland | C27: Singapore | E27: Norway | G27: Egypt | I27: Ireland | K27: Ireland
A28: Belgium | C28: France | E28: Spain | G28: South Korea | I28: UAE | K28: Hong Kong
A31: Energy | C31: Energy Support | E31: Mining and Utilities
A32: Country | C32: Country | E32: Country
A33: Brazil | C33: Brazil | E33: Spain
A34: USA | C34: USA | E34: Netherlands
A35: Netherlands | C35: Netherlands | E35: India
A36: Norway | C36: Norway | E36: China
A37: Denmark | C37: Denmark | E37: France
A38: Other Africa | C38: Other Africa | E38: Hong Kong
A39: Australia | C39: Australia | E39: Portugal
A40: Nigeria | C40: Nigeria | E40: Ireland
A41: Angola | C41: Angola | E41: Turkey
A42: South Korea | C42: South Korea | E42: Germany
A45: Financial and Business Services | C45: Financial Support Activities | E45: Financial Service Activities | G45: Management Consultancy | I45: Business Support Activities | K45: Legal and Accounting | M45: Insurance and Pensions
A46: Country | C46: Country | G46: Country | I46: Country | K46: Country | M46: Country
A47: USA | C47: USA | E47: France | G47: USA | I47: USA | K47: Denmark | M47: Switzerland
A48: France | C48: Canada | E48: USA | G48: Germany | I48: Ireland | K48: USA | M48: Other Western Europe
A49: Netherlands | C49: Japan | E49: Spain | G49: Norway | I49: UAE | K49: Netherlands | M49: Hong Kong
A50: Canada | C50: Caribbean Islands | E50: Germany | G50: Australia | I50: Netherlands | K50: Norway | M50: Spain
A51: Germany | C51: Netherlands | E51: Italy | G51: France | I51: Norway | K51: Belgium | M51: Canada
A52: Ireland | C52: Australia | E52: Netherlands | G52: Ireland | I52: Belgium | K52: Germany | M52: Thailand
A53: Australia | C53: Ireland | E53: Finland | G53: Canada | I53: Caribbean Islands | K53: Caribbean Islands | M53: Sri Lanka
A54: Caribbean Islands | C54: Singapore | E54: Ireland | G54: Netherlands | I54: Germany | K54: France | M54: Singapore
A55: Norway | C55: Luxembourg | E55: Austria | G55: Belgium | I55: Oman | K55: Ireland | M55: Germany
A56: Japan | C56: Hong Kong | E56: Sweden | G56: Gibraltar | I56: Saudi Arabia | K56: Japan | M56: Ireland
A59: Technology, Digital and Media | C59: Manufacture of Computer, Electronic and Optical Products | E59: Digital Industries | G59: IT and Telecommunications | I59: Publishing and Audio Visual
A60: Country | C60: Country | E60: Country | G60: Country | I60: Country
A61: USA | C61: USA | E61: USA | G61: USA | I61: Gibraltar
A62: Germany | C62: Germany | E62: Ireland | G62: Angola | I62: USA
A63: Ireland | C63: Sweden | E63: Qatar | G63: Netherlands | I63: Ireland
A64: Sweden | C64: Italy | E64: Netherlands | G64: Germany | I64: Germany
A65: Netherlands | C65: France | E65: Taiwan | G65: UAE | I65: Russia
A66: Italy | C66: Singapore | E66: Norway | G66: Spain | I66: Netherlands
A67: France | C67: Ireland | E67: Japan | G67: Norway | I67: Norway
A68: Japan | C68: Japan | E68: France | G68: Australia | I68: Brazil
A69: Singapore | C69: Israel | E69: Belgium | G69: Saudi Arabia | I69: Czech Republic
A70: Taiwan | C70: Saudi Arabia | E70: Luxembourg | G70: Russia | I70: Australia
A73: Chemical Sciences
A74: Country
A75: Netherlands
A76: Belgium
A77: Ireland
A78: Germany
A79: Switzerland
A80: Denmark
A81: China
A82: France
A83: USA
A84: Italy
A87: Wholesale and Retail Trade | C87: Trade and Repair of Vehicles | E87: Wholesale Trade | G87: Retail Trade
A88: Country | C88: Country | E88: Country | G88: Country
A89: Ireland | C89: Australia | E89: Ireland | G89: Ireland
A90: USA | C90: Germany | E90: Germany | G90: USA
A91: Germany | C91: Ireland | E91: USA | G91: UAE
A92: Spain | C92: USA | E92: Spain | G92: Japan
A93: France | C93: Hong Kong | E93: France | G93: Canada
A94: Netherlands | C94: Caribbean Islands | E94: Denmark | G94: Germany
A95: Denmark | C95: Malaysia | E95: Netherlands | G95: France
A96: Sweden | C96: South Africa | E96: Sweden | G96: Norway
A97: Norway | C97: Belgium | E97: Italy | G97: Gibraltar
A98: UAE | C98: Vietnam | E98: Norway | G98: China
A101: Life Sciences | C101: Research | E101: Pharmaceuticals | G101: Manufacture of Medical Equipment
A102: Country | C102: Country | E102: Country | G102: Country
A103: USA | C103: USA | E103: Netherlands | G103: USA
A104: Netherlands | C104: Germany | E104: France | G104: Germany
A105: Germany | C105: Denmark | E105: Switzerland | G105: Japan
A106: France | C106: France | E106: USA | G106: Italy
A107: Switzerland | C107: Switzerland | E107: Poland | G107: Netherlands
A108: Denmark | C108: Netherlands | E108: Germany | G108: France
A109: Sweden | C109: Sweden | E109: Austria | G109: Norway
A110: Italy | C110: Italy | E110: Singapore | G110: Australia
A111: Japan | C111: Belgium | E111: Denmark | G111: Ireland
A112: Belgium | C112: Spain | E112: Ukraine | G112: Denmark
A115: Transportation and Storage | C115: Transportation | E115: Storage
A116: Country | C116: Country | E116: Country
A117: Luxembourg | C117: Ireland | E117: Luxembourg
A118: Netherlands | C118: USA | E118: Netherlands
A119: USA | C119: Norway | E119: Norway
A120: Norway | C120: Netherlands | E120: Greece
A121: Ireland | C121: Canada | E121: Germany
A122: Germany | C122: Germany | E122: USA
A123: Greece | C123: Japan | E123: France
A124: France | C124: Caribbean Islands | E124: Kazakhstan
A125: Kazakhstan | C125: Spain | E125: Switzerland
A126: Switzerland | C126: Belgium | E126: UAE
A129: Education
A130: Country
A131: China
A132: USA
A133: Germany
A134: Italy
A135: Malaysia
A136: France
A137: Greece
A138: Spain
A139: India
A140: Hong Kong
A143: Sustainable Tourism
A144: Country
A145: USA
A146: Germany
A147: Netherlands
A148: France
A149: Australia
A150: Canada
A151: Spain
A152: Italy
A153: Ireland
A154: Norway
A157: Textiles
A158: Country
A159: Germany
A160: USA
A161: France
A162: Japan
A163: Italy
A164: Poland
A165: Belgium
A166: Netherlands
A167: Canada
A168: Ireland
A171: Forest and Timber Technologies
A172: Country
A173: Germany
A174: France
A175: Italy
A176: USA
A177: Netherlands
A178: Ireland
A179: Russia
A180: Belgium
A181: Poland
A182: Finland
A185: Other Services and Accommodation
A186: Country
A187: Germany
A188: USA
A189: Singapore
A190: France
A191: Canada
A192: Poland
A193: Mauritius
A194: Nigeria
A195: Netherlands
A196: New Zealand
A199: Construction
A200: Country
A201: Denmark
A202: Ireland
A203: Singapore
A204: Australia
A205: Other Africa
A206: Sri Lanka
A207: Germany
A208: France
A209: Sweden
A210: Romania
A213: Real Estate
A214: Country
A215: USA
A216: Canada
A217: Switzerland
A218: Germany
A219: Malta
A220: Belgium
A221: Japan
A222: Austria
A223: Netherlands
A224: France

Sheet Rest of the UK Exports - Table
A1: Exports to the Rest of the UK by Sector, 2002 - 2017 | P1: Contents page | Z1: Growth Comparison (Actual vs Inflation)
A2: (£ million) | S2: Change 2017 - 2016 | V2: Average Compound Growth rate | Z2: 2012 to 2017 | AB2: 2007 to 2017 | AD2: 2002 to 2017
A3: Sector | B3: 2002 | C3: 2003 | D3: 2004 | E3: 2005 | F3: 2006 | G3: 2007 | H3: 2008 | I3: 2009 | J3: 2010 | K3: 2011 | L3: 2012 | M3: 2013 | N3: 2014 | O3: 2015 | P3: 2016 | Q3: 2017 | S3: Num | T3: Per cent | V3: 2012 to 2017 | W3: 2007 to 2017 | X3: 2002 to 2017 | Z3: Actual | AA3: Inflation | AB3: Actual | AC3: Inflation | AD3: Actual | AE3: Inflation
A4: Financial and Business Services | B4: 5995 | C4: 7610 | D4: 10120 | E4: 8985 | F4: 10415 | G4: 13490 | H4: 13165 | I4: 11770 | J4: 12285 | K4: 10420 | L4: 10185 | M4: 10800 | N4: 11635 | O4: 11690 | P4: 11905 | Q4: 13230 | S4: 1330 | T4: 0.1116698211 | V4: 0.05369228957 | W4: -0.001919896054 | X4: 0.05420015586 | Z4: 0.2988799428 | AA4: 0.07699408271 | AB4: -0.01903393686 | AC4: 0.2654170886 | AD4: 1.207222636 | AE4: 0.3888588319
A5: Energy | B5: 2645 | C5: 2775 | D5: 3005 | E5: 2795 | F5: 3140 | G5: 3300 | H5: 3925 | I5: 6155 | J5: 6780 | K5: 8375 | L5: 8415 | M5: 9135 | N5: 8215 | O5: 9910 | P5: 7810 | Q5: 7770 | S5: -40 | T5: -0.005018276566 | V5: -0.0158650472 | W5: 0.08934099567 | X5: 0.07442116757 | Z5: -0.0768478553 | AB5: 1.353089681 | AD5: 1.93506916
A6: Wholesale and Retail Trade | B6: 4250 | C6: 4670 | D6: 6680 | E6: 6080 | F6: 5865 | G6: 6395 | H6: 5780 | I6: 5485 | J6: 5475 | K6: 5970 | L6: 5780 | M6: 6055 | N6: 6870 | O6: 7000 | P6: 6620 | Q6: 6685 | S6: 70 | T6: 0.01042768987 | V6: 0.02955446286 | W6: 0.004498705905 | X6: 0.03064654667 | Z6: 0.1567689626 | AB6: 0.04590879706 | AD6: 0.5727014474
A7: Engineering and Advanced Manufacturing | B7: 3760 | C7: 3445 | D7: 3475 | E7: 3580 | F7: 3700 | G7: 4185 | H7: 4475 | I7: 4535 | J7: 4865 | K7: 4745 | L7: 5380 | M7: 5365 | N7: 5760 | O7: 6505 | P7: 5175 | Q7: 4745 | S7: -430 | T7: -0.08298335175 | V7: -0.02470501266 | W7: 0.01262902533 | X7: 0.01562657747 | Z7: -0.1175706174 | AB7: 0.1337145375 | AD7: 0.2618590828
A8: Food and Drink | B8: 3125 | C8: 2915 | D8: 2965 | E8: 3320 | F8: 3360 | G8: 3375 | H8: 3385 | I8: 3715 | J8: 4290 | K8: 4225 | L8: 4445 | M8: 4620 | N8: 4385 | O8: 4280 | P8: 4240 | Q8: 4460 | S8: 220 | T8: 0.05162563784 | V8: 0.0004873312409 | W8: 0.02815757747 | X8: 0.02395736223 | Z8: 0.00243903228 | AB8: 0.3200695276 | AD8: 0.4263565268
A9: Technology, Digital and Media | B9: 2295 | C9: 2215 | D9: 2415 | E9: 2150 | F9: 2295 | G9: 2025 | H9: 2010 | I9: 1930 | J9: 1895 | K9: 1865 | L9: 2230 | M9: 2190 | N9: 2405 | O9: 2310 | P9: 2465 | Q9: 3070 | S9: 605 | T9: 0.2449115052 | V9: 0.0662571724 | W9: 0.04260674963 | X9: 0.0195460052 | Z9: 0.3781923274 | AB9: 0.5177677528 | AD9: 0.3369107328
A10: Transportation and Storage | B10: 1615 | C10: 1855 | D10: 1730 | E10: 1560 | F10: 1845 | G10: 1790 | H10: 1965 | I10: 1830 | J10: 1950 | K10: 2230 | L10: 2430 | M10: 2245 | N10: 2145 | O10: 2325 | P10: 2305 | Q10: 2330 | S10: 25 | T10: 0.01040002358 | V10: -0.008311144796 | W10: 0.02670799594 | X10: 0.02475019146 | Z10: -0.04087068982 | AB10: 0.3015757332 | AD10: 0.4430125957
A11: Construction | B11: 1630 | C11: 1885 | D11: 2280 | E11: 1655 | F11: 1750 | G11: 1905 | H11: 2220 | I11: 1615 | J11: 1495 | K11: 1480 | L11: 1595 | M11: 1870 | N11: 1650 | O11: 1490 | P11: 1895 | Q11: 1815 | S11: -75 | T11: -0.04071980727 | V11: 0.02612124671 | W11: -0.004837512736 | X11: 0.007236896739 | Z11: 0.1376099992 | AB11: -0.04733552882 | AD11: 0.1142288384
A12: Chemical Sciences | B12: 585 | C12: 670 | D12: 550 | E12: 370 | F12: 270 | G12: 1310 | H12: 1680 | I12: 1810 | J12: 2205 | K12: 1855 | L12: 1580 | M12: 1565 | N12: 1150 | O12: 1160 | P12: 1040 | Q12: 1345 | S12: 305 | T12: 0.2942839443 | V12: -0.03161804329 | W12: 0.002448334251 | X12: 0.05693207739 | Z12: -0.1484043302 | AB12: 0.02475485655 | AD12: 1.29459573
A13: Other Services and Accommodation | B13: 250 | C13: 335 | D13: 395 | E13: 610 | F13: 590 | G13: 660 | H13: 615 | I13: 785 | J13: 470 | K13: 490 | L13: 585 | M13: 505 | N13: 425 | O13: 535 | P13: 565 | Q13: 820 | S13: 255 | T13: 0.4485883895 | V13: 0.06974254516 | W13: 0.02178184111 | X13: 0.08306166267 | Z13: 0.4008651886 | AB13: 0.2404572515 | AD13: 2.3097695
A14: Forest and Timber Technologies | B14: 825 | C14: 745 | D14: 865 | E14: 940 | F14: 895 | G14: 820 | H14: 785 | I14: 855 | J14: 865 | K14: 865 | L14: 845 | M14: 855 | N14: 865 | O14: 860 | P14: 850 | Q14: 735 | S14: -115 | T14: -0.1344316382 | V14: -0.02649745531 | W14: -0.01070340512 | X14: -0.007538270308 | Z14: -0.1256497161 | AB14: -0.102023146 | AD14: -0.1072979461
A15: Sustainable Tourism | B15: 495 | C15: 735 | D15: 835 | E15: 715 | F15: 850 | G15: 975 | H15: 910 | I15: 940 | J15: 1010 | K15: 1000 | L15: 940 | M15: 765 | N15: 810 | O15: 640 | P15: 590 | Q15: 580 | S15: -15 | T15: -0.02169473729 | V15: -0.09195968532 | W15: -0.05057196149 | X15: 0.01063300264 | Z15: -0.3826582445 | AB15: -0.4048580939 | AD15: 0.1719312714
A16: Education | B16: 280 | C16: 195 | D16: 240 | E16: 230 | F16: 250 | G16: 345 | H16: 405 | I16: 370 | J16: 420 | K16: 450 | L16: 465 | M16: 420 | N16: 460 | O16: 505 | P16: 490 | Q16: 515 | S16: 25 | T16: 0.04685871616 | V16: 0.01956217764 | W16: 0.04127752273 | X16: 0.04143939977 | Z16: 0.1017132715 | AB16: 0.4985282585 | AD16: 0.8386965383
A17: Life Sciences | B17: 260 | C17: 320 | D17: 305 | E17: 340 | F17: 395 | G17: 560 | H17: 530 | I17: 435 | J17: 485 | K17: 525 | L17: 425 | M17: 335 | N17: 350 | O17: 440 | P17: 330 | Q17: 360 | S17: 30 | T17: 0.09603806273 | V17: -0.03225297239 | W17: -0.04274360813 | X17: 0.02267682126 | Z17: -0.1511924568 | AB17: -0.353925278 | AD17: 0.3998328893
A18: Textiles | B18: 425 | C18: 395 | D18: 365 | E18: 350 | F18: 325 | G18: 285 | H18: 285 | I18: 255 | J18: 250 | K18: 245 | L18: 270 | M18: 265 | N18: 275 | O18: 280 | P18: 270 | Q18: 275 | S18: 5 | T18: 0.01396369806 | V18: 0.003360056022 | W18: -0.00375567546 | X18: -0.02833818733 | Z18: 0.01691355986 | AB18: -0.03692834049 | AD18: -0.3502788228
A19: Real Estate | B19: 155 | C19: 145 | D19: 215 | E19: 380 | F19: 430 | G19: 215 | H19: 195 | I19: 300 | J19: 250 | K19: 340 | L19: 310 | M19: 565 | N19: 300 | O19: 210 | P19: 195 | Q19: 170 | S19: -25 | T19: -0.126291665 | V19: -0.1123066253 | W19: -0.02170164836 | X19: 0.006363862118 | Z19: -0.4487927861 | AB19: -0.1970043036 | AD19: 0.09982983649
A22: Total Rest of the UK Exports | B22: 28595 | C22: 30905 | D22: 36440 | E22: 34075 | F22: 36370 | G22: 41640 | H22: 42325 | I22: 42785 | J22: 44995 | K22: 45080 | L22: 45890 | M22: 47555 | N22: 47700 | O22: 50140 | P22: 46750 | Q22: 48915 | S22: 2165 | T22: 0.04632330791 | V22: 0.01286635852 | W22: 0.01623658839 | X22: 0.03643976114 | Z22: 0.06600866116 | AB22: 0.1747576211 | AD22: 0.7106492974
A25: Proportion of Total Exports to the Rest of the UK by Sector, 2002 - 2017
A26: Sector | B26: 2002 | C26: 2003 | D26: 2004 | E26: 2005 | F26: 2006 | G26: 2007 | H26: 2008 | I26: 2009 | J26: 2010 | K26: 2011 | L26: 2012 | M26: 2013 | N26: 2014 | O26: 2015 | P26: 2016 | Q26: 2017
A27: Financial and Business Services | B27: 0.2096444939 | C27: 0.2461910333 | D27: 0.2777404833 | E27: 0.263761936 | F27: 0.2863139868 | G27: 0.3239387534 | H27: 0.3111003959 | I27: 0.2750698165 | J27: 0.2730770403 | K27: 0.2310849748 | L27: 0.2220037658 | M27: 0.2271076081 | N27: 0.2439144803 | O27: 0.2331772432 | P27: 0.2546001777 | Q27: 0.2705008403
A28: Energy | B28: 0.09257579063 | C28: 0.08984091516 | D28: 0.08250731301 | E28: 0.08198735211 | F28: 0.08631521819 | G28: 0.07929842786 | H28: 0.09269831918 | I28: 0.1439086915 | J28: 0.1506346829 | K28: 0.1857683746 | L28: 0.1834181192 | M28: 0.1920661064 | N28: 0.1722398478 | O28: 0.1976634673 | P28: 0.1670342694 | Q28: 0.1588381373
A29: Wholesale and Retail Trade | B29: 0.1486923366 | C29: 0.1511180756 | D29: 0.1833478793 | E29: 0.1785106501 | F29: 0.1613327226 | G29: 0.153542407 | H29: 0.1365504795 | I29: 0.128224444 | J29: 0.121707658 | K29: 0.1324392588 | L29: 0.1259760523 | M29: 0.1273555103 | N29: 0.1439848489 | O29: 0.1395973028 | P29: 0.1415580429 | Q29: 0.1367016917
A30: Engineering and Advanced Manufacturing | B30: 0.1315655383 | C30: 0.1114185876 | D30: 0.09537454969 | E30: 0.1051296658 | F30: 0.1017820861 | G30: 0.1005626194 | H30: 0.1057014341 | I30: 0.1059551937 | J30: 0.108115125 | K30: 0.1052140304 | L30: 0.117239186 | M30: 0.1128273863 | N30: 0.1207055555 | O30: 0.1297421036 | P30: 0.1107339268 | Q30: 0.09704921382
A31: Food and Drink | B31: 0.1093059193 | C31: 0.09425597928 | D31: 0.08138082599 | E31: 0.09738109912 | F31: 0.09233056331 | G31: 0.08110773189 | H31: 0.08000954151 | I31: 0.08678595765 | J31: 0.09533608474 | K31: 0.0936725606 | L31: 0.09692003369 | M31: 0.0971343424 | N31: 0.09190149491 | O31: 0.08540443358 | P31: 0.09068083827 | Q31: 0.09114037092
A32: Technology, Digital and Media | B32: 0.08032937462 | C32: 0.07161393153 | D32: 0.0662616085 | E32: 0.06311691094 | F32: 0.06306426646 | G32: 0.04859132729 | H32: 0.04743269942 | I32: 0.0451010123 | J32: 0.04217001464 | K32: 0.04132207195 | L32: 0.04855866271 | M32: 0.04604006581 | N32: 0.05043798303 | O32: 0.04602934909 | P32: 0.05276467064 | Q32: 0.0627792051
A33: Transportation and Storage | B33: 0.05648764216 | C33: 0.05997343533 | D33: 0.04748504922 | E33: 0.04576270132 | F33: 0.0506979032 | G33: 0.04300722431 | H33: 0.04640740667 | I33: 0.04280032459 | J33: 0.04338218595 | K33: 0.0495078945 | L33: 0.05295977805 | M33: 0.04720069878 | N33: 0.04494355249 | O33: 0.04632144851 | P33: 0.0493440893 | Q33: 0.04764996499
A34: Construction | B34: 0.05698660173 | C34: 0.06097422387 | D34: 0.06256482492 | E34: 0.04863103578 | F34: 0.04809767794 | G34: 0.04577142918 | H34: 0.05243291394 | I34: 0.03772505951 | J34: 0.03318013258 | K34: 0.03278018391 | L34: 0.03478191612 | M34: 0.03937291241 | N34: 0.03459765662 | O34: 0.02972611013 | P34: 0.04048616059 | Q34: 0.03711813704
A35: Chemical Sciences | B35: 0.02049063567 | C35: 0.02164388795 | D35: 0.01509571147 | E35: 0.01092774939 | F35: 0.007384035227 | G35: 0.03150858608 | H35: 0.03966168384 | I35: 0.04235783629 | J35: 0.04895817369 | K35: 0.04119687607 | L35: 0.03440550351 | M35: 0.03287592188 | N35: 0.02410738366 | O35: 0.02315305539 | P35: 0.02221963728 | Q35: 0.02748530934
A36: Other Services and Accommodation | B36: 0.008678331031 | C36: 0.01084506859 | D36: 0.01084587311 | E36: 0.01787777221 | F36: 0.01618900177 | G36: 0.01590154956 | H36: 0.01456922165 | I36: 0.01832553239 | J36: 0.01045033834 | K36: 0.01089794856 | L36: 0.01277724929 | M36: 0.01062187102 | N36: 0.008959797416 | O36: 0.01064923005 | P36: 0.01212813097 | Q36: 0.01679086146
A37: Forest and Timber Technologies | B37: 0.02888916772 | C37: 0.02418382066 | D37: 0.02368458834 | E37: 0.02762139429 | F37: 0.02466352498 | G37: 0.01972257923 | H37: 0.01850582936 | I37: 0.01994003552 | J37: 0.01927766769 | K37: 0.0192363506 | L37: 0.0183804381 | M37: 0.01801929936 | N37: 0.01811490421 | O37: 0.01714062832 | P37: 0.01822405875 | Q37: 0.01507580741
A38: Sustainable Tourism | B38: 0.01729105905 | C38: 0.02380080189 | D38: 0.02285229645 | E38: 0.02093776835 | F38: 0.02339194381 | G38: 0.02338247578 | H38: 0.02152028796 | I38: 0.02201413405 | J38: 0.02243020913 | K38: 0.02221841347 | L38: 0.02045492231 | M38: 0.01604110597 | N38: 0.01703021771 | O38: 0.01278693311 | P38: 0.01266934794 | Q38: 0.0118457552
A39: Education | B39: 0.009770580658 | C39: 0.00624620082 | D39: 0.006522106111 | E39: 0.006804192391 | F39: 0.006854261862 | G39: 0.008232898921 | H39: 0.00953459014 | I39: 0.008598921912 | J39: 0.009346721774 | K39: 0.009954861905 | L39: 0.01016158844 | M39: 0.008809661955 | N39: 0.009643772162 | O39: 0.01003080314 | P39: 0.01049656684 | Q39: 0.01050193798
A40: Life Sciences | B40: 0.009033663381 | C40: 0.01041114303 | D40: 0.008401649459 | E40: 0.009990816803 | F40: 0.01081882308 | G40: 0.01344140401 | H40: 0.01252168504 | I40: 0.010207702 | J40: 0.01078864466 | K40: 0.01164833955 | L40: 0.009283903469 | M40: 0.007042616321 | N40: 0.007356446756 | O40: 0.008786356722 | P40: 0.007056987962 | Q40: 0.007392291997
A41: Textiles | B41: 0.01480145527 | C41: 0.01282331806 | D41: 0.01006402021 | E41: 0.01033923845 | F41: 0.008973893108 | G41: 0.006857410123 | H41: 0.006732027019 | I41: 0.005917095946 | J41: 0.005610849615 | K41: 0.00547589018 | L41: 0.005893145326 | M41: 0.005615976788 | N41: 0.005780809365 | O41: 0.005580457442 | P41: 0.005801148051 | Q41: 0.005621736117
A42: Real Estate | B42: 0.005457410001 | C42: 0.004659577258 | D42: 0.005871220931 | E42: 0.01121971694 | F42: 0.01179009154 | G42: 0.005133175935 | H42: 0.004621484747 | I42: 0.007068242148 | J42: 0.005534470929 | K42: 0.007581970039 | L42: 0.006785735646 | M42: 0.01186891624 | N42: 0.006281249152 | O42: 0.004211077638 | P42: 0.004201946486 | Q42: 0.003508739259

Sheet Rest of the UK Exports -Detail
A1: Exports to the Rest of the UK by Sub-Sector, 2002 - 2017 | Q1: Contents page | Z1: Overall Growth Comparison (Actual vs Inflation)
A2: (£ million) | S2: Change 2017 - 2016 | V2: Average Annual Compound Growth rate | Z2: 2012 to 2017 | AB2: 2007 to 2017 | AD2: 2002 to 2017
A3: Sector | B3: 2002 | C3: 2003 | D3: 2004 | E3: 2005 | F3: 2006 | G3: 2007 | H3: 2008 | I3: 2009 | J3: 2010 | K3: 2011 | L3: 2012 | M3: 2013 | N3: 2014 | O3: 2015 | P3: 2016 | Q3: 2017 | S3: Num | T3: Per cent | V3: 2012 to 2017 | W3: 2007 to 2017 | X3: 2002 to 2017 | Z3: Actual | AA3: Inflation | AB3: Actual | AC3: Inflation | AD3: Actual | AE3: Inflation
A4: Financial and Business Services | B4: 5995 | C4: 7610 | D4: 10120 | E4: 8985 | F4: 10415 | G4: 13490 | H4: 13165 | I4: 11770 | J4: 12285 | K4: 10420 | L4: 10185 | M4: 10800 | N4: 11635 | O4: 11690 | P4: 11905 | Q4: 13230 | S4: 1330 | T4: 0.1116698211 | V4: 0.05369228957 | W4: -0.001919896054 | X4: 0.05420015586 | Z4: 0.2988799428 | AA4: 0.07699408271 | AB4: -0.01903393686 | AC4: 0.2654170886 | AD4: 1.207222636 | AE4: 0.3888588319
A5: Financial Service Activities | B5: 3320 | C5: 4445 | D5: 3380 | E5: 4445 | F5: 6110 | G5: 8600 | H5: 7200 | I5: 5800 | J5: 6170 | K5: 4305 | L5: 3800 | M5: 3620 | N5: 3870 | O5: 4005 | P5: 4540 | Q5: 5750 | S5: 1210 | T5: 0.2666530384 | V5: 0.08652336334 | W5: -0.03941331674 | X5: 0.03730037229 | Z5: 0.5142422047 | AB5: -0.3310931912 | AD5: 0.7320802373
A6: Insurance and Pensions | B6: 770 | C6: 490 | D6: 1040 | E6: 1070 | F6: 1300 | G6: 1635 | H6: 1860 | I6: 1645 | J6: 1940 | K6: 2035 | L6: 2045 | M6: 2000 | N6: 1895 | O6: 2025 | P6: 1875 | Q6: 2065 | S6: 190 | T6: 0.1006381588 | V6: 0.00183481589 | W6: 0.02355400125 | X6: 0.06803918864 | Z6: 0.009207806769 | AB6: 0.2621402119 | AD6: 1.684156431
A7: Business Support Activities | B7: 1030 | C7: 1350 | D7: 1325 | E7: 1515 | F7: 1195 | G7: 1720 | H7: 1615 | I7: 1525 | J7: 1365 | K7: 905 | L7: 1705 | M7: 2360 | N7: 2820 | O7: 2250 | P7: 2415 | Q7: 1910 | S7: -510 | T7: -0.2102513184 | V7: 0.02305722761 | W7: 0.01033248167 | X7: 0.04189713075 | Z7: 0.1207264957 | AB7: 0.1082638198 | AD7: 0.8508559976
A8: Management Consultancy | B8: 440 | C8: 480 | D8: 480 | E8: 545 | F8: 530 | G8: 460 | H8: 520 | I8: 680 | J8: 760 | K8: 945 | L8: 1005 | M8: 975 | N8: 1110 | O8: 1235 | P8: 1300 | Q8: 1900 | S8: 600 | T8: 0.4617703064 | V8: 0.135146204 | W8: 0.1517507577 | X8: 0.1024584202 | Z8: 0.8847728012 | AB8: 3.107570879 | AD8: 3.319498045
A9: Financial Support Activities | B9: 320 | C9: 710 | D9: 3655 | E9: 1215 | F9: 1045 | G9: 840 | H9: 1755 | I9: 1870 | J9: 1790 | K9: 1960 | L9: 1420 | M9: 1620 | N9: 1700 | O9: 1915 | P9: 1460 | Q9: 1245 | S9: -215 | T9: -0.1477963817 | V9: -0.02572319508 | W9: 0.04002664084 | X9: 0.09458673567 | Z9: -0.1221671758 | AB9: 0.4806235108 | AD9: 2.879294182
A10: Legal and Accounting | B10: 115 | C10: 135 | D10: 245 | E10: 200 | F10: 230 | G10: 230 | H10: 215 | I10: 250 | J10: 265 | K10: 270 | L10: 215 | M10: 230 | N10: 235 | O10: 260 | P10: 310 | Q10: 365 | S10: 55 | T10: 0.1737419485 | V10: 0.1111312999 | W10: 0.04740302344 | X10: 0.08076253077 | Z10: 0.6936626411 | AB10: 0.5890524493 | AD10: 2.205931171
A12: Energy | B12: 2645 | C12: 2775 | D12: 3005 | E12: 2795 | F12: 3140 | G12: 3300 | H12: 3925 | I12: 6155 | J12: 6780 | K12: 8375 | L12: 8415 | M12: 9135 | N12: 8215 | O12: 9910 | P12: 7810 | Q12: 7770 | S12: -40 | T12: -0.005018276566 | V12: -0.0158650472 | W12: 0.08934099567 | X12: 0.07442116757 | Z12: -0.0768478553 | AB12: 1.353089681 | AD12: 1.93506916
A13: Mining and Utilities | B13: 1500 | C13: 1850 | D13: 2085 | E13: 1640 | F13: 2045 | G13: 1885 | H13: 2155 | I13: 3705 | J13: 3575 | K13: 5150 | L13: 5160 | M13: 5800 | N13: 4470 | O13: 5730 | P13: 4340 | Q13: 5250 | S13: 910 | T13: 0.2102268472 | V13: 0.003497043635 | W13: 0.107964035 | X13: 0.08706417258 | Z13: 0.01760793973 | AB13: 1.787768024 | AD13: 2.498063893
A14: Energy Support | B14: 1145 | C14: 925 | D14: 920 | E14: 1150 | F14: 1095 | G14: 1420 | H14: 1770 | I14: 2455 | J14: 3205 | K14: 3225 | L14: 3255 | M14: 3330 | N14: 3745 | O14: 4180 | P14: 3470 | Q14: 2520 | S14: -950 | T14: -0.2740992951 | V14: -0.05006649733 | W14: 0.05911486075 | X14: 0.053900425 | Z14: -0.2264898371 | AB14: 0.7759495233 | AD14: 1.197827963
A16: Wholesale and Retail Trade | B16: 4250 | C16: 4670 | D16: 6680 | E16: 6080 | F16: 5865 | G16: 6395 | H16: 5780 | I16: 5485 | J16: 5475 | K16: 5970 | L16: 5780 | M16: 6055 | N16: 6870 | O16: 7000 | P16: 6620 | Q16: 6685 | S16: 70 | T16: 0.01042768987 | V16: 0.02955446286 | W16: 0.004498705905 | X16: 0.03064654667 | Z16: 0.1567689626 | AB16: 0.04590879706 | AD16: 0.5727014474
A17: Wholesale Trade | B17: 2485 | C17: 2865 | D17: 4560 | E17: 4410 | F17: 3950 | G17: 4445 | H17: 3885 | I17: 3890 | J17: 3960 | K17: 4470 | L17: 4105 | M17: 4155 | N17: 4785 | O17: 5040 | P17: 4905 | Q17: 4725 | S17: -180 | T17: -0.03656562208 | V17: 0.02856044776 | W17: 0.006119773367 | X17: 0.04382921572 | Z17: 0.1511955437 | AB17: 0.06291085702 | AD17: 0.9030128563
A18: Retail Trade | B18: 1265 | C18: 1265 | D18: 1590 | E18: 1220 | F18: 1375 | G18: 1490 | H18: 1475 | I18: 1215 | J18: 1150 | K18: 1075 | L18: 1165 | M18: 1345 | N18: 1455 | O18: 1440 | P18: 1185 | Q18: 1400 | S18: 215 | T18: 0.1792473994 | V18: 0.03774219925 | W18: -0.006421764069 | X18: 0.006817881921 | Z18: 0.2035035822 | AB18: -0.06239330817 | AD18: 0.1072961901
A19: Trade and Repair of Vehicles | B19: 505 | C19: 540 | D19: 530 | E19: 455 | F19: 545 | G19: 455 | H19: 420 | I19: 380 | J19: 370 | K19: 425 | L19: 510 | M19: 560 | N19: 630 | O19: 520 | P19: 525 | Q19: 560 | S19: 35 | T19: 0.06801141577 | V19: 0.01838498199 | W19: 0.02135509927 | X19: 0.00711045042 | Z19: 0.09536770155 | AB19: 0.2352862724 | AD19: 0.1121325134
A21: Engineering and Advanced Manufacturing | B21: 3760 | C21: 3445 | D21: 3475 | E21: 3580 | F21: 3700 | G21: 4185 | H21: 4475 | I21: 4535 | J21: 4865 | K21: 4745 | L21: 5380 | M21: 5365 | N21: 5760 | O21: 6505 | P21: 5175 | Q21: 4745 | S21: -430 | T21: -0.08298335175 | V21: -0.02470501266 | W21: 0.01262902533 | X21: 0.01562657747 | Z21: -0.1175706174 | AB21: 0.1337145375 | AD21: 0.2618590828
A22: Engineering Services | B22: 975 | C22: 740 | D22: 690 | E22: 690 | F22: 710 | G22: 855 | H22: 1005 | I22: 1025 | J22: 1510 | K22: 1490 | L22: 1985 | M22: 2185 | N22: 2300 | O22: 3085 | P22: 2195 | Q22: 1745 | S22: -455 | T22: -0.2061819699 | V22: -0.02578901655 | W22: 0.07398648141 | X22: 0.03946721906 | Z22: -0.1224636647 | AB22: 1.041682226 | AD22: 0.7871539597
A23: Transport Equipment | B23: 650 | C23: 680 | D23: 950 | E23: 1030 | F23: 1060 | G23: 1375 | H23: 1440 | I23: 1480 | J23: 1450 | K23: 1390 | L23: 1505 | M23: 1225 | N23: 1415 | O23: 1410 | P23: 1085 | Q23: 1155 | S23: 65 | T23: 0.06187202358 | V23: -0.05178722076 | W23: -0.01731198876 | X23: 0.03879010624 | Z23: -0.2334702405 | AB23: -0.1602373067 | AD23: 0.7697709795
A24: Advanced Manufacturing | B24: 1300 | C24: 1305 | D24: 1135 | E24: 1120 | F24: 1095 | G24: 1100 | H24: 1130 | I24: 1110 | J24: 1095 | K24: 1045 | L24: 1010 | M24: 1115 | N24: 1250 | O24: 1120 | P24: 1120 | Q24: 1050 | S24: -70 | T24: -0.06201750549 | V24: 0.007482289807 | W24: -0.004607722774 | X24: -0.01431012323 | Z24: 0.03797550027 | AB24: -0.04513347294 | AD24: -0.1944278485
A25: Metal Manufacturing | B25: 710 | C25: 590 | D25: 530 | E25: 605 | F25: 690 | G25: 755 | H25: 805 | I25: 775 | J25: 720 | K25: 735 | L25: 785 | M25: 720 | N25: 655 | O25: 720 | P25: 620 | Q25: 620 | S25: 0 | T25: 0.0002902171883 | V25: -0.04689619976 | W25: -0.01968795555 | X25: -0.009290836753 | Z25: -0.2134958729 | AB25: -0.1803217985 | AD25: -0.130653924
A26: Other Manufacturing | B26: 120 | C26: 130 | D26: 170 | E26: 145 | F26: 145 | G26: 105 | H26: 95 | I26: 145 | J26: 95 | K26: 85 | L26: 90 | M26: 120 | N26: 140 | O26: 170 | P26: 160 | Q26: 185 | S26: 25 | T26: 0.1572902768 | V26: 0.1489926282 | W26: 0.05564110935 | X26: 0.02765338507 | Z26: 1.00256311 | AB26: 0.7185530547 | AD26: 0.5055662025
A28: Food and Drink | B28: 3125 | C28: 2915 | D28: 2965 | E28: 3320 | F28: 3360 | G28: 3375 | H28: 3385 | I28: 3715 | J28: 4290 | K28: 4225 | L28: 4445 | M28: 4620 | N28: 4385 | O28: 4280 | P28: 4240 | Q28: 4460 | S28: 220 | T28: 0.05162563784 | V28: 0.0004873312409 | W28: 0.02815757747 | X28: 0.02395736223 | Z28: 0.00243903228 | AB28: 0.3200695276 | AD28: 0.4263565268
A29: Food | B29: 2470 | C29: 2210 | D29: 2325 | E29: 2485 | F29: 2555 | G29: 2595 | H29: 2585 | I29: 2835 | J29: 3355 | K29: 3320 | L29: 3490 | M29: 3555 | N29: 3475 | O29: 3380 | P29: 3385 | Q29: 3625 | S29: 240 | T29: 0.07078329292 | V29: 0.007760031001 | W29: 0.03401786478 | X29: 0.02596789503 | Z29: 0.03940702692 | AB29: 0.3972702794 | AD29: 0.4689484769
A30: Drink | B30: 655 | C30: 700 | D30: 640 | E30: 830 | F30: 805 | G30: 780 | H30: 800 | I30: 875 | J30: 935 | K30: 900 | L30: 960 | M30: 1065 | N30: 905 | O30: 900 | P30: 855 | Q30: 830 | S30: -20 | T30: -0.02448564772 | V30: -0.02795226127 | W30: 0.006200362758 | X30: 0.01586169691 | Z30: -0.132163381 | AB30: 0.06376254709 | AD30: 0.2662480316
A32: Technology, Digital and Media | B32: 2295 | C32: 2215 | D32: 2415 | E32: 2150 | F32: 2295 | G32: 2025 | H32: 2010 | I32: 1930 | J32: 1895 | K32: 1865 | L32: 2230 | M32: 2190 | N32: 2405 | O32: 2310 | P32: 2465 | Q32: 3070 | S32: 605 | T32: 0.2449115052 | V32: 0.0662571724 | W32: 0.04260674963 | X32: 0.0195460052 | Z32: 0.3781923274 | AB32: 0.5177677528 | AD32: 0.3369107328
A33: Digital Industries | B33: 455 | C33: 355 | D33: 370 | E33: 450 | F33: 545 | G33: 570 | H33: 535 | I33: 580 | J33: 510 | K33: 580 | L33: 805 | M33: 865 | N33: 915 | O33: 930 | P33: 1060 | Q33: 1425 | S33: 370 | T33: 0.3482185564 | V33: 0.1217349999 | W33: 0.09586849734 | X33: 0.079052331 | Z33: 0.7760343202 | AB33: 1.497953937 | AD33: 2.130672287
A34: Manufacture of Computer, Electronic and Optical Products | B34: 1055 | C34: 1110 | D34: 1005 | E34: 860 | F34: 830 | G34: 720 | H34: 735 | I34: 665 | J34: 620 | K34: 635 | L34: 675 | M34: 575 | N34: 670 | O34: 445 | P34: 730 | Q34: 965 | S34: 235 | T34: 0.3243468193 | V34: 0.07492379267 | W34: 0.03012435661 | X34: -0.005850797851 | Z34: 0.4351205356 | AB34: 0.3455398329 | AD34: -0.0842571749
A35: Publishing and Audio Visual | B35: 550 | C35: 560 | D35: 850 | E35: 640 | F35: 630 | G35: 500 | H35: 470 | I35: 440 | J35: 450 | K35: 365 | L35: 435 | M35: 475 | N35: 470 | O35: 530 | P35: 490 | Q35: 455 | S35: -35 | T35: -0.0677126358 | V35: 0.008545503994 | W35: -0.008966922127 | X35: -0.01210240747 | Z35: 0.04346404347 | AB35: -0.08613614093 | AD35: -0.1669349664
A36: IT and Telecommunications | B36: 240 | C36: 190 | D36: 190 | E36: 205 | F36: 290 | G36: 235 | H36: 265 | I36: 240 | J36: 315 | K36: 280 | L36: 315 | M36: 280 | N36: 350 | O36: 400 | P36: 190 | Q36: 220 | S36: 30 | T36: 0.1690467135 | V36: -0.06767674348 | W36: -0.005778492397 | X36: -0.004816622915 | Z36: -0.2955785232 | AB36: -0.05630525154 | AD36: -0.0698634758
A38: Transportation and Storage | B38: 1615 | C38: 1855 | D38: 1730 | E38: 1560 | F38: 1845 | G38: 1790 | H38: 1965 | I38: 1830 | J38: 1950 | K38: 2230 | L38: 2430 | M38: 2245 | N38: 2145 | O38: 2325 | P38: 2305 | Q38: 2330 | S38: 25 | T38: 0.01040002358 | V38: -0.008311144796 | W38: 0.02670799594 | X38: 0.02475019146 | Z38: -0.04087068982 | AB38: 0.3015757332 | AD38: 0.4430125957
A39: Transportation | B39: 890 | C39: 1080 | D39: 1095 | E39: 1035 | F39: 1145 | G39: 1090 | H39: 1120 | I39: 1225 | J39: 1260 | K39: 1390 | L39: 1585 | M39: 1425 | N39: 1250 | O39: 1130 | P39: 1450 | Q39: 1290 | S39: -165 | T39: -0.1125119921 | V39: -0.04069658657 | W39: 0.01683549792 | X39: 0.02510807108 | Z39: -0.1875812295 | AB39: 0.181699335 | AD39: 0.4505903819
A40: Storage | B40: 725 | C40: 770 | D40: 635 | E40: 525 | F40: 700 | G40: 700 | H40: 845 | I40: 605 | J40: 690 | K40: 845 | L40: 845 | M40: 820 | N40: 895 | O40: 1195 | P40: 855 | Q40: 1045 | S40: 185 | T40: 0.2189656662 | V40: 0.04304364088 | W40: 0.0405486586 | X40: 0.02431079865 | Z40: 0.2345605591 | AB40: 0.4880719725 | AD40: 0.4337593677
A42: Construction | B42: 1630 | C42: 1885 | D42: 2280 | E42: 1655 | F42: 1750 | G42: 1905 | H42: 2220 | I42: 1615 | J42: 1495 | K42: 1480 | L42: 1595 | M42: 1870 | N42: 1650 | O42: 1490 | P42: 1895 | Q42: 1815 | S42: -75 | T42: -0.04071980727 | V42: 0.02612124671 | W42: -0.004837512736 | X42: 0.007236896739 | Z42: 0.1376099992 | AB42: -0.04733552882 | AD42: 0.1142288384
A43: Chemical Sciences | B43: 585 | C43: 670 | D43: 550 | E43: 370 | F43: 270 | G43: 1310 | H43: 1680 | I43: 1810 | J43: 2205 | K43: 1855 | L43: 1580 | M43: 1565 | N43: 1150 | O43: 1160 | P43: 1040 | Q43: 1345 | S43: 305 | T43: 0.2942839443 | V43: -0.03161804329 | W43: 0.002448334251 | X43: 0.05693207739 | Z43: -0.1484043302 | AB43: 0.02475485655 | AD43: 1.29459573
A44: Other Services and Accommodation | B44: 250 | C44: 335 | D44: 395 | E44: 610 | F44: 590 | G44: 660 | H44: 615 | I44: 785 | J44: 470 | K44: 490 | L44: 585 | M44: 505 | N44: 425 | O44: 535 | P44: 565 | Q44: 820 | S44: 255 | T44: 0.4485883895 | V44: 0.06974254516 | W44: 0.02178184111 | X44: 0.08306166267 | Z44: 0.4008651886 | AB44: 0.2404572515 | AD44: 2.3097695
A45: Forest and Timber Technologies | B45: 825 | C45: 745 | D45: 865 | E45: 940 | F45: 895 | G45: 820 | H45: 785 | I45: 855 | J45: 865 | K45: 865 | L45: 845 | M45: 855 | N45: 865 | O45: 860 | P45: 850 | Q45: 735 | S45: -115 | T45: -0.1344316382 | V45: -0.02649745531 | W45: -0.01070340512 | X45: -0.007538270308 | Z45: -0.1256497161 | AB45: -0.102023146 | AD45: -0.1072979461
A46: Sustainable Tourism | B46: 495 | C46: 735 | D46: 835 | E46: 715 | F46: 850 | G46: 975 | H46: 910 | I46: 940 | J46: 1010 | K46: 1000 | L46: 940 | M46: 765 | N46: 810 | O46: 640 | P46: 590 | Q46: 580 | S46: -15 | T46: -0.02169473729 | V46: -0.09195968532 | W46: -0.05057196149 | X46: 0.01063300264 | Z46: -0.3826582445 | AB46: -0.4048580939 | AD46: 0.1719312714
A47: Education | B47: 280 | C47: 195 | D47: 240 | E47: 230 | F47: 250 | G47: 345 | H47: 405 | I47: 370 | J47: 420 | K47: 450 | L47: 465 | M47: 420 | N47: 460 | O47: 505 | P47: 490 | Q47: 515 | S47: 25 | T47: 0.04685871616 | V47: 0.01956217764 | W47: 0.04127752273 | X47: 0.04143939977 | Z47: 0.1017132715 | AB47: 0.4985282585 | AD47: 0.8386965383
A49: Life Sciences | B49: 260 | C49: 320 | D49: 305 | E49: 340 | F49: 395 | G49: 560 | H49: 530 | I49: 435 | J49: 485 | K49: 525 | L49: 425 | M49: 335 | N49: 350 | O49: 440 | P49: 330 | Q49: 360 | S49: 30 | T49: 0.09603806273 | V49: -0.03225297239 | W49: -0.04274360813 | X49: 0.02267682126 | Z49: -0.1511924568 | AB49: -0.353925278 | AD49: 0.3998328893
A50: Research | B50: 70 | C50: 70 | D50: 75 | E50: 90 | F50: 140 | G50: 230 | H50: 215 | I50: 190 | J50: 190 | K50: 230 | L50: 220 | M50: 135 | N50: 165 | O50: 270 | P50: 195 | Q50: 205 | S50: 10 | T50: 0.04932028192 | V50: -0.01434496648 | W50: -0.01207496246 | X50: 0.07167381196 | Z50: -0.06969635947 | AB50: -0.1143952823 | AD50: 1.824484999
A51: Pharmaceuticals | B51: 145 | C51: 210 | D51: 185 | E51: 200 | F51: 190 | G51: 295 | H51: 275 | I51: 220 | J51: 265 | K51: 265 | L51: 160 | M51: 150 | N51: 145 | O51: 135 | P51: 90 | Q51: 110 | S51: 20 | T51: 0.1956594605 | V51: -0.07510200041 | W51: -0.09477132316 | X51: -0.01758246494 | Z51: -0.3231862071 | AB51: -0.6305267203 | AD51: -0.2336245518
A52: Manufacture of Medical Equipment | B52: 45 | C52: 45 | D52: 50 | E52: 50 | F52: 65 | G52: 35 | H52: 40 | I52: 30 | J52: 30 | K52: 35 | L52: 45 | M52: 55 | N52: 40 | O52: 35 | P52: 45 | Q52: 50 | S52: 5 | T52: 0.09395957409 | V52: 0.01366340853 | W52: 0.03862353102 | X52: 0.007961271818 | Z52: 0.07020961278 | AB52: 0.4607691127 | AD52: 0.1263093454
A54: Textiles | B54: 425 | C54: 395 | D54: 365 | E54: 350 | F54: 325 | G54: 285 | H54: 285 | I54: 255 | J54: 250 | K54: 245 | L54: 270 | M54: 265 | N54: 275 | O54: 280 | P54: 270 | Q54: 275 | S54: 5 | T54: 0.01396369806 | V54: 0.003360056022 | W54: -0.00375567546 | X54: -0.02833818733 | Z54: 0.01691355986 | AB54: -0.03692834049 | AD54: -0.3502788228
A55: Real Estate | B55: 155 | C55: 145 | D55: 215 | E55: 380 | F55: 430 | G55: 215 | H55: 195 | I55: 300 | J55: 250 | K55: 340 | L55: 310 | M55: 565 | N55: 300 | O55: 210 | P55: 195 | Q55: 170 | S55: -25 | T55: -0.126291665 | V55: -0.1123066253 | W55: -0.02170164836 | X55: 0.006363862118 | Z55: -0.4487927861 | AB55: -0.1970043036 | AD55: 0.09982983649
A58: Total Rest of the UK Exports | B58: 28595 | C58: 30905 | D58: 36440 | E58: 34075 | F58: 36370 | G58: 41640 | H58: 42325 | I58: 42785 | J58: 44995 | K58: 45080 | L58: 45890 | M58: 47555 | N58: 47700 | O58: 50140 | P58: 46750 | Q58: 48915 | S58: 2165 | T58: 0.04632330791 | V58: 0.01286635852 | W58: 0.01623658839 | X58: 0.03643976114 | Z58: 0.06600866116 | AB58: 0.1747576211 | AD58: 0.7106492974
A61: Proportion of Total Exports to the Rest of the UK by Sub-Sector, 2002 - 2017
A62: Sector | B62: 2002 | C62: 2003 | D62: 2004 | E62: 2005 | F62: 2006 | G62: 2007 | H62: 2008 | I62: 2009 | J62: 2010 | K62: 2011 | L62: 2012 | M62: 2013 | N62: 2014 | O62: 2015 | P62: 2016 | Q62: 2017
A63: Financial and Business Services | B63: 0.2096444939 | C63: 0.2461910333 | D63: 0.2777404833 | E63: 0.263761936 | F63: 0.2863139868 | G63: 0.3239387534 | H63: 0.3111003959 | I63: 0.2750698165 | J63: 0.2730770403 | K63: 0.2310849748 | L63: 0.2220037658 | M63: 0.2271076081 | N63: 0.2439144803 | O63: 0.2331772432 | P63: 0.2546001777 | Q63: 0.2705008403
A64: Financial Service Activities | B64: 0.1161367015 | C64: 0.143828082 | D64: 0.09280737835 | E64: 0.1303931136 | F64: 0.1680436365 | G64: 0.2065185963 | H64: 0.1700973961 | I64: 0.135539646 | J64: 0.137148066 | K64: 0.09547937227 | L64: 0.08278314027 | M64: 0.07609562266 | N64: 0.08114258702 | O64: 0.07989571296 | P64: 0.0971370121 | Q64: 0.117591657
A65: Insurance and Pensions | B65: 0.02688544616 | C65: 0.01586253788 | D65: 0.02853577637 | E65: 0.03139545865 | F65: 0.03576937463 | G65: 0.03926492343 | H65: 0.04399776207 | I65: 0.03850455363 | J65: 0.04313010781 | K65: 0.04518090535 | L65: 0.0445599012 | M65: 0.04206648742 | N65: 0.03970048921 | O65: 0.04040956572 | P65: 0.04010379037 | Q65: 0.0421855861
A66: Business Support Activities | B66: 0.03605076086 | C66: 0.04366685081 | D66: 0.03631798901 | E66: 0.04443209754 | F66: 0.03279532925 | G66: 0.0413457808 | H66: 0.03811930577 | I66: 0.0356156482 | J66: 0.03032199911 | K66: 0.02007648942 | L66: 0.03710113332 | M66: 0.04958399234 | N66: 0.05914702314 | O66: 0.04483819555 | P66: 0.05167768763 | Q66: 0.03900552091
A67: Management Consultancy | B67: 0.01536741113 | C67: 0.01546471446 | D67: 0.01311433083 | E67: 0.01597827851 | F67: 0.01463076174 | G67: 0.01109778262 | H67: 0.01232910995 | I67: 0.01586675323 | J67: 0.01684322123 | K67: 0.02094047648 | L67: 0.0219469784 | M67: 0.02051607382 | N67: 0.02331856728 | O67: 0.02462123161 | P67: 0.02777536489 | Q67: 0.03880368843
A68: Financial Support Activities | B68: 0.01122936373 | C68: 0.02292458043 | D68: 0.1002826192 | E68: 0.03570370999 | F68: 0.02870296242 | G68: 0.02020461181 | H68: 0.04151302085 | I68: 0.04369225273 | J68: 0.03974512357 | K68: 0.04345646021 | L68: 0.03092400951 | M68: 0.03404114349 | N68: 0.03566828179 | O68: 0.03818420699 | P68: 0.03126579003 | Q68: 0.02546518766
A69: Legal and Accounting | B69: 0.003974810561 | C69: 0.004444267664 | D69: 0.006682389498 | E69: 0.005859277693 | F69: 0.006371922326 | G69: 0.005507058437 | H69: 0.005043801142 | I69: 0.005850962711 | J69: 0.0058885226 | K69: 0.005951271102 | L69: 0.004688603109 | M69: 0.004804288336 | N69: 0.004937531862 | O69: 0.005228330332 | P69: 0.006640532697 | Q69: 0.007449200193
A71: Energy | B71: 0.09257579063 | C71: 0.08984091516 | D71: 0.08250731301 | E71: 0.08198735211 | F71: 0.08631521819 | G71: 0.07929842786 | H71: 0.09269831918 | I71: 0.1439086915 | J71: 0.1506346829 | K71: 0.1857683746 | L71: 0.1834181192 | M71: 0.1920661064 | N71: 0.1722398478 | O71: 0.1976634673 | P71: 0.1670342694 | Q71: 0.1588381373
A72: Mining and Utilities | B72: 0.05249100188 | C72: 0.05993270065 | D72: 0.05720864281 | E72: 0.0481925079 | F72: 0.05621782948 | G72: 0.04523173588 | H72: 0.05091376236 | I72: 0.08653887397 | J72: 0.07942003383 | K72: 0.1142027984 | L72: 0.1124428547 | M72: 0.1220086108 | N72: 0.09373140555 | O72: 0.1143032888 | P72: 0.09280058914 | Q72: 0.1073375347
A73: Energy Support | B73: 0.04008478875 | C73: 0.02990821451 | D73: 0.0252986702 | E73: 0.03379484422 | F73: 0.03009738871 | G73: 0.03406669198 | H73: 0.04178455682 | I73: 0.05736981757 | J73: 0.07121464906 | K73: 0.07156557619 | L73: 0.0709752645 | M73: 0.07005749562 | N73: 0.07850844225 | O73: 0.08336017855 | P73: 0.07423368029 | Q73: 0.05150060258
A75: Wholesale and Retail Trade | B75: 0.1486923366 | C75: 0.1511180756 | D75: 0.1833478793 | E75: 0.1785106501 | F75: 0.1613327226 | G75: 0.153542407 | H75: 0.1365504795 | I75: 0.128224444 | J75: 0.121707658 | K75: 0.1324392588 | L75: 0.1259760523 | M75: 0.1273555103 | N75: 0.1439848489 | O75: 0.1395973028 | P75: 0.1415580429 | Q75: 0.1367016917
A76: Wholesale Trade | B76: 0.08686116128 | C76: 0.09275391991 | D76: 0.1251489656 | E76: 0.129385033 | F76: 0.1085684198 | G76: 0.1067966914 | H76: 0.09180183762 | I76: 0.09092879306 | J76: 0.08796721641 | K76: 0.09920538715 | L76: 0.08947835756 | M76: 0.08734637074 | N76: 0.1002821938 | O76: 0.1005115046 | P76: 0.1049421919 | Q76: 0.09662875194
A77: Retail Trade | B77: 0.04418936784 | C77: 0.04095192681 | D77: 0.04368961233 | E77: 0.03577294429 | F77: 0.03776351199 | G77: 0.03583836463 | H77: 0.03484934308 | I77: 0.02843975477 | J77: 0.02556358953 | K77: 0.02383225 | L77: 0.0253357612 | M77: 0.02827449445 | N77: 0.03054233454 | O77: 0.02872945792 | P77: 0.02537941362 | Q77: 0.02860359439
A78: Trade and Repair of Vehicles | B78: 0.01764180744 | C78: 0.01741222892 | D78: 0.01450930141 | E78: 0.01335267277 | F78: 0.01500079081 | G78: 0.01090735097 | H78: 0.009899298781 | I78: 0.008855896127 | J78: 0.008176852094 | K78: 0.009401621692 | L78: 0.01116193358 | M78: 0.01173464515 | N78: 0.01316032058 | O78: 0.01035634035 | P78: 0.0112364374 | Q78: 0.0114693454
A80: Engineering and Advanced Manufacturing | B80: 0.1315655383 | C80: 0.1114185876 | D80: 0.09537454969 | E80: 0.1051296658 | F80: 0.1017820861 | G80: 0.1005626194 | H80: 0.1057014341 | I80: 0.1059551937 | J80: 0.108115125 | K80: 0.1052140304 | L80: 0.117239186 | M80: 0.1128273863 | N80: 0.1207055555 | O80: 0.1297421036 | P80: 0.1107339268 | Q80: 0.09704921382
A81: Engineering Services | B81: 0.03410046007 | C81: 0.02398088937 | D81: 0.01897672038 | E81: 0.02023243088 | F81: 0.0195209568 | G81: 0.02049846524 | H81: 0.02371114665 | I81: 0.02391532825 | J81: 0.03352589177 | K81: 0.03300215985 | L81: 0.04327697016 | M81: 0.04592884385 | N81: 0.04818485771 | O81: 0.06148853846 | P81: 0.04695762936 | Q81: 0.03562552086
A82: Transport Equipment | B82: 0.02280705318 | C82: 0.02201180991 | D82: 0.02610427451 | E82: 0.03018871311 | F82: 0.02916372235 | G82: 0.03300782859 | H82: 0.03404786398 | I82: 0.03455666093 | J82: 0.03219624372 | K82: 0.03080857521 | L82: 0.0328138338 | M82: 0.02580539784 | N82: 0.02967943674 | O82: 0.02813366204 | P82: 0.02324978719 | Q82: 0.02359528684
A83: Advanced Manufacturing | B83: 0.04551268494 | C83: 0.04223782821 | D83: 0.03116771386 | E83: 0.03282578016 | F83: 0.03015399604 | G83: 0.02636826286 | H83: 0.02666555596 | I83: 0.02591976712 | J83: 0.0243144181 | K83: 0.02322074224 | L83: 0.02201149539 | M83: 0.02342703528 | N83: 0.02621255103 | O83: 0.02236387291 | P83: 0.02390821123 | Q83: 0.02143265226
A84: Metal Manufacturing | B84: 0.02488581153 | C84: 0.01903696057 | D84: 0.01449245975 | E84: 0.01769753311 | F84: 0.01900203899 | G84: 0.01812543374 | H84: 0.01905663924 | I84: 0.01816179062 | J84: 0.01600555179 | K84: 0.01631996543 | L84: 0.01714128003 | M84: 0.01512984418 | N84: 0.01372458202 | O84: 0.01440512014 | P84: 0.01322888987 | Q84: 0.01264688363
A85: Other Manufacturing | B85: 0.004259528551 | C85: 0.004151099578 | D85: 0.004633381199 | E85: 0.004185208528 | F85: 0.00394137195 | G85: 0.002562628987 | H85: 0.00222022832 | I85: 0.00340164675 | J85: 0.002073019651 | K85: 0.001862587681 | L85: 0.001995606588 | M85: 0.002536265119 | N85: 0.002904127968 | O85: 0.003350910011 | P85: 0.00338940919 | Q85: 0.00374887023
A87: Food and Drink | B87: 0.1093059193 | C87: 0.09425597928 | D87: 0.08138082599 | E87: 0.09738109912 | F87: 0.09233056331 | G87: 0.08110773189 | H87: 0.08000954151 | I87: 0.08678595765 | J87: 0.09533608474 | K87: 0.0936725606 | L87: 0.09692003369 | M87: 0.0971343424 | N87: 0.09190149491 | O87: 0.08540443358 | P87: 0.09068083827 | Q87: 0.09114037092
A88: Food | B88: 0.08633827242 | C88: 0.07154842537 | D88: 0.0637954296 | E88: 0.07297487957 | F88: 0.07024749405 | G88: 0.06233282125 | H88: 0.06105005198 | I88: 0.06631816309 | J88: 0.0745304829 | K88: 0.07365698058 | L88: 0.07603683286 | M88: 0.07471687218 | N88: 0.07288193197 | O88: 0.06744139746 | P88: 0.07244580585 | Q88: 0.07413937734
A89: Drink | B89: 0.02296764693 | C89: 0.02270755391 | D89: 0.01758539638 | E89: 0.02440621955 | F89: 0.02208306926 | G89: 0.01877491065 | H89: 0.01895948953 | I89: 0.02046779456 | J89: 0.02080560184 | K89: 0.02001558002 | L89: 0.02088320083 | M89: 0.02241747022 | N89: 0.01901956294 | O89: 0.01796303612 | P89: 0.01823503242 | Q89: 0.01700099358
A91: Technology, Digital and Media | B91: 0.08032937462 | C91: 0.07161393153 | D91: 0.0662616085 | E91: 0.06311691094 | F91: 0.06306426646 | G91: 0.04859132729 | H91: 0.04743269942 | I91: 0.0451010123 | J91: 0.04217001464 | K91: 0.04132207195 | L91: 0.04855866271 | M91: 0.04604006581 | N91: 0.05043798303 | O91: 0.04602934909 | P91: 0.05276467064 | Q91: 0.0627792051
A92: Digital Industries | B92: 0.01593529106 | C92: 0.01154395153 | D92: 0.01015029846 | E92: 0.01315577913 | F92: 0.01495242567 | G92: 0.01371514715 | H92: 0.01264269108 | I92: 0.01360351383 | J92: 0.01138849498 | K92: 0.01290100091 | L92: 0.01750435068 | M92: 0.01819373537 | N92: 0.01919856013 | O92: 0.01856450474 | P92: 0.02263300531 | Q92: 0.02916329734
A93: Manufacture of Computer, Electronic and Optical Products | B93: 0.03692874928 | C93: 0.03586889464 | D93: 0.02761778091 | E93: 0.02524247805 | F93: 0.02277713438 | G93: 0.01725952552 | H93: 0.01732300023 | I93: 0.01557215281 | J93: 0.0137867038 | K93: 0.01411898829 | L93: 0.01468417307 | M93: 0.01204161267 | N93: 0.01409291524 | O93: 0.008903740592 | P93: 0.0156185714 | Q93: 0.01976865582
A94: Publishing and Audio Visual | B94: 0.01914793689 | C94: 0.01810719469 | D94: 0.02326879388 | E94: 0.01876977866 | F94: 0.01732303397 | G94: 0.01198689439 | H94: 0.01114806422 | I94: 0.01032262569 | J94: 0.01000364907 | K94: 0.008084821162 | L94: 0.009526275893 | M94: 0.009940726932 | N94: 0.00980217618 | O94: 0.01060271453 | P94: 0.01046540433 | Q94: 0.009324808254
A95: IT and Telecommunications | B95: 0.008317397389 | C95: 0.006093890671 | D95: 0.005224735244 | E95: 0.005948875107 | F95: 0.008011672451 | G95: 0.005629760241 | H95: 0.006318943885 | I95: 0.005602719967 | J95: 0.006991166793 | K95: 0.006217261594 | L95: 0.006843863067 | M95: 0.005863990838 | N95: 0.007344331485 | O95: 0.00795838923 | P95: 0.004047689603 | Q95: 0.004522443677
A97: Transportation and Storage | B97: 0.05648764216 | C97: 0.05997343533 | D97: 0.04748504922 | E97: 0.04576270132 | F97: 0.0506979032 | G97: 0.04300722431 | H97: 0.04640740667 | I97: 0.04280032459 | J97: 0.04338218595 | K97: 0.0495078945 | L97: 0.05295977805 | M97: 0.04720069878 | N97: 0.04494355249 | O97: 0.04632144851 | P97: 0.0493440893 | Q97: 0.04764996499
A98: Transportation | B98: 0.03105534993 | C98: 0.03501721389 | D98: 0.03008717274 | E98: 0.03037038977 | F98: 0.03146348108 | G98: 0.02617951023 | H98: 0.02649032257 | I98: 0.02862235024 | J98: 0.0280150418 | K98: 0.03078471195 | L98: 0.03455421425 | M98: 0.03000463419 | N98: 0.02620384821 | O98: 0.02251776097 | P98: 0.03104728611 | Q98: 0.02633420654
A99: Storage | B99: 0.02543229223 | C99: 0.02495622144 | D99: 0.01739787648 | E99: 0.01539231155 | F99: 0.01923442212 | G99: 0.01682771408 | H99: 0.0199170841 | I99: 0.01417797435 | J99: 0.01536714415 | K99: 0.01872318255 | L99: 0.0184055638 | M99: 0.01719606459 | N99: 0.01873970429 | O99: 0.02380368755 | P99: 0.01829680319 | Q99: 0.02131575845
A101: Construction | B101: 0.05698660173 | C101: 0.06097422387 | D101: 0.06256482492 | E101: 0.04863103578 | F101: 0.04809767794 | G101: 0.04577142918 | H101: 0.05243291394 | I101: 0.03772505951 | J101: 0.03318013258 | K101: 0.03278018391 | L101: 0.03478191612 | M101: 0.03937291241 | N101: 0.03459765662 | O101: 0.02972611013 | P101: 0.04048616059 | Q101: 0.03711813704
A102: Chemical Sciences | B102: 0.02049063567 | C102: 0.02164388795 | D102: 0.01509571147 | E102: 0.01092774939 | F102: 0.007384035227 | G102: 0.03150858608 | H102: 0.03966168384 | I102: 0.04235783629 | J102: 0.04895817369 | K102: 0.04119687607 | L102: 0.03440550351 | M102: 0.03287592188 | N102: 0.02410738366 | O102: 0.02315305539 | P102: 0.02221963728 | Q102: 0.02748530934
A103: Other Services and Accommodation | B103: 0.008678331031 | C103: 0.01084506859 | D103: 0.01084587311 | E103: 0.01787777221 | F103: 0.01618900177 | G103: 0.01590154956 | H103: 0.01456922165 | I103: 0.01832553239 | J103: 0.01045033834 | K103: 0.01089794856 | L103: 0.01277724929 | M103: 0.01062187102 | N103: 0.008959797416 | O103: 0.01064923005 | P103: 0.01212813097 | Q103: 0.01679086146
A104: Forest and Timber Technologies | B104: 0.02888916772 | C104: 0.02418382066 | D104: 0.02368458834 | E104: 0.02762139429 | F104: 0.02466352498 | G104: 0.01972257923 | H104: 0.01850582936 | I104: 0.01994003552 | J104: 0.01927766769 | K104: 0.0192363506 | L104: 0.0183804381 | M104: 0.01801929936 | N104: 0.01811490421 | O104: 0.01714062832 | P104: 0.01822405875 | Q104: 0.01507580741
A105: Sustainable Tourism | B105: 0.01729105905 | C105: 0.02380080189 | D105: 0.02285229645 | E105: 0.02093776835 | F105: 0.02339194381 | G105: 0.02338247578 | H105: 0.02152028796 | I105: 0.02201413405 | J105: 0.02243020913 | K105: 0.02221841347 | L105: 0.02045492231 | M105: 0.01604110597 | N105: 0.01703021771 | O105: 0.01278693311 | P105: 0.01266934794 | Q105: 0.0118457552
A106: Education | B106: 0.009770580658 | C106: 0.00624620082 | D106: 0.006522106111 | E106: 0.006804192391 | F106: 0.006854261862 | G106: 0.008232898921 | H106: 0.00953459014 | I106: 0.008598921912 | J106: 0.009346721774 | K106: 0.009954861905 | L106: 0.01016158844 | M106: 0.008809661955 | N106: 0.009643772162 | O106: 0.01003080314 | P106: 0.01049656684 | Q106: 0.01050193798
A108: Life Sciences | B108: 0.009033663381 | C108: 0.01041114303 | D108: 0.008401649459 | E108: 0.009990816803 | F108: 0.01081882308 | G108: 0.01344140401 | H108: 0.01252168504 | I108: 0.010207702 | J108: 0.01078864466 | K108: 0.01164833955 | L108: 0.009283903469 | M108: 0.007042616321 | N108: 0.007356446756 | O108: 0.008786356722 | P108: 0.007056987962 | Q108: 0.007392291997
A109: Pharmaceuticals | B109: 0.005005593886 | C109: 0.006772145928 | D109: 0.005066490157 | E109: 0.005851289378 | F109: 0.005178917407 | G109: 0.007130195648 | H109: 0.006486228091 | I109: 0.00509328229 | J109: 0.005934161451 | K109: 0.005846021852 | L109: 0.003532057328 | M109: 0.003116150919 | N109: 0.003090710471 | O109: 0.002720190345 | P109: 0.001962431953 | Q109: 0.002242519413
A110: Research | B110: 0.002515995637 | C110: 0.002242795459 | D110: 0.002028036082 | E110: 0.002616959253 | F110: 0.003858419076 | G110: 0.005510569989 | H110: 0.005123827 | I110: 0.004448564471 | J110: 0.004236660572 | K110: 0.005060457519 | L110: 0.004760188883 | M110: 0.002814713297 | N110: 0.00342832527 | O110: 0.005355218366 | P110: 0.004142342507 | Q110: 0.00415420738
A111: Manufacture of Medical Equipment | B111: 0.001512073857 | C111: 0.001396201646 | D111: 0.001307123221 | E111: 0.001522568172 | F111: 0.001781486601 | G111: 0.0008006383761 | H111: 0.0009116299459 | I111: 0.000665855243 | J111: 0.0006178226393 | K111: 0.0007418601807 | L111: 0.0009916572578 | M111: 0.001111752105 | N111: 0.0008374110142 | O111: 0.0007109480104 | P111: 0.0009522135021 | Q111: 0.0009955652037
A113: Textiles | B113: 0.01480145527 | C113: 0.01282331806 | D113: 0.01006402021 | E113: 0.01033923845 | F113: 0.008973893108 | G113: 0.006857410123 | H113: 0.006732027019 | I113: 0.005917095946 | J113: 0.005610849615 | K113: 0.00547589018 | L113: 0.005893145326 | M113: 0.005615976788 | N113: 0.005780809365 | O113: 0.005580457442 | P113: 0.005801148051 | Q113: 0.005621736117
A114: Real Estate | B114: 0.005457410001 | C114: 0.004659577258 | D114: 0.005871220931 | E114: 0.01121971694 | F114: 0.01179009154 | G114: 0.005133175935 | H114: 0.004621484747 | I114: 0.007068242148 | J114: 0.005534470929 | K114: 0.007581970039 | L114: 0.006785735646 | M114: 0.01186891624 | N114: 0.006281249152 | O114: 0.004211077638 | P114: 0.004201946486 | Q114: 0.003508739259

Sheet Business Base by Size
A1: VAT/PAYE registered enterprises1 in Scotland by employee sizeband2
R2: Contents page
A3: Employee Sizeband (Employees in Scotland) | B3: All Private Sector VAT/PAYE Registered Enterprises | L3: SE/HIE Account Managed (as at August 2017)
B4: All Enterprises | C4: All Employment | D4: Turnover (£ million)3 | E4: Business Enterprise R&D Performers | F4: Business Enterprise R&D Employment (FTE) | G4: Business Enterprise R&D Spend (£ million) | H4: International Exports (£ million) | I4: International Exports as a % of turnover | J4: RUK Exports (£ million) | K4: RUK Exports as a % of turnover | L4: All Enterprises | M4: Percentage of total managed | N4: All Employment | O4: Turnover (£ million)3 | P4: Business Enterprise R&D Performers | Q4: Business Enterprise R&D Employment (FTE) | R4: Business Enterprise R&D Spend (£ million)
A5: 0 employees | B5: 67980 | C5: 76300 | D5: 7002 | E5: 0 | F5: 0 | G5: 0 | H5: 5600 | I5: =H5/SUM(D5:D7) -> 0.07528500753 | J5: 9530 | K5: =J5/SUM(D5:D7) -> 0.1281189503 | L5: 55 | M5: =L5/L$12 -> 0.02558139535 | N5: 60 | O5: 9 | P5: 0 | Q5: 0 | R5: 0
A6: 1-9 employees | B6: 86725 | C6: 324420 | D6: 31633 | E6: 1460 | F6: 650 | G6: 34 | L6: 520 | M6: =L6/L$12 -> 0.2418604651 | N6: 2490 | O6: 476 | P6: 165 | Q6: 130 | R6: 7
A7: 10-49 employees | B7: 17385 | C7: 336180 | D7: 35749 | E7: 1280 | F7: 2750 | G7: 129 | L7: 835 | M7: 0.388372093 | N7: 20410 | O7: 2842 | P7: 365 | Q7: 1090 | R7: 55
A8: 50-249 employees | B8: 3305 | C8: 334070 | D8: 49447 | E8: 595 | F8: 3880 | G8: 309 | H8: 8495 | I8: =H8/D8 -> 0.1718001092 | J8: 11430 | K8: =J8/D8 -> 0.2311565919 | L8: 545 | M8: 0.2534883721 | N8: 59230 | O8: 13008 | P8: 285 | Q8: 2050 | R8: 153
A9: 250-499 employees | B9: 465 | C9: 161650 | D9: 22407 | E9: 85 | F9: 1260 | G9: 99 | H9: 3935 | I9: =H9/D9 -> 0.1756147632 | J9: 5235 | K9: =J9/D9 -> 0.233632347 | L9: 100 | M9: 0.04651162791 | N9: 35470 | O9: 7107 | P9: 40 | Q9: 830 | R9: 70
A10: 500-999 employees | B10: 235 | C10: 162210 | D10: 30629 | E10: 45 | F10: 2210 | G10: 280 | H10: 6675 | I10: =H10/D10 -> 0.2179307193 | J10: 5515 | K10: =J10/D10 -> 0.1800581149 | L10: 50 | M10: 0.02325581395 | N10: 38020 | O10: 11917 | P10: 25 | Q10: 1040 | R10: 105
A11: 1000+ employees | B11: 200 | C11: 545060 | D11: 84656 | E11: 25 | F11: 2420 | G11: 397 | H11: 7740 | I11: =H11/D11 -> 0.09142884143 | J11: 17205 | K11: =J11/D11 -> 0.2032342657 | L11: 45 | M11: 0.02093023256 | N11: 113290 | O11: 28017 | P11: 10 | Q11: 1030 | R11: 215
A12: Total | B12: 176295 | C12: 1939900 | D12: 261523 | E12: 3490 | F12: 13180 | G12: 1247 | H12: 32440 | I12: =H12/D12 -> 0.1240426272 | J12: 48915 | K12: =J12/D12 -> 0.1870389985 | L12: 2150 | M12: 1 | N12: 268960 | O12: 63375 | P12: 890 | Q12: 6160 | R12: 603
A13: Sources: IDBR (2018), BERD Survey (2017), Export Statistics Scotland(2017)
A14: Note: Totals may not equal the sum of the constituent parts due to rounding.
A16: 1. Excludes central and local government.
A17: 2. Sizeband is based on the number of employees that the enterprise employs across Scotland.
A18: 3. Turnover for financial and insurance enterprises is not available.
A19: 4. On the IDBR, turnover for the majority of registered enterprises is based on VAT returns for a 12 month period. For 2017, these tend to relate to a 12 month period ending in December 2015, or January/February 2016, depending on the reporting pattern of the trader.

Sheet Business Base by Sub-Sector
A1: VAT/PAYE registered enterprises1 in Scotland by Sub-Sector
M2: Contents page
A3: Sector | B3: All Private Sector VAT/PAYE Registered Enterprises | H3: SE/HIE Account Managed (as at August 2017)
B4: All Enterprises | C4: All Employment | D4: Turnover (£ million)2 | E4: Business Enterprise R&D Performers | F4: Business Enterprise R&D Employment (FTE) | G4: Business Enterprise R&D Spend (£ million) | H4: All Enterprises | I4: All Employment | J4: Turnover (£ million)2 | K4: Business Enterprise R&D Performers | L4: Business Enterprise R&D Employment (FTE) | M4: Business Enterprise R&D Spend (£ million)
A5: Food and Drink | B5: 17490 | C5: 99580 | D5: 17108 | E5: 190 | F5: 540 | G5: 34 | H5: 220 | I5: 31260 | J5: 9378 | K5: 95 | L5: 340 | M5: 24
A6: Drink | B6: 295 | C6: 12610 | D6: 5752 | E6: 35 | F6: 120 | G6: 7 | H6: 65 | I6: 10860 | J6: 5209 | K6: 25 | L6: 110 | M6: 7
A7: Food | B7: 17195 | C7: 86980 | D7: 11355 | E7: 150 | F7: 420 | G7: 27 | H7: 155 | I7: 20400 | J7: 4169 | K7: 75 | L7: 220 | M7: 18
A9: Engineering and Advanced Manufacturing | B9: 16935 | C9: 141940 | D9: 25784 | E9: 725 | F9: 2690 | G9: 196 | H9: 415 | I9: 44950 | J9: 11478 | K9: 225 | L9: 1470 | M9: 115
A10: Advanced Manufacturing | B10: 1140 | C10: 29800 | D10: 4979 | E10: 195 | F10: 650 | G10: 34 | H10: 120 | I10: 12100 | J10: 1964 | K10: 85 | L10: 330 | M10: 17
A11: Transport Equipment | B11: 305 | C11: 14730 | D11: 3510 | E11: 35 | F11: 220 | G11: 17 | H11: 20 | I11: 6430 | J11: 2286 | K11: 10 | L11: * | M11: *
A12: Engineering Services | B12: 12590 | C12: 67360 | D12: 13669 | E12: 270 | F12: 1110 | G12: 115 | H12: 150 | I12: 15880 | J12: 6053 | K12: 65 | L12: 690 | M12: 75
A13: Metal Manufacturing | B13: 2095 | C13: 24770 | D13: 3115 | E13: 180 | F13: 580 | G13: 26 | H13: 100 | I13: 9080 | J13: 1032 | K13: 55 | L13: 260 | M13: 8
A14: Other Manufacturing | B14: 800 | C14: 5300 | D14: 512 | E14: 45 | F14: 130 | G14: 5 | H14: 25 | I14: 1470 | J14: 143 | K14: 10 | L14: * | M14: *
A16: Energy | B16: 1435 | C16: 64870 | D16: 39921 | E16: 45 | F16: 490 | G16: 57 | H16: 55 | I16: 19450 | J16: 14608 | K16: 10 | L16: 150 | M16: 19
A17: Energy Support | B17: 130 | C17: 17860 | D17: 4479 | E17: 10 | F17: 260 | G17: 30 | H17: 10 | I17: 6490 | J17: 1250 | K17: 5 | L17: 80 | M17: 8
A18: Mining and Utilities | B18: 1305 | C18: 47010 | D18: 35442 | E18: 35 | F18: 230 | G18: 27 | H18: 45 | I18: 12960 | J18: 13358 | K18: 10 | L18: 70 | M18: 11
A20: Financial and Business Services | B20: 34030 | C20: 333460 | D20: N/A | E20: 455 | F20: 1720 | G20: 293 | H20: 290 | I20: 62700 | J20: N/A | K20: 80 | L20: 250 | M20: *
A21: Financial Support Activities | B21: 1615 | C21: 24270 | D21: N/A | E21: 20 | F21: 100 | G21: 14 | H21: 20 | I21: 8530 | J21: N/A | K21: 5 | L21: 20 | M21: *
A22: Business Support Activities | B22: 12290 | C22: 165720 | D22: 11698 | E22: 190 | F22: 360 | G22: 27 | H22: 110 | I22: 14900 | J22: 1284 | K22: 30 | L22: 130 | M22: 15
A23: Management Consultancy | B23: 15670 | C23: 45680 | D23: 4957 | E23: 210 | F23: * | G23: * | H23: 140 | I23: 3940 | J23: * | K23: 45 | L23: 100 | M23: *
A24: Financial Service Activities | B24: 580 | C24: 46480 | D24: N/A | E24: 5 | F24: * | G24: * | H24: 15 | I24: 26760 | J24: N/A | K24: 0 | L24: * | M24: *
A25: Legal and Accounting | B25: 3835 | C25: 39170 | D25: 3131 | E25: 35 | F25: * | G25: * | H25: 5 | I25: * | J25: * | K25: 0 | L25: * | M25: *
A26: Insurance and Pensions | B26: 45 | C26: 12150 | D26: N/A | E26: 0 | F26: 0 | G26: 0 | H26: 0 | I26: * | J26: N/A | K26: 0 | L26: 0 | M26: 0
A28: Technology, Digital and Media | B28: 11325 | C28: 80810 | D28: 18711 | E28: 560 | F28: 3420 | G28: 304 | H28: 310 | I28: 33490 | J28: 12237 | K28: 175 | L28: 1840 | M28: 148
A29: Manufacture of Computer, Electronic and Optical Products | B29: 365 | C29: 9740 | D29: 1912 | E29: 95 | F29: 950 | G29: 112 | H29: 60 | I29: 6670 | J29: 1359 | K29: 45 | L29: 720 | M29: 82
A30: Digital Industries | B30: 8160 | C30: 33100 | D30: 10958 | E30: 320 | F30: 2150 | G30: 178 | H30: 175 | I30: 10100 | J30: * | K30: 95 | L30: 960 | M30: 58
A31: IT and Telecommunications | B31: 840 | C31: 22740 | D31: 4402 | E31: 45 | F31: 200 | G31: 11 | H31: 30 | I31: 15160 | J31: 2518 | K31: 15 | L31: * | M31: *
A32: Publishing and Audio Visual | B32: 1965 | C32: 15230 | D32: 1439 | E32: 105 | F32: 110 | G32: 4 | H32: 50 | I32: 1560 | J32: * | K32: 20 | L32: * | M32: *
A34: Chemical Sciences | B34: 205 | C34: 6700 | D34: 4355 | E34: 55 | F34: 130 | G34: 8 | H34: 45 | I34: 4380 | J34: 2632 | K34: 30 | L34: 90 | M34: 5
A36: Wholesale and Retail Trade | B36: 24115 | C36: 363040 | D36: 66206 | E36: 395 | F36: 270 | G36: 18 | H36: 255 | I36: 18470 | J36: 4545 | K36: 70 | L36: 150 | M36: 12
A37: Wholesale Trade | B37: 5700 | C37: 67700 | D37: 23664 | E37: 215 | F37: 190 | G37: 14 | H37: 185 | I37: 10690 | J37: 3058 | K37: 60 | L37: 150 | M37: 12
A38: Retail Trade | B38: 13765 | C38: 248360 | D38: 31444 | E38: 95 | F38: 50 | G38: 2 | H38: 65 | I38: * | J38: * | K38: 10 | L38: * | M38: *
A39: Trade and Repair of Vehicles | B39: 4655 | C39: 46980 | D39: 11098 | E39: 80 | F39: 40 | G39: 2 | H39: 10 | I39: * | J39: * | K39: 5 | L39: * | M39: *
A41: Life Sciences | B41: 565 | C41: 13940 | D41: 2181 | E41: 375 | F41: 2930 | G41: 294 | H41: 105 | I41: 8520 | J41: 1356 | K41: 90 | L41: 1560 | M41: 142
A42: Research | B42: 415 | C42: 8070 | D42: 1319 | E42: 340 | F42: 2520 | G42: 258 | H42: 75 | I42: 4020 | J42: 603 | K42: 70 | L42: 1250 | M42: 115
A43: Pharmaceuticals | B43: 30 | C43: 3290 | D43: 625 | E43: 15 | F43: 180 | G43: 23 | H43: 15 | I43: 3020 | J43: 592 | K43: 10 | L43: 130 | M43: *
A44: Manufacture of Medical Equipment | B44: 120 | C44: 2580 | D44: 237 | E44: 20 | F44: 230 | G44: 13 | H44: 15 | I44: 1480 | J44: 161 | K44: 10 | L44: 180 | M44: *
A46: Transportation and Storage | B46: 5745 | C46: 93500 | D46: 11277 | E46: 10 | F46: 20 | G46: 1 | H46: 45 | I46: 6250 | J46: 1324 | K46: 5 | L46: * | M46: *
A47: Storage | B47: 2220 | C47: 42770 | D47: 5371 | E47: 5 | F47: * | G47: * | H47: 30 | I47: 4240 | J47: 816 | K47: 5 | L47: * | M47: *
A48: Transportation | B48: 3525 | C48: 50730 | D48: 5906 | E48: 5 | F48: * | G48: * | H48: 20 | I48: 2010 | J48: 508 | K48: 0 | L48: 0 | M48: 0
A50: Education | B50: 1950 | C50: 72380 | D50: 2740 | E50: 30 | F50: 50 | G50: 3 | H50: 25 | I50: 3000 | J50: 210 | K50: 10 | L50: 20 | M50: 1
A51: Sustainable Tourism | B51: 14540 | C51: 207880 | D51: 8081 | E51: 170 | F51: 130 | G51: 6 | H51: 95 | I51: 7830 | J51: 309 | K51: 15 | L51: * | M51: *
A52: Textiles | B52: 550 | C52: 8030 | D52: 888 | E52: 50 | F52: 120 | G52: 5 | H52: 45 | I52: 3480 | J52: 327 | K52: 25 | L52: 80 | M52: 3
A53: Forest and Timber Technologies | B53: 2130 | C53: 15870 | D53: 2577 | E53: 50 | F53: 110 | G53: 3 | H53: 45 | I53: 5070 | J53: 999 | K53: 25 | L53: 90 | M53: 2
A54: Other Services and Accommodation | B54: 19340 | C54: 274380 | D54: 18482 | E54: 145 | F54: 260 | G54: 12 | H54: 95 | I54: 9710 | J54: 547 | K54: 15 | L54: 50 | M54: 3
A55: Construction | B55: 20355 | C55: 131490 | D55: 20119 | E55: 195 | F55: 250 | G55: 11 | H55: 85 | I55: 9430 | J55: 1617 | K55: 25 | L55: 40 | M55: 2
A56: Real Estate | B56: 5580 | C56: 32040 | D56: 3305 | E56: 35 | F56: 50 | G56: 2 | H56: 20 | I56: 990 | J56: 97 | K56: 0 | L56: * | M56: *
A59: Total | B59: 176295 | C59: 1939900 | D59: 261523 | E59: 3490 | F59: 13180 | G59: 1247 | H59: 2150 | I59: 268960 | J59: 63375 | K59: 890 | L59: 6160 | M59: 603
A60: Sources: IDBR (2018), BERD Survey (2017)
A61: Note: Totals may not equal the sum of the constituent parts due to rounding.
A63: 1. Excludes central and local government.
A64: 2. Turnover for financial and insurance enterprises is not available.
A65: 3. On the IDBR, turnover for the majority of registered enterprises is based on VAT returns for a 12 month period. For 2017, these tend to relate to a 12 month period ending in December 2015, or January/February 2016, depending on the reporting pattern of the trader.
A66: * - disclosive

Sheet Enterprises by Size&Sector
A1: VAT/PAYE registered enterprises1 in Scotland by employee sizeband2 and Sub-Sector
G2: Contents page
A3: Sub-Sector | B3: All Private Sector VAT/PAYE Registered Enterprises
B4: 0 employees | C4: 1-9 employees | D4: 10-49 employees | E4: 50-249 employees | F4: 250+ employees | G4: Total
A5: Food and Drink | B5: 10125 | C5: 6555 | D5: 620 | E5: 140 | F5: 50 | G5: 17490
A6: Drink | B6: 120 | C6: 110 | D6: 40 | E6: 20 | F6: 10 | G6: 295
A7: Food | B7: 10005 | C7: 6440 | D7: 580 | E7: 125 | F7: 40 | G7: 17195
A9: Engineering and Advanced Manufacturing | B9: 8800 | C9: 6390 | D9: 1345 | E9: 335 | F9: 70 | G9: 16935
A10: Advanced Manufacturing | B10: 235 | C10: 520 | D10: 275 | E10: 95 | F10: 20 | G10: 1140
A11: Transport Equipment | B11: 145 | C11: 110 | D11: 20 | E11: 20 | F11: 10 | G11: 305
A12: Engineering Services | B12: 7255 | C12: 4540 | D12: 645 | E12: 125 | F12: 25 | G12: 12590
A13: Metal Manufacturing | B13: 920 | C13: 750 | D13: 335 | E13: 85 | F13: 10 | G13: 2095
A14: Other Manufacturing | B14: 245 | C14: 470 | D14: 75 | E14: 10 | F14: 0 | G14: 800
A16: Energy | B16: 520 | C16: 635 | D16: 170 | E16: 75 | F16: 45 | G16: 1435
A17: Energy Support | B17: 30 | C17: 50 | D17: 20 | E17: 10 | F17: 20 | G17: 130
A18: Mining and Utilities | B18: 490 | C18: 580 | D18: 145 | E18: 60 | F18: 25 | G18: 1305
A20: Financial and Business Services | B20: 16060 | C20: 15245 | D20: 2065 | E20: 515 | F20: 150 | G20: 34030
A21: Financial Support Activities | B21: 565 | C21: 845 | D21: 145 | E21: 40 | F21: 15 | G21: 1615
A22: Business Support Activities | B22: 4670 | C22: 6235 | D22: 1000 | E22: 295 | F22: 90 | G22: 12290
A23: Management Consultancy | B23: 9280 | C23: 5900 | D23: 410 | E23: 65 | F23: 10 | G23: 15670
A24: Financial Service Activities | B24: 180 | C24: 340 | D24: 35 | E24: 15 | F24: 10 | G24: 580
A25: Legal and Accounting | B25: 1355 | C25: 1900 | D25: 475 | E25: 90 | F25: 20 | G25: 3835
A26: Insurance and Pensions | B26: 10 | C26: 25 | D26: 0 | E26: 5 | F26: 5 | G26: 45
A28: Technology, Digital and Media | B28: 6690 | C28: 3870 | D28: 585 | E28: 145 | F28: 35 | G28: 11325
A29: Manufacture of Computer, Electronic and Optical Products | B29: 100 | C29: 170 | D29: 60 | E29: 30 | F29: 5 | G29: 365
A30: Digital Industries | B30: 5185 | C30: 2595 | D30: 300 | E30: 65 | F30: 15 | G30: 8160
A31: IT and Telecommunications | B31: 440 | C31: 315 | D31: 60 | E31: 20 | F31: 5 | G31: 840
A32: Publishing and Audio Visual | B32: 965 | C32: 790 | D32: 170 | E32: 30 | F32: 10 | G32: 1965
A34: Chemical Sciences | B34: 50 | C34: 80 | D34: 45 | E34: 25 | F34: 5 | G34: 205
A36: Wholesale and Retail Trade | B36: 6580 | C36: 14180 | D36: 2760 | E36: 460 | F36: 140 | G36: 24115
A37: Wholesale Trade | B37: 1940 | C37: 2580 | D37: 970 | E37: 180 | F37: 30 | G37: 5700
A38: Retail Trade | B38: 3430 | C38: 8625 | D38: 1405 | E38: 215 | F38: 90 | G38: 13765
A39: Trade and Repair of Vehicles | B39: 1210 | C39: 2970 | D39: 385 | E39: 70 | F39: 20 | G39: 4655
A41: Life Sciences | B41: 170 | C41: 245 | D41: 105 | E41: 30 | F41: 15 | G41: 565
A42: Research | B42: 145 | C42: 170 | D42: 75 | E42: 10 | F42: 10 | G42: 415
A43: Pharmaceuticals | B43: 5 | C43: 10 | D43: 5 | E43: 10 | F43: 5 | G43: 30
A44: Manufacture of Medical Equipment | B44: 20 | C44: 65 | D44: 30 | E44: 10 | F44: 0 | G44: 120
A46: Transportation and Storage | B46: 2545 | C46: 2255 | D46: 715 | E46: 175 | F46: 50 | G46: 5745
A47: Storage | B47: 1200 | C47: 700 | D47: 230 | E47: 60 | F47: 25 | G47: 2220
A48: Transportation | B48: 1345 | C48: 1555 | D48: 485 | E48: 115 | F48: 25 | G48: 3525
A50: Education | B50: 605 | C50: 945 | D50: 300 | E50: 75 | F50: 25 | G50: 1950
A51: Sustainable Tourism | B51: 1230 | C51: 9525 | D51: 3325 | E51: 370 | F51: 90 | G51: 14540
A52: Textiles | B52: 155 | C52: 285 | D52: 75 | E52: 30 | F52: 5 | G52: 550
A53: Forest and Timber Technologies | B53: 925 | C53: 995 | D53: 155 | E53: 50 | F53: 10 | G53: 2130
A54: Other Services and Accommodation | B54: 3025 | C54: 12495 | D54: 3145 | E54: 535 | F54: 145 | G54: 19340
A55: Construction | B55: 8030 | C55: 10390 | D55: 1605 | E55: 275 | F55: 60 | G55: 20355
A56: Real Estate | B56: 2480 | C56: 2640 | D56: 370 | E56: 80 | F56: 10 | G56: 5580
A59: Total | B59: 67980 | C59: 86725 | D59: 17385 | E59: 3305 | F59: 900 | G59: 176295
A60: Sources: IDBR (2018)
A61: Note: Totals may not equal the sum of the constituent parts due to rounding.
A63: 1. Excludes central and local government.
A64: 2. Sizeband is based on the number of employees that the enterprise employs across Scotland.
A65: 3. On the IDBR, turnover for the majority of registered enterprises is based on VAT returns for a 12 month period. For 2017, these tend to relate to a 12 month period ending in December 2015, or January/February 2016, depending on the reporting pattern of the trader.

Sheet Employment by Size&Sector
A1: Employment of VAT/PAYE registered enterprises1 in Scotland by employee sizeband2 and Sub-Sector
G2: Contents page
A3: Sub-Sector | B3: Employment
B4: 0 employees | C4: 1-9 employees | D4: 10-49 employees | E4: 50-249 employees | F4: 250+ employees | G4: Total
A5: Food and Drink | B5: 14780 | C5: 25920 | D5: 11430 | E5: 15430 | F5: 32020 | G5: 99580
A6: Drink | B6: 120 | C6: 400 | D6: 820 | E6: * | F6: * | G6: 12610
A7: Food | B7: 14660 | C7: 25520 | D7: 10610 | E7: * | F7: * | G7: 86980
A9: Engineering and Advanced Manufacturing | B9: 9000 | C9: 20220 | D9: 27900 | E9: 34470 | F9: 50360 | G9: 141940
A10: Advanced Manufacturing | B10: 250 | C10: 2130 | D10: 5950 | E10: 10160 | F10: 11310 | G10: 29800
A11: Transport Equipment | B11: 150 | C11: 400 | D11: 360 | E11: 2010 | F11: 11800 | G11: 14730
A12: Engineering Services | B12: 7370 | C12: 12940 | D12: 13120 | E12: 12850 | F12: 21080 | G12: 67360
A13: Metal Manufacturing | B13: 950 | C13: 2960 | D13: 7030 | E13: * | F13: * | G13: 24770
A14: Other Manufacturing | B14: 270 | C14: 1790 | D14: 1430 | E14: * | F14: * | G14: 5300
A16: Energy | B16: 570 | C16: 2060 | D16: 3960 | E16: 7640 | F16: 50640 | G16: 64870
A17: Energy Support | B17: 30 | C17: 160 | D17: 590 | E17: 1180 | F17: 15910 | G17: 17860
A18: Mining and Utilities | B18: 540 | C18: 1910 | D18: 3370 | E18: 6460 | F18: 34740 | G18: 47010
A20: Financial and Business Services | B20: 16600 | C20: 50230 | D20: 39720 | E20: 53470 | F20: 173440 | G20: 333460
A21: Financial Support Activities | B21: 580 | C21: 3060 | D21: 2990 | E21: 4560 | F21: 13080 | G21: 24270
A22: Business Support Activities | B22: 4910 | C22: 21120 | D22: 18760 | E22: 30310 | F22: 90620 | G22: 165720
A23: Management Consultancy | B23: 9500 | C23: 16990 | D23: 7510 | E23: * | F23: * | G23: 45680
A24: Financial Service Activities | B24: * | C24: * | D24: * | E24: 1320 | F24: 43210 | G24: 46480
A25: Legal and Accounting | B25: 1410 | C25: 7880 | D25: 9740 | E25: 10610 | F25: 9550 | G25: 39170
A26: Insurance and Pensions | B26: * | C26: * | D26: * | E26: * | F26: * | G26: 12150
A28: Technology, Digital and Media | B28: 6780 | C28: 11650 | D28: 12070 | E28: 13520 | F28: 36780 | G28: 80810
A29: Manufacture of Computer, Electronic and Optical Products | B29: 100 | C29: 640 | D29: 1460 | E29: * | F29: * | G29: 9740
A30: Digital Industries | B30: 5220 | C30: 7300 | D30: 6110 | E30: 6050 | F30: 8410 | G30: 33100
A31: IT and Telecommunications | B31: 450 | C31: 1010 | D31: 1180 | E31: * | F31: * | G31: 22740
A32: Publishing and Audio Visual | B32: 1010 | C32: 2700 | D32: 3320 | E32: 2940 | F32: 5250 | G32: 15230
A34: Chemical Sciences | B34: 50 | C34: 330 | D34: 1090 | E34: * | F34: * | G34: 6700
A36: Wholesale and Retail Trade | B36: 7400 | C36: 58670 | D36: 52490 | E36: 46270 | F36: 198210 | G36: 363040
A37: Wholesale Trade | B37: 2140 | C37: 10600 | D37: 19360 | E37: 18250 | F37: 17350 | G37: 67700
A38: Retail Trade | B38: 3930 | C38: 36120 | D38: 25930 | E38: 21780 | F38: 160590 | G38: 248360
A39: Trade and Repair of Vehicles | B39: 1330 | C39: 11950 | D39: 7200 | E39: 6240 | F39: 20270 | G39: 46980
A41: Life Sciences | B41: 170 | C41: 940 | D41: 2090 | E41: 2960 | F41: 7780 | G41: 13940
A42: Research | B42: 150 | C42: 630 | D42: 1520 | E42: 1100 | F42: 4670 | G42: 8070
A43: Pharmaceuticals | B43: * | C43: * | D43: * | E43: * | F43: * | G43: 3290
A44: Manufacture of Medical Equipment | B44: * | C44: * | D44: * | E44: * | F44: * | G44: 2580
A46: Transportation and Storage | B46: 2690 | C46: 8860 | D46: 14480 | E46: 16890 | F46: 50580 | G46: 93500
A47: Storage | B47: 1240 | C47: 2650 | D47: 4740 | E47: 6250 | F47: 27910 | G47: 42770
A48: Transportation | B48: 1450 | C48: 6210 | D48: 9750 | E48: 10640 | F48: 22670 | G48: 50730
A50: Education | B50: 630 | C50: 3660 | D50: 5840 | E50: 8100 | F50: 54140 | G50: 72380
A51: Sustainable Tourism | B51: 1480 | C51: 43510 | D51: 62700 | E51: 36510 | F51: 63680 | G51: 207880
A52: Textiles | B52: 170 | C52: 1130 | D52: 1530 | E52: * | F52: * | G52: 8030
A53: Forest and Timber Technologies | B53: 1090 | C53: 3370 | D53: 2970 | E53: * | F53: * | G53: 15870
A54: Other Services and Accommodation | B54: 3260 | C54: 49130 | D54: 60340 | E54: 53950 | F54: 107700 | G54: 274380
A55: Construction | B55: 8510 | C55: 36050 | D55: 30990 | E55: 26360 | F55: 29590 | G55: 131490
A56: Real Estate | B56: 3110 | C56: 8700 | D56: 6580 | E56: 8040 | F56: 5610 | G56: 32040
A59: Total | B59: 76300 | C59: 324420 | D59: 336180 | E59: 334070 | F59: 868920 | G59: 1939900
A60: Sources: IDBR (2018)
A61: Note: Totals may not equal the sum of the constituent parts due to rounding.
A63: 1. Excludes central and local government.
A64: 2. Sizeband is based on the number of employees that the enterprise employs across Scotland.
A65: 3. On the IDBR, turnover for the majority of registered enterprises is based on VAT returns for a 12 month period. For 2017, these tend to relate to a 12 month period ending in December 2015, or January/February 2016, depending on the reporting pattern of the trader.
A66: * - disclosive

Sheet Turnover by Size&Sector
A1: Turnover of VAT/PAYE registered enterprises1 in Scotland by employee sizeband2 and Sub-Sector
G2: Contents page
A3: Sub-Sector | B3: Turnover (£ million)3
B4: 0 employees | C4: 1-9 employees | D4: 10-49 employees | E4: 50-249 employees | F4: 250+ employees | G4: Total
A5: Food and Drink | B5: 778 | C5: 2896 | D5: 1508 | E5: 3580 | F5: 8347 | G5: 17108
A6: Drink | B6: 8 | C6: 39 | D6: 224 | E6: * | F6: * | G6: 5752
A7: Food | B7: 769 | C7: 2857 | D7: 1284 | E7: * | F7: * | G7: 11355
A9: Engineering and Advanced Manufacturing | B9: 776 | C9: 2009 | D9: 3245 | E9: 6827 | F9: 12926 | G9: 25784
A10: Advanced Manufacturing | B10: 22 | C10: 199 | D10: 734 | E10: 1836 | F10: 2188 | G10: 4979
A11: Transport Equipment | B11: 11 | C11: 52 | D11: 33 | E11: 427 | F11: 2987 | G11: 3510
A12: Engineering Services | B12: 659 | C12: 1398 | D12: 1632 | E12: 3181 | F12: 6798 | G12: 13669
A13: Metal Manufacturing | B13: 66 | C13: 214 | D13: 710 | E13: * | F13: * | G13: 3115
A14: Other Manufacturing | B14: 18 | C14: 146 | D14: 136 | E14: * | F14: * | G14: 512
A16: Energy | B16: 95 | C16: 1262 | D16: 2430 | E16: 3520 | F16: 32614 | G16: 39921
A17: Energy Support | B17: 2 | C17: 81 | D17: 889 | E17: 900 | F17: 2606 | G17: 4479
A18: Mining and Utilities | B18: 93 | C18: 1181 | D18: 1541 | E18: 2620 | F18: 30008 | G18: 35442
A20: Financial and Business Services | B20: N/A | C20: N/A | D20: N/A | E20: N/A | F20: N/A | G20: N/A
A21: Financial Support Activities | B21: N/A | C21: N/A | D21: N/A | E21: N/A | F21: N/A | G21: N/A
A22: Business Support Activities | B22: 525 | C22: 2643 | D22: 2105 | E22: 2668 | F22: 3757 | G22: 11698
A23: Management Consultancy | B23: 877 | C23: 1659 | D23: 1194 | E23: * | F23: * | G23: 4957
A24: Financial Service Activities | B24: N/A | C24: N/A | D24: N/A | E24: N/A | F24: N/A | G24: N/A
A25: Legal and Accounting | B25: 123 | C25: 445 | D25: 551 | E25: * | F25: * | G25: 3131
A26: Insurance and Pensions | B26: N/A | C26: N/A | D26: N/A | E26: N/A | F26: N/A | G26: N/A
A28: Technology, Digital and Media | B28: 566 | C28: 1010 | D28: 1353 | E28: 2315 | F28: 13466 | G28: 18711
A29: Manufacture of Computer, Electronic and Optical Products | B29: 8 | C29: 109 | D29: 173 | E29: * | F29: * | G29: 1912
A30: Digital Industries | B30: 451 | C30: 516 | D30: 667 | E30: * | F30: * | G30: 10958
A31: IT and Telecommunications | B31: 38 | C31: 132 | D31: 233 | E31: * | F31: * | G31: 4402
A32: Publishing and Audio Visual | B32: 70 | C32: 254 | D32: 280 | E32: 296 | F32: 539 | G32: 1439
A34: Chemical Sciences | B34: 4 | C34: 65 | D34: 303 | E34: * | F34: * | G34: 4355
A36: Wholesale and Retail Trade | B36: 1024 | C36: 7770 | D36: 10271 | E36: 11575 | F36: 35565 | G36: 66206
A37: Wholesale Trade | B37: 451 | C37: 2631 | D37: 6271 | E37: 7347 | F37: 6964 | G37: 23664
A38: Retail Trade | B38: 408 | C38: 3812 | D38: 2518 | E38: 2285 | F38: 22420 | G38: 31444
A39: Trade and Repair of Vehicles | B39: 165 | C39: 1327 | D39: 1482 | E39: 1943 | F39: 6181 | G39: 11098
A41: Life Sciences | B41: 14 | C41: 99 | D41: 184 | E41: 507 | F41: 1377 | G41: 2181
A42: Research | B42: 12 | C42: 71 | D42: 148 | E42: 278 | F42: 811 | G42: 1319
A43: Pharmaceuticals | B43: * | C43: * | D43: * | E43: * | F43: * | G43: 625
A44: Manufacture of Medical Equipment | B44: * | C44: * | D44: * | E44: * | F44: * | G44: 237
A46: Transportation and Storage | B46: 214 | C46: 1434 | D46: 1795 | E46: 2404 | F46: 5431 | G46: 11277
A47: Storage | B47: 93 | C47: 630 | D47: 869 | E47: 944 | F47: 2835 | G47: 5371
A48: Transportation | B48: 120 | C48: 804 | D48: 925 | E48: 1460 | F48: 2596 | G48: 5906
A50: Education | B50: 49 | C50: 216 | D50: 277 | E50: 399 | F50: 1801 | G50: 2740
A51: Sustainable Tourism | B51: 102 | C51: 1712 | D51: 2147 | E51: 1537 | F51: 2583 | G51: 8081
A52: Textiles | B52: 9 | C52: 64 | D52: 125 | E52: * | F52: * | G52: 888
A53: Forest and Timber Technologies | B53: 121 | C53: 314 | D53: 384 | E53: * | F53: * | G53: 2577
A54: Other Services and Accommodation | B54: 239 | C54: 2650 | D54: 3051 | E54: 2850 | F54: 9691 | G54: 18482
A55: Construction | B55: 1130 | C55: 4346 | D55: 4142 | E55: 4532 | F55: 5969 | G55: 20119
A56: Real Estate | B56: 354 | C56: 1038 | D56: 685 | E56: 769 | F56: 457 | G56: 3305
A59: Total | B59: 7002 | C59: 31633 | D59: 35749 | E59: 49447 | F59: 137692 | G59: 261523
A60: Sources: IDBR (2018)
A61: Note: Totals may not equal the sum of the constituent parts due to rounding.
A63: 1. Excludes central and local government.
A64: 2. Sizeband is based on the number of employees that the enterprise employs across Scotland.
A65: 3. Turnover for financial and insurance enterprises is not available.
A66: 4. On the IDBR, turnover for the majority of registered enterprises is based on VAT returns for a 12 month period. For 2017, these tend to relate to a 12 month period ending in December 2015, or January/February 2016, depending on the reporting pattern of the trader.
A67: * - disclosive

Sheet Chart Data - Sectors (hidden)
B1: Chart destination name lookup | C1: Chart control
B2: International | C2: 1
B3: Rest of UK
B5: Engineering Chart data
A6: Chart control | C6: 2002 | D6: 2003 | E6: 2004 | F6: 2005 | G6: 2006 | H6: 2007 | I6: 2008 | J6: 2009 | K6: 2010 | L6: 2011 | M6: 2012 | N6: 2013 | O6: 2014 | P6: 2015 | Q6: 2016 | R6: 2017
A7: TRUE | B7: Engineering and Advanced Manufacturing | C7: =IF(AND($A7=TRUE,$C$2=1),(VLOOKUP($B7,'International Exports-Detailed'!$A:$Q,C$6-2000,FALSE)),IF(AND($A7=TRUE,$C$2=2),(VLOOKUP($B7,'Rest of the UK Exports -Detail'!$A:$Q,C$6-2000,FALSE)),"")) -> 3580 | D7: =IF(AND($A7=TRUE,$C$2=1),(VLOOKUP($B7,'International Exports-Detailed'!$A:$Q,D$6-2000,FALSE)),IF(AND($A7=TRUE,$C$2=2),(VLOOKUP($B7,'Rest of the UK Exports -Detail'!$A:$Q,D$6-2000,FALSE)),"")) -> 3405 | E7: =IF(AND($A7=TRUE,$C$2=1),(VLOOKUP($B7,'International Exports-Detailed'!$A:$Q,E$6-2000,FALSE)),IF(AND($A7=TRUE,$C$2=2),(VLOOKUP($B7,'Rest of the UK Exports -Detail'!$A:$Q,E$6-2000,FALSE)),"")) -> 3400 | F7: =IF(AND($A7=TRUE,$C$2=1),(VLOOKUP($B7,'International Exports-Detailed'!$A:$Q,F$6-2000,FALSE)),IF(AND($A7=TRUE,$C$2=2),(VLOOKUP($B7,'Rest of the UK Exports -Detail'!$A:$Q,F$6-2000,FALSE)),"")) -> 3590 | G7: =IF(AND($A7=TRUE,$C$2=1),(VLOOKUP($B7,'International Exports-Detailed'!$A:$Q,G$6-2000,FALSE)),IF(AND($A7=TRUE,$C$2=2),(VLOOKUP($B7,'Rest of the UK Exports -Detail'!$A:$Q,G$6-2000,FALSE)),"")) -> 3780 | H7: =IF(AND($A7=TRUE,$C$2=1),(VLOOKUP($B7,'International Exports-Detailed'!$A:$Q,H$6-2000,FALSE)),IF(AND($A7=TRUE,$C$2=2),(VLOOKUP($B7,'Rest of the UK Exports -Detail'!$A:$Q,H$6-2000,FALSE)),"")) -> 4385 | I7: =IF(AND($A7=TRUE,$C$2=1),(VLOOKUP($B7,'International Exports-Detailed'!$A:$Q,I$6-2000,FALSE)),IF(AND($A7=TRUE,$C$2=2),(VLOOKUP($B7,'Rest of the UK Exports -Detail'!$A:$Q,I$6-2000,FALSE)),"")) -> 4760 | J7: =IF(AND($A7=TRUE,$C$2=1),(VLOOKUP($B7,'International Exports-Detailed'!$A:$Q,J$6-2000,FALSE)),IF(AND($A7=TRUE,$C$2=2),(VLOOKUP($B7,'Rest of the UK Exports -Detail'!$A:$Q,J$6-2000,FALSE)),"")) -> 4750 | K7: =IF(AND($A7=TRUE,$C$2=1),(VLOOKUP($B7,'International Exports-Detailed'!$A:$Q,K$6-2000,FALSE)),IF(AND($A7=TRUE,$C$2=2),(VLOOKUP($B7,'Rest of the UK Exports -Detail'!$A:$Q,K$6-2000,FALSE)),"")) -> 4755 | L7: =IF(AND($A7=TRUE,$C$2=1),(VLOOKUP($B7,'International Exports-Detailed'!$A:$Q,L$6-2000,FALSE)),IF(AND($A7=TRUE,$C$2=2),(VLOOKUP($B7,'Rest of the UK Exports -Detail'!$A:$Q,L$6-2000,FALSE)),"")) -> 4785 | M7: =IF(AND($A7=TRUE,$C$2=1),(VLOOKUP($B7,'International Exports-Detailed'!$A:$Q,M$6-2000,FALSE)),IF(AND($A7=TRUE,$C$2=2),(VLOOKUP($B7,'Rest of the UK Exports -Detail'!$A:$Q,M$6-2000,FALSE)),"")) -> 5525 | N7: =IF(AND($A7=TRUE,$C$2=1),(VLOOKUP($B7,'International Exports-Detailed'!$A:$Q,N$6-2000,FALSE)),IF(AND($A7=TRUE,$C$2=2),(VLOOKUP($B7,'Rest of the UK Exports -Detail'!$A:$Q,N$6-2000,FALSE)),"")) -> 6155 | O7: =IF(AND($A7=TRUE,$C$2=1),(VLOOKUP($B7,'International Exports-Detailed'!$A:$Q,O$6-2000,FALSE)),IF(AND($A7=TRUE,$C$2=2),(VLOOKUP($B7,'Rest of the UK Exports -Detail'!$A:$Q,O$6-2000,FALSE)),"")) -> 6260 | P7: =IF(AND($A7=TRUE,$C$2=1),(VLOOKUP($B7,'International Exports-Detailed'!$A:$Q,P$6-2000,FALSE)),IF(AND($A7=TRUE,$C$2=2),(VLOOKUP($B7,'Rest of the UK Exports -Detail'!$A:$Q,P$6-2000,FALSE)),"")) -> 5985 | Q7: =IF(AND($A7=TRUE,$C$2=1),(VLOOKUP($B7,'International Exports-Detailed'!$A:$Q,Q$6-2000,FALSE)),IF(AND($A7=TRUE,$C$2=2),(VLOOKUP($B7,'Rest of the UK Exports -Detail'!$A:$Q,Q$6-2000,FALSE)),"")) -> 6115 | R7: =IF(AND($A7=TRUE,$C$2=1),(VLOOKUP($B7,'International Exports-Detailed'!$A:$Q,R$6-2000,FALSE)),IF(AND($A7=TRUE,$C$2=2),(VLOOKUP($B7,'Rest of the UK Exports -Detail'!$A:$Q,R$6-2000,FALSE)),"")) -> 5700
A8: TRUE | B8: Engineering Services | C8: =IF(AND($A8=TRUE,$C$2=1),(VLOOKUP($B8,'International Exports-Detailed'!$A:$Q,C$6-2000,FALSE)),IF(AND($A8=TRUE,$C$2=2),(VLOOKUP($B8,'Rest of the UK Exports -Detail'!$A:$Q,C$6-2000,FALSE)),"")) -> 705 | D8: =IF(AND($A8=TRUE,$C$2=1),(VLOOKUP($B8,'International Exports-Detailed'!$A:$Q,D$6-2000,FALSE)),IF(AND($A8=TRUE,$C$2=2),(VLOOKUP($B8,'Rest of the UK Exports -Detail'!$A:$Q,D$6-2000,FALSE)),"")) -> 500 | E8: =IF(AND($A8=TRUE,$C$2=1),(VLOOKUP($B8,'International Exports-Detailed'!$A:$Q,E$6-2000,FALSE)),IF(AND($A8=TRUE,$C$2=2),(VLOOKUP($B8,'Rest of the UK Exports -Detail'!$A:$Q,E$6-2000,FALSE)),"")) -> 450 | F8: =IF(AND($A8=TRUE,$C$2=1),(VLOOKUP($B8,'International Exports-Detailed'!$A:$Q,F$6-2000,FALSE)),IF(AND($A8=TRUE,$C$2=2),(VLOOKUP($B8,'Rest of the UK Exports -Detail'!$A:$Q,F$6-2000,FALSE)),"")) -> 590 | G8: =IF(AND($A8=TRUE,$C$2=1),(VLOOKUP($B8,'International Exports-Detailed'!$A:$Q,G$6-2000,FALSE)),IF(AND($A8=TRUE,$C$2=2),(VLOOKUP($B8,'Rest of the UK Exports -Detail'!$A:$Q,G$6-2000,FALSE)),"")) -> 620 | H8: =IF(AND($A8=TRUE,$C$2=1),(VLOOKUP($B8,'International Exports-Detailed'!$A:$Q,H$6-2000,FALSE)),IF(AND($A8=TRUE,$C$2=2),(VLOOKUP($B8,'Rest of the UK Exports -Detail'!$A:$Q,H$6-2000,FALSE)),"")) -> 1015 | I8: =IF(AND($A8=TRUE,$C$2=1),(VLOOKUP($B8,'International Exports-Detailed'!$A:$Q,I$6-2000,FALSE)),IF(AND($A8=TRUE,$C$2=2),(VLOOKUP($B8,'Rest of the UK Exports -Detail'!$A:$Q,I$6-2000,FALSE)),"")) -> 1225 | J8: =IF(AND($A8=TRUE,$C$2=1),(VLOOKUP($B8,'International Exports-Detailed'!$A:$Q,J$6-2000,FALSE)),IF(AND($A8=TRUE,$C$2=2),(VLOOKUP($B8,'Rest of the UK Exports -Detail'!$A:$Q,J$6-2000,FALSE)),"")) -> 1205 | K8: =IF(AND($A8=TRUE,$C$2=1),(VLOOKUP($B8,'International Exports-Detailed'!$A:$Q,K$6-2000,FALSE)),IF(AND($A8=TRUE,$C$2=2),(VLOOKUP($B8,'Rest of the UK Exports -Detail'!$A:$Q,K$6-2000,FALSE)),"")) -> 1190 | L8: =IF(AND($A8=TRUE,$C$2=1),(VLOOKUP($B8,'International Exports-Detailed'!$A:$Q,L$6-2000,FALSE)),IF(AND($A8=TRUE,$C$2=2),(VLOOKUP($B8,'Rest of the UK Exports -Detail'!$A:$Q,L$6-2000,FALSE)),"")) -> 1215 | M8: =IF(AND($A8=TRUE,$C$2=1),(VLOOKUP($B8,'International Exports-Detailed'!$A:$Q,M$6-2000,FALSE)),IF(AND($A8=TRUE,$C$2=2),(VLOOKUP($B8,'Rest of the UK Exports -Detail'!$A:$Q,M$6-2000,FALSE)),"")) -> 1575 | N8: =IF(AND($A8=TRUE,$C$2=1),(VLOOKUP($B8,'International Exports-Detailed'!$A:$Q,N$6-2000,FALSE)),IF(AND($A8=TRUE,$C$2=2),(VLOOKUP($B8,'Rest of the UK Exports -Detail'!$A:$Q,N$6-2000,FALSE)),"")) -> 1825 | O8: =IF(AND($A8=TRUE,$C$2=1),(VLOOKUP($B8,'International Exports-Detailed'!$A:$Q,O$6-2000,FALSE)),IF(AND($A8=TRUE,$C$2=2),(VLOOKUP($B8,'Rest of the UK Exports -Detail'!$A:$Q,O$6-2000,FALSE)),"")) -> 1850 | P8: =IF(AND($A8=TRUE,$C$2=1),(VLOOKUP($B8,'International Exports-Detailed'!$A:$Q,P$6-2000,FALSE)),IF(AND($A8=TRUE,$C$2=2),(VLOOKUP($B8,'Rest of the UK Exports -Detail'!$A:$Q,P$6-2000,FALSE)),"")) -> 1680 | Q8: =IF(AND($A8=TRUE,$C$2=1),(VLOOKUP($B8,'International Exports-Detailed'!$A:$Q,Q$6-2000,FALSE)),IF(AND($A8=TRUE,$C$2=2),(VLOOKUP($B8,'Rest of the UK Exports -Detail'!$A:$Q,Q$6-2000,FALSE)),"")) -> 1680 | R8: =IF(AND($A8=TRUE,$C$2=1),(VLOOKUP($B8,'International Exports-Detailed'!$A:$Q,R$6-2000,FALSE)),IF(AND($A8=TRUE,$C$2=2),(VLOOKUP($B8,'Rest of the UK Exports -Detail'!$A:$Q,R$6-2000,FALSE)),"")) -> 1405
A9: TRUE | B9: Advanced Manufacturing | C9: =IF(AND($A9=TRUE,$C$2=1),(VLOOKUP($B9,'International Exports-Detailed'!$A:$Q,C$6-2000,FALSE)),IF(AND($A9=TRUE,$C$2=2),(VLOOKUP($B9,'Rest of the UK Exports -Detail'!$A:$Q,C$6-2000,FALSE)),"")) -> 1720 | D9: =IF(AND($A9=TRUE,$C$2=1),(VLOOKUP($B9,'International Exports-Detailed'!$A:$Q,D$6-2000,FALSE)),IF(AND($A9=TRUE,$C$2=2),(VLOOKUP($B9,'Rest of the UK Exports -Detail'!$A:$Q,D$6-2000,FALSE)),"")) -> 1735 | E9: =IF(AND($A9=TRUE,$C$2=1),(VLOOKUP($B9,'International Exports-Detailed'!$A:$Q,E$6-2000,FALSE)),IF(AND($A9=TRUE,$C$2=2),(VLOOKUP($B9,'Rest of the UK Exports -Detail'!$A:$Q,E$6-2000,FALSE)),"")) -> 1740 | F9: =IF(AND($A9=TRUE,$C$2=1),(VLOOKUP($B9,'International Exports-Detailed'!$A:$Q,F$6-2000,FALSE)),IF(AND($A9=TRUE,$C$2=2),(VLOOKUP($B9,'Rest of the UK Exports -Detail'!$A:$Q,F$6-2000,FALSE)),"")) -> 1720 | G9: =IF(AND($A9=TRUE,$C$2=1),(VLOOKUP($B9,'International Exports-Detailed'!$A:$Q,G$6-2000,FALSE)),IF(AND($A9=TRUE,$C$2=2),(VLOOKUP($B9,'Rest of the UK Exports -Detail'!$A:$Q,G$6-2000,FALSE)),"")) -> 1730 | H9: =IF(AND($A9=TRUE,$C$2=1),(VLOOKUP($B9,'International Exports-Detailed'!$A:$Q,H$6-2000,FALSE)),IF(AND($A9=TRUE,$C$2=2),(VLOOKUP($B9,'Rest of the UK Exports -Detail'!$A:$Q,H$6-2000,FALSE)),"")) -> 1810 | I9: =IF(AND($A9=TRUE,$C$2=1),(VLOOKUP($B9,'International Exports-Detailed'!$A:$Q,I$6-2000,FALSE)),IF(AND($A9=TRUE,$C$2=2),(VLOOKUP($B9,'Rest of the UK Exports -Detail'!$A:$Q,I$6-2000,FALSE)),"")) -> 1940 | J9: =IF(AND($A9=TRUE,$C$2=1),(VLOOKUP($B9,'International Exports-Detailed'!$A:$Q,J$6-2000,FALSE)),IF(AND($A9=TRUE,$C$2=2),(VLOOKUP($B9,'Rest of the UK Exports -Detail'!$A:$Q,J$6-2000,FALSE)),"")) -> 2020 | K9: =IF(AND($A9=TRUE,$C$2=1),(VLOOKUP($B9,'International Exports-Detailed'!$A:$Q,K$6-2000,FALSE)),IF(AND($A9=TRUE,$C$2=2),(VLOOKUP($B9,'Rest of the UK Exports -Detail'!$A:$Q,K$6-2000,FALSE)),"")) -> 1975 | L9: =IF(AND($A9=TRUE,$C$2=1),(VLOOKUP($B9,'International Exports-Detailed'!$A:$Q,L$6-2000,FALSE)),IF(AND($A9=TRUE,$C$2=2),(VLOOKUP($B9,'Rest of the UK Exports -Detail'!$A:$Q,L$6-2000,FALSE)),"")) -> 2160 | M9: =IF(AND($A9=TRUE,$C$2=1),(VLOOKUP($B9,'International Exports-Detailed'!$A:$Q,M$6-2000,FALSE)),IF(AND($A9=TRUE,$C$2=2),(VLOOKUP($B9,'Rest of the UK Exports -Detail'!$A:$Q,M$6-2000,FALSE)),"")) -> 2385 | N9: =IF(AND($A9=TRUE,$C$2=1),(VLOOKUP($B9,'International Exports-Detailed'!$A:$Q,N$6-2000,FALSE)),IF(AND($A9=TRUE,$C$2=2),(VLOOKUP($B9,'Rest of the UK Exports -Detail'!$A:$Q,N$6-2000,FALSE)),"")) -> 2580 | O9: =IF(AND($A9=TRUE,$C$2=1),(VLOOKUP($B9,'International Exports-Detailed'!$A:$Q,O$6-2000,FALSE)),IF(AND($A9=TRUE,$C$2=2),(VLOOKUP($B9,'Rest of the UK Exports -Detail'!$A:$Q,O$6-2000,FALSE)),"")) -> 2680 | P9: =IF(AND($A9=TRUE,$C$2=1),(VLOOKUP($B9,'International Exports-Detailed'!$A:$Q,P$6-2000,FALSE)),IF(AND($A9=TRUE,$C$2=2),(VLOOKUP($B9,'Rest of the UK Exports -Detail'!$A:$Q,P$6-2000,FALSE)),"")) -> 2465 | Q9: =IF(AND($A9=TRUE,$C$2=1),(VLOOKUP($B9,'International Exports-Detailed'!$A:$Q,Q$6-2000,FALSE)),IF(AND($A9=TRUE,$C$2=2),(VLOOKUP($B9,'Rest of the UK Exports -Detail'!$A:$Q,Q$6-2000,FALSE)),"")) -> 2440 | R9: =IF(AND($A9=TRUE,$C$2=1),(VLOOKUP($B9,'International Exports-Detailed'!$A:$Q,R$6-2000,FALSE)),IF(AND($A9=TRUE,$C$2=2),(VLOOKUP($B9,'Rest of the UK Exports -Detail'!$A:$Q,R$6-2000,FALSE)),"")) -> 2205
A10: TRUE | B10: Transport Equipment | C10: =IF(AND($A10=TRUE,$C$2=1),(VLOOKUP($B10,'International Exports-Detailed'!$A:$Q,C$6-2000,FALSE)),IF(AND($A10=TRUE,$C$2=2),(VLOOKUP($B10,'Rest of the UK Exports -Detail'!$A:$Q,C$6-2000,FALSE)),"")) -> 700 | D10: =IF(AND($A10=TRUE,$C$2=1),(VLOOKUP($B10,'International Exports-Detailed'!$A:$Q,D$6-2000,FALSE)),IF(AND($A10=TRUE,$C$2=2),(VLOOKUP($B10,'Rest of the UK Exports -Detail'!$A:$Q,D$6-2000,FALSE)),"")) -> 765 | E10: =IF(AND($A10=TRUE,$C$2=1),(VLOOKUP($B10,'International Exports-Detailed'!$A:$Q,E$6-2000,FALSE)),IF(AND($A10=TRUE,$C$2=2),(VLOOKUP($B10,'Rest of the UK Exports -Detail'!$A:$Q,E$6-2000,FALSE)),"")) -> 800 | F10: =IF(AND($A10=TRUE,$C$2=1),(VLOOKUP($B10,'International Exports-Detailed'!$A:$Q,F$6-2000,FALSE)),IF(AND($A10=TRUE,$C$2=2),(VLOOKUP($B10,'Rest of the UK Exports -Detail'!$A:$Q,F$6-2000,FALSE)),"")) -> 835 | G10: =IF(AND($A10=TRUE,$C$2=1),(VLOOKUP($B10,'International Exports-Detailed'!$A:$Q,G$6-2000,FALSE)),IF(AND($A10=TRUE,$C$2=2),(VLOOKUP($B10,'Rest of the UK Exports -Detail'!$A:$Q,G$6-2000,FALSE)),"")) -> 940 | H10: =IF(AND($A10=TRUE,$C$2=1),(VLOOKUP($B10,'International Exports-Detailed'!$A:$Q,H$6-2000,FALSE)),IF(AND($A10=TRUE,$C$2=2),(VLOOKUP($B10,'Rest of the UK Exports -Detail'!$A:$Q,H$6-2000,FALSE)),"")) -> 1010 | I10: =IF(AND($A10=TRUE,$C$2=1),(VLOOKUP($B10,'International Exports-Detailed'!$A:$Q,I$6-2000,FALSE)),IF(AND($A10=TRUE,$C$2=2),(VLOOKUP($B10,'Rest of the UK Exports -Detail'!$A:$Q,I$6-2000,FALSE)),"")) -> 985 | J10: =IF(AND($A10=TRUE,$C$2=1),(VLOOKUP($B10,'International Exports-Detailed'!$A:$Q,J$6-2000,FALSE)),IF(AND($A10=TRUE,$C$2=2),(VLOOKUP($B10,'Rest of the UK Exports -Detail'!$A:$Q,J$6-2000,FALSE)),"")) -> 950 | K10: =IF(AND($A10=TRUE,$C$2=1),(VLOOKUP($B10,'International Exports-Detailed'!$A:$Q,K$6-2000,FALSE)),IF(AND($A10=TRUE,$C$2=2),(VLOOKUP($B10,'Rest of the UK Exports -Detail'!$A:$Q,K$6-2000,FALSE)),"")) -> 1065 | L10: =IF(AND($A10=TRUE,$C$2=1),(VLOOKUP($B10,'International Exports-Detailed'!$A:$Q,L$6-2000,FALSE)),IF(AND($A10=TRUE,$C$2=2),(VLOOKUP($B10,'Rest of the UK Exports -Detail'!$A:$Q,L$6-2000,FALSE)),"")) -> 930 | M10: =IF(AND($A10=TRUE,$C$2=1),(VLOOKUP($B10,'International Exports-Detailed'!$A:$Q,M$6-2000,FALSE)),IF(AND($A10=TRUE,$C$2=2),(VLOOKUP($B10,'Rest of the UK Exports -Detail'!$A:$Q,M$6-2000,FALSE)),"")) -> 1025 | N10: =IF(AND($A10=TRUE,$C$2=1),(VLOOKUP($B10,'International Exports-Detailed'!$A:$Q,N$6-2000,FALSE)),IF(AND($A10=TRUE,$C$2=2),(VLOOKUP($B10,'Rest of the UK Exports -Detail'!$A:$Q,N$6-2000,FALSE)),"")) -> 1250 | O10: =IF(AND($A10=TRUE,$C$2=1),(VLOOKUP($B10,'International Exports-Detailed'!$A:$Q,O$6-2000,FALSE)),IF(AND($A10=TRUE,$C$2=2),(VLOOKUP($B10,'Rest of the UK Exports -Detail'!$A:$Q,O$6-2000,FALSE)),"")) -> 1190 | P10: =IF(AND($A10=TRUE,$C$2=1),(VLOOKUP($B10,'International Exports-Detailed'!$A:$Q,P$6-2000,FALSE)),IF(AND($A10=TRUE,$C$2=2),(VLOOKUP($B10,'Rest of the UK Exports -Detail'!$A:$Q,P$6-2000,FALSE)),"")) -> 1160 | Q10: =IF(AND($A10=TRUE,$C$2=1),(VLOOKUP($B10,'International Exports-Detailed'!$A:$Q,Q$6-2000,FALSE)),IF(AND($A10=TRUE,$C$2=2),(VLOOKUP($B10,'Rest of the UK Exports -Detail'!$A:$Q,Q$6-2000,FALSE)),"")) -> 1350 | R10: =IF(AND($A10=TRUE,$C$2=1),(VLOOKUP($B10,'International Exports-Detailed'!$A:$Q,R$6-2000,FALSE)),IF(AND($A10=TRUE,$C$2=2),(VLOOKUP($B10,'Rest of the UK Exports -Detail'!$A:$Q,R$6-2000,FALSE)),"")) -> 1490
A11: TRUE | B11: Metal Manufacturing | C11: =IF(AND($A11=TRUE,$C$2=1),(VLOOKUP($B11,'International Exports-Detailed'!$A:$Q,C$6-2000,FALSE)),IF(AND($A11=TRUE,$C$2=2),(VLOOKUP($B11,'Rest of the UK Exports -Detail'!$A:$Q,C$6-2000,FALSE)),"")) -> 400 | D11: =IF(AND($A11=TRUE,$C$2=1),(VLOOKUP($B11,'International Exports-Detailed'!$A:$Q,D$6-2000,FALSE)),IF(AND($A11=TRUE,$C$2=2),(VLOOKUP($B11,'Rest of the UK Exports -Detail'!$A:$Q,D$6-2000,FALSE)),"")) -> 360 | E11: =IF(AND($A11=TRUE,$C$2=1),(VLOOKUP($B11,'International Exports-Detailed'!$A:$Q,E$6-2000,FALSE)),IF(AND($A11=TRUE,$C$2=2),(VLOOKUP($B11,'Rest of the UK Exports -Detail'!$A:$Q,E$6-2000,FALSE)),"")) -> 375 | F11: =IF(AND($A11=TRUE,$C$2=1),(VLOOKUP($B11,'International Exports-Detailed'!$A:$Q,F$6-2000,FALSE)),IF(AND($A11=TRUE,$C$2=2),(VLOOKUP($B11,'Rest of the UK Exports -Detail'!$A:$Q,F$6-2000,FALSE)),"")) -> 400 | G11: =IF(AND($A11=TRUE,$C$2=1),(VLOOKUP($B11,'International Exports-Detailed'!$A:$Q,G$6-2000,FALSE)),IF(AND($A11=TRUE,$C$2=2),(VLOOKUP($B11,'Rest of the UK Exports -Detail'!$A:$Q,G$6-2000,FALSE)),"")) -> 450 | H11: =IF(AND($A11=TRUE,$C$2=1),(VLOOKUP($B11,'International Exports-Detailed'!$A:$Q,H$6-2000,FALSE)),IF(AND($A11=TRUE,$C$2=2),(VLOOKUP($B11,'Rest of the UK Exports -Detail'!$A:$Q,H$6-2000,FALSE)),"")) -> 515 | I11: =IF(AND($A11=TRUE,$C$2=1),(VLOOKUP($B11,'International Exports-Detailed'!$A:$Q,I$6-2000,FALSE)),IF(AND($A11=TRUE,$C$2=2),(VLOOKUP($B11,'Rest of the UK Exports -Detail'!$A:$Q,I$6-2000,FALSE)),"")) -> 570 | J11: =IF(AND($A11=TRUE,$C$2=1),(VLOOKUP($B11,'International Exports-Detailed'!$A:$Q,J$6-2000,FALSE)),IF(AND($A11=TRUE,$C$2=2),(VLOOKUP($B11,'Rest of the UK Exports -Detail'!$A:$Q,J$6-2000,FALSE)),"")) -> 540 | K11: =IF(AND($A11=TRUE,$C$2=1),(VLOOKUP($B11,'International Exports-Detailed'!$A:$Q,K$6-2000,FALSE)),IF(AND($A11=TRUE,$C$2=2),(VLOOKUP($B11,'Rest of the UK Exports -Detail'!$A:$Q,K$6-2000,FALSE)),"")) -> 485 | L11: =IF(AND($A11=TRUE,$C$2=1),(VLOOKUP($B11,'International Exports-Detailed'!$A:$Q,L$6-2000,FALSE)),IF(AND($A11=TRUE,$C$2=2),(VLOOKUP($B11,'Rest of the UK Exports -Detail'!$A:$Q,L$6-2000,FALSE)),"")) -> 440 | M11: =IF(AND($A11=TRUE,$C$2=1),(VLOOKUP($B11,'International Exports-Detailed'!$A:$Q,M$6-2000,FALSE)),IF(AND($A11=TRUE,$C$2=2),(VLOOKUP($B11,'Rest of the UK Exports -Detail'!$A:$Q,M$6-2000,FALSE)),"")) -> 450 | N11: =IF(AND($A11=TRUE,$C$2=1),(VLOOKUP($B11,'International Exports-Detailed'!$A:$Q,N$6-2000,FALSE)),IF(AND($A11=TRUE,$C$2=2),(VLOOKUP($B11,'Rest of the UK Exports -Detail'!$A:$Q,N$6-2000,FALSE)),"")) -> 460 | O11: =IF(AND($A11=TRUE,$C$2=1),(VLOOKUP($B11,'International Exports-Detailed'!$A:$Q,O$6-2000,FALSE)),IF(AND($A11=TRUE,$C$2=2),(VLOOKUP($B11,'Rest of the UK Exports -Detail'!$A:$Q,O$6-2000,FALSE)),"")) -> 495 | P11: =IF(AND($A11=TRUE,$C$2=1),(VLOOKUP($B11,'International Exports-Detailed'!$A:$Q,P$6-2000,FALSE)),IF(AND($A11=TRUE,$C$2=2),(VLOOKUP($B11,'Rest of the UK Exports -Detail'!$A:$Q,P$6-2000,FALSE)),"")) -> 625 | Q11: =IF(AND($A11=TRUE,$C$2=1),(VLOOKUP($B11,'International Exports-Detailed'!$A:$Q,Q$6-2000,FALSE)),IF(AND($A11=TRUE,$C$2=2),(VLOOKUP($B11,'Rest of the UK Exports -Detail'!$A:$Q,Q$6-2000,FALSE)),"")) -> 580 | R11: =IF(AND($A11=TRUE,$C$2=1),(VLOOKUP($B11,'International Exports-Detailed'!$A:$Q,R$6-2000,FALSE)),IF(AND($A11=TRUE,$C$2=2),(VLOOKUP($B11,'Rest of the UK Exports -Detail'!$A:$Q,R$6-2000,FALSE)),"")) -> 530
A12: TRUE | B12: Other Manufacturing | C12: =IF(AND($A12=TRUE,$C$2=1),(VLOOKUP($B12,'International Exports-Detailed'!$A:$Q,C$6-2000,FALSE)),IF(AND($A12=TRUE,$C$2=2),(VLOOKUP($B12,'Rest of the UK Exports -Detail'!$A:$Q,C$6-2000,FALSE)),"")) -> 60 | D12: =IF(AND($A12=TRUE,$C$2=1),(VLOOKUP($B12,'International Exports-Detailed'!$A:$Q,D$6-2000,FALSE)),IF(AND($A12=TRUE,$C$2=2),(VLOOKUP($B12,'Rest of the UK Exports -Detail'!$A:$Q,D$6-2000,FALSE)),"")) -> 45 | E12: =IF(AND($A12=TRUE,$C$2=1),(VLOOKUP($B12,'International Exports-Detailed'!$A:$Q,E$6-2000,FALSE)),IF(AND($A12=TRUE,$C$2=2),(VLOOKUP($B12,'Rest of the UK Exports -Detail'!$A:$Q,E$6-2000,FALSE)),"")) -> 35 | F12: =IF(AND($A12=TRUE,$C$2=1),(VLOOKUP($B12,'International Exports-Detailed'!$A:$Q,F$6-2000,FALSE)),IF(AND($A12=TRUE,$C$2=2),(VLOOKUP($B12,'Rest of the UK Exports -Detail'!$A:$Q,F$6-2000,FALSE)),"")) -> 50 | G12: =IF(AND($A12=TRUE,$C$2=1),(VLOOKUP($B12,'International Exports-Detailed'!$A:$Q,G$6-2000,FALSE)),IF(AND($A12=TRUE,$C$2=2),(VLOOKUP($B12,'Rest of the UK Exports -Detail'!$A:$Q,G$6-2000,FALSE)),"")) -> 40 | H12: =IF(AND($A12=TRUE,$C$2=1),(VLOOKUP($B12,'International Exports-Detailed'!$A:$Q,H$6-2000,FALSE)),IF(AND($A12=TRUE,$C$2=2),(VLOOKUP($B12,'Rest of the UK Exports -Detail'!$A:$Q,H$6-2000,FALSE)),"")) -> 30 | I12: =IF(AND($A12=TRUE,$C$2=1),(VLOOKUP($B12,'International Exports-Detailed'!$A:$Q,I$6-2000,FALSE)),IF(AND($A12=TRUE,$C$2=2),(VLOOKUP($B12,'Rest of the UK Exports -Detail'!$A:$Q,I$6-2000,FALSE)),"")) -> 35 | J12: =IF(AND($A12=TRUE,$C$2=1),(VLOOKUP($B12,'International Exports-Detailed'!$A:$Q,J$6-2000,FALSE)),IF(AND($A12=TRUE,$C$2=2),(VLOOKUP($B12,'Rest of the UK Exports -Detail'!$A:$Q,J$6-2000,FALSE)),"")) -> 35 | K12: =IF(AND($A12=TRUE,$C$2=1),(VLOOKUP($B12,'International Exports-Detailed'!$A:$Q,K$6-2000,FALSE)),IF(AND($A12=TRUE,$C$2=2),(VLOOKUP($B12,'Rest of the UK Exports -Detail'!$A:$Q,K$6-2000,FALSE)),"")) -> 35 | L12: =IF(AND($A12=TRUE,$C$2=1),(VLOOKUP($B12,'International Exports-Detailed'!$A:$Q,L$6-2000,FALSE)),IF(AND($A12=TRUE,$C$2=2),(VLOOKUP($B12,'Rest of the UK Exports -Detail'!$A:$Q,L$6-2000,FALSE)),"")) -> 40 | M12: =IF(AND($A12=TRUE,$C$2=1),(VLOOKUP($B12,'International Exports-Detailed'!$A:$Q,M$6-2000,FALSE)),IF(AND($A12=TRUE,$C$2=2),(VLOOKUP($B12,'Rest of the UK Exports -Detail'!$A:$Q,M$6-2000,FALSE)),"")) -> 90 | N12: =IF(AND($A12=TRUE,$C$2=1),(VLOOKUP($B12,'International Exports-Detailed'!$A:$Q,N$6-2000,FALSE)),IF(AND($A12=TRUE,$C$2=2),(VLOOKUP($B12,'Rest of the UK Exports -Detail'!$A:$Q,N$6-2000,FALSE)),"")) -> 45 | O12: =IF(AND($A12=TRUE,$C$2=1),(VLOOKUP($B12,'International Exports-Detailed'!$A:$Q,O$6-2000,FALSE)),IF(AND($A12=TRUE,$C$2=2),(VLOOKUP($B12,'Rest of the UK Exports -Detail'!$A:$Q,O$6-2000,FALSE)),"")) -> 45 | P12: =IF(AND($A12=TRUE,$C$2=1),(VLOOKUP($B12,'International Exports-Detailed'!$A:$Q,P$6-2000,FALSE)),IF(AND($A12=TRUE,$C$2=2),(VLOOKUP($B12,'Rest of the UK Exports -Detail'!$A:$Q,P$6-2000,FALSE)),"")) -> 60 | Q12: =IF(AND($A12=TRUE,$C$2=1),(VLOOKUP($B12,'International Exports-Detailed'!$A:$Q,Q$6-2000,FALSE)),IF(AND($A12=TRUE,$C$2=2),(VLOOKUP($B12,'Rest of the UK Exports -Detail'!$A:$Q,Q$6-2000,FALSE)),"")) -> 70 | R12: =IF(AND($A12=TRUE,$C$2=1),(VLOOKUP($B12,'International Exports-Detailed'!$A:$Q,R$6-2000,FALSE)),IF(AND($A12=TRUE,$C$2=2),(VLOOKUP($B12,'Rest of the UK Exports -Detail'!$A:$Q,R$6-2000,FALSE)),"")) -> 70
B15: Food and Drink Chart
A16: Chart control | C16: 2002 | D16: 2003 | E16: 2004 | F16: 2005 | G16: 2006 | H16: 2007 | I16: 2008 | J16: 2009 | K16: 2010 | L16: 2011 | M16: 2012 | N16: 2013 | O16: 2014 | P16: 2015 | Q16: 2016 | R16: 2017
A17: TRUE | B17: Food and Drink | C17: =IF(AND($A17=TRUE,$C$2=1),(VLOOKUP($B17,'International Exports-Detailed'!$A:$Q,C$6-2000,FALSE)),IF(AND($A17=TRUE,$C$2=2),(VLOOKUP($B17,'Rest of the UK Exports -Detail'!$A:$Q,C$6-2000,FALSE)),"")) -> 3095 | D17: =IF(AND($A17=TRUE,$C$2=1),(VLOOKUP($B17,'International Exports-Detailed'!$A:$Q,D$6-2000,FALSE)),IF(AND($A17=TRUE,$C$2=2),(VLOOKUP($B17,'Rest of the UK Exports -Detail'!$A:$Q,D$6-2000,FALSE)),"")) -> 3205 | E17: =IF(AND($A17=TRUE,$C$2=1),(VLOOKUP($B17,'International Exports-Detailed'!$A:$Q,E$6-2000,FALSE)),IF(AND($A17=TRUE,$C$2=2),(VLOOKUP($B17,'Rest of the UK Exports -Detail'!$A:$Q,E$6-2000,FALSE)),"")) -> 3140 | F17: =IF(AND($A17=TRUE,$C$2=1),(VLOOKUP($B17,'International Exports-Detailed'!$A:$Q,F$6-2000,FALSE)),IF(AND($A17=TRUE,$C$2=2),(VLOOKUP($B17,'Rest of the UK Exports -Detail'!$A:$Q,F$6-2000,FALSE)),"")) -> 3270 | G17: =IF(AND($A17=TRUE,$C$2=1),(VLOOKUP($B17,'International Exports-Detailed'!$A:$Q,G$6-2000,FALSE)),IF(AND($A17=TRUE,$C$2=2),(VLOOKUP($B17,'Rest of the UK Exports -Detail'!$A:$Q,G$6-2000,FALSE)),"")) -> 3305 | H17: =IF(AND($A17=TRUE,$C$2=1),(VLOOKUP($B17,'International Exports-Detailed'!$A:$Q,H$6-2000,FALSE)),IF(AND($A17=TRUE,$C$2=2),(VLOOKUP($B17,'Rest of the UK Exports -Detail'!$A:$Q,H$6-2000,FALSE)),"")) -> 3695 | I17: =IF(AND($A17=TRUE,$C$2=1),(VLOOKUP($B17,'International Exports-Detailed'!$A:$Q,I$6-2000,FALSE)),IF(AND($A17=TRUE,$C$2=2),(VLOOKUP($B17,'Rest of the UK Exports -Detail'!$A:$Q,I$6-2000,FALSE)),"")) -> 3995 | J17: =IF(AND($A17=TRUE,$C$2=1),(VLOOKUP($B17,'International Exports-Detailed'!$A:$Q,J$6-2000,FALSE)),IF(AND($A17=TRUE,$C$2=2),(VLOOKUP($B17,'Rest of the UK Exports -Detail'!$A:$Q,J$6-2000,FALSE)),"")) -> 4230 | K17: =IF(AND($A17=TRUE,$C$2=1),(VLOOKUP($B17,'International Exports-Detailed'!$A:$Q,K$6-2000,FALSE)),IF(AND($A17=TRUE,$C$2=2),(VLOOKUP($B17,'Rest of the UK Exports -Detail'!$A:$Q,K$6-2000,FALSE)),"")) -> 4680 | L17: =IF(AND($A17=TRUE,$C$2=1),(VLOOKUP($B17,'International Exports-Detailed'!$A:$Q,L$6-2000,FALSE)),IF(AND($A17=TRUE,$C$2=2),(VLOOKUP($B17,'Rest of the UK Exports -Detail'!$A:$Q,L$6-2000,FALSE)),"")) -> 5640 | M17: =IF(AND($A17=TRUE,$C$2=1),(VLOOKUP($B17,'International Exports-Detailed'!$A:$Q,M$6-2000,FALSE)),IF(AND($A17=TRUE,$C$2=2),(VLOOKUP($B17,'Rest of the UK Exports -Detail'!$A:$Q,M$6-2000,FALSE)),"")) -> 5805 | N17: =IF(AND($A17=TRUE,$C$2=1),(VLOOKUP($B17,'International Exports-Detailed'!$A:$Q,N$6-2000,FALSE)),IF(AND($A17=TRUE,$C$2=2),(VLOOKUP($B17,'Rest of the UK Exports -Detail'!$A:$Q,N$6-2000,FALSE)),"")) -> 5715 | O17: =IF(AND($A17=TRUE,$C$2=1),(VLOOKUP($B17,'International Exports-Detailed'!$A:$Q,O$6-2000,FALSE)),IF(AND($A17=TRUE,$C$2=2),(VLOOKUP($B17,'Rest of the UK Exports -Detail'!$A:$Q,O$6-2000,FALSE)),"")) -> 5560 | P17: =IF(AND($A17=TRUE,$C$2=1),(VLOOKUP($B17,'International Exports-Detailed'!$A:$Q,P$6-2000,FALSE)),IF(AND($A17=TRUE,$C$2=2),(VLOOKUP($B17,'Rest of the UK Exports -Detail'!$A:$Q,P$6-2000,FALSE)),"")) -> 5550 | Q17: =IF(AND($A17=TRUE,$C$2=1),(VLOOKUP($B17,'International Exports-Detailed'!$A:$Q,Q$6-2000,FALSE)),IF(AND($A17=TRUE,$C$2=2),(VLOOKUP($B17,'Rest of the UK Exports -Detail'!$A:$Q,Q$6-2000,FALSE)),"")) -> 5780 | R17: =IF(AND($A17=TRUE,$C$2=1),(VLOOKUP($B17,'International Exports-Detailed'!$A:$Q,R$6-2000,FALSE)),IF(AND($A17=TRUE,$C$2=2),(VLOOKUP($B17,'Rest of the UK Exports -Detail'!$A:$Q,R$6-2000,FALSE)),"")) -> 6345
A18: TRUE | B18: Drink | C18: =IF(AND($A18=TRUE,$C$2=1),(VLOOKUP($B18,'International Exports-Detailed'!$A:$Q,C$6-2000,FALSE)),IF(AND($A18=TRUE,$C$2=2),(VLOOKUP($B18,'Rest of the UK Exports -Detail'!$A:$Q,C$6-2000,FALSE)),"")) -> 2475 | D18: =IF(AND($A18=TRUE,$C$2=1),(VLOOKUP($B18,'International Exports-Detailed'!$A:$Q,D$6-2000,FALSE)),IF(AND($A18=TRUE,$C$2=2),(VLOOKUP($B18,'Rest of the UK Exports -Detail'!$A:$Q,D$6-2000,FALSE)),"")) -> 2600 | E18: =IF(AND($A18=TRUE,$C$2=1),(VLOOKUP($B18,'International Exports-Detailed'!$A:$Q,E$6-2000,FALSE)),IF(AND($A18=TRUE,$C$2=2),(VLOOKUP($B18,'Rest of the UK Exports -Detail'!$A:$Q,E$6-2000,FALSE)),"")) -> 2475 | F18: =IF(AND($A18=TRUE,$C$2=1),(VLOOKUP($B18,'International Exports-Detailed'!$A:$Q,F$6-2000,FALSE)),IF(AND($A18=TRUE,$C$2=2),(VLOOKUP($B18,'Rest of the UK Exports -Detail'!$A:$Q,F$6-2000,FALSE)),"")) -> 2570 | G18: =IF(AND($A18=TRUE,$C$2=1),(VLOOKUP($B18,'International Exports-Detailed'!$A:$Q,G$6-2000,FALSE)),IF(AND($A18=TRUE,$C$2=2),(VLOOKUP($B18,'Rest of the UK Exports -Detail'!$A:$Q,G$6-2000,FALSE)),"")) -> 2695 | H18: =IF(AND($A18=TRUE,$C$2=1),(VLOOKUP($B18,'International Exports-Detailed'!$A:$Q,H$6-2000,FALSE)),IF(AND($A18=TRUE,$C$2=2),(VLOOKUP($B18,'Rest of the UK Exports -Detail'!$A:$Q,H$6-2000,FALSE)),"")) -> 3035 | I18: =IF(AND($A18=TRUE,$C$2=1),(VLOOKUP($B18,'International Exports-Detailed'!$A:$Q,I$6-2000,FALSE)),IF(AND($A18=TRUE,$C$2=2),(VLOOKUP($B18,'Rest of the UK Exports -Detail'!$A:$Q,I$6-2000,FALSE)),"")) -> 3325 | J18: =IF(AND($A18=TRUE,$C$2=1),(VLOOKUP($B18,'International Exports-Detailed'!$A:$Q,J$6-2000,FALSE)),IF(AND($A18=TRUE,$C$2=2),(VLOOKUP($B18,'Rest of the UK Exports -Detail'!$A:$Q,J$6-2000,FALSE)),"")) -> 3430 | K18: =IF(AND($A18=TRUE,$C$2=1),(VLOOKUP($B18,'International Exports-Detailed'!$A:$Q,K$6-2000,FALSE)),IF(AND($A18=TRUE,$C$2=2),(VLOOKUP($B18,'Rest of the UK Exports -Detail'!$A:$Q,K$6-2000,FALSE)),"")) -> 3815 | L18: =IF(AND($A18=TRUE,$C$2=1),(VLOOKUP($B18,'International Exports-Detailed'!$A:$Q,L$6-2000,FALSE)),IF(AND($A18=TRUE,$C$2=2),(VLOOKUP($B18,'Rest of the UK Exports -Detail'!$A:$Q,L$6-2000,FALSE)),"")) -> 4710 | M18: =IF(AND($A18=TRUE,$C$2=1),(VLOOKUP($B18,'International Exports-Detailed'!$A:$Q,M$6-2000,FALSE)),IF(AND($A18=TRUE,$C$2=2),(VLOOKUP($B18,'Rest of the UK Exports -Detail'!$A:$Q,M$6-2000,FALSE)),"")) -> 4840 | N18: =IF(AND($A18=TRUE,$C$2=1),(VLOOKUP($B18,'International Exports-Detailed'!$A:$Q,N$6-2000,FALSE)),IF(AND($A18=TRUE,$C$2=2),(VLOOKUP($B18,'Rest of the UK Exports -Detail'!$A:$Q,N$6-2000,FALSE)),"")) -> 4730 | O18: =IF(AND($A18=TRUE,$C$2=1),(VLOOKUP($B18,'International Exports-Detailed'!$A:$Q,O$6-2000,FALSE)),IF(AND($A18=TRUE,$C$2=2),(VLOOKUP($B18,'Rest of the UK Exports -Detail'!$A:$Q,O$6-2000,FALSE)),"")) -> 4400 | P18: =IF(AND($A18=TRUE,$C$2=1),(VLOOKUP($B18,'International Exports-Detailed'!$A:$Q,P$6-2000,FALSE)),IF(AND($A18=TRUE,$C$2=2),(VLOOKUP($B18,'Rest of the UK Exports -Detail'!$A:$Q,P$6-2000,FALSE)),"")) -> 4340 | Q18: =IF(AND($A18=TRUE,$C$2=1),(VLOOKUP($B18,'International Exports-Detailed'!$A:$Q,Q$6-2000,FALSE)),IF(AND($A18=TRUE,$C$2=2),(VLOOKUP($B18,'Rest of the UK Exports -Detail'!$A:$Q,Q$6-2000,FALSE)),"")) -> 4530 | R18: =IF(AND($A18=TRUE,$C$2=1),(VLOOKUP($B18,'International Exports-Detailed'!$A:$Q,R$6-2000,FALSE)),IF(AND($A18=TRUE,$C$2=2),(VLOOKUP($B18,'Rest of the UK Exports -Detail'!$A:$Q,R$6-2000,FALSE)),"")) -> 4910
A19: TRUE | B19: Food | C19: =IF(AND($A19=TRUE,$C$2=1),(VLOOKUP($B19,'International Exports-Detailed'!$A:$Q,C$6-2000,FALSE)),IF(AND($A19=TRUE,$C$2=2),(VLOOKUP($B19,'Rest of the UK Exports -Detail'!$A:$Q,C$6-2000,FALSE)),"")) -> 625 | D19: =IF(AND($A19=TRUE,$C$2=1),(VLOOKUP($B19,'International Exports-Detailed'!$A:$Q,D$6-2000,FALSE)),IF(AND($A19=TRUE,$C$2=2),(VLOOKUP($B19,'Rest of the UK Exports -Detail'!$A:$Q,D$6-2000,FALSE)),"")) -> 605 | E19: =IF(AND($A19=TRUE,$C$2=1),(VLOOKUP($B19,'International Exports-Detailed'!$A:$Q,E$6-2000,FALSE)),IF(AND($A19=TRUE,$C$2=2),(VLOOKUP($B19,'Rest of the UK Exports -Detail'!$A:$Q,E$6-2000,FALSE)),"")) -> 665 | F19: =IF(AND($A19=TRUE,$C$2=1),(VLOOKUP($B19,'International Exports-Detailed'!$A:$Q,F$6-2000,FALSE)),IF(AND($A19=TRUE,$C$2=2),(VLOOKUP($B19,'Rest of the UK Exports -Detail'!$A:$Q,F$6-2000,FALSE)),"")) -> 695 | G19: =IF(AND($A19=TRUE,$C$2=1),(VLOOKUP($B19,'International Exports-Detailed'!$A:$Q,G$6-2000,FALSE)),IF(AND($A19=TRUE,$C$2=2),(VLOOKUP($B19,'Rest of the UK Exports -Detail'!$A:$Q,G$6-2000,FALSE)),"")) -> 610 | H19: =IF(AND($A19=TRUE,$C$2=1),(VLOOKUP($B19,'International Exports-Detailed'!$A:$Q,H$6-2000,FALSE)),IF(AND($A19=TRUE,$C$2=2),(VLOOKUP($B19,'Rest of the UK Exports -Detail'!$A:$Q,H$6-2000,FALSE)),"")) -> 660 | I19: =IF(AND($A19=TRUE,$C$2=1),(VLOOKUP($B19,'International Exports-Detailed'!$A:$Q,I$6-2000,FALSE)),IF(AND($A19=TRUE,$C$2=2),(VLOOKUP($B19,'Rest of the UK Exports -Detail'!$A:$Q,I$6-2000,FALSE)),"")) -> 670 | J19: =IF(AND($A19=TRUE,$C$2=1),(VLOOKUP($B19,'International Exports-Detailed'!$A:$Q,J$6-2000,FALSE)),IF(AND($A19=TRUE,$C$2=2),(VLOOKUP($B19,'Rest of the UK Exports -Detail'!$A:$Q,J$6-2000,FALSE)),"")) -> 800 | K19: =IF(AND($A19=TRUE,$C$2=1),(VLOOKUP($B19,'International Exports-Detailed'!$A:$Q,K$6-2000,FALSE)),IF(AND($A19=TRUE,$C$2=2),(VLOOKUP($B19,'Rest of the UK Exports -Detail'!$A:$Q,K$6-2000,FALSE)),"")) -> 865 | L19: =IF(AND($A19=TRUE,$C$2=1),(VLOOKUP($B19,'International Exports-Detailed'!$A:$Q,L$6-2000,FALSE)),IF(AND($A19=TRUE,$C$2=2),(VLOOKUP($B19,'Rest of the UK Exports -Detail'!$A:$Q,L$6-2000,FALSE)),"")) -> 930 | M19: =IF(AND($A19=TRUE,$C$2=1),(VLOOKUP($B19,'International Exports-Detailed'!$A:$Q,M$6-2000,FALSE)),IF(AND($A19=TRUE,$C$2=2),(VLOOKUP($B19,'Rest of the UK Exports -Detail'!$A:$Q,M$6-2000,FALSE)),"")) -> 965 | N19: =IF(AND($A19=TRUE,$C$2=1),(VLOOKUP($B19,'International Exports-Detailed'!$A:$Q,N$6-2000,FALSE)),IF(AND($A19=TRUE,$C$2=2),(VLOOKUP($B19,'Rest of the UK Exports -Detail'!$A:$Q,N$6-2000,FALSE)),"")) -> 985 | O19: =IF(AND($A19=TRUE,$C$2=1),(VLOOKUP($B19,'International Exports-Detailed'!$A:$Q,O$6-2000,FALSE)),IF(AND($A19=TRUE,$C$2=2),(VLOOKUP($B19,'Rest of the UK Exports -Detail'!$A:$Q,O$6-2000,FALSE)),"")) -> 1155 | P19: =IF(AND($A19=TRUE,$C$2=1),(VLOOKUP($B19,'International Exports-Detailed'!$A:$Q,P$6-2000,FALSE)),IF(AND($A19=TRUE,$C$2=2),(VLOOKUP($B19,'Rest of the UK Exports -Detail'!$A:$Q,P$6-2000,FALSE)),"")) -> 1210 | Q19: =IF(AND($A19=TRUE,$C$2=1),(VLOOKUP($B19,'International Exports-Detailed'!$A:$Q,Q$6-2000,FALSE)),IF(AND($A19=TRUE,$C$2=2),(VLOOKUP($B19,'Rest of the UK Exports -Detail'!$A:$Q,Q$6-2000,FALSE)),"")) -> 1245 | R19: =IF(AND($A19=TRUE,$C$2=1),(VLOOKUP($B19,'International Exports-Detailed'!$A:$Q,R$6-2000,FALSE)),IF(AND($A19=TRUE,$C$2=2),(VLOOKUP($B19,'Rest of the UK Exports -Detail'!$A:$Q,R$6-2000,FALSE)),"")) -> 1440
B22: Energy Chart
A23: Chart control | C23: 2002 | D23: 2003 | E23: 2004 | F23: 2005 | G23: 2006 | H23: 2007 | I23: 2008 | J23: 2009 | K23: 2010 | L23: 2011 | M23: 2012 | N23: 2013 | O23: 2014 | P23: 2015 | Q23: 2016 | R23: 2017
A24: TRUE | B24: Energy | C24: =IF(AND($A24=TRUE,$C$2=1),(VLOOKUP($B24,'International Exports-Detailed'!$A:$Q,C$6-2000,FALSE)),IF(AND($A24=TRUE,$C$2=2),(VLOOKUP($B24,'Rest of the UK Exports -Detail'!$A:$Q,C$6-2000,FALSE)),"")) -> 745 | D24: =IF(AND($A24=TRUE,$C$2=1),(VLOOKUP($B24,'International Exports-Detailed'!$A:$Q,D$6-2000,FALSE)),IF(AND($A24=TRUE,$C$2=2),(VLOOKUP($B24,'Rest of the UK Exports -Detail'!$A:$Q,D$6-2000,FALSE)),"")) -> 675 | E24: =IF(AND($A24=TRUE,$C$2=1),(VLOOKUP($B24,'International Exports-Detailed'!$A:$Q,E$6-2000,FALSE)),IF(AND($A24=TRUE,$C$2=2),(VLOOKUP($B24,'Rest of the UK Exports -Detail'!$A:$Q,E$6-2000,FALSE)),"")) -> 810 | F24: =IF(AND($A24=TRUE,$C$2=1),(VLOOKUP($B24,'International Exports-Detailed'!$A:$Q,F$6-2000,FALSE)),IF(AND($A24=TRUE,$C$2=2),(VLOOKUP($B24,'Rest of the UK Exports -Detail'!$A:$Q,F$6-2000,FALSE)),"")) -> 965 | G24: =IF(AND($A24=TRUE,$C$2=1),(VLOOKUP($B24,'International Exports-Detailed'!$A:$Q,G$6-2000,FALSE)),IF(AND($A24=TRUE,$C$2=2),(VLOOKUP($B24,'Rest of the UK Exports -Detail'!$A:$Q,G$6-2000,FALSE)),"")) -> 1090 | H24: =IF(AND($A24=TRUE,$C$2=1),(VLOOKUP($B24,'International Exports-Detailed'!$A:$Q,H$6-2000,FALSE)),IF(AND($A24=TRUE,$C$2=2),(VLOOKUP($B24,'Rest of the UK Exports -Detail'!$A:$Q,H$6-2000,FALSE)),"")) -> 1435 | I24: =IF(AND($A24=TRUE,$C$2=1),(VLOOKUP($B24,'International Exports-Detailed'!$A:$Q,I$6-2000,FALSE)),IF(AND($A24=TRUE,$C$2=2),(VLOOKUP($B24,'Rest of the UK Exports -Detail'!$A:$Q,I$6-2000,FALSE)),"")) -> 1410 | J24: =IF(AND($A24=TRUE,$C$2=1),(VLOOKUP($B24,'International Exports-Detailed'!$A:$Q,J$6-2000,FALSE)),IF(AND($A24=TRUE,$C$2=2),(VLOOKUP($B24,'Rest of the UK Exports -Detail'!$A:$Q,J$6-2000,FALSE)),"")) -> 1820 | K24: =IF(AND($A24=TRUE,$C$2=1),(VLOOKUP($B24,'International Exports-Detailed'!$A:$Q,K$6-2000,FALSE)),IF(AND($A24=TRUE,$C$2=2),(VLOOKUP($B24,'Rest of the UK Exports -Detail'!$A:$Q,K$6-2000,FALSE)),"")) -> 2570 | L24: =IF(AND($A24=TRUE,$C$2=1),(VLOOKUP($B24,'International Exports-Detailed'!$A:$Q,L$6-2000,FALSE)),IF(AND($A24=TRUE,$C$2=2),(VLOOKUP($B24,'Rest of the UK Exports -Detail'!$A:$Q,L$6-2000,FALSE)),"")) -> 3080 | M24: =IF(AND($A24=TRUE,$C$2=1),(VLOOKUP($B24,'International Exports-Detailed'!$A:$Q,M$6-2000,FALSE)),IF(AND($A24=TRUE,$C$2=2),(VLOOKUP($B24,'Rest of the UK Exports -Detail'!$A:$Q,M$6-2000,FALSE)),"")) -> 3080 | N24: =IF(AND($A24=TRUE,$C$2=1),(VLOOKUP($B24,'International Exports-Detailed'!$A:$Q,N$6-2000,FALSE)),IF(AND($A24=TRUE,$C$2=2),(VLOOKUP($B24,'Rest of the UK Exports -Detail'!$A:$Q,N$6-2000,FALSE)),"")) -> 3135 | O24: =IF(AND($A24=TRUE,$C$2=1),(VLOOKUP($B24,'International Exports-Detailed'!$A:$Q,O$6-2000,FALSE)),IF(AND($A24=TRUE,$C$2=2),(VLOOKUP($B24,'Rest of the UK Exports -Detail'!$A:$Q,O$6-2000,FALSE)),"")) -> 3530 | P24: =IF(AND($A24=TRUE,$C$2=1),(VLOOKUP($B24,'International Exports-Detailed'!$A:$Q,P$6-2000,FALSE)),IF(AND($A24=TRUE,$C$2=2),(VLOOKUP($B24,'Rest of the UK Exports -Detail'!$A:$Q,P$6-2000,FALSE)),"")) -> 4130 | Q24: =IF(AND($A24=TRUE,$C$2=1),(VLOOKUP($B24,'International Exports-Detailed'!$A:$Q,Q$6-2000,FALSE)),IF(AND($A24=TRUE,$C$2=2),(VLOOKUP($B24,'Rest of the UK Exports -Detail'!$A:$Q,Q$6-2000,FALSE)),"")) -> 3895 | R24: =IF(AND($A24=TRUE,$C$2=1),(VLOOKUP($B24,'International Exports-Detailed'!$A:$Q,R$6-2000,FALSE)),IF(AND($A24=TRUE,$C$2=2),(VLOOKUP($B24,'Rest of the UK Exports -Detail'!$A:$Q,R$6-2000,FALSE)),"")) -> 3780
A25: TRUE | B25: Energy Support | C25: =IF(AND($A25=TRUE,$C$2=1),(VLOOKUP($B25,'International Exports-Detailed'!$A:$Q,C$6-2000,FALSE)),IF(AND($A25=TRUE,$C$2=2),(VLOOKUP($B25,'Rest of the UK Exports -Detail'!$A:$Q,C$6-2000,FALSE)),"")) -> 620 | D25: =IF(AND($A25=TRUE,$C$2=1),(VLOOKUP($B25,'International Exports-Detailed'!$A:$Q,D$6-2000,FALSE)),IF(AND($A25=TRUE,$C$2=2),(VLOOKUP($B25,'Rest of the UK Exports -Detail'!$A:$Q,D$6-2000,FALSE)),"")) -> 560 | E25: =IF(AND($A25=TRUE,$C$2=1),(VLOOKUP($B25,'International Exports-Detailed'!$A:$Q,E$6-2000,FALSE)),IF(AND($A25=TRUE,$C$2=2),(VLOOKUP($B25,'Rest of the UK Exports -Detail'!$A:$Q,E$6-2000,FALSE)),"")) -> 695 | F25: =IF(AND($A25=TRUE,$C$2=1),(VLOOKUP($B25,'International Exports-Detailed'!$A:$Q,F$6-2000,FALSE)),IF(AND($A25=TRUE,$C$2=2),(VLOOKUP($B25,'Rest of the UK Exports -Detail'!$A:$Q,F$6-2000,FALSE)),"")) -> 825 | G25: =IF(AND($A25=TRUE,$C$2=1),(VLOOKUP($B25,'International Exports-Detailed'!$A:$Q,G$6-2000,FALSE)),IF(AND($A25=TRUE,$C$2=2),(VLOOKUP($B25,'Rest of the UK Exports -Detail'!$A:$Q,G$6-2000,FALSE)),"")) -> 920 | H25: =IF(AND($A25=TRUE,$C$2=1),(VLOOKUP($B25,'International Exports-Detailed'!$A:$Q,H$6-2000,FALSE)),IF(AND($A25=TRUE,$C$2=2),(VLOOKUP($B25,'Rest of the UK Exports -Detail'!$A:$Q,H$6-2000,FALSE)),"")) -> 1240 | I25: =IF(AND($A25=TRUE,$C$2=1),(VLOOKUP($B25,'International Exports-Detailed'!$A:$Q,I$6-2000,FALSE)),IF(AND($A25=TRUE,$C$2=2),(VLOOKUP($B25,'Rest of the UK Exports -Detail'!$A:$Q,I$6-2000,FALSE)),"")) -> 1200 | J25: =IF(AND($A25=TRUE,$C$2=1),(VLOOKUP($B25,'International Exports-Detailed'!$A:$Q,J$6-2000,FALSE)),IF(AND($A25=TRUE,$C$2=2),(VLOOKUP($B25,'Rest of the UK Exports -Detail'!$A:$Q,J$6-2000,FALSE)),"")) -> 1455 | K25: =IF(AND($A25=TRUE,$C$2=1),(VLOOKUP($B25,'International Exports-Detailed'!$A:$Q,K$6-2000,FALSE)),IF(AND($A25=TRUE,$C$2=2),(VLOOKUP($B25,'Rest of the UK Exports -Detail'!$A:$Q,K$6-2000,FALSE)),"")) -> 2255 | L25: =IF(AND($A25=TRUE,$C$2=1),(VLOOKUP($B25,'International Exports-Detailed'!$A:$Q,L$6-2000,FALSE)),IF(AND($A25=TRUE,$C$2=2),(VLOOKUP($B25,'Rest of the UK Exports -Detail'!$A:$Q,L$6-2000,FALSE)),"")) -> 2705 | M25: =IF(AND($A25=TRUE,$C$2=1),(VLOOKUP($B25,'International Exports-Detailed'!$A:$Q,M$6-2000,FALSE)),IF(AND($A25=TRUE,$C$2=2),(VLOOKUP($B25,'Rest of the UK Exports -Detail'!$A:$Q,M$6-2000,FALSE)),"")) -> 2610 | N25: =IF(AND($A25=TRUE,$C$2=1),(VLOOKUP($B25,'International Exports-Detailed'!$A:$Q,N$6-2000,FALSE)),IF(AND($A25=TRUE,$C$2=2),(VLOOKUP($B25,'Rest of the UK Exports -Detail'!$A:$Q,N$6-2000,FALSE)),"")) -> 2715 | O25: =IF(AND($A25=TRUE,$C$2=1),(VLOOKUP($B25,'International Exports-Detailed'!$A:$Q,O$6-2000,FALSE)),IF(AND($A25=TRUE,$C$2=2),(VLOOKUP($B25,'Rest of the UK Exports -Detail'!$A:$Q,O$6-2000,FALSE)),"")) -> 3105 | P25: =IF(AND($A25=TRUE,$C$2=1),(VLOOKUP($B25,'International Exports-Detailed'!$A:$Q,P$6-2000,FALSE)),IF(AND($A25=TRUE,$C$2=2),(VLOOKUP($B25,'Rest of the UK Exports -Detail'!$A:$Q,P$6-2000,FALSE)),"")) -> 3785 | Q25: =IF(AND($A25=TRUE,$C$2=1),(VLOOKUP($B25,'International Exports-Detailed'!$A:$Q,Q$6-2000,FALSE)),IF(AND($A25=TRUE,$C$2=2),(VLOOKUP($B25,'Rest of the UK Exports -Detail'!$A:$Q,Q$6-2000,FALSE)),"")) -> 3560 | R25: =IF(AND($A25=TRUE,$C$2=1),(VLOOKUP($B25,'International Exports-Detailed'!$A:$Q,R$6-2000,FALSE)),IF(AND($A25=TRUE,$C$2=2),(VLOOKUP($B25,'Rest of the UK Exports -Detail'!$A:$Q,R$6-2000,FALSE)),"")) -> 3465
A26: TRUE | B26: Mining and Utilities | C26: =IF(AND($A26=TRUE,$C$2=1),(VLOOKUP($B26,'International Exports-Detailed'!$A:$Q,C$6-2000,FALSE)),IF(AND($A26=TRUE,$C$2=2),(VLOOKUP($B26,'Rest of the UK Exports -Detail'!$A:$Q,C$6-2000,FALSE)),"")) -> 125 | D26: =IF(AND($A26=TRUE,$C$2=1),(VLOOKUP($B26,'International Exports-Detailed'!$A:$Q,D$6-2000,FALSE)),IF(AND($A26=TRUE,$C$2=2),(VLOOKUP($B26,'Rest of the UK Exports -Detail'!$A:$Q,D$6-2000,FALSE)),"")) -> 115 | E26: =IF(AND($A26=TRUE,$C$2=1),(VLOOKUP($B26,'International Exports-Detailed'!$A:$Q,E$6-2000,FALSE)),IF(AND($A26=TRUE,$C$2=2),(VLOOKUP($B26,'Rest of the UK Exports -Detail'!$A:$Q,E$6-2000,FALSE)),"")) -> 115 | F26: =IF(AND($A26=TRUE,$C$2=1),(VLOOKUP($B26,'International Exports-Detailed'!$A:$Q,F$6-2000,FALSE)),IF(AND($A26=TRUE,$C$2=2),(VLOOKUP($B26,'Rest of the UK Exports -Detail'!$A:$Q,F$6-2000,FALSE)),"")) -> 140 | G26: =IF(AND($A26=TRUE,$C$2=1),(VLOOKUP($B26,'International Exports-Detailed'!$A:$Q,G$6-2000,FALSE)),IF(AND($A26=TRUE,$C$2=2),(VLOOKUP($B26,'Rest of the UK Exports -Detail'!$A:$Q,G$6-2000,FALSE)),"")) -> 170 | H26: =IF(AND($A26=TRUE,$C$2=1),(VLOOKUP($B26,'International Exports-Detailed'!$A:$Q,H$6-2000,FALSE)),IF(AND($A26=TRUE,$C$2=2),(VLOOKUP($B26,'Rest of the UK Exports -Detail'!$A:$Q,H$6-2000,FALSE)),"")) -> 200 | I26: =IF(AND($A26=TRUE,$C$2=1),(VLOOKUP($B26,'International Exports-Detailed'!$A:$Q,I$6-2000,FALSE)),IF(AND($A26=TRUE,$C$2=2),(VLOOKUP($B26,'Rest of the UK Exports -Detail'!$A:$Q,I$6-2000,FALSE)),"")) -> 215 | J26: =IF(AND($A26=TRUE,$C$2=1),(VLOOKUP($B26,'International Exports-Detailed'!$A:$Q,J$6-2000,FALSE)),IF(AND($A26=TRUE,$C$2=2),(VLOOKUP($B26,'Rest of the UK Exports -Detail'!$A:$Q,J$6-2000,FALSE)),"")) -> 360 | K26: =IF(AND($A26=TRUE,$C$2=1),(VLOOKUP($B26,'International Exports-Detailed'!$A:$Q,K$6-2000,FALSE)),IF(AND($A26=TRUE,$C$2=2),(VLOOKUP($B26,'Rest of the UK Exports -Detail'!$A:$Q,K$6-2000,FALSE)),"")) -> 315 | L26: =IF(AND($A26=TRUE,$C$2=1),(VLOOKUP($B26,'International Exports-Detailed'!$A:$Q,L$6-2000,FALSE)),IF(AND($A26=TRUE,$C$2=2),(VLOOKUP($B26,'Rest of the UK Exports -Detail'!$A:$Q,L$6-2000,FALSE)),"")) -> 380 | M26: =IF(AND($A26=TRUE,$C$2=1),(VLOOKUP($B26,'International Exports-Detailed'!$A:$Q,M$6-2000,FALSE)),IF(AND($A26=TRUE,$C$2=2),(VLOOKUP($B26,'Rest of the UK Exports -Detail'!$A:$Q,M$6-2000,FALSE)),"")) -> 470 | N26: =IF(AND($A26=TRUE,$C$2=1),(VLOOKUP($B26,'International Exports-Detailed'!$A:$Q,N$6-2000,FALSE)),IF(AND($A26=TRUE,$C$2=2),(VLOOKUP($B26,'Rest of the UK Exports -Detail'!$A:$Q,N$6-2000,FALSE)),"")) -> 420 | O26: =IF(AND($A26=TRUE,$C$2=1),(VLOOKUP($B26,'International Exports-Detailed'!$A:$Q,O$6-2000,FALSE)),IF(AND($A26=TRUE,$C$2=2),(VLOOKUP($B26,'Rest of the UK Exports -Detail'!$A:$Q,O$6-2000,FALSE)),"")) -> 425 | P26: =IF(AND($A26=TRUE,$C$2=1),(VLOOKUP($B26,'International Exports-Detailed'!$A:$Q,P$6-2000,FALSE)),IF(AND($A26=TRUE,$C$2=2),(VLOOKUP($B26,'Rest of the UK Exports -Detail'!$A:$Q,P$6-2000,FALSE)),"")) -> 345 | Q26: =IF(AND($A26=TRUE,$C$2=1),(VLOOKUP($B26,'International Exports-Detailed'!$A:$Q,Q$6-2000,FALSE)),IF(AND($A26=TRUE,$C$2=2),(VLOOKUP($B26,'Rest of the UK Exports -Detail'!$A:$Q,Q$6-2000,FALSE)),"")) -> 335 | R26: =IF(AND($A26=TRUE,$C$2=1),(VLOOKUP($B26,'International Exports-Detailed'!$A:$Q,R$6-2000,FALSE)),IF(AND($A26=TRUE,$C$2=2),(VLOOKUP($B26,'Rest of the UK Exports -Detail'!$A:$Q,R$6-2000,FALSE)),"")) -> 320
B29: Financial and Business Services Chart
A30: Chart control | C30: 2002 | D30: 2003 | E30: 2004 | F30: 2005 | G30: 2006 | H30: 2007 | I30: 2008 | J30: 2009 | K30: 2010 | L30: 2011 | M30: 2012 | N30: 2013 | O30: 2014 | P30: 2015 | Q30: 2016 | R30: 2017
A31: TRUE | B31: Financial and Business Services | C31: =IF(AND($A31=TRUE,$C$2=1),(VLOOKUP($B31,'International Exports-Detailed'!$A:$Q,C$6-2000,FALSE)),IF(AND($A31=TRUE,$C$2=2),(VLOOKUP($B31,'Rest of the UK Exports -Detail'!$A:$Q,C$6-2000,FALSE)),"")) -> 1600 | D31: =IF(AND($A31=TRUE,$C$2=1),(VLOOKUP($B31,'International Exports-Detailed'!$A:$Q,D$6-2000,FALSE)),IF(AND($A31=TRUE,$C$2=2),(VLOOKUP($B31,'Rest of the UK Exports -Detail'!$A:$Q,D$6-2000,FALSE)),"")) -> 1355 | E31: =IF(AND($A31=TRUE,$C$2=1),(VLOOKUP($B31,'International Exports-Detailed'!$A:$Q,E$6-2000,FALSE)),IF(AND($A31=TRUE,$C$2=2),(VLOOKUP($B31,'Rest of the UK Exports -Detail'!$A:$Q,E$6-2000,FALSE)),"")) -> 1615 | F31: =IF(AND($A31=TRUE,$C$2=1),(VLOOKUP($B31,'International Exports-Detailed'!$A:$Q,F$6-2000,FALSE)),IF(AND($A31=TRUE,$C$2=2),(VLOOKUP($B31,'Rest of the UK Exports -Detail'!$A:$Q,F$6-2000,FALSE)),"")) -> 1715 | G31: =IF(AND($A31=TRUE,$C$2=1),(VLOOKUP($B31,'International Exports-Detailed'!$A:$Q,G$6-2000,FALSE)),IF(AND($A31=TRUE,$C$2=2),(VLOOKUP($B31,'Rest of the UK Exports -Detail'!$A:$Q,G$6-2000,FALSE)),"")) -> 1915 | H31: =IF(AND($A31=TRUE,$C$2=1),(VLOOKUP($B31,'International Exports-Detailed'!$A:$Q,H$6-2000,FALSE)),IF(AND($A31=TRUE,$C$2=2),(VLOOKUP($B31,'Rest of the UK Exports -Detail'!$A:$Q,H$6-2000,FALSE)),"")) -> 1595 | I31: =IF(AND($A31=TRUE,$C$2=1),(VLOOKUP($B31,'International Exports-Detailed'!$A:$Q,I$6-2000,FALSE)),IF(AND($A31=TRUE,$C$2=2),(VLOOKUP($B31,'Rest of the UK Exports -Detail'!$A:$Q,I$6-2000,FALSE)),"")) -> 1835 | J31: =IF(AND($A31=TRUE,$C$2=1),(VLOOKUP($B31,'International Exports-Detailed'!$A:$Q,J$6-2000,FALSE)),IF(AND($A31=TRUE,$C$2=2),(VLOOKUP($B31,'Rest of the UK Exports -Detail'!$A:$Q,J$6-2000,FALSE)),"")) -> 2465 | K31: =IF(AND($A31=TRUE,$C$2=1),(VLOOKUP($B31,'International Exports-Detailed'!$A:$Q,K$6-2000,FALSE)),IF(AND($A31=TRUE,$C$2=2),(VLOOKUP($B31,'Rest of the UK Exports -Detail'!$A:$Q,K$6-2000,FALSE)),"")) -> 2515 | L31: =IF(AND($A31=TRUE,$C$2=1),(VLOOKUP($B31,'International Exports-Detailed'!$A:$Q,L$6-2000,FALSE)),IF(AND($A31=TRUE,$C$2=2),(VLOOKUP($B31,'Rest of the UK Exports -Detail'!$A:$Q,L$6-2000,FALSE)),"")) -> 2915 | M31: =IF(AND($A31=TRUE,$C$2=1),(VLOOKUP($B31,'International Exports-Detailed'!$A:$Q,M$6-2000,FALSE)),IF(AND($A31=TRUE,$C$2=2),(VLOOKUP($B31,'Rest of the UK Exports -Detail'!$A:$Q,M$6-2000,FALSE)),"")) -> 2880 | N31: =IF(AND($A31=TRUE,$C$2=1),(VLOOKUP($B31,'International Exports-Detailed'!$A:$Q,N$6-2000,FALSE)),IF(AND($A31=TRUE,$C$2=2),(VLOOKUP($B31,'Rest of the UK Exports -Detail'!$A:$Q,N$6-2000,FALSE)),"")) -> 3090 | O31: =IF(AND($A31=TRUE,$C$2=1),(VLOOKUP($B31,'International Exports-Detailed'!$A:$Q,O$6-2000,FALSE)),IF(AND($A31=TRUE,$C$2=2),(VLOOKUP($B31,'Rest of the UK Exports -Detail'!$A:$Q,O$6-2000,FALSE)),"")) -> 3235 | P31: =IF(AND($A31=TRUE,$C$2=1),(VLOOKUP($B31,'International Exports-Detailed'!$A:$Q,P$6-2000,FALSE)),IF(AND($A31=TRUE,$C$2=2),(VLOOKUP($B31,'Rest of the UK Exports -Detail'!$A:$Q,P$6-2000,FALSE)),"")) -> 3135 | Q31: =IF(AND($A31=TRUE,$C$2=1),(VLOOKUP($B31,'International Exports-Detailed'!$A:$Q,Q$6-2000,FALSE)),IF(AND($A31=TRUE,$C$2=2),(VLOOKUP($B31,'Rest of the UK Exports -Detail'!$A:$Q,Q$6-2000,FALSE)),"")) -> 3285 | R31: =IF(AND($A31=TRUE,$C$2=1),(VLOOKUP($B31,'International Exports-Detailed'!$A:$Q,R$6-2000,FALSE)),IF(AND($A31=TRUE,$C$2=2),(VLOOKUP($B31,'Rest of the UK Exports -Detail'!$A:$Q,R$6-2000,FALSE)),"")) -> 3355
A32: TRUE | B32: Financial Support Activities | C32: =IF(AND($A32=TRUE,$C$2=1),(VLOOKUP($B32,'International Exports-Detailed'!$A:$Q,C$6-2000,FALSE)),IF(AND($A32=TRUE,$C$2=2),(VLOOKUP($B32,'Rest of the UK Exports -Detail'!$A:$Q,C$6-2000,FALSE)),"")) -> 370 | D32: =IF(AND($A32=TRUE,$C$2=1),(VLOOKUP($B32,'International Exports-Detailed'!$A:$Q,D$6-2000,FALSE)),IF(AND($A32=TRUE,$C$2=2),(VLOOKUP($B32,'Rest of the UK Exports -Detail'!$A:$Q,D$6-2000,FALSE)),"")) -> 310 | E32: =IF(AND($A32=TRUE,$C$2=1),(VLOOKUP($B32,'International Exports-Detailed'!$A:$Q,E$6-2000,FALSE)),IF(AND($A32=TRUE,$C$2=2),(VLOOKUP($B32,'Rest of the UK Exports -Detail'!$A:$Q,E$6-2000,FALSE)),"")) -> 270 | F32: =IF(AND($A32=TRUE,$C$2=1),(VLOOKUP($B32,'International Exports-Detailed'!$A:$Q,F$6-2000,FALSE)),IF(AND($A32=TRUE,$C$2=2),(VLOOKUP($B32,'Rest of the UK Exports -Detail'!$A:$Q,F$6-2000,FALSE)),"")) -> 275 | G32: =IF(AND($A32=TRUE,$C$2=1),(VLOOKUP($B32,'International Exports-Detailed'!$A:$Q,G$6-2000,FALSE)),IF(AND($A32=TRUE,$C$2=2),(VLOOKUP($B32,'Rest of the UK Exports -Detail'!$A:$Q,G$6-2000,FALSE)),"")) -> 310 | H32: =IF(AND($A32=TRUE,$C$2=1),(VLOOKUP($B32,'International Exports-Detailed'!$A:$Q,H$6-2000,FALSE)),IF(AND($A32=TRUE,$C$2=2),(VLOOKUP($B32,'Rest of the UK Exports -Detail'!$A:$Q,H$6-2000,FALSE)),"")) -> 425 | I32: =IF(AND($A32=TRUE,$C$2=1),(VLOOKUP($B32,'International Exports-Detailed'!$A:$Q,I$6-2000,FALSE)),IF(AND($A32=TRUE,$C$2=2),(VLOOKUP($B32,'Rest of the UK Exports -Detail'!$A:$Q,I$6-2000,FALSE)),"")) -> 535 | J32: =IF(AND($A32=TRUE,$C$2=1),(VLOOKUP($B32,'International Exports-Detailed'!$A:$Q,J$6-2000,FALSE)),IF(AND($A32=TRUE,$C$2=2),(VLOOKUP($B32,'Rest of the UK Exports -Detail'!$A:$Q,J$6-2000,FALSE)),"")) -> 670 | K32: =IF(AND($A32=TRUE,$C$2=1),(VLOOKUP($B32,'International Exports-Detailed'!$A:$Q,K$6-2000,FALSE)),IF(AND($A32=TRUE,$C$2=2),(VLOOKUP($B32,'Rest of the UK Exports -Detail'!$A:$Q,K$6-2000,FALSE)),"")) -> 775 | L32: =IF(AND($A32=TRUE,$C$2=1),(VLOOKUP($B32,'International Exports-Detailed'!$A:$Q,L$6-2000,FALSE)),IF(AND($A32=TRUE,$C$2=2),(VLOOKUP($B32,'Rest of the UK Exports -Detail'!$A:$Q,L$6-2000,FALSE)),"")) -> 860 | M32: =IF(AND($A32=TRUE,$C$2=1),(VLOOKUP($B32,'International Exports-Detailed'!$A:$Q,M$6-2000,FALSE)),IF(AND($A32=TRUE,$C$2=2),(VLOOKUP($B32,'Rest of the UK Exports -Detail'!$A:$Q,M$6-2000,FALSE)),"")) -> 865 | N32: =IF(AND($A32=TRUE,$C$2=1),(VLOOKUP($B32,'International Exports-Detailed'!$A:$Q,N$6-2000,FALSE)),IF(AND($A32=TRUE,$C$2=2),(VLOOKUP($B32,'Rest of the UK Exports -Detail'!$A:$Q,N$6-2000,FALSE)),"")) -> 950 | O32: =IF(AND($A32=TRUE,$C$2=1),(VLOOKUP($B32,'International Exports-Detailed'!$A:$Q,O$6-2000,FALSE)),IF(AND($A32=TRUE,$C$2=2),(VLOOKUP($B32,'Rest of the UK Exports -Detail'!$A:$Q,O$6-2000,FALSE)),"")) -> 970 | P32: =IF(AND($A32=TRUE,$C$2=1),(VLOOKUP($B32,'International Exports-Detailed'!$A:$Q,P$6-2000,FALSE)),IF(AND($A32=TRUE,$C$2=2),(VLOOKUP($B32,'Rest of the UK Exports -Detail'!$A:$Q,P$6-2000,FALSE)),"")) -> 1065 | Q32: =IF(AND($A32=TRUE,$C$2=1),(VLOOKUP($B32,'International Exports-Detailed'!$A:$Q,Q$6-2000,FALSE)),IF(AND($A32=TRUE,$C$2=2),(VLOOKUP($B32,'Rest of the UK Exports -Detail'!$A:$Q,Q$6-2000,FALSE)),"")) -> 1105 | R32: =IF(AND($A32=TRUE,$C$2=1),(VLOOKUP($B32,'International Exports-Detailed'!$A:$Q,R$6-2000,FALSE)),IF(AND($A32=TRUE,$C$2=2),(VLOOKUP($B32,'Rest of the UK Exports -Detail'!$A:$Q,R$6-2000,FALSE)),"")) -> 1155
A33: TRUE | B33: Business Support Activities | C33: =IF(AND($A33=TRUE,$C$2=1),(VLOOKUP($B33,'International Exports-Detailed'!$A:$Q,C$6-2000,FALSE)),IF(AND($A33=TRUE,$C$2=2),(VLOOKUP($B33,'Rest of the UK Exports -Detail'!$A:$Q,C$6-2000,FALSE)),"")) -> 325 | D33: =IF(AND($A33=TRUE,$C$2=1),(VLOOKUP($B33,'International Exports-Detailed'!$A:$Q,D$6-2000,FALSE)),IF(AND($A33=TRUE,$C$2=2),(VLOOKUP($B33,'Rest of the UK Exports -Detail'!$A:$Q,D$6-2000,FALSE)),"")) -> 285 | E33: =IF(AND($A33=TRUE,$C$2=1),(VLOOKUP($B33,'International Exports-Detailed'!$A:$Q,E$6-2000,FALSE)),IF(AND($A33=TRUE,$C$2=2),(VLOOKUP($B33,'Rest of the UK Exports -Detail'!$A:$Q,E$6-2000,FALSE)),"")) -> 300 | F33: =IF(AND($A33=TRUE,$C$2=1),(VLOOKUP($B33,'International Exports-Detailed'!$A:$Q,F$6-2000,FALSE)),IF(AND($A33=TRUE,$C$2=2),(VLOOKUP($B33,'Rest of the UK Exports -Detail'!$A:$Q,F$6-2000,FALSE)),"")) -> 355 | G33: =IF(AND($A33=TRUE,$C$2=1),(VLOOKUP($B33,'International Exports-Detailed'!$A:$Q,G$6-2000,FALSE)),IF(AND($A33=TRUE,$C$2=2),(VLOOKUP($B33,'Rest of the UK Exports -Detail'!$A:$Q,G$6-2000,FALSE)),"")) -> 475 | H33: =IF(AND($A33=TRUE,$C$2=1),(VLOOKUP($B33,'International Exports-Detailed'!$A:$Q,H$6-2000,FALSE)),IF(AND($A33=TRUE,$C$2=2),(VLOOKUP($B33,'Rest of the UK Exports -Detail'!$A:$Q,H$6-2000,FALSE)),"")) -> 575 | I33: =IF(AND($A33=TRUE,$C$2=1),(VLOOKUP($B33,'International Exports-Detailed'!$A:$Q,I$6-2000,FALSE)),IF(AND($A33=TRUE,$C$2=2),(VLOOKUP($B33,'Rest of the UK Exports -Detail'!$A:$Q,I$6-2000,FALSE)),"")) -> 650 | J33: =IF(AND($A33=TRUE,$C$2=1),(VLOOKUP($B33,'International Exports-Detailed'!$A:$Q,J$6-2000,FALSE)),IF(AND($A33=TRUE,$C$2=2),(VLOOKUP($B33,'Rest of the UK Exports -Detail'!$A:$Q,J$6-2000,FALSE)),"")) -> 645 | K33: =IF(AND($A33=TRUE,$C$2=1),(VLOOKUP($B33,'International Exports-Detailed'!$A:$Q,K$6-2000,FALSE)),IF(AND($A33=TRUE,$C$2=2),(VLOOKUP($B33,'Rest of the UK Exports -Detail'!$A:$Q,K$6-2000,FALSE)),"")) -> 555 | L33: =IF(AND($A33=TRUE,$C$2=1),(VLOOKUP($B33,'International Exports-Detailed'!$A:$Q,L$6-2000,FALSE)),IF(AND($A33=TRUE,$C$2=2),(VLOOKUP($B33,'Rest of the UK Exports -Detail'!$A:$Q,L$6-2000,FALSE)),"")) -> 565 | M33: =IF(AND($A33=TRUE,$C$2=1),(VLOOKUP($B33,'International Exports-Detailed'!$A:$Q,M$6-2000,FALSE)),IF(AND($A33=TRUE,$C$2=2),(VLOOKUP($B33,'Rest of the UK Exports -Detail'!$A:$Q,M$6-2000,FALSE)),"")) -> 880 | N33: =IF(AND($A33=TRUE,$C$2=1),(VLOOKUP($B33,'International Exports-Detailed'!$A:$Q,N$6-2000,FALSE)),IF(AND($A33=TRUE,$C$2=2),(VLOOKUP($B33,'Rest of the UK Exports -Detail'!$A:$Q,N$6-2000,FALSE)),"")) -> 985 | O33: =IF(AND($A33=TRUE,$C$2=1),(VLOOKUP($B33,'International Exports-Detailed'!$A:$Q,O$6-2000,FALSE)),IF(AND($A33=TRUE,$C$2=2),(VLOOKUP($B33,'Rest of the UK Exports -Detail'!$A:$Q,O$6-2000,FALSE)),"")) -> 1155 | P33: =IF(AND($A33=TRUE,$C$2=1),(VLOOKUP($B33,'International Exports-Detailed'!$A:$Q,P$6-2000,FALSE)),IF(AND($A33=TRUE,$C$2=2),(VLOOKUP($B33,'Rest of the UK Exports -Detail'!$A:$Q,P$6-2000,FALSE)),"")) -> 780 | Q33: =IF(AND($A33=TRUE,$C$2=1),(VLOOKUP($B33,'International Exports-Detailed'!$A:$Q,Q$6-2000,FALSE)),IF(AND($A33=TRUE,$C$2=2),(VLOOKUP($B33,'Rest of the UK Exports -Detail'!$A:$Q,Q$6-2000,FALSE)),"")) -> 705 | R33: =IF(AND($A33=TRUE,$C$2=1),(VLOOKUP($B33,'International Exports-Detailed'!$A:$Q,R$6-2000,FALSE)),IF(AND($A33=TRUE,$C$2=2),(VLOOKUP($B33,'Rest of the UK Exports -Detail'!$A:$Q,R$6-2000,FALSE)),"")) -> 680
A34: TRUE | B34: Management Consultancy | C34: =IF(AND($A34=TRUE,$C$2=1),(VLOOKUP($B34,'International Exports-Detailed'!$A:$Q,C$6-2000,FALSE)),IF(AND($A34=TRUE,$C$2=2),(VLOOKUP($B34,'Rest of the UK Exports -Detail'!$A:$Q,C$6-2000,FALSE)),"")) -> 375 | D34: =IF(AND($A34=TRUE,$C$2=1),(VLOOKUP($B34,'International Exports-Detailed'!$A:$Q,D$6-2000,FALSE)),IF(AND($A34=TRUE,$C$2=2),(VLOOKUP($B34,'Rest of the UK Exports -Detail'!$A:$Q,D$6-2000,FALSE)),"")) -> 255 | E34: =IF(AND($A34=TRUE,$C$2=1),(VLOOKUP($B34,'International Exports-Detailed'!$A:$Q,E$6-2000,FALSE)),IF(AND($A34=TRUE,$C$2=2),(VLOOKUP($B34,'Rest of the UK Exports -Detail'!$A:$Q,E$6-2000,FALSE)),"")) -> 235 | F34: =IF(AND($A34=TRUE,$C$2=1),(VLOOKUP($B34,'International Exports-Detailed'!$A:$Q,F$6-2000,FALSE)),IF(AND($A34=TRUE,$C$2=2),(VLOOKUP($B34,'Rest of the UK Exports -Detail'!$A:$Q,F$6-2000,FALSE)),"")) -> 240 | G34: =IF(AND($A34=TRUE,$C$2=1),(VLOOKUP($B34,'International Exports-Detailed'!$A:$Q,G$6-2000,FALSE)),IF(AND($A34=TRUE,$C$2=2),(VLOOKUP($B34,'Rest of the UK Exports -Detail'!$A:$Q,G$6-2000,FALSE)),"")) -> 275 | H34: =IF(AND($A34=TRUE,$C$2=1),(VLOOKUP($B34,'International Exports-Detailed'!$A:$Q,H$6-2000,FALSE)),IF(AND($A34=TRUE,$C$2=2),(VLOOKUP($B34,'Rest of the UK Exports -Detail'!$A:$Q,H$6-2000,FALSE)),"")) -> 290 | I34: =IF(AND($A34=TRUE,$C$2=1),(VLOOKUP($B34,'International Exports-Detailed'!$A:$Q,I$6-2000,FALSE)),IF(AND($A34=TRUE,$C$2=2),(VLOOKUP($B34,'Rest of the UK Exports -Detail'!$A:$Q,I$6-2000,FALSE)),"")) -> 340 | J34: =IF(AND($A34=TRUE,$C$2=1),(VLOOKUP($B34,'International Exports-Detailed'!$A:$Q,J$6-2000,FALSE)),IF(AND($A34=TRUE,$C$2=2),(VLOOKUP($B34,'Rest of the UK Exports -Detail'!$A:$Q,J$6-2000,FALSE)),"")) -> 440 | K34: =IF(AND($A34=TRUE,$C$2=1),(VLOOKUP($B34,'International Exports-Detailed'!$A:$Q,K$6-2000,FALSE)),IF(AND($A34=TRUE,$C$2=2),(VLOOKUP($B34,'Rest of the UK Exports -Detail'!$A:$Q,K$6-2000,FALSE)),"")) -> 380 | L34: =IF(AND($A34=TRUE,$C$2=1),(VLOOKUP($B34,'International Exports-Detailed'!$A:$Q,L$6-2000,FALSE)),IF(AND($A34=TRUE,$C$2=2),(VLOOKUP($B34,'Rest of the UK Exports -Detail'!$A:$Q,L$6-2000,FALSE)),"")) -> 565 | M34: =IF(AND($A34=TRUE,$C$2=1),(VLOOKUP($B34,'International Exports-Detailed'!$A:$Q,M$6-2000,FALSE)),IF(AND($A34=TRUE,$C$2=2),(VLOOKUP($B34,'Rest of the UK Exports -Detail'!$A:$Q,M$6-2000,FALSE)),"")) -> 485 | N34: =IF(AND($A34=TRUE,$C$2=1),(VLOOKUP($B34,'International Exports-Detailed'!$A:$Q,N$6-2000,FALSE)),IF(AND($A34=TRUE,$C$2=2),(VLOOKUP($B34,'Rest of the UK Exports -Detail'!$A:$Q,N$6-2000,FALSE)),"")) -> 495 | O34: =IF(AND($A34=TRUE,$C$2=1),(VLOOKUP($B34,'International Exports-Detailed'!$A:$Q,O$6-2000,FALSE)),IF(AND($A34=TRUE,$C$2=2),(VLOOKUP($B34,'Rest of the UK Exports -Detail'!$A:$Q,O$6-2000,FALSE)),"")) -> 560 | P34: =IF(AND($A34=TRUE,$C$2=1),(VLOOKUP($B34,'International Exports-Detailed'!$A:$Q,P$6-2000,FALSE)),IF(AND($A34=TRUE,$C$2=2),(VLOOKUP($B34,'Rest of the UK Exports -Detail'!$A:$Q,P$6-2000,FALSE)),"")) -> 685 | Q34: =IF(AND($A34=TRUE,$C$2=1),(VLOOKUP($B34,'International Exports-Detailed'!$A:$Q,Q$6-2000,FALSE)),IF(AND($A34=TRUE,$C$2=2),(VLOOKUP($B34,'Rest of the UK Exports -Detail'!$A:$Q,Q$6-2000,FALSE)),"")) -> 775 | R34: =IF(AND($A34=TRUE,$C$2=1),(VLOOKUP($B34,'International Exports-Detailed'!$A:$Q,R$6-2000,FALSE)),IF(AND($A34=TRUE,$C$2=2),(VLOOKUP($B34,'Rest of the UK Exports -Detail'!$A:$Q,R$6-2000,FALSE)),"")) -> 680
A35: TRUE | B35: Financial Service Activities | C35: =IF(AND($A35=TRUE,$C$2=1),(VLOOKUP($B35,'International Exports-Detailed'!$A:$Q,C$6-2000,FALSE)),IF(AND($A35=TRUE,$C$2=2),(VLOOKUP($B35,'Rest of the UK Exports -Detail'!$A:$Q,C$6-2000,FALSE)),"")) -> 460 | D35: =IF(AND($A35=TRUE,$C$2=1),(VLOOKUP($B35,'International Exports-Detailed'!$A:$Q,D$6-2000,FALSE)),IF(AND($A35=TRUE,$C$2=2),(VLOOKUP($B35,'Rest of the UK Exports -Detail'!$A:$Q,D$6-2000,FALSE)),"")) -> 410 | E35: =IF(AND($A35=TRUE,$C$2=1),(VLOOKUP($B35,'International Exports-Detailed'!$A:$Q,E$6-2000,FALSE)),IF(AND($A35=TRUE,$C$2=2),(VLOOKUP($B35,'Rest of the UK Exports -Detail'!$A:$Q,E$6-2000,FALSE)),"")) -> 710 | F35: =IF(AND($A35=TRUE,$C$2=1),(VLOOKUP($B35,'International Exports-Detailed'!$A:$Q,F$6-2000,FALSE)),IF(AND($A35=TRUE,$C$2=2),(VLOOKUP($B35,'Rest of the UK Exports -Detail'!$A:$Q,F$6-2000,FALSE)),"")) -> 745 | G35: =IF(AND($A35=TRUE,$C$2=1),(VLOOKUP($B35,'International Exports-Detailed'!$A:$Q,G$6-2000,FALSE)),IF(AND($A35=TRUE,$C$2=2),(VLOOKUP($B35,'Rest of the UK Exports -Detail'!$A:$Q,G$6-2000,FALSE)),"")) -> 745 | H35: =IF(AND($A35=TRUE,$C$2=1),(VLOOKUP($B35,'International Exports-Detailed'!$A:$Q,H$6-2000,FALSE)),IF(AND($A35=TRUE,$C$2=2),(VLOOKUP($B35,'Rest of the UK Exports -Detail'!$A:$Q,H$6-2000,FALSE)),"")) -> 190 | I35: =IF(AND($A35=TRUE,$C$2=1),(VLOOKUP($B35,'International Exports-Detailed'!$A:$Q,I$6-2000,FALSE)),IF(AND($A35=TRUE,$C$2=2),(VLOOKUP($B35,'Rest of the UK Exports -Detail'!$A:$Q,I$6-2000,FALSE)),"")) -> 210 | J35: =IF(AND($A35=TRUE,$C$2=1),(VLOOKUP($B35,'International Exports-Detailed'!$A:$Q,J$6-2000,FALSE)),IF(AND($A35=TRUE,$C$2=2),(VLOOKUP($B35,'Rest of the UK Exports -Detail'!$A:$Q,J$6-2000,FALSE)),"")) -> 610 | K35: =IF(AND($A35=TRUE,$C$2=1),(VLOOKUP($B35,'International Exports-Detailed'!$A:$Q,K$6-2000,FALSE)),IF(AND($A35=TRUE,$C$2=2),(VLOOKUP($B35,'Rest of the UK Exports -Detail'!$A:$Q,K$6-2000,FALSE)),"")) -> 685 | L35: =IF(AND($A35=TRUE,$C$2=1),(VLOOKUP($B35,'International Exports-Detailed'!$A:$Q,L$6-2000,FALSE)),IF(AND($A35=TRUE,$C$2=2),(VLOOKUP($B35,'Rest of the UK Exports -Detail'!$A:$Q,L$6-2000,FALSE)),"")) -> 765 | M35: =IF(AND($A35=TRUE,$C$2=1),(VLOOKUP($B35,'International Exports-Detailed'!$A:$Q,M$6-2000,FALSE)),IF(AND($A35=TRUE,$C$2=2),(VLOOKUP($B35,'Rest of the UK Exports -Detail'!$A:$Q,M$6-2000,FALSE)),"")) -> 505 | N35: =IF(AND($A35=TRUE,$C$2=1),(VLOOKUP($B35,'International Exports-Detailed'!$A:$Q,N$6-2000,FALSE)),IF(AND($A35=TRUE,$C$2=2),(VLOOKUP($B35,'Rest of the UK Exports -Detail'!$A:$Q,N$6-2000,FALSE)),"")) -> 505 | O35: =IF(AND($A35=TRUE,$C$2=1),(VLOOKUP($B35,'International Exports-Detailed'!$A:$Q,O$6-2000,FALSE)),IF(AND($A35=TRUE,$C$2=2),(VLOOKUP($B35,'Rest of the UK Exports -Detail'!$A:$Q,O$6-2000,FALSE)),"")) -> 385 | P35: =IF(AND($A35=TRUE,$C$2=1),(VLOOKUP($B35,'International Exports-Detailed'!$A:$Q,P$6-2000,FALSE)),IF(AND($A35=TRUE,$C$2=2),(VLOOKUP($B35,'Rest of the UK Exports -Detail'!$A:$Q,P$6-2000,FALSE)),"")) -> 415 | Q35: =IF(AND($A35=TRUE,$C$2=1),(VLOOKUP($B35,'International Exports-Detailed'!$A:$Q,Q$6-2000,FALSE)),IF(AND($A35=TRUE,$C$2=2),(VLOOKUP($B35,'Rest of the UK Exports -Detail'!$A:$Q,Q$6-2000,FALSE)),"")) -> 500 | R35: =IF(AND($A35=TRUE,$C$2=1),(VLOOKUP($B35,'International Exports-Detailed'!$A:$Q,R$6-2000,FALSE)),IF(AND($A35=TRUE,$C$2=2),(VLOOKUP($B35,'Rest of the UK Exports -Detail'!$A:$Q,R$6-2000,FALSE)),"")) -> 590
A36: TRUE | B36: Legal and Accounting | C36: =IF(AND($A36=TRUE,$C$2=1),(VLOOKUP($B36,'International Exports-Detailed'!$A:$Q,C$6-2000,FALSE)),IF(AND($A36=TRUE,$C$2=2),(VLOOKUP($B36,'Rest of the UK Exports -Detail'!$A:$Q,C$6-2000,FALSE)),"")) -> 65 | D36: =IF(AND($A36=TRUE,$C$2=1),(VLOOKUP($B36,'International Exports-Detailed'!$A:$Q,D$6-2000,FALSE)),IF(AND($A36=TRUE,$C$2=2),(VLOOKUP($B36,'Rest of the UK Exports -Detail'!$A:$Q,D$6-2000,FALSE)),"")) -> 60 | E36: =IF(AND($A36=TRUE,$C$2=1),(VLOOKUP($B36,'International Exports-Detailed'!$A:$Q,E$6-2000,FALSE)),IF(AND($A36=TRUE,$C$2=2),(VLOOKUP($B36,'Rest of the UK Exports -Detail'!$A:$Q,E$6-2000,FALSE)),"")) -> 70 | F36: =IF(AND($A36=TRUE,$C$2=1),(VLOOKUP($B36,'International Exports-Detailed'!$A:$Q,F$6-2000,FALSE)),IF(AND($A36=TRUE,$C$2=2),(VLOOKUP($B36,'Rest of the UK Exports -Detail'!$A:$Q,F$6-2000,FALSE)),"")) -> 75 | G36: =IF(AND($A36=TRUE,$C$2=1),(VLOOKUP($B36,'International Exports-Detailed'!$A:$Q,G$6-2000,FALSE)),IF(AND($A36=TRUE,$C$2=2),(VLOOKUP($B36,'Rest of the UK Exports -Detail'!$A:$Q,G$6-2000,FALSE)),"")) -> 80 | H36: =IF(AND($A36=TRUE,$C$2=1),(VLOOKUP($B36,'International Exports-Detailed'!$A:$Q,H$6-2000,FALSE)),IF(AND($A36=TRUE,$C$2=2),(VLOOKUP($B36,'Rest of the UK Exports -Detail'!$A:$Q,H$6-2000,FALSE)),"")) -> 80 | I36: =IF(AND($A36=TRUE,$C$2=1),(VLOOKUP($B36,'International Exports-Detailed'!$A:$Q,I$6-2000,FALSE)),IF(AND($A36=TRUE,$C$2=2),(VLOOKUP($B36,'Rest of the UK Exports -Detail'!$A:$Q,I$6-2000,FALSE)),"")) -> 95 | J36: =IF(AND($A36=TRUE,$C$2=1),(VLOOKUP($B36,'International Exports-Detailed'!$A:$Q,J$6-2000,FALSE)),IF(AND($A36=TRUE,$C$2=2),(VLOOKUP($B36,'Rest of the UK Exports -Detail'!$A:$Q,J$6-2000,FALSE)),"")) -> 85 | K36: =IF(AND($A36=TRUE,$C$2=1),(VLOOKUP($B36,'International Exports-Detailed'!$A:$Q,K$6-2000,FALSE)),IF(AND($A36=TRUE,$C$2=2),(VLOOKUP($B36,'Rest of the UK Exports -Detail'!$A:$Q,K$6-2000,FALSE)),"")) -> 100 | L36: =IF(AND($A36=TRUE,$C$2=1),(VLOOKUP($B36,'International Exports-Detailed'!$A:$Q,L$6-2000,FALSE)),IF(AND($A36=TRUE,$C$2=2),(VLOOKUP($B36,'Rest of the UK Exports -Detail'!$A:$Q,L$6-2000,FALSE)),"")) -> 140 | M36: =IF(AND($A36=TRUE,$C$2=1),(VLOOKUP($B36,'International Exports-Detailed'!$A:$Q,M$6-2000,FALSE)),IF(AND($A36=TRUE,$C$2=2),(VLOOKUP($B36,'Rest of the UK Exports -Detail'!$A:$Q,M$6-2000,FALSE)),"")) -> 125 | N36: =IF(AND($A36=TRUE,$C$2=1),(VLOOKUP($B36,'International Exports-Detailed'!$A:$Q,N$6-2000,FALSE)),IF(AND($A36=TRUE,$C$2=2),(VLOOKUP($B36,'Rest of the UK Exports -Detail'!$A:$Q,N$6-2000,FALSE)),"")) -> 145 | O36: =IF(AND($A36=TRUE,$C$2=1),(VLOOKUP($B36,'International Exports-Detailed'!$A:$Q,O$6-2000,FALSE)),IF(AND($A36=TRUE,$C$2=2),(VLOOKUP($B36,'Rest of the UK Exports -Detail'!$A:$Q,O$6-2000,FALSE)),"")) -> 150 | P36: =IF(AND($A36=TRUE,$C$2=1),(VLOOKUP($B36,'International Exports-Detailed'!$A:$Q,P$6-2000,FALSE)),IF(AND($A36=TRUE,$C$2=2),(VLOOKUP($B36,'Rest of the UK Exports -Detail'!$A:$Q,P$6-2000,FALSE)),"")) -> 175 | Q36: =IF(AND($A36=TRUE,$C$2=1),(VLOOKUP($B36,'International Exports-Detailed'!$A:$Q,Q$6-2000,FALSE)),IF(AND($A36=TRUE,$C$2=2),(VLOOKUP($B36,'Rest of the UK Exports -Detail'!$A:$Q,Q$6-2000,FALSE)),"")) -> 195 | R36: =IF(AND($A36=TRUE,$C$2=1),(VLOOKUP($B36,'International Exports-Detailed'!$A:$Q,R$6-2000,FALSE)),IF(AND($A36=TRUE,$C$2=2),(VLOOKUP($B36,'Rest of the UK Exports -Detail'!$A:$Q,R$6-2000,FALSE)),"")) -> 240
A37: TRUE | B37: Insurance and Pensions | C37: =IF(AND($A37=TRUE,$C$2=1),(VLOOKUP($B37,'International Exports-Detailed'!$A:$Q,C$6-2000,FALSE)),IF(AND($A37=TRUE,$C$2=2),(VLOOKUP($B37,'Rest of the UK Exports -Detail'!$A:$Q,C$6-2000,FALSE)),"")) -> 5 | D37: =IF(AND($A37=TRUE,$C$2=1),(VLOOKUP($B37,'International Exports-Detailed'!$A:$Q,D$6-2000,FALSE)),IF(AND($A37=TRUE,$C$2=2),(VLOOKUP($B37,'Rest of the UK Exports -Detail'!$A:$Q,D$6-2000,FALSE)),"")) -> 40 | E37: =IF(AND($A37=TRUE,$C$2=1),(VLOOKUP($B37,'International Exports-Detailed'!$A:$Q,E$6-2000,FALSE)),IF(AND($A37=TRUE,$C$2=2),(VLOOKUP($B37,'Rest of the UK Exports -Detail'!$A:$Q,E$6-2000,FALSE)),"")) -> 30 | F37: =IF(AND($A37=TRUE,$C$2=1),(VLOOKUP($B37,'International Exports-Detailed'!$A:$Q,F$6-2000,FALSE)),IF(AND($A37=TRUE,$C$2=2),(VLOOKUP($B37,'Rest of the UK Exports -Detail'!$A:$Q,F$6-2000,FALSE)),"")) -> 25 | G37: =IF(AND($A37=TRUE,$C$2=1),(VLOOKUP($B37,'International Exports-Detailed'!$A:$Q,G$6-2000,FALSE)),IF(AND($A37=TRUE,$C$2=2),(VLOOKUP($B37,'Rest of the UK Exports -Detail'!$A:$Q,G$6-2000,FALSE)),"")) -> 35 | H37: =IF(AND($A37=TRUE,$C$2=1),(VLOOKUP($B37,'International Exports-Detailed'!$A:$Q,H$6-2000,FALSE)),IF(AND($A37=TRUE,$C$2=2),(VLOOKUP($B37,'Rest of the UK Exports -Detail'!$A:$Q,H$6-2000,FALSE)),"")) -> 35 | I37: =IF(AND($A37=TRUE,$C$2=1),(VLOOKUP($B37,'International Exports-Detailed'!$A:$Q,I$6-2000,FALSE)),IF(AND($A37=TRUE,$C$2=2),(VLOOKUP($B37,'Rest of the UK Exports -Detail'!$A:$Q,I$6-2000,FALSE)),"")) -> 5 | J37: =IF(AND($A37=TRUE,$C$2=1),(VLOOKUP($B37,'International Exports-Detailed'!$A:$Q,J$6-2000,FALSE)),IF(AND($A37=TRUE,$C$2=2),(VLOOKUP($B37,'Rest of the UK Exports -Detail'!$A:$Q,J$6-2000,FALSE)),"")) -> 15 | K37: =IF(AND($A37=TRUE,$C$2=1),(VLOOKUP($B37,'International Exports-Detailed'!$A:$Q,K$6-2000,FALSE)),IF(AND($A37=TRUE,$C$2=2),(VLOOKUP($B37,'Rest of the UK Exports -Detail'!$A:$Q,K$6-2000,FALSE)),"")) -> 20 | L37: =IF(AND($A37=TRUE,$C$2=1),(VLOOKUP($B37,'International Exports-Detailed'!$A:$Q,L$6-2000,FALSE)),IF(AND($A37=TRUE,$C$2=2),(VLOOKUP($B37,'Rest of the UK Exports -Detail'!$A:$Q,L$6-2000,FALSE)),"")) -> 20 | M37: =IF(AND($A37=TRUE,$C$2=1),(VLOOKUP($B37,'International Exports-Detailed'!$A:$Q,M$6-2000,FALSE)),IF(AND($A37=TRUE,$C$2=2),(VLOOKUP($B37,'Rest of the UK Exports -Detail'!$A:$Q,M$6-2000,FALSE)),"")) -> 15 | N37: =IF(AND($A37=TRUE,$C$2=1),(VLOOKUP($B37,'International Exports-Detailed'!$A:$Q,N$6-2000,FALSE)),IF(AND($A37=TRUE,$C$2=2),(VLOOKUP($B37,'Rest of the UK Exports -Detail'!$A:$Q,N$6-2000,FALSE)),"")) -> 15 | O37: =IF(AND($A37=TRUE,$C$2=1),(VLOOKUP($B37,'International Exports-Detailed'!$A:$Q,O$6-2000,FALSE)),IF(AND($A37=TRUE,$C$2=2),(VLOOKUP($B37,'Rest of the UK Exports -Detail'!$A:$Q,O$6-2000,FALSE)),"")) -> 15 | P37: =IF(AND($A37=TRUE,$C$2=1),(VLOOKUP($B37,'International Exports-Detailed'!$A:$Q,P$6-2000,FALSE)),IF(AND($A37=TRUE,$C$2=2),(VLOOKUP($B37,'Rest of the UK Exports -Detail'!$A:$Q,P$6-2000,FALSE)),"")) -> 10 | Q37: =IF(AND($A37=TRUE,$C$2=1),(VLOOKUP($B37,'International Exports-Detailed'!$A:$Q,Q$6-2000,FALSE)),IF(AND($A37=TRUE,$C$2=2),(VLOOKUP($B37,'Rest of the UK Exports -Detail'!$A:$Q,Q$6-2000,FALSE)),"")) -> 10 | R37: =IF(AND($A37=TRUE,$C$2=1),(VLOOKUP($B37,'International Exports-Detailed'!$A:$Q,R$6-2000,FALSE)),IF(AND($A37=TRUE,$C$2=2),(VLOOKUP($B37,'Rest of the UK Exports -Detail'!$A:$Q,R$6-2000,FALSE)),"")) -> 10
B40: Chemical Sciences Chart
A41: Chart control | C41: 2002 | D41: 2003 | E41: 2004 | F41: 2005 | G41: 2006 | H41: 2007 | I41: 2008 | J41: 2009 | K41: 2010 | L41: 2011 | M41: 2012 | N41: 2013 | O41: 2014 | P41: 2015 | Q41: 2016 | R41: 2017
A42: TRUE | B42: Chemical Sciences | C42: =IF(AND($A42=TRUE,$C$2=1),(VLOOKUP($B42,'International Exports-Detailed'!$A:$Q,C$6-2000,FALSE)),IF(AND($A42=TRUE,$C$2=2),(VLOOKUP($B42,'Rest of the UK Exports -Detail'!$A:$Q,C$6-2000,FALSE)),"")) -> 1950 | D42: =IF(AND($A42=TRUE,$C$2=1),(VLOOKUP($B42,'International Exports-Detailed'!$A:$Q,D$6-2000,FALSE)),IF(AND($A42=TRUE,$C$2=2),(VLOOKUP($B42,'Rest of the UK Exports -Detail'!$A:$Q,D$6-2000,FALSE)),"")) -> 1985 | E42: =IF(AND($A42=TRUE,$C$2=1),(VLOOKUP($B42,'International Exports-Detailed'!$A:$Q,E$6-2000,FALSE)),IF(AND($A42=TRUE,$C$2=2),(VLOOKUP($B42,'Rest of the UK Exports -Detail'!$A:$Q,E$6-2000,FALSE)),"")) -> 2045 | F42: =IF(AND($A42=TRUE,$C$2=1),(VLOOKUP($B42,'International Exports-Detailed'!$A:$Q,F$6-2000,FALSE)),IF(AND($A42=TRUE,$C$2=2),(VLOOKUP($B42,'Rest of the UK Exports -Detail'!$A:$Q,F$6-2000,FALSE)),"")) -> 2155 | G42: =IF(AND($A42=TRUE,$C$2=1),(VLOOKUP($B42,'International Exports-Detailed'!$A:$Q,G$6-2000,FALSE)),IF(AND($A42=TRUE,$C$2=2),(VLOOKUP($B42,'Rest of the UK Exports -Detail'!$A:$Q,G$6-2000,FALSE)),"")) -> 2310 | H42: =IF(AND($A42=TRUE,$C$2=1),(VLOOKUP($B42,'International Exports-Detailed'!$A:$Q,H$6-2000,FALSE)),IF(AND($A42=TRUE,$C$2=2),(VLOOKUP($B42,'Rest of the UK Exports -Detail'!$A:$Q,H$6-2000,FALSE)),"")) -> 2510 | I42: =IF(AND($A42=TRUE,$C$2=1),(VLOOKUP($B42,'International Exports-Detailed'!$A:$Q,I$6-2000,FALSE)),IF(AND($A42=TRUE,$C$2=2),(VLOOKUP($B42,'Rest of the UK Exports -Detail'!$A:$Q,I$6-2000,FALSE)),"")) -> 2990 | J42: =IF(AND($A42=TRUE,$C$2=1),(VLOOKUP($B42,'International Exports-Detailed'!$A:$Q,J$6-2000,FALSE)),IF(AND($A42=TRUE,$C$2=2),(VLOOKUP($B42,'Rest of the UK Exports -Detail'!$A:$Q,J$6-2000,FALSE)),"")) -> 2320 | K42: =IF(AND($A42=TRUE,$C$2=1),(VLOOKUP($B42,'International Exports-Detailed'!$A:$Q,K$6-2000,FALSE)),IF(AND($A42=TRUE,$C$2=2),(VLOOKUP($B42,'Rest of the UK Exports -Detail'!$A:$Q,K$6-2000,FALSE)),"")) -> 2550 | L42: =IF(AND($A42=TRUE,$C$2=1),(VLOOKUP($B42,'International Exports-Detailed'!$A:$Q,L$6-2000,FALSE)),IF(AND($A42=TRUE,$C$2=2),(VLOOKUP($B42,'Rest of the UK Exports -Detail'!$A:$Q,L$6-2000,FALSE)),"")) -> 3345 | M42: =IF(AND($A42=TRUE,$C$2=1),(VLOOKUP($B42,'International Exports-Detailed'!$A:$Q,M$6-2000,FALSE)),IF(AND($A42=TRUE,$C$2=2),(VLOOKUP($B42,'Rest of the UK Exports -Detail'!$A:$Q,M$6-2000,FALSE)),"")) -> 2825 | N42: =IF(AND($A42=TRUE,$C$2=1),(VLOOKUP($B42,'International Exports-Detailed'!$A:$Q,N$6-2000,FALSE)),IF(AND($A42=TRUE,$C$2=2),(VLOOKUP($B42,'Rest of the UK Exports -Detail'!$A:$Q,N$6-2000,FALSE)),"")) -> 2755 | O42: =IF(AND($A42=TRUE,$C$2=1),(VLOOKUP($B42,'International Exports-Detailed'!$A:$Q,O$6-2000,FALSE)),IF(AND($A42=TRUE,$C$2=2),(VLOOKUP($B42,'Rest of the UK Exports -Detail'!$A:$Q,O$6-2000,FALSE)),"")) -> 2130 | P42: =IF(AND($A42=TRUE,$C$2=1),(VLOOKUP($B42,'International Exports-Detailed'!$A:$Q,P$6-2000,FALSE)),IF(AND($A42=TRUE,$C$2=2),(VLOOKUP($B42,'Rest of the UK Exports -Detail'!$A:$Q,P$6-2000,FALSE)),"")) -> 2580 | Q42: =IF(AND($A42=TRUE,$C$2=1),(VLOOKUP($B42,'International Exports-Detailed'!$A:$Q,Q$6-2000,FALSE)),IF(AND($A42=TRUE,$C$2=2),(VLOOKUP($B42,'Rest of the UK Exports -Detail'!$A:$Q,Q$6-2000,FALSE)),"")) -> 2345 | R42: =IF(AND($A42=TRUE,$C$2=1),(VLOOKUP($B42,'International Exports-Detailed'!$A:$Q,R$6-2000,FALSE)),IF(AND($A42=TRUE,$C$2=2),(VLOOKUP($B42,'Rest of the UK Exports -Detail'!$A:$Q,R$6-2000,FALSE)),"")) -> 3160
B46: Digital Economy Chart
A47: Chart control | C47: 2002 | D47: 2003 | E47: 2004 | F47: 2005 | G47: 2006 | H47: 2007 | I47: 2008 | J47: 2009 | K47: 2010 | L47: 2011 | M47: 2012 | N47: 2013 | O47: 2014 | P47: 2015 | Q47: 2016 | R47: 2017
A48: TRUE | B48: Technology, Digital and Media | C48: =IF(AND($A48=TRUE,$C$2=1),(VLOOKUP($B48,'International Exports-Detailed'!$A:$Q,C$6-2000,FALSE)),IF(AND($A48=TRUE,$C$2=2),(VLOOKUP($B48,'Rest of the UK Exports -Detail'!$A:$Q,C$6-2000,FALSE)),"")) -> 5920 | D48: =IF(AND($A48=TRUE,$C$2=1),(VLOOKUP($B48,'International Exports-Detailed'!$A:$Q,D$6-2000,FALSE)),IF(AND($A48=TRUE,$C$2=2),(VLOOKUP($B48,'Rest of the UK Exports -Detail'!$A:$Q,D$6-2000,FALSE)),"")) -> 4690 | E48: =IF(AND($A48=TRUE,$C$2=1),(VLOOKUP($B48,'International Exports-Detailed'!$A:$Q,E$6-2000,FALSE)),IF(AND($A48=TRUE,$C$2=2),(VLOOKUP($B48,'Rest of the UK Exports -Detail'!$A:$Q,E$6-2000,FALSE)),"")) -> 3705 | F48: =IF(AND($A48=TRUE,$C$2=1),(VLOOKUP($B48,'International Exports-Detailed'!$A:$Q,F$6-2000,FALSE)),IF(AND($A48=TRUE,$C$2=2),(VLOOKUP($B48,'Rest of the UK Exports -Detail'!$A:$Q,F$6-2000,FALSE)),"")) -> 2715 | G48: =IF(AND($A48=TRUE,$C$2=1),(VLOOKUP($B48,'International Exports-Detailed'!$A:$Q,G$6-2000,FALSE)),IF(AND($A48=TRUE,$C$2=2),(VLOOKUP($B48,'Rest of the UK Exports -Detail'!$A:$Q,G$6-2000,FALSE)),"")) -> 2460 | H48: =IF(AND($A48=TRUE,$C$2=1),(VLOOKUP($B48,'International Exports-Detailed'!$A:$Q,H$6-2000,FALSE)),IF(AND($A48=TRUE,$C$2=2),(VLOOKUP($B48,'Rest of the UK Exports -Detail'!$A:$Q,H$6-2000,FALSE)),"")) -> 2200 | I48: =IF(AND($A48=TRUE,$C$2=1),(VLOOKUP($B48,'International Exports-Detailed'!$A:$Q,I$6-2000,FALSE)),IF(AND($A48=TRUE,$C$2=2),(VLOOKUP($B48,'Rest of the UK Exports -Detail'!$A:$Q,I$6-2000,FALSE)),"")) -> 2270 | J48: =IF(AND($A48=TRUE,$C$2=1),(VLOOKUP($B48,'International Exports-Detailed'!$A:$Q,J$6-2000,FALSE)),IF(AND($A48=TRUE,$C$2=2),(VLOOKUP($B48,'Rest of the UK Exports -Detail'!$A:$Q,J$6-2000,FALSE)),"")) -> 2190 | K48: =IF(AND($A48=TRUE,$C$2=1),(VLOOKUP($B48,'International Exports-Detailed'!$A:$Q,K$6-2000,FALSE)),IF(AND($A48=TRUE,$C$2=2),(VLOOKUP($B48,'Rest of the UK Exports -Detail'!$A:$Q,K$6-2000,FALSE)),"")) -> 2180 | L48: =IF(AND($A48=TRUE,$C$2=1),(VLOOKUP($B48,'International Exports-Detailed'!$A:$Q,L$6-2000,FALSE)),IF(AND($A48=TRUE,$C$2=2),(VLOOKUP($B48,'Rest of the UK Exports -Detail'!$A:$Q,L$6-2000,FALSE)),"")) -> 2185 | M48: =IF(AND($A48=TRUE,$C$2=1),(VLOOKUP($B48,'International Exports-Detailed'!$A:$Q,M$6-2000,FALSE)),IF(AND($A48=TRUE,$C$2=2),(VLOOKUP($B48,'Rest of the UK Exports -Detail'!$A:$Q,M$6-2000,FALSE)),"")) -> 2170 | N48: =IF(AND($A48=TRUE,$C$2=1),(VLOOKUP($B48,'International Exports-Detailed'!$A:$Q,N$6-2000,FALSE)),IF(AND($A48=TRUE,$C$2=2),(VLOOKUP($B48,'Rest of the UK Exports -Detail'!$A:$Q,N$6-2000,FALSE)),"")) -> 2400 | O48: =IF(AND($A48=TRUE,$C$2=1),(VLOOKUP($B48,'International Exports-Detailed'!$A:$Q,O$6-2000,FALSE)),IF(AND($A48=TRUE,$C$2=2),(VLOOKUP($B48,'Rest of the UK Exports -Detail'!$A:$Q,O$6-2000,FALSE)),"")) -> 2055 | P48: =IF(AND($A48=TRUE,$C$2=1),(VLOOKUP($B48,'International Exports-Detailed'!$A:$Q,P$6-2000,FALSE)),IF(AND($A48=TRUE,$C$2=2),(VLOOKUP($B48,'Rest of the UK Exports -Detail'!$A:$Q,P$6-2000,FALSE)),"")) -> 2530 | Q48: =IF(AND($A48=TRUE,$C$2=1),(VLOOKUP($B48,'International Exports-Detailed'!$A:$Q,Q$6-2000,FALSE)),IF(AND($A48=TRUE,$C$2=2),(VLOOKUP($B48,'Rest of the UK Exports -Detail'!$A:$Q,Q$6-2000,FALSE)),"")) -> 2415 | R48: =IF(AND($A48=TRUE,$C$2=1),(VLOOKUP($B48,'International Exports-Detailed'!$A:$Q,R$6-2000,FALSE)),IF(AND($A48=TRUE,$C$2=2),(VLOOKUP($B48,'Rest of the UK Exports -Detail'!$A:$Q,R$6-2000,FALSE)),"")) -> 3345
A49: TRUE | B49: Manufacture of Computer, Electronic and Optical Products | C49: =IF(AND($A49=TRUE,$C$2=1),(VLOOKUP($B49,'International Exports-Detailed'!$A:$Q,C$6-2000,FALSE)),IF(AND($A49=TRUE,$C$2=2),(VLOOKUP($B49,'Rest of the UK Exports -Detail'!$A:$Q,C$6-2000,FALSE)),"")) -> 5570 | D49: =IF(AND($A49=TRUE,$C$2=1),(VLOOKUP($B49,'International Exports-Detailed'!$A:$Q,D$6-2000,FALSE)),IF(AND($A49=TRUE,$C$2=2),(VLOOKUP($B49,'Rest of the UK Exports -Detail'!$A:$Q,D$6-2000,FALSE)),"")) -> 4275 | E49: =IF(AND($A49=TRUE,$C$2=1),(VLOOKUP($B49,'International Exports-Detailed'!$A:$Q,E$6-2000,FALSE)),IF(AND($A49=TRUE,$C$2=2),(VLOOKUP($B49,'Rest of the UK Exports -Detail'!$A:$Q,E$6-2000,FALSE)),"")) -> 3230 | F49: =IF(AND($A49=TRUE,$C$2=1),(VLOOKUP($B49,'International Exports-Detailed'!$A:$Q,F$6-2000,FALSE)),IF(AND($A49=TRUE,$C$2=2),(VLOOKUP($B49,'Rest of the UK Exports -Detail'!$A:$Q,F$6-2000,FALSE)),"")) -> 2110 | G49: =IF(AND($A49=TRUE,$C$2=1),(VLOOKUP($B49,'International Exports-Detailed'!$A:$Q,G$6-2000,FALSE)),IF(AND($A49=TRUE,$C$2=2),(VLOOKUP($B49,'Rest of the UK Exports -Detail'!$A:$Q,G$6-2000,FALSE)),"")) -> 1810 | H49: =IF(AND($A49=TRUE,$C$2=1),(VLOOKUP($B49,'International Exports-Detailed'!$A:$Q,H$6-2000,FALSE)),IF(AND($A49=TRUE,$C$2=2),(VLOOKUP($B49,'Rest of the UK Exports -Detail'!$A:$Q,H$6-2000,FALSE)),"")) -> 1590 | I49: =IF(AND($A49=TRUE,$C$2=1),(VLOOKUP($B49,'International Exports-Detailed'!$A:$Q,I$6-2000,FALSE)),IF(AND($A49=TRUE,$C$2=2),(VLOOKUP($B49,'Rest of the UK Exports -Detail'!$A:$Q,I$6-2000,FALSE)),"")) -> 1495 | J49: =IF(AND($A49=TRUE,$C$2=1),(VLOOKUP($B49,'International Exports-Detailed'!$A:$Q,J$6-2000,FALSE)),IF(AND($A49=TRUE,$C$2=2),(VLOOKUP($B49,'Rest of the UK Exports -Detail'!$A:$Q,J$6-2000,FALSE)),"")) -> 1455 | K49: =IF(AND($A49=TRUE,$C$2=1),(VLOOKUP($B49,'International Exports-Detailed'!$A:$Q,K$6-2000,FALSE)),IF(AND($A49=TRUE,$C$2=2),(VLOOKUP($B49,'Rest of the UK Exports -Detail'!$A:$Q,K$6-2000,FALSE)),"")) -> 1390 | L49: =IF(AND($A49=TRUE,$C$2=1),(VLOOKUP($B49,'International Exports-Detailed'!$A:$Q,L$6-2000,FALSE)),IF(AND($A49=TRUE,$C$2=2),(VLOOKUP($B49,'Rest of the UK Exports -Detail'!$A:$Q,L$6-2000,FALSE)),"")) -> 1385 | M49: =IF(AND($A49=TRUE,$C$2=1),(VLOOKUP($B49,'International Exports-Detailed'!$A:$Q,M$6-2000,FALSE)),IF(AND($A49=TRUE,$C$2=2),(VLOOKUP($B49,'Rest of the UK Exports -Detail'!$A:$Q,M$6-2000,FALSE)),"")) -> 1395 | N49: =IF(AND($A49=TRUE,$C$2=1),(VLOOKUP($B49,'International Exports-Detailed'!$A:$Q,N$6-2000,FALSE)),IF(AND($A49=TRUE,$C$2=2),(VLOOKUP($B49,'Rest of the UK Exports -Detail'!$A:$Q,N$6-2000,FALSE)),"")) -> 1600 | O49: =IF(AND($A49=TRUE,$C$2=1),(VLOOKUP($B49,'International Exports-Detailed'!$A:$Q,O$6-2000,FALSE)),IF(AND($A49=TRUE,$C$2=2),(VLOOKUP($B49,'Rest of the UK Exports -Detail'!$A:$Q,O$6-2000,FALSE)),"")) -> 1120 | P49: =IF(AND($A49=TRUE,$C$2=1),(VLOOKUP($B49,'International Exports-Detailed'!$A:$Q,P$6-2000,FALSE)),IF(AND($A49=TRUE,$C$2=2),(VLOOKUP($B49,'Rest of the UK Exports -Detail'!$A:$Q,P$6-2000,FALSE)),"")) -> 1355 | Q49: =IF(AND($A49=TRUE,$C$2=1),(VLOOKUP($B49,'International Exports-Detailed'!$A:$Q,Q$6-2000,FALSE)),IF(AND($A49=TRUE,$C$2=2),(VLOOKUP($B49,'Rest of the UK Exports -Detail'!$A:$Q,Q$6-2000,FALSE)),"")) -> 1335 | R49: =IF(AND($A49=TRUE,$C$2=1),(VLOOKUP($B49,'International Exports-Detailed'!$A:$Q,R$6-2000,FALSE)),IF(AND($A49=TRUE,$C$2=2),(VLOOKUP($B49,'Rest of the UK Exports -Detail'!$A:$Q,R$6-2000,FALSE)),"")) -> 1885
A50: TRUE | B50: Digital Industries | C50: =IF(AND($A50=TRUE,$C$2=1),(VLOOKUP($B50,'International Exports-Detailed'!$A:$Q,C$6-2000,FALSE)),IF(AND($A50=TRUE,$C$2=2),(VLOOKUP($B50,'Rest of the UK Exports -Detail'!$A:$Q,C$6-2000,FALSE)),"")) -> 220 | D50: =IF(AND($A50=TRUE,$C$2=1),(VLOOKUP($B50,'International Exports-Detailed'!$A:$Q,D$6-2000,FALSE)),IF(AND($A50=TRUE,$C$2=2),(VLOOKUP($B50,'Rest of the UK Exports -Detail'!$A:$Q,D$6-2000,FALSE)),"")) -> 225 | E50: =IF(AND($A50=TRUE,$C$2=1),(VLOOKUP($B50,'International Exports-Detailed'!$A:$Q,E$6-2000,FALSE)),IF(AND($A50=TRUE,$C$2=2),(VLOOKUP($B50,'Rest of the UK Exports -Detail'!$A:$Q,E$6-2000,FALSE)),"")) -> 235 | F50: =IF(AND($A50=TRUE,$C$2=1),(VLOOKUP($B50,'International Exports-Detailed'!$A:$Q,F$6-2000,FALSE)),IF(AND($A50=TRUE,$C$2=2),(VLOOKUP($B50,'Rest of the UK Exports -Detail'!$A:$Q,F$6-2000,FALSE)),"")) -> 315 | G50: =IF(AND($A50=TRUE,$C$2=1),(VLOOKUP($B50,'International Exports-Detailed'!$A:$Q,G$6-2000,FALSE)),IF(AND($A50=TRUE,$C$2=2),(VLOOKUP($B50,'Rest of the UK Exports -Detail'!$A:$Q,G$6-2000,FALSE)),"")) -> 400 | H50: =IF(AND($A50=TRUE,$C$2=1),(VLOOKUP($B50,'International Exports-Detailed'!$A:$Q,H$6-2000,FALSE)),IF(AND($A50=TRUE,$C$2=2),(VLOOKUP($B50,'Rest of the UK Exports -Detail'!$A:$Q,H$6-2000,FALSE)),"")) -> 345 | I50: =IF(AND($A50=TRUE,$C$2=1),(VLOOKUP($B50,'International Exports-Detailed'!$A:$Q,I$6-2000,FALSE)),IF(AND($A50=TRUE,$C$2=2),(VLOOKUP($B50,'Rest of the UK Exports -Detail'!$A:$Q,I$6-2000,FALSE)),"")) -> 470 | J50: =IF(AND($A50=TRUE,$C$2=1),(VLOOKUP($B50,'International Exports-Detailed'!$A:$Q,J$6-2000,FALSE)),IF(AND($A50=TRUE,$C$2=2),(VLOOKUP($B50,'Rest of the UK Exports -Detail'!$A:$Q,J$6-2000,FALSE)),"")) -> 385 | K50: =IF(AND($A50=TRUE,$C$2=1),(VLOOKUP($B50,'International Exports-Detailed'!$A:$Q,K$6-2000,FALSE)),IF(AND($A50=TRUE,$C$2=2),(VLOOKUP($B50,'Rest of the UK Exports -Detail'!$A:$Q,K$6-2000,FALSE)),"")) -> 450 | L50: =IF(AND($A50=TRUE,$C$2=1),(VLOOKUP($B50,'International Exports-Detailed'!$A:$Q,L$6-2000,FALSE)),IF(AND($A50=TRUE,$C$2=2),(VLOOKUP($B50,'Rest of the UK Exports -Detail'!$A:$Q,L$6-2000,FALSE)),"")) -> 445 | M50: =IF(AND($A50=TRUE,$C$2=1),(VLOOKUP($B50,'International Exports-Detailed'!$A:$Q,M$6-2000,FALSE)),IF(AND($A50=TRUE,$C$2=2),(VLOOKUP($B50,'Rest of the UK Exports -Detail'!$A:$Q,M$6-2000,FALSE)),"")) -> 450 | N50: =IF(AND($A50=TRUE,$C$2=1),(VLOOKUP($B50,'International Exports-Detailed'!$A:$Q,N$6-2000,FALSE)),IF(AND($A50=TRUE,$C$2=2),(VLOOKUP($B50,'Rest of the UK Exports -Detail'!$A:$Q,N$6-2000,FALSE)),"")) -> 485 | O50: =IF(AND($A50=TRUE,$C$2=1),(VLOOKUP($B50,'International Exports-Detailed'!$A:$Q,O$6-2000,FALSE)),IF(AND($A50=TRUE,$C$2=2),(VLOOKUP($B50,'Rest of the UK Exports -Detail'!$A:$Q,O$6-2000,FALSE)),"")) -> 545 | P50: =IF(AND($A50=TRUE,$C$2=1),(VLOOKUP($B50,'International Exports-Detailed'!$A:$Q,P$6-2000,FALSE)),IF(AND($A50=TRUE,$C$2=2),(VLOOKUP($B50,'Rest of the UK Exports -Detail'!$A:$Q,P$6-2000,FALSE)),"")) -> 690 | Q50: =IF(AND($A50=TRUE,$C$2=1),(VLOOKUP($B50,'International Exports-Detailed'!$A:$Q,Q$6-2000,FALSE)),IF(AND($A50=TRUE,$C$2=2),(VLOOKUP($B50,'Rest of the UK Exports -Detail'!$A:$Q,Q$6-2000,FALSE)),"")) -> 605 | R50: =IF(AND($A50=TRUE,$C$2=1),(VLOOKUP($B50,'International Exports-Detailed'!$A:$Q,R$6-2000,FALSE)),IF(AND($A50=TRUE,$C$2=2),(VLOOKUP($B50,'Rest of the UK Exports -Detail'!$A:$Q,R$6-2000,FALSE)),"")) -> 895
A51: TRUE | B51: IT and Telecommunications | C51: =IF(AND($A51=TRUE,$C$2=1),(VLOOKUP($B51,'International Exports-Detailed'!$A:$Q,C$6-2000,FALSE)),IF(AND($A51=TRUE,$C$2=2),(VLOOKUP($B51,'Rest of the UK Exports -Detail'!$A:$Q,C$6-2000,FALSE)),"")) -> 35 | D51: =IF(AND($A51=TRUE,$C$2=1),(VLOOKUP($B51,'International Exports-Detailed'!$A:$Q,D$6-2000,FALSE)),IF(AND($A51=TRUE,$C$2=2),(VLOOKUP($B51,'Rest of the UK Exports -Detail'!$A:$Q,D$6-2000,FALSE)),"")) -> 65 | E51: =IF(AND($A51=TRUE,$C$2=1),(VLOOKUP($B51,'International Exports-Detailed'!$A:$Q,E$6-2000,FALSE)),IF(AND($A51=TRUE,$C$2=2),(VLOOKUP($B51,'Rest of the UK Exports -Detail'!$A:$Q,E$6-2000,FALSE)),"")) -> 130 | F51: =IF(AND($A51=TRUE,$C$2=1),(VLOOKUP($B51,'International Exports-Detailed'!$A:$Q,F$6-2000,FALSE)),IF(AND($A51=TRUE,$C$2=2),(VLOOKUP($B51,'Rest of the UK Exports -Detail'!$A:$Q,F$6-2000,FALSE)),"")) -> 185 | G51: =IF(AND($A51=TRUE,$C$2=1),(VLOOKUP($B51,'International Exports-Detailed'!$A:$Q,G$6-2000,FALSE)),IF(AND($A51=TRUE,$C$2=2),(VLOOKUP($B51,'Rest of the UK Exports -Detail'!$A:$Q,G$6-2000,FALSE)),"")) -> 135 | H51: =IF(AND($A51=TRUE,$C$2=1),(VLOOKUP($B51,'International Exports-Detailed'!$A:$Q,H$6-2000,FALSE)),IF(AND($A51=TRUE,$C$2=2),(VLOOKUP($B51,'Rest of the UK Exports -Detail'!$A:$Q,H$6-2000,FALSE)),"")) -> 140 | I51: =IF(AND($A51=TRUE,$C$2=1),(VLOOKUP($B51,'International Exports-Detailed'!$A:$Q,I$6-2000,FALSE)),IF(AND($A51=TRUE,$C$2=2),(VLOOKUP($B51,'Rest of the UK Exports -Detail'!$A:$Q,I$6-2000,FALSE)),"")) -> 200 | J51: =IF(AND($A51=TRUE,$C$2=1),(VLOOKUP($B51,'International Exports-Detailed'!$A:$Q,J$6-2000,FALSE)),IF(AND($A51=TRUE,$C$2=2),(VLOOKUP($B51,'Rest of the UK Exports -Detail'!$A:$Q,J$6-2000,FALSE)),"")) -> 210 | K51: =IF(AND($A51=TRUE,$C$2=1),(VLOOKUP($B51,'International Exports-Detailed'!$A:$Q,K$6-2000,FALSE)),IF(AND($A51=TRUE,$C$2=2),(VLOOKUP($B51,'Rest of the UK Exports -Detail'!$A:$Q,K$6-2000,FALSE)),"")) -> 220 | L51: =IF(AND($A51=TRUE,$C$2=1),(VLOOKUP($B51,'International Exports-Detailed'!$A:$Q,L$6-2000,FALSE)),IF(AND($A51=TRUE,$C$2=2),(VLOOKUP($B51,'Rest of the UK Exports -Detail'!$A:$Q,L$6-2000,FALSE)),"")) -> 215 | M51: =IF(AND($A51=TRUE,$C$2=1),(VLOOKUP($B51,'International Exports-Detailed'!$A:$Q,M$6-2000,FALSE)),IF(AND($A51=TRUE,$C$2=2),(VLOOKUP($B51,'Rest of the UK Exports -Detail'!$A:$Q,M$6-2000,FALSE)),"")) -> 195 | N51: =IF(AND($A51=TRUE,$C$2=1),(VLOOKUP($B51,'International Exports-Detailed'!$A:$Q,N$6-2000,FALSE)),IF(AND($A51=TRUE,$C$2=2),(VLOOKUP($B51,'Rest of the UK Exports -Detail'!$A:$Q,N$6-2000,FALSE)),"")) -> 225 | O51: =IF(AND($A51=TRUE,$C$2=1),(VLOOKUP($B51,'International Exports-Detailed'!$A:$Q,O$6-2000,FALSE)),IF(AND($A51=TRUE,$C$2=2),(VLOOKUP($B51,'Rest of the UK Exports -Detail'!$A:$Q,O$6-2000,FALSE)),"")) -> 295 | P51: =IF(AND($A51=TRUE,$C$2=1),(VLOOKUP($B51,'International Exports-Detailed'!$A:$Q,P$6-2000,FALSE)),IF(AND($A51=TRUE,$C$2=2),(VLOOKUP($B51,'Rest of the UK Exports -Detail'!$A:$Q,P$6-2000,FALSE)),"")) -> 375 | Q51: =IF(AND($A51=TRUE,$C$2=1),(VLOOKUP($B51,'International Exports-Detailed'!$A:$Q,Q$6-2000,FALSE)),IF(AND($A51=TRUE,$C$2=2),(VLOOKUP($B51,'Rest of the UK Exports -Detail'!$A:$Q,Q$6-2000,FALSE)),"")) -> 365 | R51: =IF(AND($A51=TRUE,$C$2=1),(VLOOKUP($B51,'International Exports-Detailed'!$A:$Q,R$6-2000,FALSE)),IF(AND($A51=TRUE,$C$2=2),(VLOOKUP($B51,'Rest of the UK Exports -Detail'!$A:$Q,R$6-2000,FALSE)),"")) -> 435
A52: TRUE | B52: Publishing and Audio Visual | C52: =IF(AND($A52=TRUE,$C$2=1),(VLOOKUP($B52,'International Exports-Detailed'!$A:$Q,C$6-2000,FALSE)),IF(AND($A52=TRUE,$C$2=2),(VLOOKUP($B52,'Rest of the UK Exports -Detail'!$A:$Q,C$6-2000,FALSE)),"")) -> 95 | D52: =IF(AND($A52=TRUE,$C$2=1),(VLOOKUP($B52,'International Exports-Detailed'!$A:$Q,D$6-2000,FALSE)),IF(AND($A52=TRUE,$C$2=2),(VLOOKUP($B52,'Rest of the UK Exports -Detail'!$A:$Q,D$6-2000,FALSE)),"")) -> 120 | E52: =IF(AND($A52=TRUE,$C$2=1),(VLOOKUP($B52,'International Exports-Detailed'!$A:$Q,E$6-2000,FALSE)),IF(AND($A52=TRUE,$C$2=2),(VLOOKUP($B52,'Rest of the UK Exports -Detail'!$A:$Q,E$6-2000,FALSE)),"")) -> 110 | F52: =IF(AND($A52=TRUE,$C$2=1),(VLOOKUP($B52,'International Exports-Detailed'!$A:$Q,F$6-2000,FALSE)),IF(AND($A52=TRUE,$C$2=2),(VLOOKUP($B52,'Rest of the UK Exports -Detail'!$A:$Q,F$6-2000,FALSE)),"")) -> 110 | G52: =IF(AND($A52=TRUE,$C$2=1),(VLOOKUP($B52,'International Exports-Detailed'!$A:$Q,G$6-2000,FALSE)),IF(AND($A52=TRUE,$C$2=2),(VLOOKUP($B52,'Rest of the UK Exports -Detail'!$A:$Q,G$6-2000,FALSE)),"")) -> 120 | H52: =IF(AND($A52=TRUE,$C$2=1),(VLOOKUP($B52,'International Exports-Detailed'!$A:$Q,H$6-2000,FALSE)),IF(AND($A52=TRUE,$C$2=2),(VLOOKUP($B52,'Rest of the UK Exports -Detail'!$A:$Q,H$6-2000,FALSE)),"")) -> 130 | I52: =IF(AND($A52=TRUE,$C$2=1),(VLOOKUP($B52,'International Exports-Detailed'!$A:$Q,I$6-2000,FALSE)),IF(AND($A52=TRUE,$C$2=2),(VLOOKUP($B52,'Rest of the UK Exports -Detail'!$A:$Q,I$6-2000,FALSE)),"")) -> 110 | J52: =IF(AND($A52=TRUE,$C$2=1),(VLOOKUP($B52,'International Exports-Detailed'!$A:$Q,J$6-2000,FALSE)),IF(AND($A52=TRUE,$C$2=2),(VLOOKUP($B52,'Rest of the UK Exports -Detail'!$A:$Q,J$6-2000,FALSE)),"")) -> 135 | K52: =IF(AND($A52=TRUE,$C$2=1),(VLOOKUP($B52,'International Exports-Detailed'!$A:$Q,K$6-2000,FALSE)),IF(AND($A52=TRUE,$C$2=2),(VLOOKUP($B52,'Rest of the UK Exports -Detail'!$A:$Q,K$6-2000,FALSE)),"")) -> 115 | L52: =IF(AND($A52=TRUE,$C$2=1),(VLOOKUP($B52,'International Exports-Detailed'!$A:$Q,L$6-2000,FALSE)),IF(AND($A52=TRUE,$C$2=2),(VLOOKUP($B52,'Rest of the UK Exports -Detail'!$A:$Q,L$6-2000,FALSE)),"")) -> 135 | M52: =IF(AND($A52=TRUE,$C$2=1),(VLOOKUP($B52,'International Exports-Detailed'!$A:$Q,M$6-2000,FALSE)),IF(AND($A52=TRUE,$C$2=2),(VLOOKUP($B52,'Rest of the UK Exports -Detail'!$A:$Q,M$6-2000,FALSE)),"")) -> 130 | N52: =IF(AND($A52=TRUE,$C$2=1),(VLOOKUP($B52,'International Exports-Detailed'!$A:$Q,N$6-2000,FALSE)),IF(AND($A52=TRUE,$C$2=2),(VLOOKUP($B52,'Rest of the UK Exports -Detail'!$A:$Q,N$6-2000,FALSE)),"")) -> 90 | O52: =IF(AND($A52=TRUE,$C$2=1),(VLOOKUP($B52,'International Exports-Detailed'!$A:$Q,O$6-2000,FALSE)),IF(AND($A52=TRUE,$C$2=2),(VLOOKUP($B52,'Rest of the UK Exports -Detail'!$A:$Q,O$6-2000,FALSE)),"")) -> 100 | P52: =IF(AND($A52=TRUE,$C$2=1),(VLOOKUP($B52,'International Exports-Detailed'!$A:$Q,P$6-2000,FALSE)),IF(AND($A52=TRUE,$C$2=2),(VLOOKUP($B52,'Rest of the UK Exports -Detail'!$A:$Q,P$6-2000,FALSE)),"")) -> 110 | Q52: =IF(AND($A52=TRUE,$C$2=1),(VLOOKUP($B52,'International Exports-Detailed'!$A:$Q,Q$6-2000,FALSE)),IF(AND($A52=TRUE,$C$2=2),(VLOOKUP($B52,'Rest of the UK Exports -Detail'!$A:$Q,Q$6-2000,FALSE)),"")) -> 110 | R52: =IF(AND($A52=TRUE,$C$2=1),(VLOOKUP($B52,'International Exports-Detailed'!$A:$Q,R$6-2000,FALSE)),IF(AND($A52=TRUE,$C$2=2),(VLOOKUP($B52,'Rest of the UK Exports -Detail'!$A:$Q,R$6-2000,FALSE)),"")) -> 130
B55: Life Sciences Chart
A56: Chart control | C56: 2002 | D56: 2003 | E56: 2004 | F56: 2005 | G56: 2006 | H56: 2007 | I56: 2008 | J56: 2009 | K56: 2010 | L56: 2011 | M56: 2012 | N56: 2013 | O56: 2014 | P56: 2015 | Q56: 2016 | R56: 2017
A57: TRUE | B57: Life Sciences | C57: =IF(AND($A57=TRUE,$C$2=1),(VLOOKUP($B57,'International Exports-Detailed'!$A:$Q,C$6-2000,FALSE)),IF(AND($A57=TRUE,$C$2=2),(VLOOKUP($B57,'Rest of the UK Exports -Detail'!$A:$Q,C$6-2000,FALSE)),"")) -> 745 | D57: =IF(AND($A57=TRUE,$C$2=1),(VLOOKUP($B57,'International Exports-Detailed'!$A:$Q,D$6-2000,FALSE)),IF(AND($A57=TRUE,$C$2=2),(VLOOKUP($B57,'Rest of the UK Exports -Detail'!$A:$Q,D$6-2000,FALSE)),"")) -> 875 | E57: =IF(AND($A57=TRUE,$C$2=1),(VLOOKUP($B57,'International Exports-Detailed'!$A:$Q,E$6-2000,FALSE)),IF(AND($A57=TRUE,$C$2=2),(VLOOKUP($B57,'Rest of the UK Exports -Detail'!$A:$Q,E$6-2000,FALSE)),"")) -> 790 | F57: =IF(AND($A57=TRUE,$C$2=1),(VLOOKUP($B57,'International Exports-Detailed'!$A:$Q,F$6-2000,FALSE)),IF(AND($A57=TRUE,$C$2=2),(VLOOKUP($B57,'Rest of the UK Exports -Detail'!$A:$Q,F$6-2000,FALSE)),"")) -> 800 | G57: =IF(AND($A57=TRUE,$C$2=1),(VLOOKUP($B57,'International Exports-Detailed'!$A:$Q,G$6-2000,FALSE)),IF(AND($A57=TRUE,$C$2=2),(VLOOKUP($B57,'Rest of the UK Exports -Detail'!$A:$Q,G$6-2000,FALSE)),"")) -> 805 | H57: =IF(AND($A57=TRUE,$C$2=1),(VLOOKUP($B57,'International Exports-Detailed'!$A:$Q,H$6-2000,FALSE)),IF(AND($A57=TRUE,$C$2=2),(VLOOKUP($B57,'Rest of the UK Exports -Detail'!$A:$Q,H$6-2000,FALSE)),"")) -> 935 | I57: =IF(AND($A57=TRUE,$C$2=1),(VLOOKUP($B57,'International Exports-Detailed'!$A:$Q,I$6-2000,FALSE)),IF(AND($A57=TRUE,$C$2=2),(VLOOKUP($B57,'Rest of the UK Exports -Detail'!$A:$Q,I$6-2000,FALSE)),"")) -> 925 | J57: =IF(AND($A57=TRUE,$C$2=1),(VLOOKUP($B57,'International Exports-Detailed'!$A:$Q,J$6-2000,FALSE)),IF(AND($A57=TRUE,$C$2=2),(VLOOKUP($B57,'Rest of the UK Exports -Detail'!$A:$Q,J$6-2000,FALSE)),"")) -> 835 | K57: =IF(AND($A57=TRUE,$C$2=1),(VLOOKUP($B57,'International Exports-Detailed'!$A:$Q,K$6-2000,FALSE)),IF(AND($A57=TRUE,$C$2=2),(VLOOKUP($B57,'Rest of the UK Exports -Detail'!$A:$Q,K$6-2000,FALSE)),"")) -> 1005 | L57: =IF(AND($A57=TRUE,$C$2=1),(VLOOKUP($B57,'International Exports-Detailed'!$A:$Q,L$6-2000,FALSE)),IF(AND($A57=TRUE,$C$2=2),(VLOOKUP($B57,'Rest of the UK Exports -Detail'!$A:$Q,L$6-2000,FALSE)),"")) -> 900 | M57: =IF(AND($A57=TRUE,$C$2=1),(VLOOKUP($B57,'International Exports-Detailed'!$A:$Q,M$6-2000,FALSE)),IF(AND($A57=TRUE,$C$2=2),(VLOOKUP($B57,'Rest of the UK Exports -Detail'!$A:$Q,M$6-2000,FALSE)),"")) -> 925 | N57: =IF(AND($A57=TRUE,$C$2=1),(VLOOKUP($B57,'International Exports-Detailed'!$A:$Q,N$6-2000,FALSE)),IF(AND($A57=TRUE,$C$2=2),(VLOOKUP($B57,'Rest of the UK Exports -Detail'!$A:$Q,N$6-2000,FALSE)),"")) -> 1015 | O57: =IF(AND($A57=TRUE,$C$2=1),(VLOOKUP($B57,'International Exports-Detailed'!$A:$Q,O$6-2000,FALSE)),IF(AND($A57=TRUE,$C$2=2),(VLOOKUP($B57,'Rest of the UK Exports -Detail'!$A:$Q,O$6-2000,FALSE)),"")) -> 1130 | P57: =IF(AND($A57=TRUE,$C$2=1),(VLOOKUP($B57,'International Exports-Detailed'!$A:$Q,P$6-2000,FALSE)),IF(AND($A57=TRUE,$C$2=2),(VLOOKUP($B57,'Rest of the UK Exports -Detail'!$A:$Q,P$6-2000,FALSE)),"")) -> 1280 | Q57: =IF(AND($A57=TRUE,$C$2=1),(VLOOKUP($B57,'International Exports-Detailed'!$A:$Q,Q$6-2000,FALSE)),IF(AND($A57=TRUE,$C$2=2),(VLOOKUP($B57,'Rest of the UK Exports -Detail'!$A:$Q,Q$6-2000,FALSE)),"")) -> 1330 | R57: =IF(AND($A57=TRUE,$C$2=1),(VLOOKUP($B57,'International Exports-Detailed'!$A:$Q,R$6-2000,FALSE)),IF(AND($A57=TRUE,$C$2=2),(VLOOKUP($B57,'Rest of the UK Exports -Detail'!$A:$Q,R$6-2000,FALSE)),"")) -> 1570
A58: TRUE | B58: Research | C58: =IF(AND($A58=TRUE,$C$2=1),(VLOOKUP($B58,'International Exports-Detailed'!$A:$Q,C$6-2000,FALSE)),IF(AND($A58=TRUE,$C$2=2),(VLOOKUP($B58,'Rest of the UK Exports -Detail'!$A:$Q,C$6-2000,FALSE)),"")) -> 335 | D58: =IF(AND($A58=TRUE,$C$2=1),(VLOOKUP($B58,'International Exports-Detailed'!$A:$Q,D$6-2000,FALSE)),IF(AND($A58=TRUE,$C$2=2),(VLOOKUP($B58,'Rest of the UK Exports -Detail'!$A:$Q,D$6-2000,FALSE)),"")) -> 405 | E58: =IF(AND($A58=TRUE,$C$2=1),(VLOOKUP($B58,'International Exports-Detailed'!$A:$Q,E$6-2000,FALSE)),IF(AND($A58=TRUE,$C$2=2),(VLOOKUP($B58,'Rest of the UK Exports -Detail'!$A:$Q,E$6-2000,FALSE)),"")) -> 370 | F58: =IF(AND($A58=TRUE,$C$2=1),(VLOOKUP($B58,'International Exports-Detailed'!$A:$Q,F$6-2000,FALSE)),IF(AND($A58=TRUE,$C$2=2),(VLOOKUP($B58,'Rest of the UK Exports -Detail'!$A:$Q,F$6-2000,FALSE)),"")) -> 405 | G58: =IF(AND($A58=TRUE,$C$2=1),(VLOOKUP($B58,'International Exports-Detailed'!$A:$Q,G$6-2000,FALSE)),IF(AND($A58=TRUE,$C$2=2),(VLOOKUP($B58,'Rest of the UK Exports -Detail'!$A:$Q,G$6-2000,FALSE)),"")) -> 420 | H58: =IF(AND($A58=TRUE,$C$2=1),(VLOOKUP($B58,'International Exports-Detailed'!$A:$Q,H$6-2000,FALSE)),IF(AND($A58=TRUE,$C$2=2),(VLOOKUP($B58,'Rest of the UK Exports -Detail'!$A:$Q,H$6-2000,FALSE)),"")) -> 505 | I58: =IF(AND($A58=TRUE,$C$2=1),(VLOOKUP($B58,'International Exports-Detailed'!$A:$Q,I$6-2000,FALSE)),IF(AND($A58=TRUE,$C$2=2),(VLOOKUP($B58,'Rest of the UK Exports -Detail'!$A:$Q,I$6-2000,FALSE)),"")) -> 360 | J58: =IF(AND($A58=TRUE,$C$2=1),(VLOOKUP($B58,'International Exports-Detailed'!$A:$Q,J$6-2000,FALSE)),IF(AND($A58=TRUE,$C$2=2),(VLOOKUP($B58,'Rest of the UK Exports -Detail'!$A:$Q,J$6-2000,FALSE)),"")) -> 380 | K58: =IF(AND($A58=TRUE,$C$2=1),(VLOOKUP($B58,'International Exports-Detailed'!$A:$Q,K$6-2000,FALSE)),IF(AND($A58=TRUE,$C$2=2),(VLOOKUP($B58,'Rest of the UK Exports -Detail'!$A:$Q,K$6-2000,FALSE)),"")) -> 530 | L58: =IF(AND($A58=TRUE,$C$2=1),(VLOOKUP($B58,'International Exports-Detailed'!$A:$Q,L$6-2000,FALSE)),IF(AND($A58=TRUE,$C$2=2),(VLOOKUP($B58,'Rest of the UK Exports -Detail'!$A:$Q,L$6-2000,FALSE)),"")) -> 425 | M58: =IF(AND($A58=TRUE,$C$2=1),(VLOOKUP($B58,'International Exports-Detailed'!$A:$Q,M$6-2000,FALSE)),IF(AND($A58=TRUE,$C$2=2),(VLOOKUP($B58,'Rest of the UK Exports -Detail'!$A:$Q,M$6-2000,FALSE)),"")) -> 490 | N58: =IF(AND($A58=TRUE,$C$2=1),(VLOOKUP($B58,'International Exports-Detailed'!$A:$Q,N$6-2000,FALSE)),IF(AND($A58=TRUE,$C$2=2),(VLOOKUP($B58,'Rest of the UK Exports -Detail'!$A:$Q,N$6-2000,FALSE)),"")) -> 575 | O58: =IF(AND($A58=TRUE,$C$2=1),(VLOOKUP($B58,'International Exports-Detailed'!$A:$Q,O$6-2000,FALSE)),IF(AND($A58=TRUE,$C$2=2),(VLOOKUP($B58,'Rest of the UK Exports -Detail'!$A:$Q,O$6-2000,FALSE)),"")) -> 595 | P58: =IF(AND($A58=TRUE,$C$2=1),(VLOOKUP($B58,'International Exports-Detailed'!$A:$Q,P$6-2000,FALSE)),IF(AND($A58=TRUE,$C$2=2),(VLOOKUP($B58,'Rest of the UK Exports -Detail'!$A:$Q,P$6-2000,FALSE)),"")) -> 690 | Q58: =IF(AND($A58=TRUE,$C$2=1),(VLOOKUP($B58,'International Exports-Detailed'!$A:$Q,Q$6-2000,FALSE)),IF(AND($A58=TRUE,$C$2=2),(VLOOKUP($B58,'Rest of the UK Exports -Detail'!$A:$Q,Q$6-2000,FALSE)),"")) -> 800 | R58: =IF(AND($A58=TRUE,$C$2=1),(VLOOKUP($B58,'International Exports-Detailed'!$A:$Q,R$6-2000,FALSE)),IF(AND($A58=TRUE,$C$2=2),(VLOOKUP($B58,'Rest of the UK Exports -Detail'!$A:$Q,R$6-2000,FALSE)),"")) -> 1010
A59: TRUE | B59: Pharmaceuticals | C59: =IF(AND($A59=TRUE,$C$2=1),(VLOOKUP($B59,'International Exports-Detailed'!$A:$Q,C$6-2000,FALSE)),IF(AND($A59=TRUE,$C$2=2),(VLOOKUP($B59,'Rest of the UK Exports -Detail'!$A:$Q,C$6-2000,FALSE)),"")) -> 305 | D59: =IF(AND($A59=TRUE,$C$2=1),(VLOOKUP($B59,'International Exports-Detailed'!$A:$Q,D$6-2000,FALSE)),IF(AND($A59=TRUE,$C$2=2),(VLOOKUP($B59,'Rest of the UK Exports -Detail'!$A:$Q,D$6-2000,FALSE)),"")) -> 370 | E59: =IF(AND($A59=TRUE,$C$2=1),(VLOOKUP($B59,'International Exports-Detailed'!$A:$Q,E$6-2000,FALSE)),IF(AND($A59=TRUE,$C$2=2),(VLOOKUP($B59,'Rest of the UK Exports -Detail'!$A:$Q,E$6-2000,FALSE)),"")) -> 295 | F59: =IF(AND($A59=TRUE,$C$2=1),(VLOOKUP($B59,'International Exports-Detailed'!$A:$Q,F$6-2000,FALSE)),IF(AND($A59=TRUE,$C$2=2),(VLOOKUP($B59,'Rest of the UK Exports -Detail'!$A:$Q,F$6-2000,FALSE)),"")) -> 275 | G59: =IF(AND($A59=TRUE,$C$2=1),(VLOOKUP($B59,'International Exports-Detailed'!$A:$Q,G$6-2000,FALSE)),IF(AND($A59=TRUE,$C$2=2),(VLOOKUP($B59,'Rest of the UK Exports -Detail'!$A:$Q,G$6-2000,FALSE)),"")) -> 235 | H59: =IF(AND($A59=TRUE,$C$2=1),(VLOOKUP($B59,'International Exports-Detailed'!$A:$Q,H$6-2000,FALSE)),IF(AND($A59=TRUE,$C$2=2),(VLOOKUP($B59,'Rest of the UK Exports -Detail'!$A:$Q,H$6-2000,FALSE)),"")) -> 260 | I59: =IF(AND($A59=TRUE,$C$2=1),(VLOOKUP($B59,'International Exports-Detailed'!$A:$Q,I$6-2000,FALSE)),IF(AND($A59=TRUE,$C$2=2),(VLOOKUP($B59,'Rest of the UK Exports -Detail'!$A:$Q,I$6-2000,FALSE)),"")) -> 400 | J59: =IF(AND($A59=TRUE,$C$2=1),(VLOOKUP($B59,'International Exports-Detailed'!$A:$Q,J$6-2000,FALSE)),IF(AND($A59=TRUE,$C$2=2),(VLOOKUP($B59,'Rest of the UK Exports -Detail'!$A:$Q,J$6-2000,FALSE)),"")) -> 315 | K59: =IF(AND($A59=TRUE,$C$2=1),(VLOOKUP($B59,'International Exports-Detailed'!$A:$Q,K$6-2000,FALSE)),IF(AND($A59=TRUE,$C$2=2),(VLOOKUP($B59,'Rest of the UK Exports -Detail'!$A:$Q,K$6-2000,FALSE)),"")) -> 340 | L59: =IF(AND($A59=TRUE,$C$2=1),(VLOOKUP($B59,'International Exports-Detailed'!$A:$Q,L$6-2000,FALSE)),IF(AND($A59=TRUE,$C$2=2),(VLOOKUP($B59,'Rest of the UK Exports -Detail'!$A:$Q,L$6-2000,FALSE)),"")) -> 325 | M59: =IF(AND($A59=TRUE,$C$2=1),(VLOOKUP($B59,'International Exports-Detailed'!$A:$Q,M$6-2000,FALSE)),IF(AND($A59=TRUE,$C$2=2),(VLOOKUP($B59,'Rest of the UK Exports -Detail'!$A:$Q,M$6-2000,FALSE)),"")) -> 315 | N59: =IF(AND($A59=TRUE,$C$2=1),(VLOOKUP($B59,'International Exports-Detailed'!$A:$Q,N$6-2000,FALSE)),IF(AND($A59=TRUE,$C$2=2),(VLOOKUP($B59,'Rest of the UK Exports -Detail'!$A:$Q,N$6-2000,FALSE)),"")) -> 295 | O59: =IF(AND($A59=TRUE,$C$2=1),(VLOOKUP($B59,'International Exports-Detailed'!$A:$Q,O$6-2000,FALSE)),IF(AND($A59=TRUE,$C$2=2),(VLOOKUP($B59,'Rest of the UK Exports -Detail'!$A:$Q,O$6-2000,FALSE)),"")) -> 395 | P59: =IF(AND($A59=TRUE,$C$2=1),(VLOOKUP($B59,'International Exports-Detailed'!$A:$Q,P$6-2000,FALSE)),IF(AND($A59=TRUE,$C$2=2),(VLOOKUP($B59,'Rest of the UK Exports -Detail'!$A:$Q,P$6-2000,FALSE)),"")) -> 445 | Q59: =IF(AND($A59=TRUE,$C$2=1),(VLOOKUP($B59,'International Exports-Detailed'!$A:$Q,Q$6-2000,FALSE)),IF(AND($A59=TRUE,$C$2=2),(VLOOKUP($B59,'Rest of the UK Exports -Detail'!$A:$Q,Q$6-2000,FALSE)),"")) -> 395 | R59: =IF(AND($A59=TRUE,$C$2=1),(VLOOKUP($B59,'International Exports-Detailed'!$A:$Q,R$6-2000,FALSE)),IF(AND($A59=TRUE,$C$2=2),(VLOOKUP($B59,'Rest of the UK Exports -Detail'!$A:$Q,R$6-2000,FALSE)),"")) -> 425
A60: TRUE | B60: Manufacture of Medical Equipment | C60: =IF(AND($A60=TRUE,$C$2=1),(VLOOKUP($B60,'International Exports-Detailed'!$A:$Q,C$6-2000,FALSE)),IF(AND($A60=TRUE,$C$2=2),(VLOOKUP($B60,'Rest of the UK Exports -Detail'!$A:$Q,C$6-2000,FALSE)),"")) -> 105 | D60: =IF(AND($A60=TRUE,$C$2=1),(VLOOKUP($B60,'International Exports-Detailed'!$A:$Q,D$6-2000,FALSE)),IF(AND($A60=TRUE,$C$2=2),(VLOOKUP($B60,'Rest of the UK Exports -Detail'!$A:$Q,D$6-2000,FALSE)),"")) -> 100 | E60: =IF(AND($A60=TRUE,$C$2=1),(VLOOKUP($B60,'International Exports-Detailed'!$A:$Q,E$6-2000,FALSE)),IF(AND($A60=TRUE,$C$2=2),(VLOOKUP($B60,'Rest of the UK Exports -Detail'!$A:$Q,E$6-2000,FALSE)),"")) -> 120 | F60: =IF(AND($A60=TRUE,$C$2=1),(VLOOKUP($B60,'International Exports-Detailed'!$A:$Q,F$6-2000,FALSE)),IF(AND($A60=TRUE,$C$2=2),(VLOOKUP($B60,'Rest of the UK Exports -Detail'!$A:$Q,F$6-2000,FALSE)),"")) -> 120 | G60: =IF(AND($A60=TRUE,$C$2=1),(VLOOKUP($B60,'International Exports-Detailed'!$A:$Q,G$6-2000,FALSE)),IF(AND($A60=TRUE,$C$2=2),(VLOOKUP($B60,'Rest of the UK Exports -Detail'!$A:$Q,G$6-2000,FALSE)),"")) -> 150 | H60: =IF(AND($A60=TRUE,$C$2=1),(VLOOKUP($B60,'International Exports-Detailed'!$A:$Q,H$6-2000,FALSE)),IF(AND($A60=TRUE,$C$2=2),(VLOOKUP($B60,'Rest of the UK Exports -Detail'!$A:$Q,H$6-2000,FALSE)),"")) -> 170 | I60: =IF(AND($A60=TRUE,$C$2=1),(VLOOKUP($B60,'International Exports-Detailed'!$A:$Q,I$6-2000,FALSE)),IF(AND($A60=TRUE,$C$2=2),(VLOOKUP($B60,'Rest of the UK Exports -Detail'!$A:$Q,I$6-2000,FALSE)),"")) -> 160 | J60: =IF(AND($A60=TRUE,$C$2=1),(VLOOKUP($B60,'International Exports-Detailed'!$A:$Q,J$6-2000,FALSE)),IF(AND($A60=TRUE,$C$2=2),(VLOOKUP($B60,'Rest of the UK Exports -Detail'!$A:$Q,J$6-2000,FALSE)),"")) -> 145 | K60: =IF(AND($A60=TRUE,$C$2=1),(VLOOKUP($B60,'International Exports-Detailed'!$A:$Q,K$6-2000,FALSE)),IF(AND($A60=TRUE,$C$2=2),(VLOOKUP($B60,'Rest of the UK Exports -Detail'!$A:$Q,K$6-2000,FALSE)),"")) -> 135 | L60: =IF(AND($A60=TRUE,$C$2=1),(VLOOKUP($B60,'International Exports-Detailed'!$A:$Q,L$6-2000,FALSE)),IF(AND($A60=TRUE,$C$2=2),(VLOOKUP($B60,'Rest of the UK Exports -Detail'!$A:$Q,L$6-2000,FALSE)),"")) -> 155 | M60: =IF(AND($A60=TRUE,$C$2=1),(VLOOKUP($B60,'International Exports-Detailed'!$A:$Q,M$6-2000,FALSE)),IF(AND($A60=TRUE,$C$2=2),(VLOOKUP($B60,'Rest of the UK Exports -Detail'!$A:$Q,M$6-2000,FALSE)),"")) -> 120 | N60: =IF(AND($A60=TRUE,$C$2=1),(VLOOKUP($B60,'International Exports-Detailed'!$A:$Q,N$6-2000,FALSE)),IF(AND($A60=TRUE,$C$2=2),(VLOOKUP($B60,'Rest of the UK Exports -Detail'!$A:$Q,N$6-2000,FALSE)),"")) -> 145 | O60: =IF(AND($A60=TRUE,$C$2=1),(VLOOKUP($B60,'International Exports-Detailed'!$A:$Q,O$6-2000,FALSE)),IF(AND($A60=TRUE,$C$2=2),(VLOOKUP($B60,'Rest of the UK Exports -Detail'!$A:$Q,O$6-2000,FALSE)),"")) -> 140 | P60: =IF(AND($A60=TRUE,$C$2=1),(VLOOKUP($B60,'International Exports-Detailed'!$A:$Q,P$6-2000,FALSE)),IF(AND($A60=TRUE,$C$2=2),(VLOOKUP($B60,'Rest of the UK Exports -Detail'!$A:$Q,P$6-2000,FALSE)),"")) -> 140 | Q60: =IF(AND($A60=TRUE,$C$2=1),(VLOOKUP($B60,'International Exports-Detailed'!$A:$Q,Q$6-2000,FALSE)),IF(AND($A60=TRUE,$C$2=2),(VLOOKUP($B60,'Rest of the UK Exports -Detail'!$A:$Q,Q$6-2000,FALSE)),"")) -> 135 | R60: =IF(AND($A60=TRUE,$C$2=1),(VLOOKUP($B60,'International Exports-Detailed'!$A:$Q,R$6-2000,FALSE)),IF(AND($A60=TRUE,$C$2=2),(VLOOKUP($B60,'Rest of the UK Exports -Detail'!$A:$Q,R$6-2000,FALSE)),"")) -> 130
B63: Sustainable Construction Chart
A64: Chart control | C64: 2002 | D64: 2003 | E64: 2004 | F64: 2005 | G64: 2006 | H64: 2007 | I64: 2008 | J64: 2009 | K64: 2010 | L64: 2011 | M64: 2012 | N64: 2013 | O64: 2014 | P64: 2015 | Q64: 2016 | R64: 2017
A65: TRUE | B65: Construction | C65: =IF(AND($A65=TRUE,$C$2=1),(VLOOKUP($B65,'International Exports-Detailed'!$A:$Q,C$6-2000,FALSE)),IF(AND($A65=TRUE,$C$2=2),(VLOOKUP($B65,'Rest of the UK Exports -Detail'!$A:$Q,C$6-2000,FALSE)),"")) -> 85 | D65: =IF(AND($A65=TRUE,$C$2=1),(VLOOKUP($B65,'International Exports-Detailed'!$A:$Q,D$6-2000,FALSE)),IF(AND($A65=TRUE,$C$2=2),(VLOOKUP($B65,'Rest of the UK Exports -Detail'!$A:$Q,D$6-2000,FALSE)),"")) -> 265 | E65: =IF(AND($A65=TRUE,$C$2=1),(VLOOKUP($B65,'International Exports-Detailed'!$A:$Q,E$6-2000,FALSE)),IF(AND($A65=TRUE,$C$2=2),(VLOOKUP($B65,'Rest of the UK Exports -Detail'!$A:$Q,E$6-2000,FALSE)),"")) -> 180 | F65: =IF(AND($A65=TRUE,$C$2=1),(VLOOKUP($B65,'International Exports-Detailed'!$A:$Q,F$6-2000,FALSE)),IF(AND($A65=TRUE,$C$2=2),(VLOOKUP($B65,'Rest of the UK Exports -Detail'!$A:$Q,F$6-2000,FALSE)),"")) -> 230 | G65: =IF(AND($A65=TRUE,$C$2=1),(VLOOKUP($B65,'International Exports-Detailed'!$A:$Q,G$6-2000,FALSE)),IF(AND($A65=TRUE,$C$2=2),(VLOOKUP($B65,'Rest of the UK Exports -Detail'!$A:$Q,G$6-2000,FALSE)),"")) -> 180 | H65: =IF(AND($A65=TRUE,$C$2=1),(VLOOKUP($B65,'International Exports-Detailed'!$A:$Q,H$6-2000,FALSE)),IF(AND($A65=TRUE,$C$2=2),(VLOOKUP($B65,'Rest of the UK Exports -Detail'!$A:$Q,H$6-2000,FALSE)),"")) -> 155 | I65: =IF(AND($A65=TRUE,$C$2=1),(VLOOKUP($B65,'International Exports-Detailed'!$A:$Q,I$6-2000,FALSE)),IF(AND($A65=TRUE,$C$2=2),(VLOOKUP($B65,'Rest of the UK Exports -Detail'!$A:$Q,I$6-2000,FALSE)),"")) -> 185 | J65: =IF(AND($A65=TRUE,$C$2=1),(VLOOKUP($B65,'International Exports-Detailed'!$A:$Q,J$6-2000,FALSE)),IF(AND($A65=TRUE,$C$2=2),(VLOOKUP($B65,'Rest of the UK Exports -Detail'!$A:$Q,J$6-2000,FALSE)),"")) -> 150 | K65: =IF(AND($A65=TRUE,$C$2=1),(VLOOKUP($B65,'International Exports-Detailed'!$A:$Q,K$6-2000,FALSE)),IF(AND($A65=TRUE,$C$2=2),(VLOOKUP($B65,'Rest of the UK Exports -Detail'!$A:$Q,K$6-2000,FALSE)),"")) -> 115 | L65: =IF(AND($A65=TRUE,$C$2=1),(VLOOKUP($B65,'International Exports-Detailed'!$A:$Q,L$6-2000,FALSE)),IF(AND($A65=TRUE,$C$2=2),(VLOOKUP($B65,'Rest of the UK Exports -Detail'!$A:$Q,L$6-2000,FALSE)),"")) -> 95 | M65: =IF(AND($A65=TRUE,$C$2=1),(VLOOKUP($B65,'International Exports-Detailed'!$A:$Q,M$6-2000,FALSE)),IF(AND($A65=TRUE,$C$2=2),(VLOOKUP($B65,'Rest of the UK Exports -Detail'!$A:$Q,M$6-2000,FALSE)),"")) -> 90 | N65: =IF(AND($A65=TRUE,$C$2=1),(VLOOKUP($B65,'International Exports-Detailed'!$A:$Q,N$6-2000,FALSE)),IF(AND($A65=TRUE,$C$2=2),(VLOOKUP($B65,'Rest of the UK Exports -Detail'!$A:$Q,N$6-2000,FALSE)),"")) -> 105 | O65: =IF(AND($A65=TRUE,$C$2=1),(VLOOKUP($B65,'International Exports-Detailed'!$A:$Q,O$6-2000,FALSE)),IF(AND($A65=TRUE,$C$2=2),(VLOOKUP($B65,'Rest of the UK Exports -Detail'!$A:$Q,O$6-2000,FALSE)),"")) -> 140 | P65: =IF(AND($A65=TRUE,$C$2=1),(VLOOKUP($B65,'International Exports-Detailed'!$A:$Q,P$6-2000,FALSE)),IF(AND($A65=TRUE,$C$2=2),(VLOOKUP($B65,'Rest of the UK Exports -Detail'!$A:$Q,P$6-2000,FALSE)),"")) -> 110 | Q65: =IF(AND($A65=TRUE,$C$2=1),(VLOOKUP($B65,'International Exports-Detailed'!$A:$Q,Q$6-2000,FALSE)),IF(AND($A65=TRUE,$C$2=2),(VLOOKUP($B65,'Rest of the UK Exports -Detail'!$A:$Q,Q$6-2000,FALSE)),"")) -> 140 | R65: =IF(AND($A65=TRUE,$C$2=1),(VLOOKUP($B65,'International Exports-Detailed'!$A:$Q,R$6-2000,FALSE)),IF(AND($A65=TRUE,$C$2=2),(VLOOKUP($B65,'Rest of the UK Exports -Detail'!$A:$Q,R$6-2000,FALSE)),"")) -> 140
B67: Chemical Sciences Chart
C68: 2002 | D68: 2003 | E68: 2004 | F68: 2005 | G68: 2006 | H68: 2007 | I68: 2008 | J68: 2009 | K68: 2010 | L68: 2011 | M68: 2012 | N68: 2013 | O68: 2014 | P68: 2015 | Q68: 2016 | R68: 2017
A69: TRUE | B69: Chemical Sciences | C69: =IF(AND($A69=TRUE,$C$2=1),(VLOOKUP($B69,'International Exports-Detailed'!$A:$Q,C$6-2000,FALSE)),IF(AND($A69=TRUE,$C$2=2),(VLOOKUP($B69,'Rest of the UK Exports -Detail'!$A:$Q,C$6-2000,FALSE)),"")) -> 1950 | D69: =IF(AND($A69=TRUE,$C$2=1),(VLOOKUP($B69,'International Exports-Detailed'!$A:$Q,D$6-2000,FALSE)),IF(AND($A69=TRUE,$C$2=2),(VLOOKUP($B69,'Rest of the UK Exports -Detail'!$A:$Q,D$6-2000,FALSE)),"")) -> 1985 | E69: =IF(AND($A69=TRUE,$C$2=1),(VLOOKUP($B69,'International Exports-Detailed'!$A:$Q,E$6-2000,FALSE)),IF(AND($A69=TRUE,$C$2=2),(VLOOKUP($B69,'Rest of the UK Exports -Detail'!$A:$Q,E$6-2000,FALSE)),"")) -> 2045 | F69: =IF(AND($A69=TRUE,$C$2=1),(VLOOKUP($B69,'International Exports-Detailed'!$A:$Q,F$6-2000,FALSE)),IF(AND($A69=TRUE,$C$2=2),(VLOOKUP($B69,'Rest of the UK Exports -Detail'!$A:$Q,F$6-2000,FALSE)),"")) -> 2155 | G69: =IF(AND($A69=TRUE,$C$2=1),(VLOOKUP($B69,'International Exports-Detailed'!$A:$Q,G$6-2000,FALSE)),IF(AND($A69=TRUE,$C$2=2),(VLOOKUP($B69,'Rest of the UK Exports -Detail'!$A:$Q,G$6-2000,FALSE)),"")) -> 2310 | H69: =IF(AND($A69=TRUE,$C$2=1),(VLOOKUP($B69,'International Exports-Detailed'!$A:$Q,H$6-2000,FALSE)),IF(AND($A69=TRUE,$C$2=2),(VLOOKUP($B69,'Rest of the UK Exports -Detail'!$A:$Q,H$6-2000,FALSE)),"")) -> 2510 | I69: =IF(AND($A69=TRUE,$C$2=1),(VLOOKUP($B69,'International Exports-Detailed'!$A:$Q,I$6-2000,FALSE)),IF(AND($A69=TRUE,$C$2=2),(VLOOKUP($B69,'Rest of the UK Exports -Detail'!$A:$Q,I$6-2000,FALSE)),"")) -> 2990 | J69: =IF(AND($A69=TRUE,$C$2=1),(VLOOKUP($B69,'International Exports-Detailed'!$A:$Q,J$6-2000,FALSE)),IF(AND($A69=TRUE,$C$2=2),(VLOOKUP($B69,'Rest of the UK Exports -Detail'!$A:$Q,J$6-2000,FALSE)),"")) -> 2320 | K69: =IF(AND($A69=TRUE,$C$2=1),(VLOOKUP($B69,'International Exports-Detailed'!$A:$Q,K$6-2000,FALSE)),IF(AND($A69=TRUE,$C$2=2),(VLOOKUP($B69,'Rest of the UK Exports -Detail'!$A:$Q,K$6-2000,FALSE)),"")) -> 2550 | L69: =IF(AND($A69=TRUE,$C$2=1),(VLOOKUP($B69,'International Exports-Detailed'!$A:$Q,L$6-2000,FALSE)),IF(AND($A69=TRUE,$C$2=2),(VLOOKUP($B69,'Rest of the UK Exports -Detail'!$A:$Q,L$6-2000,FALSE)),"")) -> 3345 | M69: =IF(AND($A69=TRUE,$C$2=1),(VLOOKUP($B69,'International Exports-Detailed'!$A:$Q,M$6-2000,FALSE)),IF(AND($A69=TRUE,$C$2=2),(VLOOKUP($B69,'Rest of the UK Exports -Detail'!$A:$Q,M$6-2000,FALSE)),"")) -> 2825 | N69: =IF(AND($A69=TRUE,$C$2=1),(VLOOKUP($B69,'International Exports-Detailed'!$A:$Q,N$6-2000,FALSE)),IF(AND($A69=TRUE,$C$2=2),(VLOOKUP($B69,'Rest of the UK Exports -Detail'!$A:$Q,N$6-2000,FALSE)),"")) -> 2755 | O69: =IF(AND($A69=TRUE,$C$2=1),(VLOOKUP($B69,'International Exports-Detailed'!$A:$Q,O$6-2000,FALSE)),IF(AND($A69=TRUE,$C$2=2),(VLOOKUP($B69,'Rest of the UK Exports -Detail'!$A:$Q,O$6-2000,FALSE)),"")) -> 2130 | P69: =IF(AND($A69=TRUE,$C$2=1),(VLOOKUP($B69,'International Exports-Detailed'!$A:$Q,P$6-2000,FALSE)),IF(AND($A69=TRUE,$C$2=2),(VLOOKUP($B69,'Rest of the UK Exports -Detail'!$A:$Q,P$6-2000,FALSE)),"")) -> 2580 | Q69: =IF(AND($A69=TRUE,$C$2=1),(VLOOKUP($B69,'International Exports-Detailed'!$A:$Q,Q$6-2000,FALSE)),IF(AND($A69=TRUE,$C$2=2),(VLOOKUP($B69,'Rest of the UK Exports -Detail'!$A:$Q,Q$6-2000,FALSE)),"")) -> 2345 | R69: =IF(AND($A69=TRUE,$C$2=1),(VLOOKUP($B69,'International Exports-Detailed'!$A:$Q,R$6-2000,FALSE)),IF(AND($A69=TRUE,$C$2=2),(VLOOKUP($B69,'Rest of the UK Exports -Detail'!$A:$Q,R$6-2000,FALSE)),"")) -> 3160
B71: Forest and Timber Technologies Chart
C72: 2002 | D72: 2003 | E72: 2004 | F72: 2005 | G72: 2006 | H72: 2007 | I72: 2008 | J72: 2009 | K72: 2010 | L72: 2011 | M72: 2012 | N72: 2013 | O72: 2014 | P72: 2015 | Q72: 2016 | R72: 2017
A73: TRUE | B73: Forest and Timber Technologies | C73: =IF(AND($A73=TRUE,$C$2=1),(VLOOKUP($B73,'International Exports-Detailed'!$A:$Q,C$6-2000,FALSE)),IF(AND($A73=TRUE,$C$2=2),(VLOOKUP($B73,'Rest of the UK Exports -Detail'!$A:$Q,C$6-2000,FALSE)),"")) -> 305 | D73: =IF(AND($A73=TRUE,$C$2=1),(VLOOKUP($B73,'International Exports-Detailed'!$A:$Q,D$6-2000,FALSE)),IF(AND($A73=TRUE,$C$2=2),(VLOOKUP($B73,'Rest of the UK Exports -Detail'!$A:$Q,D$6-2000,FALSE)),"")) -> 335 | E73: =IF(AND($A73=TRUE,$C$2=1),(VLOOKUP($B73,'International Exports-Detailed'!$A:$Q,E$6-2000,FALSE)),IF(AND($A73=TRUE,$C$2=2),(VLOOKUP($B73,'Rest of the UK Exports -Detail'!$A:$Q,E$6-2000,FALSE)),"")) -> 385 | F73: =IF(AND($A73=TRUE,$C$2=1),(VLOOKUP($B73,'International Exports-Detailed'!$A:$Q,F$6-2000,FALSE)),IF(AND($A73=TRUE,$C$2=2),(VLOOKUP($B73,'Rest of the UK Exports -Detail'!$A:$Q,F$6-2000,FALSE)),"")) -> 375 | G73: =IF(AND($A73=TRUE,$C$2=1),(VLOOKUP($B73,'International Exports-Detailed'!$A:$Q,G$6-2000,FALSE)),IF(AND($A73=TRUE,$C$2=2),(VLOOKUP($B73,'Rest of the UK Exports -Detail'!$A:$Q,G$6-2000,FALSE)),"")) -> 345 | H73: =IF(AND($A73=TRUE,$C$2=1),(VLOOKUP($B73,'International Exports-Detailed'!$A:$Q,H$6-2000,FALSE)),IF(AND($A73=TRUE,$C$2=2),(VLOOKUP($B73,'Rest of the UK Exports -Detail'!$A:$Q,H$6-2000,FALSE)),"")) -> 330 | I73: =IF(AND($A73=TRUE,$C$2=1),(VLOOKUP($B73,'International Exports-Detailed'!$A:$Q,I$6-2000,FALSE)),IF(AND($A73=TRUE,$C$2=2),(VLOOKUP($B73,'Rest of the UK Exports -Detail'!$A:$Q,I$6-2000,FALSE)),"")) -> 340 | J73: =IF(AND($A73=TRUE,$C$2=1),(VLOOKUP($B73,'International Exports-Detailed'!$A:$Q,J$6-2000,FALSE)),IF(AND($A73=TRUE,$C$2=2),(VLOOKUP($B73,'Rest of the UK Exports -Detail'!$A:$Q,J$6-2000,FALSE)),"")) -> 320 | K73: =IF(AND($A73=TRUE,$C$2=1),(VLOOKUP($B73,'International Exports-Detailed'!$A:$Q,K$6-2000,FALSE)),IF(AND($A73=TRUE,$C$2=2),(VLOOKUP($B73,'Rest of the UK Exports -Detail'!$A:$Q,K$6-2000,FALSE)),"")) -> 365 | L73: =IF(AND($A73=TRUE,$C$2=1),(VLOOKUP($B73,'International Exports-Detailed'!$A:$Q,L$6-2000,FALSE)),IF(AND($A73=TRUE,$C$2=2),(VLOOKUP($B73,'Rest of the UK Exports -Detail'!$A:$Q,L$6-2000,FALSE)),"")) -> 350 | M73: =IF(AND($A73=TRUE,$C$2=1),(VLOOKUP($B73,'International Exports-Detailed'!$A:$Q,M$6-2000,FALSE)),IF(AND($A73=TRUE,$C$2=2),(VLOOKUP($B73,'Rest of the UK Exports -Detail'!$A:$Q,M$6-2000,FALSE)),"")) -> 375 | N73: =IF(AND($A73=TRUE,$C$2=1),(VLOOKUP($B73,'International Exports-Detailed'!$A:$Q,N$6-2000,FALSE)),IF(AND($A73=TRUE,$C$2=2),(VLOOKUP($B73,'Rest of the UK Exports -Detail'!$A:$Q,N$6-2000,FALSE)),"")) -> 395 | O73: =IF(AND($A73=TRUE,$C$2=1),(VLOOKUP($B73,'International Exports-Detailed'!$A:$Q,O$6-2000,FALSE)),IF(AND($A73=TRUE,$C$2=2),(VLOOKUP($B73,'Rest of the UK Exports -Detail'!$A:$Q,O$6-2000,FALSE)),"")) -> 335 | P73: =IF(AND($A73=TRUE,$C$2=1),(VLOOKUP($B73,'International Exports-Detailed'!$A:$Q,P$6-2000,FALSE)),IF(AND($A73=TRUE,$C$2=2),(VLOOKUP($B73,'Rest of the UK Exports -Detail'!$A:$Q,P$6-2000,FALSE)),"")) -> 435 | Q73: =IF(AND($A73=TRUE,$C$2=1),(VLOOKUP($B73,'International Exports-Detailed'!$A:$Q,Q$6-2000,FALSE)),IF(AND($A73=TRUE,$C$2=2),(VLOOKUP($B73,'Rest of the UK Exports -Detail'!$A:$Q,Q$6-2000,FALSE)),"")) -> 370 | R73: =IF(AND($A73=TRUE,$C$2=1),(VLOOKUP($B73,'International Exports-Detailed'!$A:$Q,R$6-2000,FALSE)),IF(AND($A73=TRUE,$C$2=2),(VLOOKUP($B73,'Rest of the UK Exports -Detail'!$A:$Q,R$6-2000,FALSE)),"")) -> 290
B75: Textiles Chart
C76: 2002 | D76: 2003 | E76: 2004 | F76: 2005 | G76: 2006 | H76: 2007 | I76: 2008 | J76: 2009 | K76: 2010 | L76: 2011 | M76: 2012 | N76: 2013 | O76: 2014 | P76: 2015 | Q76: 2016 | R76: 2017
A77: TRUE | B77: Textiles | C77: =IF(AND($A77=TRUE,$C$2=1),(VLOOKUP($B77,'International Exports-Detailed'!$A:$Q,C$6-2000,FALSE)),IF(AND($A77=TRUE,$C$2=2),(VLOOKUP($B77,'Rest of the UK Exports -Detail'!$A:$Q,C$6-2000,FALSE)),"")) -> 395 | D77: =IF(AND($A77=TRUE,$C$2=1),(VLOOKUP($B77,'International Exports-Detailed'!$A:$Q,D$6-2000,FALSE)),IF(AND($A77=TRUE,$C$2=2),(VLOOKUP($B77,'Rest of the UK Exports -Detail'!$A:$Q,D$6-2000,FALSE)),"")) -> 390 | E77: =IF(AND($A77=TRUE,$C$2=1),(VLOOKUP($B77,'International Exports-Detailed'!$A:$Q,E$6-2000,FALSE)),IF(AND($A77=TRUE,$C$2=2),(VLOOKUP($B77,'Rest of the UK Exports -Detail'!$A:$Q,E$6-2000,FALSE)),"")) -> 395 | F77: =IF(AND($A77=TRUE,$C$2=1),(VLOOKUP($B77,'International Exports-Detailed'!$A:$Q,F$6-2000,FALSE)),IF(AND($A77=TRUE,$C$2=2),(VLOOKUP($B77,'Rest of the UK Exports -Detail'!$A:$Q,F$6-2000,FALSE)),"")) -> 375 | G77: =IF(AND($A77=TRUE,$C$2=1),(VLOOKUP($B77,'International Exports-Detailed'!$A:$Q,G$6-2000,FALSE)),IF(AND($A77=TRUE,$C$2=2),(VLOOKUP($B77,'Rest of the UK Exports -Detail'!$A:$Q,G$6-2000,FALSE)),"")) -> 390 | H77: =IF(AND($A77=TRUE,$C$2=1),(VLOOKUP($B77,'International Exports-Detailed'!$A:$Q,H$6-2000,FALSE)),IF(AND($A77=TRUE,$C$2=2),(VLOOKUP($B77,'Rest of the UK Exports -Detail'!$A:$Q,H$6-2000,FALSE)),"")) -> 340 | I77: =IF(AND($A77=TRUE,$C$2=1),(VLOOKUP($B77,'International Exports-Detailed'!$A:$Q,I$6-2000,FALSE)),IF(AND($A77=TRUE,$C$2=2),(VLOOKUP($B77,'Rest of the UK Exports -Detail'!$A:$Q,I$6-2000,FALSE)),"")) -> 340 | J77: =IF(AND($A77=TRUE,$C$2=1),(VLOOKUP($B77,'International Exports-Detailed'!$A:$Q,J$6-2000,FALSE)),IF(AND($A77=TRUE,$C$2=2),(VLOOKUP($B77,'Rest of the UK Exports -Detail'!$A:$Q,J$6-2000,FALSE)),"")) -> 295 | K77: =IF(AND($A77=TRUE,$C$2=1),(VLOOKUP($B77,'International Exports-Detailed'!$A:$Q,K$6-2000,FALSE)),IF(AND($A77=TRUE,$C$2=2),(VLOOKUP($B77,'Rest of the UK Exports -Detail'!$A:$Q,K$6-2000,FALSE)),"")) -> 290 | L77: =IF(AND($A77=TRUE,$C$2=1),(VLOOKUP($B77,'International Exports-Detailed'!$A:$Q,L$6-2000,FALSE)),IF(AND($A77=TRUE,$C$2=2),(VLOOKUP($B77,'Rest of the UK Exports -Detail'!$A:$Q,L$6-2000,FALSE)),"")) -> 350 | M77: =IF(AND($A77=TRUE,$C$2=1),(VLOOKUP($B77,'International Exports-Detailed'!$A:$Q,M$6-2000,FALSE)),IF(AND($A77=TRUE,$C$2=2),(VLOOKUP($B77,'Rest of the UK Exports -Detail'!$A:$Q,M$6-2000,FALSE)),"")) -> 370 | N77: =IF(AND($A77=TRUE,$C$2=1),(VLOOKUP($B77,'International Exports-Detailed'!$A:$Q,N$6-2000,FALSE)),IF(AND($A77=TRUE,$C$2=2),(VLOOKUP($B77,'Rest of the UK Exports -Detail'!$A:$Q,N$6-2000,FALSE)),"")) -> 360 | O77: =IF(AND($A77=TRUE,$C$2=1),(VLOOKUP($B77,'International Exports-Detailed'!$A:$Q,O$6-2000,FALSE)),IF(AND($A77=TRUE,$C$2=2),(VLOOKUP($B77,'Rest of the UK Exports -Detail'!$A:$Q,O$6-2000,FALSE)),"")) -> 360 | P77: =IF(AND($A77=TRUE,$C$2=1),(VLOOKUP($B77,'International Exports-Detailed'!$A:$Q,P$6-2000,FALSE)),IF(AND($A77=TRUE,$C$2=2),(VLOOKUP($B77,'Rest of the UK Exports -Detail'!$A:$Q,P$6-2000,FALSE)),"")) -> 375 | Q77: =IF(AND($A77=TRUE,$C$2=1),(VLOOKUP($B77,'International Exports-Detailed'!$A:$Q,Q$6-2000,FALSE)),IF(AND($A77=TRUE,$C$2=2),(VLOOKUP($B77,'Rest of the UK Exports -Detail'!$A:$Q,Q$6-2000,FALSE)),"")) -> 340 | R77: =IF(AND($A77=TRUE,$C$2=1),(VLOOKUP($B77,'International Exports-Detailed'!$A:$Q,R$6-2000,FALSE)),IF(AND($A77=TRUE,$C$2=2),(VLOOKUP($B77,'Rest of the UK Exports -Detail'!$A:$Q,R$6-2000,FALSE)),"")) -> 325
B79: Sustainable Tourism Chart
C80: 2002 | D80: 2003 | E80: 2004 | F80: 2005 | G80: 2006 | H80: 2007 | I80: 2008 | J80: 2009 | K80: 2010 | L80: 2011 | M80: 2012 | N80: 2013 | O80: 2014 | P80: 2015 | Q80: 2016 | R80: 2017
A81: TRUE | B81: Sustainable Tourism | C81: =IF(AND($A81=TRUE,$C$2=1),(VLOOKUP($B81,'International Exports-Detailed'!$A:$Q,C$6-2000,FALSE)),IF(AND($A81=TRUE,$C$2=2),(VLOOKUP($B81,'Rest of the UK Exports -Detail'!$A:$Q,C$6-2000,FALSE)),"")) -> 175 | D81: =IF(AND($A81=TRUE,$C$2=1),(VLOOKUP($B81,'International Exports-Detailed'!$A:$Q,D$6-2000,FALSE)),IF(AND($A81=TRUE,$C$2=2),(VLOOKUP($B81,'Rest of the UK Exports -Detail'!$A:$Q,D$6-2000,FALSE)),"")) -> 280 | E81: =IF(AND($A81=TRUE,$C$2=1),(VLOOKUP($B81,'International Exports-Detailed'!$A:$Q,E$6-2000,FALSE)),IF(AND($A81=TRUE,$C$2=2),(VLOOKUP($B81,'Rest of the UK Exports -Detail'!$A:$Q,E$6-2000,FALSE)),"")) -> 265 | F81: =IF(AND($A81=TRUE,$C$2=1),(VLOOKUP($B81,'International Exports-Detailed'!$A:$Q,F$6-2000,FALSE)),IF(AND($A81=TRUE,$C$2=2),(VLOOKUP($B81,'Rest of the UK Exports -Detail'!$A:$Q,F$6-2000,FALSE)),"")) -> 285 | G81: =IF(AND($A81=TRUE,$C$2=1),(VLOOKUP($B81,'International Exports-Detailed'!$A:$Q,G$6-2000,FALSE)),IF(AND($A81=TRUE,$C$2=2),(VLOOKUP($B81,'Rest of the UK Exports -Detail'!$A:$Q,G$6-2000,FALSE)),"")) -> 320 | H81: =IF(AND($A81=TRUE,$C$2=1),(VLOOKUP($B81,'International Exports-Detailed'!$A:$Q,H$6-2000,FALSE)),IF(AND($A81=TRUE,$C$2=2),(VLOOKUP($B81,'Rest of the UK Exports -Detail'!$A:$Q,H$6-2000,FALSE)),"")) -> 280 | I81: =IF(AND($A81=TRUE,$C$2=1),(VLOOKUP($B81,'International Exports-Detailed'!$A:$Q,I$6-2000,FALSE)),IF(AND($A81=TRUE,$C$2=2),(VLOOKUP($B81,'Rest of the UK Exports -Detail'!$A:$Q,I$6-2000,FALSE)),"")) -> 280 | J81: =IF(AND($A81=TRUE,$C$2=1),(VLOOKUP($B81,'International Exports-Detailed'!$A:$Q,J$6-2000,FALSE)),IF(AND($A81=TRUE,$C$2=2),(VLOOKUP($B81,'Rest of the UK Exports -Detail'!$A:$Q,J$6-2000,FALSE)),"")) -> 280 | K81: =IF(AND($A81=TRUE,$C$2=1),(VLOOKUP($B81,'International Exports-Detailed'!$A:$Q,K$6-2000,FALSE)),IF(AND($A81=TRUE,$C$2=2),(VLOOKUP($B81,'Rest of the UK Exports -Detail'!$A:$Q,K$6-2000,FALSE)),"")) -> 265 | L81: =IF(AND($A81=TRUE,$C$2=1),(VLOOKUP($B81,'International Exports-Detailed'!$A:$Q,L$6-2000,FALSE)),IF(AND($A81=TRUE,$C$2=2),(VLOOKUP($B81,'Rest of the UK Exports -Detail'!$A:$Q,L$6-2000,FALSE)),"")) -> 305 | M81: =IF(AND($A81=TRUE,$C$2=1),(VLOOKUP($B81,'International Exports-Detailed'!$A:$Q,M$6-2000,FALSE)),IF(AND($A81=TRUE,$C$2=2),(VLOOKUP($B81,'Rest of the UK Exports -Detail'!$A:$Q,M$6-2000,FALSE)),"")) -> 285 | N81: =IF(AND($A81=TRUE,$C$2=1),(VLOOKUP($B81,'International Exports-Detailed'!$A:$Q,N$6-2000,FALSE)),IF(AND($A81=TRUE,$C$2=2),(VLOOKUP($B81,'Rest of the UK Exports -Detail'!$A:$Q,N$6-2000,FALSE)),"")) -> 290 | O81: =IF(AND($A81=TRUE,$C$2=1),(VLOOKUP($B81,'International Exports-Detailed'!$A:$Q,O$6-2000,FALSE)),IF(AND($A81=TRUE,$C$2=2),(VLOOKUP($B81,'Rest of the UK Exports -Detail'!$A:$Q,O$6-2000,FALSE)),"")) -> 390 | P81: =IF(AND($A81=TRUE,$C$2=1),(VLOOKUP($B81,'International Exports-Detailed'!$A:$Q,P$6-2000,FALSE)),IF(AND($A81=TRUE,$C$2=2),(VLOOKUP($B81,'Rest of the UK Exports -Detail'!$A:$Q,P$6-2000,FALSE)),"")) -> 360 | Q81: =IF(AND($A81=TRUE,$C$2=1),(VLOOKUP($B81,'International Exports-Detailed'!$A:$Q,Q$6-2000,FALSE)),IF(AND($A81=TRUE,$C$2=2),(VLOOKUP($B81,'Rest of the UK Exports -Detail'!$A:$Q,Q$6-2000,FALSE)),"")) -> 330 | R81: =IF(AND($A81=TRUE,$C$2=1),(VLOOKUP($B81,'International Exports-Detailed'!$A:$Q,R$6-2000,FALSE)),IF(AND($A81=TRUE,$C$2=2),(VLOOKUP($B81,'Rest of the UK Exports -Detail'!$A:$Q,R$6-2000,FALSE)),"")) -> 335
B84: Wholesale, Retail Trade; repair of motor vehicles and motorcycles Chart
C85: 2002 | D85: 2003 | E85: 2004 | F85: 2005 | G85: 2006 | H85: 2007 | I85: 2008 | J85: 2009 | K85: 2010 | L85: 2011 | M85: 2012 | N85: 2013 | O85: 2014 | P85: 2015 | Q85: 2016 | R85: 2017
A86: TRUE | B86: Wholesale and Retail Trade | C86: =IF(AND($A86=TRUE,$C$2=1),(VLOOKUP($B86,'International Exports-Detailed'!$A:$Q,C$6-2000,FALSE)),IF(AND($A86=TRUE,$C$2=2),(VLOOKUP($B86,'Rest of the UK Exports -Detail'!$A:$Q,C$6-2000,FALSE)),"")) -> 995 | D86: =IF(AND($A86=TRUE,$C$2=1),(VLOOKUP($B86,'International Exports-Detailed'!$A:$Q,D$6-2000,FALSE)),IF(AND($A86=TRUE,$C$2=2),(VLOOKUP($B86,'Rest of the UK Exports -Detail'!$A:$Q,D$6-2000,FALSE)),"")) -> 960 | E86: =IF(AND($A86=TRUE,$C$2=1),(VLOOKUP($B86,'International Exports-Detailed'!$A:$Q,E$6-2000,FALSE)),IF(AND($A86=TRUE,$C$2=2),(VLOOKUP($B86,'Rest of the UK Exports -Detail'!$A:$Q,E$6-2000,FALSE)),"")) -> 1095 | F86: =IF(AND($A86=TRUE,$C$2=1),(VLOOKUP($B86,'International Exports-Detailed'!$A:$Q,F$6-2000,FALSE)),IF(AND($A86=TRUE,$C$2=2),(VLOOKUP($B86,'Rest of the UK Exports -Detail'!$A:$Q,F$6-2000,FALSE)),"")) -> 1065 | G86: =IF(AND($A86=TRUE,$C$2=1),(VLOOKUP($B86,'International Exports-Detailed'!$A:$Q,G$6-2000,FALSE)),IF(AND($A86=TRUE,$C$2=2),(VLOOKUP($B86,'Rest of the UK Exports -Detail'!$A:$Q,G$6-2000,FALSE)),"")) -> 1395 | H86: =IF(AND($A86=TRUE,$C$2=1),(VLOOKUP($B86,'International Exports-Detailed'!$A:$Q,H$6-2000,FALSE)),IF(AND($A86=TRUE,$C$2=2),(VLOOKUP($B86,'Rest of the UK Exports -Detail'!$A:$Q,H$6-2000,FALSE)),"")) -> 1560 | I86: =IF(AND($A86=TRUE,$C$2=1),(VLOOKUP($B86,'International Exports-Detailed'!$A:$Q,I$6-2000,FALSE)),IF(AND($A86=TRUE,$C$2=2),(VLOOKUP($B86,'Rest of the UK Exports -Detail'!$A:$Q,I$6-2000,FALSE)),"")) -> 1605 | J86: =IF(AND($A86=TRUE,$C$2=1),(VLOOKUP($B86,'International Exports-Detailed'!$A:$Q,J$6-2000,FALSE)),IF(AND($A86=TRUE,$C$2=2),(VLOOKUP($B86,'Rest of the UK Exports -Detail'!$A:$Q,J$6-2000,FALSE)),"")) -> 1460 | K86: =IF(AND($A86=TRUE,$C$2=1),(VLOOKUP($B86,'International Exports-Detailed'!$A:$Q,K$6-2000,FALSE)),IF(AND($A86=TRUE,$C$2=2),(VLOOKUP($B86,'Rest of the UK Exports -Detail'!$A:$Q,K$6-2000,FALSE)),"")) -> 1365 | L86: =IF(AND($A86=TRUE,$C$2=1),(VLOOKUP($B86,'International Exports-Detailed'!$A:$Q,L$6-2000,FALSE)),IF(AND($A86=TRUE,$C$2=2),(VLOOKUP($B86,'Rest of the UK Exports -Detail'!$A:$Q,L$6-2000,FALSE)),"")) -> 1595 | M86: =IF(AND($A86=TRUE,$C$2=1),(VLOOKUP($B86,'International Exports-Detailed'!$A:$Q,M$6-2000,FALSE)),IF(AND($A86=TRUE,$C$2=2),(VLOOKUP($B86,'Rest of the UK Exports -Detail'!$A:$Q,M$6-2000,FALSE)),"")) -> 1850 | N86: =IF(AND($A86=TRUE,$C$2=1),(VLOOKUP($B86,'International Exports-Detailed'!$A:$Q,N$6-2000,FALSE)),IF(AND($A86=TRUE,$C$2=2),(VLOOKUP($B86,'Rest of the UK Exports -Detail'!$A:$Q,N$6-2000,FALSE)),"")) -> 1855 | O86: =IF(AND($A86=TRUE,$C$2=1),(VLOOKUP($B86,'International Exports-Detailed'!$A:$Q,O$6-2000,FALSE)),IF(AND($A86=TRUE,$C$2=2),(VLOOKUP($B86,'Rest of the UK Exports -Detail'!$A:$Q,O$6-2000,FALSE)),"")) -> 1690 | P86: =IF(AND($A86=TRUE,$C$2=1),(VLOOKUP($B86,'International Exports-Detailed'!$A:$Q,P$6-2000,FALSE)),IF(AND($A86=TRUE,$C$2=2),(VLOOKUP($B86,'Rest of the UK Exports -Detail'!$A:$Q,P$6-2000,FALSE)),"")) -> 1745 | Q86: =IF(AND($A86=TRUE,$C$2=1),(VLOOKUP($B86,'International Exports-Detailed'!$A:$Q,Q$6-2000,FALSE)),IF(AND($A86=TRUE,$C$2=2),(VLOOKUP($B86,'Rest of the UK Exports -Detail'!$A:$Q,Q$6-2000,FALSE)),"")) -> 2015 | R86: =IF(AND($A86=TRUE,$C$2=1),(VLOOKUP($B86,'International Exports-Detailed'!$A:$Q,R$6-2000,FALSE)),IF(AND($A86=TRUE,$C$2=2),(VLOOKUP($B86,'Rest of the UK Exports -Detail'!$A:$Q,R$6-2000,FALSE)),"")) -> 1890
A87: TRUE | B87: Wholesale Trade | C87: =IF(AND($A87=TRUE,$C$2=1),(VLOOKUP($B87,'International Exports-Detailed'!$A:$Q,C$6-2000,FALSE)),IF(AND($A87=TRUE,$C$2=2),(VLOOKUP($B87,'Rest of the UK Exports -Detail'!$A:$Q,C$6-2000,FALSE)),"")) -> 805 | D87: =IF(AND($A87=TRUE,$C$2=1),(VLOOKUP($B87,'International Exports-Detailed'!$A:$Q,D$6-2000,FALSE)),IF(AND($A87=TRUE,$C$2=2),(VLOOKUP($B87,'Rest of the UK Exports -Detail'!$A:$Q,D$6-2000,FALSE)),"")) -> 750 | E87: =IF(AND($A87=TRUE,$C$2=1),(VLOOKUP($B87,'International Exports-Detailed'!$A:$Q,E$6-2000,FALSE)),IF(AND($A87=TRUE,$C$2=2),(VLOOKUP($B87,'Rest of the UK Exports -Detail'!$A:$Q,E$6-2000,FALSE)),"")) -> 930 | F87: =IF(AND($A87=TRUE,$C$2=1),(VLOOKUP($B87,'International Exports-Detailed'!$A:$Q,F$6-2000,FALSE)),IF(AND($A87=TRUE,$C$2=2),(VLOOKUP($B87,'Rest of the UK Exports -Detail'!$A:$Q,F$6-2000,FALSE)),"")) -> 905 | G87: =IF(AND($A87=TRUE,$C$2=1),(VLOOKUP($B87,'International Exports-Detailed'!$A:$Q,G$6-2000,FALSE)),IF(AND($A87=TRUE,$C$2=2),(VLOOKUP($B87,'Rest of the UK Exports -Detail'!$A:$Q,G$6-2000,FALSE)),"")) -> 1140 | H87: =IF(AND($A87=TRUE,$C$2=1),(VLOOKUP($B87,'International Exports-Detailed'!$A:$Q,H$6-2000,FALSE)),IF(AND($A87=TRUE,$C$2=2),(VLOOKUP($B87,'Rest of the UK Exports -Detail'!$A:$Q,H$6-2000,FALSE)),"")) -> 1335 | I87: =IF(AND($A87=TRUE,$C$2=1),(VLOOKUP($B87,'International Exports-Detailed'!$A:$Q,I$6-2000,FALSE)),IF(AND($A87=TRUE,$C$2=2),(VLOOKUP($B87,'Rest of the UK Exports -Detail'!$A:$Q,I$6-2000,FALSE)),"")) -> 1375 | J87: =IF(AND($A87=TRUE,$C$2=1),(VLOOKUP($B87,'International Exports-Detailed'!$A:$Q,J$6-2000,FALSE)),IF(AND($A87=TRUE,$C$2=2),(VLOOKUP($B87,'Rest of the UK Exports -Detail'!$A:$Q,J$6-2000,FALSE)),"")) -> 1215 | K87: =IF(AND($A87=TRUE,$C$2=1),(VLOOKUP($B87,'International Exports-Detailed'!$A:$Q,K$6-2000,FALSE)),IF(AND($A87=TRUE,$C$2=2),(VLOOKUP($B87,'Rest of the UK Exports -Detail'!$A:$Q,K$6-2000,FALSE)),"")) -> 1105 | L87: =IF(AND($A87=TRUE,$C$2=1),(VLOOKUP($B87,'International Exports-Detailed'!$A:$Q,L$6-2000,FALSE)),IF(AND($A87=TRUE,$C$2=2),(VLOOKUP($B87,'Rest of the UK Exports -Detail'!$A:$Q,L$6-2000,FALSE)),"")) -> 1280 | M87: =IF(AND($A87=TRUE,$C$2=1),(VLOOKUP($B87,'International Exports-Detailed'!$A:$Q,M$6-2000,FALSE)),IF(AND($A87=TRUE,$C$2=2),(VLOOKUP($B87,'Rest of the UK Exports -Detail'!$A:$Q,M$6-2000,FALSE)),"")) -> 1470 | N87: =IF(AND($A87=TRUE,$C$2=1),(VLOOKUP($B87,'International Exports-Detailed'!$A:$Q,N$6-2000,FALSE)),IF(AND($A87=TRUE,$C$2=2),(VLOOKUP($B87,'Rest of the UK Exports -Detail'!$A:$Q,N$6-2000,FALSE)),"")) -> 1490 | O87: =IF(AND($A87=TRUE,$C$2=1),(VLOOKUP($B87,'International Exports-Detailed'!$A:$Q,O$6-2000,FALSE)),IF(AND($A87=TRUE,$C$2=2),(VLOOKUP($B87,'Rest of the UK Exports -Detail'!$A:$Q,O$6-2000,FALSE)),"")) -> 1370 | P87: =IF(AND($A87=TRUE,$C$2=1),(VLOOKUP($B87,'International Exports-Detailed'!$A:$Q,P$6-2000,FALSE)),IF(AND($A87=TRUE,$C$2=2),(VLOOKUP($B87,'Rest of the UK Exports -Detail'!$A:$Q,P$6-2000,FALSE)),"")) -> 1415 | Q87: =IF(AND($A87=TRUE,$C$2=1),(VLOOKUP($B87,'International Exports-Detailed'!$A:$Q,Q$6-2000,FALSE)),IF(AND($A87=TRUE,$C$2=2),(VLOOKUP($B87,'Rest of the UK Exports -Detail'!$A:$Q,Q$6-2000,FALSE)),"")) -> 1700 | R87: =IF(AND($A87=TRUE,$C$2=1),(VLOOKUP($B87,'International Exports-Detailed'!$A:$Q,R$6-2000,FALSE)),IF(AND($A87=TRUE,$C$2=2),(VLOOKUP($B87,'Rest of the UK Exports -Detail'!$A:$Q,R$6-2000,FALSE)),"")) -> 1605
A88: TRUE | B88: Retail Trade | C88: =IF(AND($A88=TRUE,$C$2=1),(VLOOKUP($B88,'International Exports-Detailed'!$A:$Q,C$6-2000,FALSE)),IF(AND($A88=TRUE,$C$2=2),(VLOOKUP($B88,'Rest of the UK Exports -Detail'!$A:$Q,C$6-2000,FALSE)),"")) -> 165 | D88: =IF(AND($A88=TRUE,$C$2=1),(VLOOKUP($B88,'International Exports-Detailed'!$A:$Q,D$6-2000,FALSE)),IF(AND($A88=TRUE,$C$2=2),(VLOOKUP($B88,'Rest of the UK Exports -Detail'!$A:$Q,D$6-2000,FALSE)),"")) -> 195 | E88: =IF(AND($A88=TRUE,$C$2=1),(VLOOKUP($B88,'International Exports-Detailed'!$A:$Q,E$6-2000,FALSE)),IF(AND($A88=TRUE,$C$2=2),(VLOOKUP($B88,'Rest of the UK Exports -Detail'!$A:$Q,E$6-2000,FALSE)),"")) -> 150 | F88: =IF(AND($A88=TRUE,$C$2=1),(VLOOKUP($B88,'International Exports-Detailed'!$A:$Q,F$6-2000,FALSE)),IF(AND($A88=TRUE,$C$2=2),(VLOOKUP($B88,'Rest of the UK Exports -Detail'!$A:$Q,F$6-2000,FALSE)),"")) -> 145 | G88: =IF(AND($A88=TRUE,$C$2=1),(VLOOKUP($B88,'International Exports-Detailed'!$A:$Q,G$6-2000,FALSE)),IF(AND($A88=TRUE,$C$2=2),(VLOOKUP($B88,'Rest of the UK Exports -Detail'!$A:$Q,G$6-2000,FALSE)),"")) -> 175 | H88: =IF(AND($A88=TRUE,$C$2=1),(VLOOKUP($B88,'International Exports-Detailed'!$A:$Q,H$6-2000,FALSE)),IF(AND($A88=TRUE,$C$2=2),(VLOOKUP($B88,'Rest of the UK Exports -Detail'!$A:$Q,H$6-2000,FALSE)),"")) -> 180 | I88: =IF(AND($A88=TRUE,$C$2=1),(VLOOKUP($B88,'International Exports-Detailed'!$A:$Q,I$6-2000,FALSE)),IF(AND($A88=TRUE,$C$2=2),(VLOOKUP($B88,'Rest of the UK Exports -Detail'!$A:$Q,I$6-2000,FALSE)),"")) -> 185 | J88: =IF(AND($A88=TRUE,$C$2=1),(VLOOKUP($B88,'International Exports-Detailed'!$A:$Q,J$6-2000,FALSE)),IF(AND($A88=TRUE,$C$2=2),(VLOOKUP($B88,'Rest of the UK Exports -Detail'!$A:$Q,J$6-2000,FALSE)),"")) -> 200 | K88: =IF(AND($A88=TRUE,$C$2=1),(VLOOKUP($B88,'International Exports-Detailed'!$A:$Q,K$6-2000,FALSE)),IF(AND($A88=TRUE,$C$2=2),(VLOOKUP($B88,'Rest of the UK Exports -Detail'!$A:$Q,K$6-2000,FALSE)),"")) -> 205 | L88: =IF(AND($A88=TRUE,$C$2=1),(VLOOKUP($B88,'International Exports-Detailed'!$A:$Q,L$6-2000,FALSE)),IF(AND($A88=TRUE,$C$2=2),(VLOOKUP($B88,'Rest of the UK Exports -Detail'!$A:$Q,L$6-2000,FALSE)),"")) -> 250 | M88: =IF(AND($A88=TRUE,$C$2=1),(VLOOKUP($B88,'International Exports-Detailed'!$A:$Q,M$6-2000,FALSE)),IF(AND($A88=TRUE,$C$2=2),(VLOOKUP($B88,'Rest of the UK Exports -Detail'!$A:$Q,M$6-2000,FALSE)),"")) -> 305 | N88: =IF(AND($A88=TRUE,$C$2=1),(VLOOKUP($B88,'International Exports-Detailed'!$A:$Q,N$6-2000,FALSE)),IF(AND($A88=TRUE,$C$2=2),(VLOOKUP($B88,'Rest of the UK Exports -Detail'!$A:$Q,N$6-2000,FALSE)),"")) -> 320 | O88: =IF(AND($A88=TRUE,$C$2=1),(VLOOKUP($B88,'International Exports-Detailed'!$A:$Q,O$6-2000,FALSE)),IF(AND($A88=TRUE,$C$2=2),(VLOOKUP($B88,'Rest of the UK Exports -Detail'!$A:$Q,O$6-2000,FALSE)),"")) -> 280 | P88: =IF(AND($A88=TRUE,$C$2=1),(VLOOKUP($B88,'International Exports-Detailed'!$A:$Q,P$6-2000,FALSE)),IF(AND($A88=TRUE,$C$2=2),(VLOOKUP($B88,'Rest of the UK Exports -Detail'!$A:$Q,P$6-2000,FALSE)),"")) -> 290 | Q88: =IF(AND($A88=TRUE,$C$2=1),(VLOOKUP($B88,'International Exports-Detailed'!$A:$Q,Q$6-2000,FALSE)),IF(AND($A88=TRUE,$C$2=2),(VLOOKUP($B88,'Rest of the UK Exports -Detail'!$A:$Q,Q$6-2000,FALSE)),"")) -> 270 | R88: =IF(AND($A88=TRUE,$C$2=1),(VLOOKUP($B88,'International Exports-Detailed'!$A:$Q,R$6-2000,FALSE)),IF(AND($A88=TRUE,$C$2=2),(VLOOKUP($B88,'Rest of the UK Exports -Detail'!$A:$Q,R$6-2000,FALSE)),"")) -> 235
A89: TRUE | B89: Trade and Repair of Vehicles | C89: =IF(AND($A89=TRUE,$C$2=1),(VLOOKUP($B89,'International Exports-Detailed'!$A:$Q,C$6-2000,FALSE)),IF(AND($A89=TRUE,$C$2=2),(VLOOKUP($B89,'Rest of the UK Exports -Detail'!$A:$Q,C$6-2000,FALSE)),"")) -> 20 | D89: =IF(AND($A89=TRUE,$C$2=1),(VLOOKUP($B89,'International Exports-Detailed'!$A:$Q,D$6-2000,FALSE)),IF(AND($A89=TRUE,$C$2=2),(VLOOKUP($B89,'Rest of the UK Exports -Detail'!$A:$Q,D$6-2000,FALSE)),"")) -> 15 | E89: =IF(AND($A89=TRUE,$C$2=1),(VLOOKUP($B89,'International Exports-Detailed'!$A:$Q,E$6-2000,FALSE)),IF(AND($A89=TRUE,$C$2=2),(VLOOKUP($B89,'Rest of the UK Exports -Detail'!$A:$Q,E$6-2000,FALSE)),"")) -> 15 | F89: =IF(AND($A89=TRUE,$C$2=1),(VLOOKUP($B89,'International Exports-Detailed'!$A:$Q,F$6-2000,FALSE)),IF(AND($A89=TRUE,$C$2=2),(VLOOKUP($B89,'Rest of the UK Exports -Detail'!$A:$Q,F$6-2000,FALSE)),"")) -> 20 | G89: =IF(AND($A89=TRUE,$C$2=1),(VLOOKUP($B89,'International Exports-Detailed'!$A:$Q,G$6-2000,FALSE)),IF(AND($A89=TRUE,$C$2=2),(VLOOKUP($B89,'Rest of the UK Exports -Detail'!$A:$Q,G$6-2000,FALSE)),"")) -> 75 | H89: =IF(AND($A89=TRUE,$C$2=1),(VLOOKUP($B89,'International Exports-Detailed'!$A:$Q,H$6-2000,FALSE)),IF(AND($A89=TRUE,$C$2=2),(VLOOKUP($B89,'Rest of the UK Exports -Detail'!$A:$Q,H$6-2000,FALSE)),"")) -> 45 | I89: =IF(AND($A89=TRUE,$C$2=1),(VLOOKUP($B89,'International Exports-Detailed'!$A:$Q,I$6-2000,FALSE)),IF(AND($A89=TRUE,$C$2=2),(VLOOKUP($B89,'Rest of the UK Exports -Detail'!$A:$Q,I$6-2000,FALSE)),"")) -> 45 | J89: =IF(AND($A89=TRUE,$C$2=1),(VLOOKUP($B89,'International Exports-Detailed'!$A:$Q,J$6-2000,FALSE)),IF(AND($A89=TRUE,$C$2=2),(VLOOKUP($B89,'Rest of the UK Exports -Detail'!$A:$Q,J$6-2000,FALSE)),"")) -> 45 | K89: =IF(AND($A89=TRUE,$C$2=1),(VLOOKUP($B89,'International Exports-Detailed'!$A:$Q,K$6-2000,FALSE)),IF(AND($A89=TRUE,$C$2=2),(VLOOKUP($B89,'Rest of the UK Exports -Detail'!$A:$Q,K$6-2000,FALSE)),"")) -> 50 | L89: =IF(AND($A89=TRUE,$C$2=1),(VLOOKUP($B89,'International Exports-Detailed'!$A:$Q,L$6-2000,FALSE)),IF(AND($A89=TRUE,$C$2=2),(VLOOKUP($B89,'Rest of the UK Exports -Detail'!$A:$Q,L$6-2000,FALSE)),"")) -> 65 | M89: =IF(AND($A89=TRUE,$C$2=1),(VLOOKUP($B89,'International Exports-Detailed'!$A:$Q,M$6-2000,FALSE)),IF(AND($A89=TRUE,$C$2=2),(VLOOKUP($B89,'Rest of the UK Exports -Detail'!$A:$Q,M$6-2000,FALSE)),"")) -> 75 | N89: =IF(AND($A89=TRUE,$C$2=1),(VLOOKUP($B89,'International Exports-Detailed'!$A:$Q,N$6-2000,FALSE)),IF(AND($A89=TRUE,$C$2=2),(VLOOKUP($B89,'Rest of the UK Exports -Detail'!$A:$Q,N$6-2000,FALSE)),"")) -> 45 | O89: =IF(AND($A89=TRUE,$C$2=1),(VLOOKUP($B89,'International Exports-Detailed'!$A:$Q,O$6-2000,FALSE)),IF(AND($A89=TRUE,$C$2=2),(VLOOKUP($B89,'Rest of the UK Exports -Detail'!$A:$Q,O$6-2000,FALSE)),"")) -> 40 | P89: =IF(AND($A89=TRUE,$C$2=1),(VLOOKUP($B89,'International Exports-Detailed'!$A:$Q,P$6-2000,FALSE)),IF(AND($A89=TRUE,$C$2=2),(VLOOKUP($B89,'Rest of the UK Exports -Detail'!$A:$Q,P$6-2000,FALSE)),"")) -> 45 | Q89: =IF(AND($A89=TRUE,$C$2=1),(VLOOKUP($B89,'International Exports-Detailed'!$A:$Q,Q$6-2000,FALSE)),IF(AND($A89=TRUE,$C$2=2),(VLOOKUP($B89,'Rest of the UK Exports -Detail'!$A:$Q,Q$6-2000,FALSE)),"")) -> 45 | R89: =IF(AND($A89=TRUE,$C$2=1),(VLOOKUP($B89,'International Exports-Detailed'!$A:$Q,R$6-2000,FALSE)),IF(AND($A89=TRUE,$C$2=2),(VLOOKUP($B89,'Rest of the UK Exports -Detail'!$A:$Q,R$6-2000,FALSE)),"")) -> 50
B91: Transport and Storage Chart
C92: 2002 | D92: 2003 | E92: 2004 | F92: 2005 | G92: 2006 | H92: 2007 | I92: 2008 | J92: 2009 | K92: 2010 | L92: 2011 | M92: 2012 | N92: 2013 | O92: 2014 | P92: 2015 | Q92: 2016 | R92: 2017
A93: TRUE | B93: Transportation and Storage | C93: =IF(AND($A93=TRUE,$C$2=1),(VLOOKUP($B93,'International Exports-Detailed'!$A:$Q,C$6-2000,FALSE)),IF(AND($A93=TRUE,$C$2=2),(VLOOKUP($B93,'Rest of the UK Exports -Detail'!$A:$Q,C$6-2000,FALSE)),"")) -> 570 | D93: =IF(AND($A93=TRUE,$C$2=1),(VLOOKUP($B93,'International Exports-Detailed'!$A:$Q,D$6-2000,FALSE)),IF(AND($A93=TRUE,$C$2=2),(VLOOKUP($B93,'Rest of the UK Exports -Detail'!$A:$Q,D$6-2000,FALSE)),"")) -> 680 | E93: =IF(AND($A93=TRUE,$C$2=1),(VLOOKUP($B93,'International Exports-Detailed'!$A:$Q,E$6-2000,FALSE)),IF(AND($A93=TRUE,$C$2=2),(VLOOKUP($B93,'Rest of the UK Exports -Detail'!$A:$Q,E$6-2000,FALSE)),"")) -> 745 | F93: =IF(AND($A93=TRUE,$C$2=1),(VLOOKUP($B93,'International Exports-Detailed'!$A:$Q,F$6-2000,FALSE)),IF(AND($A93=TRUE,$C$2=2),(VLOOKUP($B93,'Rest of the UK Exports -Detail'!$A:$Q,F$6-2000,FALSE)),"")) -> 580 | G93: =IF(AND($A93=TRUE,$C$2=1),(VLOOKUP($B93,'International Exports-Detailed'!$A:$Q,G$6-2000,FALSE)),IF(AND($A93=TRUE,$C$2=2),(VLOOKUP($B93,'Rest of the UK Exports -Detail'!$A:$Q,G$6-2000,FALSE)),"")) -> 695 | H93: =IF(AND($A93=TRUE,$C$2=1),(VLOOKUP($B93,'International Exports-Detailed'!$A:$Q,H$6-2000,FALSE)),IF(AND($A93=TRUE,$C$2=2),(VLOOKUP($B93,'Rest of the UK Exports -Detail'!$A:$Q,H$6-2000,FALSE)),"")) -> 675 | I93: =IF(AND($A93=TRUE,$C$2=1),(VLOOKUP($B93,'International Exports-Detailed'!$A:$Q,I$6-2000,FALSE)),IF(AND($A93=TRUE,$C$2=2),(VLOOKUP($B93,'Rest of the UK Exports -Detail'!$A:$Q,I$6-2000,FALSE)),"")) -> 900 | J93: =IF(AND($A93=TRUE,$C$2=1),(VLOOKUP($B93,'International Exports-Detailed'!$A:$Q,J$6-2000,FALSE)),IF(AND($A93=TRUE,$C$2=2),(VLOOKUP($B93,'Rest of the UK Exports -Detail'!$A:$Q,J$6-2000,FALSE)),"")) -> 870 | K93: =IF(AND($A93=TRUE,$C$2=1),(VLOOKUP($B93,'International Exports-Detailed'!$A:$Q,K$6-2000,FALSE)),IF(AND($A93=TRUE,$C$2=2),(VLOOKUP($B93,'Rest of the UK Exports -Detail'!$A:$Q,K$6-2000,FALSE)),"")) -> 785 | L93: =IF(AND($A93=TRUE,$C$2=1),(VLOOKUP($B93,'International Exports-Detailed'!$A:$Q,L$6-2000,FALSE)),IF(AND($A93=TRUE,$C$2=2),(VLOOKUP($B93,'Rest of the UK Exports -Detail'!$A:$Q,L$6-2000,FALSE)),"")) -> 915 | M93: =IF(AND($A93=TRUE,$C$2=1),(VLOOKUP($B93,'International Exports-Detailed'!$A:$Q,M$6-2000,FALSE)),IF(AND($A93=TRUE,$C$2=2),(VLOOKUP($B93,'Rest of the UK Exports -Detail'!$A:$Q,M$6-2000,FALSE)),"")) -> 835 | N93: =IF(AND($A93=TRUE,$C$2=1),(VLOOKUP($B93,'International Exports-Detailed'!$A:$Q,N$6-2000,FALSE)),IF(AND($A93=TRUE,$C$2=2),(VLOOKUP($B93,'Rest of the UK Exports -Detail'!$A:$Q,N$6-2000,FALSE)),"")) -> 1055 | O93: =IF(AND($A93=TRUE,$C$2=1),(VLOOKUP($B93,'International Exports-Detailed'!$A:$Q,O$6-2000,FALSE)),IF(AND($A93=TRUE,$C$2=2),(VLOOKUP($B93,'Rest of the UK Exports -Detail'!$A:$Q,O$6-2000,FALSE)),"")) -> 1135 | P93: =IF(AND($A93=TRUE,$C$2=1),(VLOOKUP($B93,'International Exports-Detailed'!$A:$Q,P$6-2000,FALSE)),IF(AND($A93=TRUE,$C$2=2),(VLOOKUP($B93,'Rest of the UK Exports -Detail'!$A:$Q,P$6-2000,FALSE)),"")) -> 1000 | Q93: =IF(AND($A93=TRUE,$C$2=1),(VLOOKUP($B93,'International Exports-Detailed'!$A:$Q,Q$6-2000,FALSE)),IF(AND($A93=TRUE,$C$2=2),(VLOOKUP($B93,'Rest of the UK Exports -Detail'!$A:$Q,Q$6-2000,FALSE)),"")) -> 1245 | R93: =IF(AND($A93=TRUE,$C$2=1),(VLOOKUP($B93,'International Exports-Detailed'!$A:$Q,R$6-2000,FALSE)),IF(AND($A93=TRUE,$C$2=2),(VLOOKUP($B93,'Rest of the UK Exports -Detail'!$A:$Q,R$6-2000,FALSE)),"")) -> 1175
A94: TRUE | B94: Storage | C94: =IF(AND($A94=TRUE,$C$2=1),(VLOOKUP($B94,'International Exports-Detailed'!$A:$Q,C$6-2000,FALSE)),IF(AND($A94=TRUE,$C$2=2),(VLOOKUP($B94,'Rest of the UK Exports -Detail'!$A:$Q,C$6-2000,FALSE)),"")) -> 380 | D94: =IF(AND($A94=TRUE,$C$2=1),(VLOOKUP($B94,'International Exports-Detailed'!$A:$Q,D$6-2000,FALSE)),IF(AND($A94=TRUE,$C$2=2),(VLOOKUP($B94,'Rest of the UK Exports -Detail'!$A:$Q,D$6-2000,FALSE)),"")) -> 480 | E94: =IF(AND($A94=TRUE,$C$2=1),(VLOOKUP($B94,'International Exports-Detailed'!$A:$Q,E$6-2000,FALSE)),IF(AND($A94=TRUE,$C$2=2),(VLOOKUP($B94,'Rest of the UK Exports -Detail'!$A:$Q,E$6-2000,FALSE)),"")) -> 505 | F94: =IF(AND($A94=TRUE,$C$2=1),(VLOOKUP($B94,'International Exports-Detailed'!$A:$Q,F$6-2000,FALSE)),IF(AND($A94=TRUE,$C$2=2),(VLOOKUP($B94,'Rest of the UK Exports -Detail'!$A:$Q,F$6-2000,FALSE)),"")) -> 330 | G94: =IF(AND($A94=TRUE,$C$2=1),(VLOOKUP($B94,'International Exports-Detailed'!$A:$Q,G$6-2000,FALSE)),IF(AND($A94=TRUE,$C$2=2),(VLOOKUP($B94,'Rest of the UK Exports -Detail'!$A:$Q,G$6-2000,FALSE)),"")) -> 375 | H94: =IF(AND($A94=TRUE,$C$2=1),(VLOOKUP($B94,'International Exports-Detailed'!$A:$Q,H$6-2000,FALSE)),IF(AND($A94=TRUE,$C$2=2),(VLOOKUP($B94,'Rest of the UK Exports -Detail'!$A:$Q,H$6-2000,FALSE)),"")) -> 315 | I94: =IF(AND($A94=TRUE,$C$2=1),(VLOOKUP($B94,'International Exports-Detailed'!$A:$Q,I$6-2000,FALSE)),IF(AND($A94=TRUE,$C$2=2),(VLOOKUP($B94,'Rest of the UK Exports -Detail'!$A:$Q,I$6-2000,FALSE)),"")) -> 450 | J94: =IF(AND($A94=TRUE,$C$2=1),(VLOOKUP($B94,'International Exports-Detailed'!$A:$Q,J$6-2000,FALSE)),IF(AND($A94=TRUE,$C$2=2),(VLOOKUP($B94,'Rest of the UK Exports -Detail'!$A:$Q,J$6-2000,FALSE)),"")) -> 385 | K94: =IF(AND($A94=TRUE,$C$2=1),(VLOOKUP($B94,'International Exports-Detailed'!$A:$Q,K$6-2000,FALSE)),IF(AND($A94=TRUE,$C$2=2),(VLOOKUP($B94,'Rest of the UK Exports -Detail'!$A:$Q,K$6-2000,FALSE)),"")) -> 400 | L94: =IF(AND($A94=TRUE,$C$2=1),(VLOOKUP($B94,'International Exports-Detailed'!$A:$Q,L$6-2000,FALSE)),IF(AND($A94=TRUE,$C$2=2),(VLOOKUP($B94,'Rest of the UK Exports -Detail'!$A:$Q,L$6-2000,FALSE)),"")) -> 560 | M94: =IF(AND($A94=TRUE,$C$2=1),(VLOOKUP($B94,'International Exports-Detailed'!$A:$Q,M$6-2000,FALSE)),IF(AND($A94=TRUE,$C$2=2),(VLOOKUP($B94,'Rest of the UK Exports -Detail'!$A:$Q,M$6-2000,FALSE)),"")) -> 430 | N94: =IF(AND($A94=TRUE,$C$2=1),(VLOOKUP($B94,'International Exports-Detailed'!$A:$Q,N$6-2000,FALSE)),IF(AND($A94=TRUE,$C$2=2),(VLOOKUP($B94,'Rest of the UK Exports -Detail'!$A:$Q,N$6-2000,FALSE)),"")) -> 715 | O94: =IF(AND($A94=TRUE,$C$2=1),(VLOOKUP($B94,'International Exports-Detailed'!$A:$Q,O$6-2000,FALSE)),IF(AND($A94=TRUE,$C$2=2),(VLOOKUP($B94,'Rest of the UK Exports -Detail'!$A:$Q,O$6-2000,FALSE)),"")) -> 705 | P94: =IF(AND($A94=TRUE,$C$2=1),(VLOOKUP($B94,'International Exports-Detailed'!$A:$Q,P$6-2000,FALSE)),IF(AND($A94=TRUE,$C$2=2),(VLOOKUP($B94,'Rest of the UK Exports -Detail'!$A:$Q,P$6-2000,FALSE)),"")) -> 735 | Q94: =IF(AND($A94=TRUE,$C$2=1),(VLOOKUP($B94,'International Exports-Detailed'!$A:$Q,Q$6-2000,FALSE)),IF(AND($A94=TRUE,$C$2=2),(VLOOKUP($B94,'Rest of the UK Exports -Detail'!$A:$Q,Q$6-2000,FALSE)),"")) -> 895 | R94: =IF(AND($A94=TRUE,$C$2=1),(VLOOKUP($B94,'International Exports-Detailed'!$A:$Q,R$6-2000,FALSE)),IF(AND($A94=TRUE,$C$2=2),(VLOOKUP($B94,'Rest of the UK Exports -Detail'!$A:$Q,R$6-2000,FALSE)),"")) -> 890
A95: TRUE | B95: Transportation | C95: =IF(AND($A95=TRUE,$C$2=1),(VLOOKUP($B95,'International Exports-Detailed'!$A:$Q,C$6-2000,FALSE)),IF(AND($A95=TRUE,$C$2=2),(VLOOKUP($B95,'Rest of the UK Exports -Detail'!$A:$Q,C$6-2000,FALSE)),"")) -> 195 | D95: =IF(AND($A95=TRUE,$C$2=1),(VLOOKUP($B95,'International Exports-Detailed'!$A:$Q,D$6-2000,FALSE)),IF(AND($A95=TRUE,$C$2=2),(VLOOKUP($B95,'Rest of the UK Exports -Detail'!$A:$Q,D$6-2000,FALSE)),"")) -> 205 | E95: =IF(AND($A95=TRUE,$C$2=1),(VLOOKUP($B95,'International Exports-Detailed'!$A:$Q,E$6-2000,FALSE)),IF(AND($A95=TRUE,$C$2=2),(VLOOKUP($B95,'Rest of the UK Exports -Detail'!$A:$Q,E$6-2000,FALSE)),"")) -> 240 | F95: =IF(AND($A95=TRUE,$C$2=1),(VLOOKUP($B95,'International Exports-Detailed'!$A:$Q,F$6-2000,FALSE)),IF(AND($A95=TRUE,$C$2=2),(VLOOKUP($B95,'Rest of the UK Exports -Detail'!$A:$Q,F$6-2000,FALSE)),"")) -> 250 | G95: =IF(AND($A95=TRUE,$C$2=1),(VLOOKUP($B95,'International Exports-Detailed'!$A:$Q,G$6-2000,FALSE)),IF(AND($A95=TRUE,$C$2=2),(VLOOKUP($B95,'Rest of the UK Exports -Detail'!$A:$Q,G$6-2000,FALSE)),"")) -> 325 | H95: =IF(AND($A95=TRUE,$C$2=1),(VLOOKUP($B95,'International Exports-Detailed'!$A:$Q,H$6-2000,FALSE)),IF(AND($A95=TRUE,$C$2=2),(VLOOKUP($B95,'Rest of the UK Exports -Detail'!$A:$Q,H$6-2000,FALSE)),"")) -> 360 | I95: =IF(AND($A95=TRUE,$C$2=1),(VLOOKUP($B95,'International Exports-Detailed'!$A:$Q,I$6-2000,FALSE)),IF(AND($A95=TRUE,$C$2=2),(VLOOKUP($B95,'Rest of the UK Exports -Detail'!$A:$Q,I$6-2000,FALSE)),"")) -> 450 | J95: =IF(AND($A95=TRUE,$C$2=1),(VLOOKUP($B95,'International Exports-Detailed'!$A:$Q,J$6-2000,FALSE)),IF(AND($A95=TRUE,$C$2=2),(VLOOKUP($B95,'Rest of the UK Exports -Detail'!$A:$Q,J$6-2000,FALSE)),"")) -> 485 | K95: =IF(AND($A95=TRUE,$C$2=1),(VLOOKUP($B95,'International Exports-Detailed'!$A:$Q,K$6-2000,FALSE)),IF(AND($A95=TRUE,$C$2=2),(VLOOKUP($B95,'Rest of the UK Exports -Detail'!$A:$Q,K$6-2000,FALSE)),"")) -> 385 | L95: =IF(AND($A95=TRUE,$C$2=1),(VLOOKUP($B95,'International Exports-Detailed'!$A:$Q,L$6-2000,FALSE)),IF(AND($A95=TRUE,$C$2=2),(VLOOKUP($B95,'Rest of the UK Exports -Detail'!$A:$Q,L$6-2000,FALSE)),"")) -> 355 | M95: =IF(AND($A95=TRUE,$C$2=1),(VLOOKUP($B95,'International Exports-Detailed'!$A:$Q,M$6-2000,FALSE)),IF(AND($A95=TRUE,$C$2=2),(VLOOKUP($B95,'Rest of the UK Exports -Detail'!$A:$Q,M$6-2000,FALSE)),"")) -> 405 | N95: =IF(AND($A95=TRUE,$C$2=1),(VLOOKUP($B95,'International Exports-Detailed'!$A:$Q,N$6-2000,FALSE)),IF(AND($A95=TRUE,$C$2=2),(VLOOKUP($B95,'Rest of the UK Exports -Detail'!$A:$Q,N$6-2000,FALSE)),"")) -> 335 | O95: =IF(AND($A95=TRUE,$C$2=1),(VLOOKUP($B95,'International Exports-Detailed'!$A:$Q,O$6-2000,FALSE)),IF(AND($A95=TRUE,$C$2=2),(VLOOKUP($B95,'Rest of the UK Exports -Detail'!$A:$Q,O$6-2000,FALSE)),"")) -> 430 | P95: =IF(AND($A95=TRUE,$C$2=1),(VLOOKUP($B95,'International Exports-Detailed'!$A:$Q,P$6-2000,FALSE)),IF(AND($A95=TRUE,$C$2=2),(VLOOKUP($B95,'Rest of the UK Exports -Detail'!$A:$Q,P$6-2000,FALSE)),"")) -> 265 | Q95: =IF(AND($A95=TRUE,$C$2=1),(VLOOKUP($B95,'International Exports-Detailed'!$A:$Q,Q$6-2000,FALSE)),IF(AND($A95=TRUE,$C$2=2),(VLOOKUP($B95,'Rest of the UK Exports -Detail'!$A:$Q,Q$6-2000,FALSE)),"")) -> 350 | R95: =IF(AND($A95=TRUE,$C$2=1),(VLOOKUP($B95,'International Exports-Detailed'!$A:$Q,R$6-2000,FALSE)),IF(AND($A95=TRUE,$C$2=2),(VLOOKUP($B95,'Rest of the UK Exports -Detail'!$A:$Q,R$6-2000,FALSE)),"")) -> 285
B97: Education Chart
C98: 2002 | D98: 2003 | E98: 2004 | F98: 2005 | G98: 2006 | H98: 2007 | I98: 2008 | J98: 2009 | K98: 2010 | L98: 2011 | M98: 2012 | N98: 2013 | O98: 2014 | P98: 2015 | Q98: 2016 | R98: 2017
A99: TRUE | B99: Education | C99: =IF(AND($A99=TRUE,$C$2=1),(VLOOKUP($B99,'International Exports-Detailed'!$A:$Q,C$6-2000,FALSE)),IF(AND($A99=TRUE,$C$2=2),(VLOOKUP($B99,'Rest of the UK Exports -Detail'!$A:$Q,C$6-2000,FALSE)),"")) -> 170 | D99: =IF(AND($A99=TRUE,$C$2=1),(VLOOKUP($B99,'International Exports-Detailed'!$A:$Q,D$6-2000,FALSE)),IF(AND($A99=TRUE,$C$2=2),(VLOOKUP($B99,'Rest of the UK Exports -Detail'!$A:$Q,D$6-2000,FALSE)),"")) -> 255 | E99: =IF(AND($A99=TRUE,$C$2=1),(VLOOKUP($B99,'International Exports-Detailed'!$A:$Q,E$6-2000,FALSE)),IF(AND($A99=TRUE,$C$2=2),(VLOOKUP($B99,'Rest of the UK Exports -Detail'!$A:$Q,E$6-2000,FALSE)),"")) -> 255 | F99: =IF(AND($A99=TRUE,$C$2=1),(VLOOKUP($B99,'International Exports-Detailed'!$A:$Q,F$6-2000,FALSE)),IF(AND($A99=TRUE,$C$2=2),(VLOOKUP($B99,'Rest of the UK Exports -Detail'!$A:$Q,F$6-2000,FALSE)),"")) -> 280 | G99: =IF(AND($A99=TRUE,$C$2=1),(VLOOKUP($B99,'International Exports-Detailed'!$A:$Q,G$6-2000,FALSE)),IF(AND($A99=TRUE,$C$2=2),(VLOOKUP($B99,'Rest of the UK Exports -Detail'!$A:$Q,G$6-2000,FALSE)),"")) -> 305 | H99: =IF(AND($A99=TRUE,$C$2=1),(VLOOKUP($B99,'International Exports-Detailed'!$A:$Q,H$6-2000,FALSE)),IF(AND($A99=TRUE,$C$2=2),(VLOOKUP($B99,'Rest of the UK Exports -Detail'!$A:$Q,H$6-2000,FALSE)),"")) -> 280 | I99: =IF(AND($A99=TRUE,$C$2=1),(VLOOKUP($B99,'International Exports-Detailed'!$A:$Q,I$6-2000,FALSE)),IF(AND($A99=TRUE,$C$2=2),(VLOOKUP($B99,'Rest of the UK Exports -Detail'!$A:$Q,I$6-2000,FALSE)),"")) -> 330 | J99: =IF(AND($A99=TRUE,$C$2=1),(VLOOKUP($B99,'International Exports-Detailed'!$A:$Q,J$6-2000,FALSE)),IF(AND($A99=TRUE,$C$2=2),(VLOOKUP($B99,'Rest of the UK Exports -Detail'!$A:$Q,J$6-2000,FALSE)),"")) -> 400 | K99: =IF(AND($A99=TRUE,$C$2=1),(VLOOKUP($B99,'International Exports-Detailed'!$A:$Q,K$6-2000,FALSE)),IF(AND($A99=TRUE,$C$2=2),(VLOOKUP($B99,'Rest of the UK Exports -Detail'!$A:$Q,K$6-2000,FALSE)),"")) -> 440 | L99: =IF(AND($A99=TRUE,$C$2=1),(VLOOKUP($B99,'International Exports-Detailed'!$A:$Q,L$6-2000,FALSE)),IF(AND($A99=TRUE,$C$2=2),(VLOOKUP($B99,'Rest of the UK Exports -Detail'!$A:$Q,L$6-2000,FALSE)),"")) -> 515 | M99: =IF(AND($A99=TRUE,$C$2=1),(VLOOKUP($B99,'International Exports-Detailed'!$A:$Q,M$6-2000,FALSE)),IF(AND($A99=TRUE,$C$2=2),(VLOOKUP($B99,'Rest of the UK Exports -Detail'!$A:$Q,M$6-2000,FALSE)),"")) -> 560 | N99: =IF(AND($A99=TRUE,$C$2=1),(VLOOKUP($B99,'International Exports-Detailed'!$A:$Q,N$6-2000,FALSE)),IF(AND($A99=TRUE,$C$2=2),(VLOOKUP($B99,'Rest of the UK Exports -Detail'!$A:$Q,N$6-2000,FALSE)),"")) -> 630 | O99: =IF(AND($A99=TRUE,$C$2=1),(VLOOKUP($B99,'International Exports-Detailed'!$A:$Q,O$6-2000,FALSE)),IF(AND($A99=TRUE,$C$2=2),(VLOOKUP($B99,'Rest of the UK Exports -Detail'!$A:$Q,O$6-2000,FALSE)),"")) -> 700 | P99: =IF(AND($A99=TRUE,$C$2=1),(VLOOKUP($B99,'International Exports-Detailed'!$A:$Q,P$6-2000,FALSE)),IF(AND($A99=TRUE,$C$2=2),(VLOOKUP($B99,'Rest of the UK Exports -Detail'!$A:$Q,P$6-2000,FALSE)),"")) -> 745 | Q99: =IF(AND($A99=TRUE,$C$2=1),(VLOOKUP($B99,'International Exports-Detailed'!$A:$Q,Q$6-2000,FALSE)),IF(AND($A99=TRUE,$C$2=2),(VLOOKUP($B99,'Rest of the UK Exports -Detail'!$A:$Q,Q$6-2000,FALSE)),"")) -> 770 | R99: =IF(AND($A99=TRUE,$C$2=1),(VLOOKUP($B99,'International Exports-Detailed'!$A:$Q,R$6-2000,FALSE)),IF(AND($A99=TRUE,$C$2=2),(VLOOKUP($B99,'Rest of the UK Exports -Detail'!$A:$Q,R$6-2000,FALSE)),"")) -> 775
B101: Real Estate Chart
C102: 2002 | D102: 2003 | E102: 2004 | F102: 2005 | G102: 2006 | H102: 2007 | I102: 2008 | J102: 2009 | K102: 2010 | L102: 2011 | M102: 2012 | N102: 2013 | O102: 2014 | P102: 2015 | Q102: 2016 | R102: 2017
A103: TRUE | B103: Real Estate | C103: =IF(AND($A103=TRUE,$C$2=1),(VLOOKUP($B103,'International Exports-Detailed'!$A:$Q,C$6-2000,FALSE)),IF(AND($A103=TRUE,$C$2=2),(VLOOKUP($B103,'Rest of the UK Exports -Detail'!$A:$Q,C$6-2000,FALSE)),"")) -> 20 | D103: =IF(AND($A103=TRUE,$C$2=1),(VLOOKUP($B103,'International Exports-Detailed'!$A:$Q,D$6-2000,FALSE)),IF(AND($A103=TRUE,$C$2=2),(VLOOKUP($B103,'Rest of the UK Exports -Detail'!$A:$Q,D$6-2000,FALSE)),"")) -> 45 | E103: =IF(AND($A103=TRUE,$C$2=1),(VLOOKUP($B103,'International Exports-Detailed'!$A:$Q,E$6-2000,FALSE)),IF(AND($A103=TRUE,$C$2=2),(VLOOKUP($B103,'Rest of the UK Exports -Detail'!$A:$Q,E$6-2000,FALSE)),"")) -> 20 | F103: =IF(AND($A103=TRUE,$C$2=1),(VLOOKUP($B103,'International Exports-Detailed'!$A:$Q,F$6-2000,FALSE)),IF(AND($A103=TRUE,$C$2=2),(VLOOKUP($B103,'Rest of the UK Exports -Detail'!$A:$Q,F$6-2000,FALSE)),"")) -> 20 | G103: =IF(AND($A103=TRUE,$C$2=1),(VLOOKUP($B103,'International Exports-Detailed'!$A:$Q,G$6-2000,FALSE)),IF(AND($A103=TRUE,$C$2=2),(VLOOKUP($B103,'Rest of the UK Exports -Detail'!$A:$Q,G$6-2000,FALSE)),"")) -> 35 | H103: =IF(AND($A103=TRUE,$C$2=1),(VLOOKUP($B103,'International Exports-Detailed'!$A:$Q,H$6-2000,FALSE)),IF(AND($A103=TRUE,$C$2=2),(VLOOKUP($B103,'Rest of the UK Exports -Detail'!$A:$Q,H$6-2000,FALSE)),"")) -> 35 | I103: =IF(AND($A103=TRUE,$C$2=1),(VLOOKUP($B103,'International Exports-Detailed'!$A:$Q,I$6-2000,FALSE)),IF(AND($A103=TRUE,$C$2=2),(VLOOKUP($B103,'Rest of the UK Exports -Detail'!$A:$Q,I$6-2000,FALSE)),"")) -> 45 | J103: =IF(AND($A103=TRUE,$C$2=1),(VLOOKUP($B103,'International Exports-Detailed'!$A:$Q,J$6-2000,FALSE)),IF(AND($A103=TRUE,$C$2=2),(VLOOKUP($B103,'Rest of the UK Exports -Detail'!$A:$Q,J$6-2000,FALSE)),"")) -> 55 | K103: =IF(AND($A103=TRUE,$C$2=1),(VLOOKUP($B103,'International Exports-Detailed'!$A:$Q,K$6-2000,FALSE)),IF(AND($A103=TRUE,$C$2=2),(VLOOKUP($B103,'Rest of the UK Exports -Detail'!$A:$Q,K$6-2000,FALSE)),"")) -> 50 | L103: =IF(AND($A103=TRUE,$C$2=1),(VLOOKUP($B103,'International Exports-Detailed'!$A:$Q,L$6-2000,FALSE)),IF(AND($A103=TRUE,$C$2=2),(VLOOKUP($B103,'Rest of the UK Exports -Detail'!$A:$Q,L$6-2000,FALSE)),"")) -> 40 | M103: =IF(AND($A103=TRUE,$C$2=1),(VLOOKUP($B103,'International Exports-Detailed'!$A:$Q,M$6-2000,FALSE)),IF(AND($A103=TRUE,$C$2=2),(VLOOKUP($B103,'Rest of the UK Exports -Detail'!$A:$Q,M$6-2000,FALSE)),"")) -> 40 | N103: =IF(AND($A103=TRUE,$C$2=1),(VLOOKUP($B103,'International Exports-Detailed'!$A:$Q,N$6-2000,FALSE)),IF(AND($A103=TRUE,$C$2=2),(VLOOKUP($B103,'Rest of the UK Exports -Detail'!$A:$Q,N$6-2000,FALSE)),"")) -> 45 | O103: =IF(AND($A103=TRUE,$C$2=1),(VLOOKUP($B103,'International Exports-Detailed'!$A:$Q,O$6-2000,FALSE)),IF(AND($A103=TRUE,$C$2=2),(VLOOKUP($B103,'Rest of the UK Exports -Detail'!$A:$Q,O$6-2000,FALSE)),"")) -> 65 | P103: =IF(AND($A103=TRUE,$C$2=1),(VLOOKUP($B103,'International Exports-Detailed'!$A:$Q,P$6-2000,FALSE)),IF(AND($A103=TRUE,$C$2=2),(VLOOKUP($B103,'Rest of the UK Exports -Detail'!$A:$Q,P$6-2000,FALSE)),"")) -> 75 | Q103: =IF(AND($A103=TRUE,$C$2=1),(VLOOKUP($B103,'International Exports-Detailed'!$A:$Q,Q$6-2000,FALSE)),IF(AND($A103=TRUE,$C$2=2),(VLOOKUP($B103,'Rest of the UK Exports -Detail'!$A:$Q,Q$6-2000,FALSE)),"")) -> 50 | R103: =IF(AND($A103=TRUE,$C$2=1),(VLOOKUP($B103,'International Exports-Detailed'!$A:$Q,R$6-2000,FALSE)),IF(AND($A103=TRUE,$C$2=2),(VLOOKUP($B103,'Rest of the UK Exports -Detail'!$A:$Q,R$6-2000,FALSE)),"")) -> 75
B105: Other Services and Accommodation Chart
C106: 2002 | D106: 2003 | E106: 2004 | F106: 2005 | G106: 2006 | H106: 2007 | I106: 2008 | J106: 2009 | K106: 2010 | L106: 2011 | M106: 2012 | N106: 2013 | O106: 2014 | P106: 2015 | Q106: 2016 | R106: 2017
A107: TRUE | B107: Other Services and Accommodation | C107: =IF(AND($A107=TRUE,$C$2=1),(VLOOKUP($B107,'International Exports-Detailed'!$A:$Q,C$6-2000,FALSE)),IF(AND($A107=TRUE,$C$2=2),(VLOOKUP($B107,'Rest of the UK Exports -Detail'!$A:$Q,C$6-2000,FALSE)),"")) -> 140 | D107: =IF(AND($A107=TRUE,$C$2=1),(VLOOKUP($B107,'International Exports-Detailed'!$A:$Q,D$6-2000,FALSE)),IF(AND($A107=TRUE,$C$2=2),(VLOOKUP($B107,'Rest of the UK Exports -Detail'!$A:$Q,D$6-2000,FALSE)),"")) -> 165 | E107: =IF(AND($A107=TRUE,$C$2=1),(VLOOKUP($B107,'International Exports-Detailed'!$A:$Q,E$6-2000,FALSE)),IF(AND($A107=TRUE,$C$2=2),(VLOOKUP($B107,'Rest of the UK Exports -Detail'!$A:$Q,E$6-2000,FALSE)),"")) -> 195 | F107: =IF(AND($A107=TRUE,$C$2=1),(VLOOKUP($B107,'International Exports-Detailed'!$A:$Q,F$6-2000,FALSE)),IF(AND($A107=TRUE,$C$2=2),(VLOOKUP($B107,'Rest of the UK Exports -Detail'!$A:$Q,F$6-2000,FALSE)),"")) -> 175 | G107: =IF(AND($A107=TRUE,$C$2=1),(VLOOKUP($B107,'International Exports-Detailed'!$A:$Q,G$6-2000,FALSE)),IF(AND($A107=TRUE,$C$2=2),(VLOOKUP($B107,'Rest of the UK Exports -Detail'!$A:$Q,G$6-2000,FALSE)),"")) -> 170 | H107: =IF(AND($A107=TRUE,$C$2=1),(VLOOKUP($B107,'International Exports-Detailed'!$A:$Q,H$6-2000,FALSE)),IF(AND($A107=TRUE,$C$2=2),(VLOOKUP($B107,'Rest of the UK Exports -Detail'!$A:$Q,H$6-2000,FALSE)),"")) -> 175 | I107: =IF(AND($A107=TRUE,$C$2=1),(VLOOKUP($B107,'International Exports-Detailed'!$A:$Q,I$6-2000,FALSE)),IF(AND($A107=TRUE,$C$2=2),(VLOOKUP($B107,'Rest of the UK Exports -Detail'!$A:$Q,I$6-2000,FALSE)),"")) -> 245 | J107: =IF(AND($A107=TRUE,$C$2=1),(VLOOKUP($B107,'International Exports-Detailed'!$A:$Q,J$6-2000,FALSE)),IF(AND($A107=TRUE,$C$2=2),(VLOOKUP($B107,'Rest of the UK Exports -Detail'!$A:$Q,J$6-2000,FALSE)),"")) -> 255 | K107: =IF(AND($A107=TRUE,$C$2=1),(VLOOKUP($B107,'International Exports-Detailed'!$A:$Q,K$6-2000,FALSE)),IF(AND($A107=TRUE,$C$2=2),(VLOOKUP($B107,'Rest of the UK Exports -Detail'!$A:$Q,K$6-2000,FALSE)),"")) -> 175 | L107: =IF(AND($A107=TRUE,$C$2=1),(VLOOKUP($B107,'International Exports-Detailed'!$A:$Q,L$6-2000,FALSE)),IF(AND($A107=TRUE,$C$2=2),(VLOOKUP($B107,'Rest of the UK Exports -Detail'!$A:$Q,L$6-2000,FALSE)),"")) -> 175 | M107: =IF(AND($A107=TRUE,$C$2=1),(VLOOKUP($B107,'International Exports-Detailed'!$A:$Q,M$6-2000,FALSE)),IF(AND($A107=TRUE,$C$2=2),(VLOOKUP($B107,'Rest of the UK Exports -Detail'!$A:$Q,M$6-2000,FALSE)),"")) -> 195 | N107: =IF(AND($A107=TRUE,$C$2=1),(VLOOKUP($B107,'International Exports-Detailed'!$A:$Q,N$6-2000,FALSE)),IF(AND($A107=TRUE,$C$2=2),(VLOOKUP($B107,'Rest of the UK Exports -Detail'!$A:$Q,N$6-2000,FALSE)),"")) -> 220 | O107: =IF(AND($A107=TRUE,$C$2=1),(VLOOKUP($B107,'International Exports-Detailed'!$A:$Q,O$6-2000,FALSE)),IF(AND($A107=TRUE,$C$2=2),(VLOOKUP($B107,'Rest of the UK Exports -Detail'!$A:$Q,O$6-2000,FALSE)),"")) -> 195 | P107: =IF(AND($A107=TRUE,$C$2=1),(VLOOKUP($B107,'International Exports-Detailed'!$A:$Q,P$6-2000,FALSE)),IF(AND($A107=TRUE,$C$2=2),(VLOOKUP($B107,'Rest of the UK Exports -Detail'!$A:$Q,P$6-2000,FALSE)),"")) -> 110 | Q107: =IF(AND($A107=TRUE,$C$2=1),(VLOOKUP($B107,'International Exports-Detailed'!$A:$Q,Q$6-2000,FALSE)),IF(AND($A107=TRUE,$C$2=2),(VLOOKUP($B107,'Rest of the UK Exports -Detail'!$A:$Q,Q$6-2000,FALSE)),"")) -> 125 | R107: =IF(AND($A107=TRUE,$C$2=1),(VLOOKUP($B107,'International Exports-Detailed'!$A:$Q,R$6-2000,FALSE)),IF(AND($A107=TRUE,$C$2=2),(VLOOKUP($B107,'Rest of the UK Exports -Detail'!$A:$Q,R$6-2000,FALSE)),"")) -> 180
A111: International Exports by SDI sectors, 2002 - 2016
A112: (£ million)
B113: 2002 | C113: 2003 | D113: 2004 | E113: 2005 | F113: 2006 | G113: 2007 | H113: 2008 | I113: 2009 | J113: 2010 | K113: 2011 | L113: 2012 | M113: 2013 | N113: 2014 | O113: 2015 | P113: 2016 | Q113: 2017 | R113: Chart control
A114: Engineering and Advanced Manufacturing | B114: =IF($R114=TRUE,VLOOKUP($A114,'International Exports - Table'!$A$3:$U$19,'Chart Data - Sectors'!B$113-2000,FALSE),"") -> 3580 | C114: =IF($R114=TRUE,VLOOKUP($A114,'International Exports - Table'!$A$3:$U$19,'Chart Data - Sectors'!C$113-2000,FALSE),"") -> 3405 | D114: =IF($R114=TRUE,VLOOKUP($A114,'International Exports - Table'!$A$3:$U$19,'Chart Data - Sectors'!D$113-2000,FALSE),"") -> 3400 | E114: =IF($R114=TRUE,VLOOKUP($A114,'International Exports - Table'!$A$3:$U$19,'Chart Data - Sectors'!E$113-2000,FALSE),"") -> 3590 | F114: =IF($R114=TRUE,VLOOKUP($A114,'International Exports - Table'!$A$3:$U$19,'Chart Data - Sectors'!F$113-2000,FALSE),"") -> 3780 | G114: =IF($R114=TRUE,VLOOKUP($A114,'International Exports - Table'!$A$3:$U$19,'Chart Data - Sectors'!G$113-2000,FALSE),"") -> 4385 | H114: =IF($R114=TRUE,VLOOKUP($A114,'International Exports - Table'!$A$3:$U$19,'Chart Data - Sectors'!H$113-2000,FALSE),"") -> 4760 | I114: =IF($R114=TRUE,VLOOKUP($A114,'International Exports - Table'!$A$3:$U$19,'Chart Data - Sectors'!I$113-2000,FALSE),"") -> 4750 | J114: =IF($R114=TRUE,VLOOKUP($A114,'International Exports - Table'!$A$3:$U$19,'Chart Data - Sectors'!J$113-2000,FALSE),"") -> 4755 | K114: =IF($R114=TRUE,VLOOKUP($A114,'International Exports - Table'!$A$3:$U$19,'Chart Data - Sectors'!K$113-2000,FALSE),"") -> 4785 | L114: =IF($R114=TRUE,VLOOKUP($A114,'International Exports - Table'!$A$3:$U$19,'Chart Data - Sectors'!L$113-2000,FALSE),"") -> 5525 | M114: =IF($R114=TRUE,VLOOKUP($A114,'International Exports - Table'!$A$3:$U$19,'Chart Data - Sectors'!M$113-2000,FALSE),"") -> 6155 | N114: =IF($R114=TRUE,VLOOKUP($A114,'International Exports - Table'!$A$3:$U$19,'Chart Data - Sectors'!N$113-2000,FALSE),"") -> 6260 | O114: =IF($R114=TRUE,VLOOKUP($A114,'International Exports - Table'!$A$3:$U$19,'Chart Data - Sectors'!O$113-2000,FALSE),"") -> 5985 | P114: =IF($R114=TRUE,VLOOKUP($A114,'International Exports - Table'!$A$3:$U$19,'Chart Data - Sectors'!P$113-2000,FALSE),"") -> 6115 | Q114: =IF($R114=TRUE,VLOOKUP($A114,'International Exports - Table'!$A$3:$U$19,'Chart Data - Sectors'!Q$113-2000,FALSE),"") -> 5700 | R114: TRUE
